Workbook

Sheet Validacion
A1: NOMBRE DEL ENTE PÚBLICO
A2: Atemajac de Brizuela
A5: INFORMACIÓN
A6: Nombre del presidente municipal o titular de la entidad pública
A7: C. SANTIAGO LEON CASTRO
A8: Nombre del encargado de la hacienda pública o finanzas de la entidad pública
A9: L.T. JOCELYN SANCHEZ HERRERA
A10: Mes o corte a informar
A11: DICIEMBRE, 2do. Informe de Avance de Gestión Financiera y Corte Anual
A12: VERIFICACIÓN DE ESTADOS E INFORMES FINANCIEROS
A13: Estados e informes contables:
A14: =IF(ROUND(SUM(A47:L49),2)>0,IF(ROUND((M47),2)=ROUND((M48+M49),2),IF(ROUND(A47,2)=ROUND((A48+A49),2),"X","")),"") -> X | B14: Estado de situación financiera (F1)
A15: =IF(ROUND('F2'!G33,2)=0,"","X") -> X | B15: Estado de variación de la hacienda pública (F2)
A16: =IF(ROUND('F3'!F60,2)>0,"X","") -> X | B16: Estado de flujo de efectivo (F3)
A17: =IF(ROUND(F4A1!D18,2)>0,"X","") -> X | B17: Conciliación entre los ingresos presupuestarios y contables (F4A1)
A18: =IF(ROUND(F4A2!D37,2)>0,"X","") -> X | B18: Conciliación entre los egresos presupuestarios y los gastos contables (F4A2)
A19: =IF(ROUND('F5'!H6,2)>0,"X","") -> X | B19: Estado analítico del activo (F5)
A20: =IF(ROUND(SUM(A50:L51),2)>0,IF(ROUND(M50,2)>0,"X",""),"") -> X | B20: Estado de actividades (F6)
A21: =IF(ROUND('F16'!E6,2)=0,"","X") -> X | B21: Estado de cambios en la situación financiera (F16)
A22: =IF('F11'!A6>0,"X","") -> X | B22: Informe sobre pasivos contingentes (F11)
A23: Estados e informes presupuestarios:
A24: =IF(ROUND(SUM('F7'!E70:F70),2)>0,"X","") -> X | B24: Estado analítico de ingresos por clasificación por rubro de ingresos (F7)
A25: =IF(ROUND(SUM(F7A!F23:G23),2)>0,"X","") -> X | B25: Estado analítico de ingresos por clasificación por fuente de financiamiento (F7A)
A26: =IF(ROUND(SUM('F8'!E80:F80),2)>0,"X","") -> X | B26: Estado analítico del ejercicio del presupuesto de egresos por clasificación por objeto del gasto (F8)
A27: =IF(ROUND(SUM('F17'!E13:F13),2)>0,"X","") -> X | B27: Estado analítico del ejercicio del presupuesto de egresos por clasificación por tipo de gasto (F17)
A28: =IF(ROUND(SUM('F18'!D58:E58),2)>0,"X","") -> X | B28: Estado analítico del ejercicio del presupuesto de egresos por clasificación administrativa (F18)
A29: =IF(ROUND(SUM('F19'!E40:F40),2)>0,"X","") -> X | B29: Estado analítico del ejercicio del presupuesto de egresos por clasificación funcional (F19)
A30: Estados e informes de la Ley de Disciplina Financiera:
A31: =IF(ROUND(SUM(A47:L49),2)>0,IF(ROUND(M47,2)=ROUND((M48+M49),2),IF(ROUND(A47,2)=ROUND((A48+A49),2),"X","")),"") -> X | B31: Estado de situación financiera detallado - LDF (F1LDF)
A32: =IF('F9-IDP'!J3>0,"X","") -> X | B32: Estado e informe analítico de la deuda pública y otros pasivos (F9-EDP)
A33: =IF('F9-IAO'!C12>0,"X","") -> X | B33: Informe analítico de obligaciones diferentes de financiamiento (F9-IAO)
A34: =IF(ROUND(SUM('F22'!F10:G10),2)>0,"X","") -> X | B34: Balance presupuestario - LDF (F22)
A35: =IF(ROUND(SUM(F7B!E64:F64),2)>0,"X","") -> X | B35: Estado analítico de ingresos detallados - LDF (F7B)
A36: =IF(ROUND(SUM(F8B!F155:G155),2)>0,"X","") -> X | B36: Estado analítico del ejercicio del presupuesto de egresos detallado - LDF por clasificación por objeto del gasto (F8B)
A37: =IF(ROUND(SUM(F18A!F62:G62),2)>0,"X","") -> X | B37: Estado analítico del ejercicio del presupuesto de egresos detallado - LDF por clasificación administrativa (F18A)
A38: =IF(ROUND(SUM(F19A!F76:G76),2)>0,"X","") -> X | B38: Estado analítico del ejercicio del presupuesto de egresos detallado - LDF por clasificación funcional (F19A)
A39: =IF(ROUND(SUM('F21'!F32:G32),2)>0,"X","") -> X | B39: Estado analítico del ejercicio del presupuesto de egresos detallado - LDF por servicios personales por categoría (F21)
A40: Informes complementarios:
A41: =IF('F10'!B6>0,"X","") -> X | B41: Informativa de proveedores (F10)
A42: =IF('F23'!A9>0,"X","") -> X | B42: Informativa de obra pública (F23)
A43: Informe de Avances de Gestión Financiera
A44: =IF(ROUND(SUM('F12'!E30:F30),2)>0,"X","") -> X | B44: Flujo contable de ingresos y egresos (F12)
A45: INFORMACIÓN FINANCIERA GENERAL
A46: EJERCICIO 2021 | M46: EJERCICIO 2020 | Y46: CONCEPTO
A47: =ROUND('F1'!AF106,2) -> 29129868.99 | M47: =ROUND('F1'!AG106,2) -> 20676732.96 | Y47: Activo
A48: =ROUND('F1'!BM80,2) -> 327242.73 | M48: =ROUND('F1'!BN80,2) -> 3948060.41 | Y48: Pasivo
A49: =ROUND('F1'!BM104,2) -> 28802626.26 | M49: =ROUND('F1'!BN104,2) -> 16728672.55 | Y49: Hacienda pública/patrimonio
A50: =ROUND('F6'!AX184,2) -> 49351198 | M50: =ROUND('F6'!AY184,2) -> 43025166.68 | Y50: Ingresos
A51: =ROUND('F6'!AX543,2) -> 37277244.29 | M51: =ROUND('F6'!AY543,2) -> 34757794.98 | Y51: Egresos
A52: =ROUND('F6'!AX544,2) -> 12073953.71 | M52: =ROUND('F6'!AY544,2) -> 8267371.7 | Y52: Ahorro/desahorro
A53: F1 | G53: F9-EDP | M53: F1 | S53: F9-EDP | Y53: CONCEPTO
A54: =ROUND('F1'!BM23,2) -> 0 | G54: =ROUND('F9-EDP'!AP12,2) -> 0 | M54: =ROUND('F1'!BN23+'F1'!BN60,2) -> 2450000 | S54: =ROUND('F9-EDP'!N12,2) -> 2450000 | Y54: Deuda pública instituciones de crédito C/P
A55: =ROUND('F1'!BM60,2) -> 0 | G55: =ROUND('F9-EDP'!AP16,2) -> 0 | S55: =ROUND('F9-EDP'!N16,2) -> 0 | Y55: Deuda pública instituciones de crédito L/P
A56: =ROUND('F1'!BM27,2) -> 0 | G56: =ROUND('F9-EDP'!AP13,2) -> 0 | M56: =ROUND('F1'!BN27+'F1'!BN58,2) -> 0 | S56: =ROUND('F9-EDP'!N13,2) -> 0 | Y56: Deuda pública títulos y valores C/P
A57: =ROUND('F1'!BM58,2) -> 0 | G57: =ROUND('F9-EDP'!AP17,2) -> 0 | S57: =ROUND('F9-EDP'!N17,2) -> 0 | Y57: Deuda pública títulos y valores L/P
A58: =ROUND('F1'!BM25,2) -> 0 | G58: =ROUND('F9-EDP'!AP14,2) -> 0 | M58: =ROUND('F1'!BN25+'F1'!BN62,2) -> 0 | S58: =ROUND('F9-EDP'!N14,2) -> 0 | Y58: Deuda pública arrendamiento financiero C/P
A59: =ROUND('F1'!BM62,2) -> 0 | G59: =ROUND('F9-EDP'!AP18,2) -> 0 | S59: =ROUND('F9-EDP'!N18,2) -> 0 | Y59: Deuda pública arrendamiento financiero L/P
A60: INCONSISTENCIAS
A61: 1. Validación a la balanza de comprobación (contable) | C61: =IF(ROUND(Balanza!$C$753,2)=ROUND(Balanza!$D$753,2),"","1.1. Balanza de comprobación (contable) descuadarada en el saldo inicial.") -> 
C62: =IF(ROUND(Balanza!$E$753,2)=ROUND(Balanza!$F$753,2),"","1.2. Balanza de comprobación (contable) descuadarada en los movimientos de cargo y abono.") -> 
C63: =IF(ROUND(Balanza!$G$753,2)=ROUND(Balanza!$H$753,2),"","1.3. Balanza de comprobación (contable) descuadarada en el saldo final.") -> 
A64: 2. Validación a la balanza de comprobación (orden género 7) | C64: =IF(ROUND(Balanza!$C$792,2)=ROUND(Balanza!$D$792,2),"","2.1. Balanza de comprobación (orden) descuadarada en el saldo inicial.") -> 
C65: =IF(ROUND(Balanza!$E$792,2)=ROUND(Balanza!$F$792,2),"","2.2. Balanza de comprobación (orden) descuadarada en los movimientos de cargo y abono.") -> 
C66: =IF(ROUND(Balanza!$G$792,2)=ROUND(Balanza!$H$792,2),"","2.3. Balanza de comprobación (orden) descuadarada en el saldo final.") -> 
A67: 3. Validación a la balanza de comprobación (orden presupuestal) | C67: =IF(ROUND(Balanza!$C$2087,2)=ROUND(Balanza!$D$2087,2),"","3.1. Balanza de comprobación (orden presupuestal) descuadarada en el saldo inicial.") -> 
C68: =IF(ROUND(Balanza!$E$2087,2)=ROUND(Balanza!$F$2087,2),"","3.2. Balanza de comprobación (orden presupuestal) descuadarada en los movimientos de cargo y abono.") -> 
C69: =IF(ROUND(Balanza!$G$2087,2)=ROUND(Balanza!$H$2087,2),"","3.3. Balanza de comprobación (presupuestal) descuadarada en el saldo final.") -> 
A70: 4. Validación al estado de situación financiera (F1) | C70: =IF(ROUND($M$47,2)=ROUND(($M$48+$M$49),2),"","4.1. En el estado de situación financiera ejercicio 2019, no es igual el activo y el pasivo más la hacienda pública/patrimonio.") -> 
C71: =IF(ROUND($A$47,2)=ROUND(($A$48+$A$49),2),"","4.2. En el estado de situación financiera ejercicio 2020, no es igual el activo y el pasivo más la hacienda pública/patrimonio.") -> 
C72: =IF(ROUND('F6'!$AY$544,2)=ROUND('F1'!$BN$87,2),"","4.3. El resultado del ejercicio (ahorro/desarrollo) del estado de actividades (F6) no es igual al resultado del ejercicio del estado de situación financiera (F1), estos del ejercicio 2019.") -> 
C73: =IF(ROUND('F6'!$AX$544,2)=ROUND('F1'!$BM$87,2),"","4.4. El resultado del ejercicio (ahorro/desarrollo) del estado de actividades (F6) no es igual al resultado del ejercicio del estado de situación financiera (F1), estos del ejercicio 2020.") -> 
A74: 5. Validación al estado de variación en la hacienda pública (F2) | C74: =IF(ROUND('F2'!C6,2)=ROUND('F1'!BN82,2),"","5.1. El saldo de la hacienda pública/patrimonio contribuido neto del 2019 en el estado de variación de la hacienda publica (F2), no es igual a la hacienda pública/patrimonio contribuido del estado de situación financiera (F1) en la columna ejercicio 2019.") -> 
C75: =IF(ROUND('F2'!G10,2)=ROUND('F1'!BN86,2),"","5.2. El saldo de la hacienda pública/patrimonio generado neto del 2019 de la columna total en el estado de variación de la hacienda publica (F2), no es igual a la hacienda pública/patrimonio generado "&"del estado de situación financiera (F1) en la columna ejercicio 2019.") -> 
C76: =IF(ROUND('F2'!G16,2)=ROUND('F1'!BN101,2),"","5.3. El saldo del exceso o insuficiencia en la actualización de la hacienda pública/patrimonio neto de 2019 de la columna total en el estado de variación de la hacienda publica (F2),"&" no es igual al exceso o insuficiencia en la actualización de la hacienda pública/patrimonio del estado de situación financiera (F1) en la columna ejercicio 2019.") -> 
C77: =IF(ROUND('F2'!G19,2)=ROUND('F1'!BN104,2),"","5.4. El saldo de la hacienda pública/patrimonio neto final de 2019 de la columna total en el estado de variación de la hacienda publica (F2),"&" no es igual al total de la hacienda pública/patrimonio del estado de situación financiera (F1) en la columna ejercicio 2019.") -> 
C78: =IF(ROUND('F2'!G33,2)=ROUND('F1'!BM104,2),"","5.6. El saldo de la hacienda pública/patrimonio neto final de 2020 de la columna total en el estado de variación de la hacienda publica (F2),"&" no es igual al total de la hacienda pública/patrimonio del estado de situación financiera (F1) en la columna ejercicio 2020.") -> 
A79: 6. Validación de conciliaciones prespu. vs conta. (F4A1, F4A2) | C79: =IF(ROUND(F4A1!D18,2)=ROUND('F6'!AX184,2),"","6.1. El importe de total de ingresos contables de la conciliación entre los ingresos presupuestal y contable (F4A1),"&" no es igual al total ingresos del estado de actividades (F6) en la columna ejercicio 2020.") -> 
C80: =IF(ROUND(F4A2!D37,2)=ROUND('F6'!AX543,2),"","6.2. El importe del total de gastos contables de la conciliación entre los egresos presupuestal y gastos contables (F4A2),"&" no es igual al total gastos y otras perdidas del estado de actividades (F6) en la columna ejercicio 2020.") -> 
A81: 7. Validación al estado de cambios de la situación financiera (F16) | C81: =IF(ROUND(('F16'!E43-'F16'!F43),2)=ROUND('F2'!C20,2),"","7.1. El saldo de la hacienda pública/patrimonio contribuido neto del 2020 del estado de variación de la hacienda publica (F2), "&"es diferente a la hacienda pública/patrimonio contribuido del estado de cambios de la situación financiera (F16) en la columna ejercicio 2020.") -> 
C82: =IF(ROUND((SUM('F16'!E50:E52)+SUM('F16'!F50:F52)),2)=ROUND(SUM('F2'!E27:E29),2),"","7.2. La suma de las filas de revalúos, reservas y rectificaciones de resultados de ejercicios anteriores 2020, del estado de variación de la hacienda publica (F2), "&"es diferente a la que se muestra en estos rubros del estado de cambios de la situación financiera (F16) en la columna ejercicio 2020.") -> 
C83: =IF(ROUND(('F16'!E49+'F16'!F49),2)=ROUND('F2'!D24,2),"","7.3. El saldo del resultado de ejercicios anteriores del apartado variaciones de la hacienda pública/patrimonio contribuido neto del 2020 del estado de variación de la hacienda publica (F2), "&"es diferente al apartado de ejercicios anteriores del estado de cambios de la situación financiera (F16) en la columna ejercicio 2020.") -> 
C84: =IF(ROUND(('F16'!E53-'F16'!F53),2)=ROUND('F2'!F30,2),"","7.4. El saldo del exceso o insuficiencia en la actuialización de la hacienda pública/patrimonio neto 2020, del estado de variación de la hacienda publica (F2), "&"es diferente al apartado del exceso o insuficiencia en la actualización de la hacienda pública /patrimonio del estado de cambios de la situación financiera (F16) en la columna ejercicio 2020.") -> 
A85: 8. Validación al estado de flujo de efectivo (F3) | C85: =IF(ROUND('F3'!F58,2)=ROUND(('F16'!E8+'F16'!F8),2),"","8.1. El incremento/disminución neta en el efectivo y equivalentes del flujo de efectivo (F3) de la columna 2020, no es igual al que se muestra en el estado de "&"cambios en la situación financiera (F16) en la fila de efectivo y equivalentes ya sea de la columna de origen o aplicación.") -> 
C86: =IF(ROUND('F3'!G60,2)=ROUND('F1'!AG8,2),"","8.2. El efectivo y equivalentes al efectivo al final del ejercicio columna 2019, del estado de flujo de efectivo (F3), es diferente al saldo del"&" rubro de efectivo y equivalentes de la columna 2019 del estado de situación financiera (F1).") -> 
C87: =IF(ROUND('F3'!F60,2)=ROUND('F1'!AF8,2),"","8.3. El efectivo y equivalentes al efectivo al final del ejercicio columna 2020, del estado de flujo de efectivo (F3), es diferente al saldo del"&" rubro de efectivo y equivalentes de la columna 2020 del estado de situación financiera (F1).") -> 
A88: 9. Validación al estado analítico del activo (F5) | C88: =IF(ROUND('F5'!E6,2)=ROUND('F1'!AG106,2),"","9.1. El total del activo del estado analítico del activo (F5) en la columna de saldo inicial, es diferente al total del activo en el estado de situación financiera (F1), en la columna correspondiente al ejercicio 2019") -> 
C89: =IF(ROUND('F5'!H6,2)=ROUND('F1'!AF106,2),"","9.2. El total del activo del estado analítico del activo (F5) en la columna de saldo final, es diferente al total del activo en el estado de situación financiera (F1), en la columna correspondiente al ejercicio 2020") -> 
C90: =IF(ROUND('F5'!I6,2)=ROUND('F16'!E6+'F16'!F6,2),"","9.3. La cifra de la fila del rubro de activo de la columna de variación del periodo del estado analítico del activo (F5), es diferente a los rubros del activo en las columnas de origen o aplicación del estado de cambios en la situación financiera (F16)") -> 
A91: 10. Validación al estado analítico de la deuda y otros pasivos (F9) | C91: =IF(ROUND((S54+S55),2)=ROUND(M54,2),"","10.1. El saldo de la deuda pública al 1° de enero de 2020 con instituciones de crédito a corto y largo plazo, del estado e informe análitico de la deuda pública y "&"otros pasivos (F9-EDP), no es igual a los rubros de la deuda pública interna por pagar a corto y largo plazo (suma de las cuentas 2131 y 2233 columna ejercicio 2019) del estado de situación financiera (F1).") -> 
C92: =IF(ROUND((S56+S57),2)=ROUND(M56,2),"","10.2. El saldo de la deuda pública al 1° de enero de 2020 en títulos y valores de corto y largo plazo, del estado e informe análitico de la deuda pública y otros "&"pasivos (F9-EDP), no es igual al rubro de títulos y valores por pagar a corto y largo plazo (suma de las cuentas 2141 y 2231 columna ejercicio 2019) del estado de situación financiera (F1).") -> 
C93: =IF(ROUND((S58+S59),2)=ROUND(M58,2),"","10.3. El saldo de la deuda pública al 1° de enero de 2020 en arrendamiento financiero de corto y largo plazo, del estado e informe análitico de la deuda pública y "&"otros pasivos (F9-EDP), no es igual al rubro de arrendamiento financiero por pagar a corto y largo plazo (suma de las cuentas 2133 y 2235 columna ejercicio 2019) del estado de situación financiera (F1).") -> 
C94: =IF(ROUND(A54,2)=ROUND(G54,2),"","10.4. El saldo de la deuda pública del periodo con instituciones de crédito a corto plazo, del estado e informe análitico de la deuda pública y otros pasivos (F9-EDP), "&"no es igual al rubro de la porción de la deuda pública interna por pagar a corto plazo (cuenta 2131 columna ejercicio 2020) del estado de situación financiera (F1).") -> 
C95: =IF(ROUND(A55,2)=ROUND(G55,2),"","10.5. El saldo de la deuda pública del periodo con instituciones de crédito a largo plazo, del estado e informe análitico de la deuda pública y otros pasivos (F9-EDP), "&"no es igual al rubro de préstamos de la deuda pública interna por pagar a largo plazo (cuenta 2233 columna ejercicio 2020) del estado de situación financiera (F1).") -> 
C96: =IF(ROUND(A56,2)=ROUND(G56,2),"","10.6. El saldo de la deuda pública del periodo en títulos y valores a corto plazo, del estado e informe análitico de la deuda pública y otros pasivos (F9-EDP), no es "&"igual al rubro de títulos y valores de la deuda pública interna por pagar a corto plazo (cuenta 2141 columna ejercicio 2020) del estado de situación financiera (F1).") -> 
C97: =IF(ROUND(A57,2)=ROUND(G57,2),"","10.7. El saldo de la deuda pública del periodo en títulos y valores a largo plazo, del estado e informe análitico de la deuda pública y otros pasivos (F9-EDP), no es "&"igual al rubro de títulos y valores de la deuda pública interna por pagar a largo plazo (cuenta 2231 columna ejercicio 2020) del estado de situación financiera (F1).") -> 
C98: =IF(ROUND(A58,2)=ROUND(G58,2),"","10.8. El saldo de la deuda pública del periodo en arrendamiento financiero a corto plazo, del estado e informe análitico de la deuda pública y otros pasivos"&" (F9-EDP), no es igual al rubro de la porción de arrendamiento financiero de la deuda pública interna por pagar a corto plazo (cuenta 2133 columna ejercicio 2020) del estado de situación financiera (F1).") -> 
C99: =IF(ROUND(A59,2)=ROUND(G59,2),"","10.9. El saldo de la deuda pública del periodo en arrendamiento financiero a largo plazo, del estado e informe análitico de la deuda pública y otros pasivos (F9-EDP), "&"no es igual al rubro de arrendamiento financiero de la deuda pública interna por pagar a largo plazo (cuenta 2235 columna ejercicio 2020) del estado de situación financiera (F1).") -> 
C100: =IF(ROUND('F9-EDP'!N20,2)=ROUND('F1'!BN80,2),"","10.10. El total del pasivo al inicio del ejercicio 2020 del estado e informe análitico de la deuda pública y otros pasivos (F9-EDP), no es igua al pasivo (columna del ejercicio 2019) en el estado de situación financiera (F1).") -> 
C101: =IF(ROUND('F9-EDP'!AP20,2)=ROUND('F1'!BM80,2),"","10.11. El total del pasivo del periodo informado del ejercicio 2020 del estado e informe análitico de la deuda pública y otros pasivos (F9-EDP), no es igua al pasivo (columna del ejercicio 2020) en el estado de situación financiera (F1).") -> 
A102: 11. Validación flujo contable de ingresos y egresos (F12) | C102: =IF(ROUND('F7'!C70,2)=ROUND('F12'!C17,2),"","11.1. El importe total de ingresos estimado del estado analítico de ingresos (F7),"&" no es igual al total ingresos del flujo contable del ingreso y egresos (F12) columna estimado.") -> 
C103: =IF(ROUND('F7'!D70,2)=ROUND('F12'!D17,2),"","11.2. El importe total de ingresos de ampliaciones y reducciones del estado analítico de ingresos (F7),"&" no es igual al total ingresos del flujo contable del ingreso y egresos (F12) columna amplación y reducción.") -> 
C104: =IF(ROUND('F7'!F70,2)=ROUND('F12'!F17,2),"","11.3. El importe total de ingresos devengados del estado analítico de ingresos (F7),"&" no es igual al total ingresos del flujo contable del ingreso y egresos (F12) columna devengado.") -> 
C105: =IF(ROUND('F8'!C80,2)=ROUND('F12'!C30,2),"","11.4. El importe total de egreso aporbado del estado analítico del ejercicio del prespuesto de egresos (F8),"&" no es igual al total egresos del flujo contable del ingreso y egresos (F12) columna aprobado.") -> 
C106: =IF(ROUND('F8'!D80,2)=ROUND('F12'!D30,2),"","11.5. El importe total de egresos de ampliaciones y reducciones del estado analítico del ejercicio del prespuesto de egresos (F8),"&" no es igual al total egresos del flujo contable del ingreso y egresos (F12) columna amplación y reducción.") -> 
C107: =IF(ROUND('F8'!F80,2)=ROUND('F12'!F30,2),"","11.6. El importe total de egresos devengados del estado analítico del ejercicio del prespuesto de egresos (F8),"&" no es igual al total egresos del flujo contable del ingreso y egresos (F12) columna devengado.") -> 
A108: 12. Validación Estado Analítico del Ingreso - LDF (F7B) | C108: =IF(ROUND('F7'!C70,2)=ROUND(F7B!C64,2),"","12.1. El importe total de ingresos estimados del estado analítico de ingresos detallado - LDF (F7B),"&" no es igual al estado analítico de ingresos (F7) columna estimado.") -> 
C109: =IF(ROUND('F7'!D70,2)=ROUND(F7B!D64,2),"","12.2. El importe total de ingresos modificado del estado analítico de ingresos detallado - LDF (F7B),"&" no es igual al estado analítico de ingresos (F7) columna modificado.") -> 
C110: =IF(ROUND('F7'!F70,2)=ROUND(F7B!F64,2),"","12.3. El importe total de ingresos devengado del estado analítico de ingresos detallado - LDF (F7B),"&" no es igual al estado analítico de ingresos (F7) columna devengado.") -> 
C111: =IF(ROUND('F7'!G70,2)=ROUND(F7B!G64,2),"","12.4. El importe total de ingresos recaudado del estado analítico de ingresos detallado - LDF (F7B),"&" no es igual al estado analítico de ingresos (F7) columna recaudado.") -> 
A112: 13. Validación Estado Analítico del Egreso (COG) - LDF (F8B) | C112: =IF(ROUND(F8B!D155,2)=ROUND('F8'!C80,2),"","13.1. El importe total del gasto aprobado del estado analítico del ejercicio del prespuesto de egresos detallado - LDF (F8A),"&" no es igual al estado analítico del ejercicio del prespuesto de egresos (F8) columna aprobado.") -> 
C113: =IF(ROUND(F8B!F155,2)=ROUND('F8'!E80,2),"","13.2. El importe total del gasto modificado del estado analítico del ejercicio del prespuesto de egresos detallado - LDF (F8A),"&" no es igual al estado analítico del ejercicio del prespuesto de egresos (F8) columna modificado.") -> 
C114: =IF(ROUND(F8B!G155,2)=ROUND('F8'!F80,2),"","13.3. El importe total del gasto devengado del estado analítico del ejercicio del prespuesto de egresos detallado - LDF (F8A),"&" no es igual al estado analítico del ejercicio del prespuesto de egresos (F8) columna devengado.") -> 
C115: =IF(ROUND(F8B!H155,2)=ROUND('F8'!G80,2),"","13.4. El importe total del gasto pagado del estado analítico del ejercicio del prespuesto de egresos detallado - LDF (F8A),"&" no es igual al estado analítico del ejercicio del prespuesto de egresos (F8) columna pagado.") -> 
A116: 14. Validación Estado Analítico del Egreso (CF) - (F19A) | C116: =IF(ROUND(F19A!D76,2)=ROUND('F19'!C40,2),"","14.1. El importe total del gasto aprobado del estado analítico del ejercicio del prespuesto de egresos detallado - LDF (F19A),"&" no es igual al estado analítico del ejercicio del prespuesto de egresos (F19) columna aprobado.") -> 
C117: =IF(ROUND(F19A!F76,2)=ROUND('F19'!E40,2),"","14.2. El importe total del gasto modificado del estado analítico del ejercicio del prespuesto de egresos detallado - LDF (F19A),"&" no es igual al estado analítico del ejercicio del prespuesto de egresos (F19) columna modificado.") -> 
C118: =IF(ROUND(F19A!G76,2)=ROUND('F19'!F40,2),"","14.3. El importe total del gasto devengado del estado analítico del ejercicio del prespuesto de egresos detallado - LDF (F19A),"&" no es igual al estado analítico del ejercicio del prespuesto de egresos (F19) columna devengado.") -> 
C119: =IF(ROUND(F19A!H76,2)=ROUND('F19'!G40,2),"","14.4. El importe total del gasto pagado del estado analítico del ejercicio del prespuesto de egresos detallado - LDF (F19A),"&" no es igual al estado analítico del ejercicio del prespuesto de egresos (F19) columna pagado.") -> 
A120: 15. Validación Estado Analítico del Egreso (CA) - LDF (F18A) | C120: =IF(ROUND(F18A!B62,2)=ROUND('F18'!B58,2),"","15.1. El importe total del gasto aprobado del estado analítico del ejercicio del prespuesto de egresos detallado - LDF (F18A),"&" no es igual al estado analítico del ejercicio del prespuesto de egresos (F18) columna aprobado.") -> 
C121: =IF(ROUND(F18A!C62,2)=ROUND('F18'!C58,2),"","15.2. El importe total del gasto modificado del estado analítico del ejercicio del prespuesto de egresos detallado - LDF (F18A),"&" no es igual al estado analítico del ejercicio del prespuesto de egresos (F18) columna modificado.") -> 
C122: =IF(ROUND(F18A!E62,2)=ROUND('F18'!E58,2),"","15.3. El importe total del gasto devengado del estado analítico del ejercicio del prespuesto de egresos detallado - LDF (F18A),"&" no es igual al estado analítico del ejercicio del prespuesto de egresos (F18) columna devengado.") -> 
C123: =IF(ROUND(F18A!F62,2)=ROUND('F18'!F58,2),"","15.4. El importe total del gasto pagado del estado analítico del ejercicio del prespuesto de egresos detallado - LDF (F18A),"&" no es igual al estado analítico del ejercicio del prespuesto de egresos (F18) columna pagado.") -> 
A124: 16. Validación Balance Presupuestario - LDF (F22) | C124: =IF(ROUND(SUM('F22'!E7:E8)+('F22'!E27),2)=ROUND('F7'!C70,2),"","16.1. El importe de ingresos totales estimado del balance presupuestario - LDF (F22),"&" no es igual al estado analítico de ingresos (F7) columna estimado.") -> 
C125: =IF(ROUND(SUM('F22'!F7:F8)+('F22'!F27),2)=ROUND('F7'!F70,2),"","16.2. El importe de ingresos totales devengado del balance presupuestario - LDF (F22),"&" no es igual al estado analítico de ingresos (F7) columna devengado.") -> 
C126: =IF(ROUND(SUM('F22'!G7:G8)+('F22'!G27),2)=ROUND('F7'!G70,2),"","16.3. El importe de ingresos totales recaudado del balance presupuestario - LDF (F22),"&" no es igual al estado analítico de ingresos (F7) columna recaudado.") -> 
C127: =IF(ROUND(('F22'!E10+'F22'!E30),2)=ROUND('F8'!C80,2),"","16.4. El importe de egresos presupuestarios aprobado del balance presupuestario - LDF (F22),"&" no es igual al estado analítico del ejercicio del presupuesto de egresos COG (F8) columna aprobado.") -> 
C128: =IF(ROUND(('F22'!F10+'F22'!F30),2)=ROUND('F8'!F80,2),"","16.5. El importe de egresos presupuestarios devengado del balance presupuestario - LDF (F22),"&" no es igual al estado analítico del ejercicio del presupuesto de egresos COG (F8) columna devengado.") -> 
C129: =IF(ROUND(('F22'!G10+'F22'!G30),2)=ROUND('F8'!G80,2),"","16.6. El importe de egresos presupuestarios pagado del balance presupuestario - LDF (F22),"&" no es igual al estado analítico del ejercicio del presupuesto de egresos COG (F8) columna pagado.") -> 
B131: Acatic | C131: ENERO | D131: 31 de Enero de 2021 | E131: Del 1° al 31 de Enero de 2021
B132: Acatlán de Juárez | C132: FEBRERO | D132: 28 de Febrero de 2021 | E132: Del 1° al 28 de Febrero de 2021
B133: Administración de Estacionómetros para la Asistencia Social del Municipio de Zapotlán el Grande | C133: MARZO | D133: 31 de Marzo de 2021 | E133: Del 1° al 31 de Marzo de 2021
B134: Coordinación General Estratégica de Crecimiento y Desarrollo Económico | C134: ABRIL | D134: 30 de Abril de 2021 | E134: Del 1° al 30 de Abril de 2021
B135: Instituto Jalisciense de Asistencia Social | C135: MAYO | D135: 31 de Mayo de 2021 | E135: Del 1° al 31 de Mayo de 2021
B136: Agencia Metropolitana de Seguridad Pública del Área Metropolitana de Guadalajara | C136: JUNIO, 1er. Informe de Avance de Gestión Financiera y Corte Semestral | D136: 30 de Junio de 2021 | E136: Del 1° al 30 de Junio de 2021
B137: Coordinación General Estratégica de Desarrollo Social | C137: JULIO | D137: 31 de Julio de 2021 | E137: Del 1° al 31 de Julio de 2021
B138: Agua y Saneamiento del Municipio de Tepatitlán | C138: AGOSTO | D138: 31 de Agosto de 2021 | E138: Del 1° al 31 de Agosto de 2021
B139: Ahualulco de Mercado | C139: SEPTIEMBRE | D139: 30 de Septiembre de 2021 | E139: Del 1° al 30 de Septiembre de 2021
B140: Albergue "Las Cuadritas" Fray Antonio Alcalde | C140: OCTUBRE | D140: 31 de Octubre de 2021 | E140: Del 1° al 31 de Octubre de 2021
B141: Amacueca | C141: NOVIEMBRE | D141: 30 de Noviembre de 2021 | E141: Del 1° al 30 de Noviembre de 2021
B142: Amatitán | C142: DICIEMBRE, 2do. Informe de Avance de Gestión Financiera y Corte Anual | D142: 31 de Diciembre de 2021 | E142: Del 1° al 31 de Diciembre de 2021
B143: Ameca
B144: Arandas
B145: Asociación Intermunicipal para la Protección del Medio Ambiente y el Desarrollo Sustentable del Lago de Chapala
B146: Atemajac de Brizuela
B147: Atengo
B148: Atenguillo
B149: Atotonilco el Alto
B150: Atoyac
B151: Coordinación General Estratégica de Gestión del Territorio
B152: Autlán de Navarro
B153: Ayotlán
B154: Ayutla
B155: Bolaños
B156: Sistema de Transporte Colectivo de la Zona Metropolitana (SITECOZOME)
B157: Cabo Corrientes
B158: Cañadas de Obregón
B159: Casimiro Castillo
B160: Coordinación General Estratégica de Seguridad
B161: Centro de Estimulación para Personas con Discapacidad Intelectual de Tlajomulco de Zúñiga
B162: Chapala
B163: Chimaltitán
B164: Chiquilistlán
B165: Cihuatlán
B166: Cocula
B167: Estado de Jalisco
B168: Fiscalía Estatal
B169: Consejo Forestal y de la Fauna del Estado de Jalisco
B170: Colotlán
B171: Consejo Estatal para el Desarrollo Turístico del Estado de Jalisco
B172: Secretaría de Administración
B173: Patronato de las Fiestas de Octubre de la Zona Metropolitana de Guadalajara
B174: Secretaría de Agricultura y Desarrollo Rural
B175: Secretaría de Cultura
B176: Secretaría de Desarrollo Económico
B177: Concepción de Buenos Aires
B178: Secretaría de Educación
B179: Secretaría de Gestión Integral del Agua
B180: Consejo Económico y Social del Estado de Jalisco para el Desarrollo y Competitividad
B181: Secretaría de Igualdad Sustantiva
B182: Secretaría de Infraestructura y Obra Pública
B183: Instituto de Estudios del Federalismo Prisciliano Sánchez
B184: Secretaría de Innovación, Ciencia y Tecnología
B185: Secretaría de la Hacienda Pública
B186: Secretaría de Medio Ambiente y Desarrollo Territorial
B187: Consejo Municipal contra las Adicciones en San Pedro Tlaquepaque
B188: Consejo Municipal del Deporte de Ahualulco de Mercado
B189: Consejo Municipal del Deporte de Degollado, Jalisco
B190: Consejo Municipal del Deporte de Guadalajara
B191: Consejo Municipal del Deporte de Jocotepec
B192: Consejo Municipal del Deporte de La Barca
B193: Consejo Municipal del Deporte de Puerto Vallarta
B194: Consejo Municipal del Deporte de San Pedro Tlaquepaque
B195: Consejo Municipal del Deporte de Tonalá
B196: Consejo Municipal del Deporte de Yahualica de González Gallo
B197: Consejo Municipal del Deporte de Zapopan
B198: Consejo Social de Cooperación para el Desarrollo Urbano de Guadalajara
B199: Contraloría del Estado
B200: Secretaría de Planeación y Participación Ciudadana
B201: Secretaría de Salud
B202: Secretaría de Seguridad
B203: Secretaría de Turismo
... 478 more rows

Sheet Balanza
A1: No. DE CUENTA | B1: NOMBRE DE LA CUENTA | C1: SALDO AL 31 DE DICIEMBRE DE 2020 | E1: MOVIMIENTO | G1: SALDO FINAL DEL PERIODO A INFORMAR EJERCICIO 2021
C2: DEUDOR | D2: ACREEDOR | E2: DEUDOR | F2: ACREEDOR | G2: DEUDOR | H2: ACREEDOR
A3: 10000 | B3: ACTIVO | C3: =C4+C43 -> 20676732.96 | E3: =E4+E43 -> 165547245.2 | F3: =F4+F43 -> 157094109.2 | G3: =G4+G43 -> 29129868.99
A4: 11000 | B4: ACTIVO CIRCULANTE | C4: =C5+C13+C21+C27+C33+C35+C38 -> 1638603.84 | E4: =E5+E13+E21+E27+E33+E35+E38 -> 156224649.8 | F4: =F5+F13+F21+F27+F33+F35+F38 -> 157094109.2 | G4: =G5+G13+G21+G27+G33+G35+G38 -> 769144.48
A5: 11100 | B5: EFECTIVO Y EQUIVALENTES | C5: =SUM(C6:C12) -> 1439544.34 | E5: =SUM(E6:E12) -> 110003201.9 | F5: =SUM(F6:F12) -> 110677601.8 | G5: =SUM(G6:G12) -> 765144.48
A6: 11110 | B6: Efectivo | C6: 94925.3 | E6: 49138852.93 | F6: 49231221.21 | G6: =C6+E6-F6 -> 2557.02
A7: 11120 | B7: Bancos/Tesorería | C7: 1320619.04 | E7: 60678724.48 | F7: 61236756.06 | G7: 762587.46
A8: 11130 | B8: Bancos/Dependencias y otros | C8: 24000 | E8: 185624.52 | F8: 209624.52 | G8: 0
A9: 11140 | B9: Inversiones temporales (hasta 3 meses) | C9: 0 | E9: 0 | F9: 0 | G9: 0
A10: 11150 | B10: Fondos con afectación específica | C10: 0 | E10: 0 | F10: 0 | G10: 0
A11: 11160 | B11: Depósitos de fondos de terceros en garantía y/o administración | C11: 0 | E11: 0 | F11: 0 | G11: 0
A12: 11190 | B12: Otros efectivos y equivalentes | C12: 0 | E12: 0 | F12: 0 | G12: 0
A13: 11200 | B13: DERECHOS A RECIBIR EFECTIVO O EQUIVALENTES | C13: =SUM(C14:C20) -> 199059.5 | E13: =SUM(E14:E20) -> 43765425.82 | F13: =SUM(F14:F20) -> 43960485.32 | G13: =SUM(G14:G20) -> 4000
A14: 11210 | B14: Inversiones financieras de corto plazo | C14: 0 | E14: 0 | F14: 0 | G14: =C14+E14-F14 -> 0
A15: 11220 | B15: Cuentas por cobrar a corto plazo | C15: 0 | E15: 31085147.78 | F15: 31085147.78 | G15: 0
A16: 11230 | B16: Deudores diversos por cobrar a corto plazo | C16: 176059.5 | E16: 4489471.65 | F16: 4661531.15 | G16: 4000
A17: 11240 | B17: Ingresos por recuperar a corto plazo | C17: 0 | E17: 7973215.39 | F17: 7973215.39 | G17: 0
A18: 11250 | B18: Deudores por anticipos de la tesorería a corto plazo | C18: 0 | E18: 0 | F18: 0 | G18: 0
A19: 11260 | B19: Préstamos otorgados a corto plazo | C19: 23000 | E19: 217591 | F19: 240591 | G19: 0
A20: 11290 | B20: Otros derechos a recibir efectivo o equivalentes a corto plazo | C20: 0 | E20: 0 | F20: 0 | G20: 0
A21: 11300 | B21: DERECHOS A RECIBIR BIENES O SERVICIOS | C21: =SUM(C22:C26) -> 0 | E21: =SUM(E22:E26) -> 0 | F21: =SUM(F22:F26) -> 0 | G21: =SUM(G22:G26) -> 0
A22: 11310 | B22: Anticipo a proveedores por adquisición de bienes y prestación de servicios a corto plazo | C22: 0 | E22: 0 | F22: 0 | G22: =C22+E22-F22 -> 0
A23: 11320 | B23: Anticipo a proveedores por adquisición de bienes inmuebles y muebles a corto plazo | C23: 0 | E23: 0 | F23: 0 | G23: =C23+E23-F23 -> 0
A24: 11330 | B24: Anticipo a proveedores por adquisición de bienes intangibles a corto plazo | C24: 0 | E24: 0 | F24: 0 | G24: =C24+E24-F24 -> 0
A25: 11340 | B25: Anticipo a contratistas por obras públicas a corto plazo | C25: 0 | E25: 0 | F25: 0 | G25: =C25+E25-F25 -> 0
A26: 11390 | B26: Otros derechos a recibir bienes o servicios a corto plazo | C26: 0 | E26: 0 | F26: 0 | G26: =C26+E26-F26 -> 0
A27: 11400 | B27: INVENTARIOS | C27: =SUM(C28:C32) -> 0 | E27: =SUM(E28:E32) -> 0 | F27: =SUM(F28:F32) -> 0 | G27: =SUM(G28:G32) -> 0
A28: 11410 | B28: Inventario de mercancías para venta | C28: 0 | E28: 0 | F28: 0
A29: 11420 | B29: Inventario de mercancías terminadas | C29: 0 | E29: 0 | F29: 0
A30: 11430 | B30: Inventario de mercancías en proceso de elaboración | C30: 0 | E30: 0 | F30: 0
A31: 11440 | B31: Inventario de materias primas, materiales y suministros para producción | C31: 0 | E31: 0 | F31: 0
A32: 11450 | B32: Bienes en tránsito | C32: 0 | E32: 0 | F32: 0
A33: 11500 | B33: ALMACENES | C33: =SUM(C34) -> 0 | E33: =SUM(E34) -> 2456022.1 | F33: =SUM(F34) -> 2456022.1 | G33: =SUM(G34) -> 0
A34: 11510 | B34: Almacén de materiales y suministros de consumo | C34: 0 | E34: 2456022.1 | F34: 2456022.1 | G34: =C34+E34-F34 -> 0
A35: 11600 | B35: ESTIMACIÓN POR PÉRDIDA O DETERIORO DE ACTIVOS CIRCULANTES | C35: =SUM(C36:C37) -> 0 | E35: =SUM(E36:E37) -> 0 | F35: =SUM(F36:F37) -> 0 | G35: =SUM(G36:G37) -> 0
A36: 11610 | B36: Estimaciones para cuentas incobrables por derechos a recibir efectivo o equivalentes | C36: 0 | E36: 0 | F36: 0 | G36: =C36+E36-F36 -> 0
A37: 11620 | B37: Estimación por deterioro de inventarios | C37: 0 | E37: 0 | F37: 0 | G37: =C37+E37-F37 -> 0
A38: 11900 | B38: OTROS ACTIVOS CIRCULANTES | C38: =SUM(C39:C42) -> 0 | E38: =SUM(E39:E42) -> 0 | F38: =SUM(F39:F42) -> 0 | G38: =SUM(G39:G42) -> 0
A39: 11910 | B39: Valores en garantía | C39: 0 | E39: 0 | F39: 0 | G39: =C39+E39-F39 -> 0
A40: 11920 | B40: Bienes en garantía (excluye depósitos de fondos) | C40: 0 | E40: 0 | F40: 0 | G40: =C40+E40-F40 -> 0
A41: 11930 | B41: Bienes derivados de embargos, decomisos, aseguramientos y dación en pago | C41: 0 | E41: 0 | F41: 0 | G41: =C41+E41-F41 -> 0
A42: 11940 | B42: Adquisición con fondos de terceros | C42: 0 | E42: 0 | F42: 0 | G42: =C42+E42-F42 -> 0
A43: 12000 | B43: ACTIVO NO CIRCULANTE | C43: =C44+C49+C55+C63+C72+C78+C84+C91+C97-D43 -> 19038129.12 | D43: =D44+D49+D55+D63+D72+D78+D84+D91+D97 -> 0 | E43: =E44+E49+E55+E63+E72+E78+E84+E91+E97 -> 9322595.39 | F43: =F44+F49+F55+F63+F72+F78+F84+F91+F97 -> 0 | G43: =G44+G49+G55+G63+G72+G78+G84+G91+G97-H43 -> 28360724.51 | H43: =H44+H49+H55+H63+H72+H78+H84+H91+H97 -> 0
A44: 12100 | B44: INVERSIONES FINANCIERAS A LARGO PLAZO | C44: =SUM(C45:C48) -> 0 | E44: =SUM(E45:E48) -> 0 | F44: =SUM(F45:F48) -> 0 | G44: =SUM(G45:G48) -> 0
A45: 12110 | B45: Inversiones a largo plazo | C45: 0 | E45: 0 | F45: 0 | G45: =C45+E45-F45 -> 0
A46: 12120 | B46: Títulos y valores a largo plazo | C46: 0 | E46: 0 | F46: 0 | G46: =C46+E46-F46 -> 0
A47: 12130 | B47: Fideicomisos, mandatos y contratos análogos | C47: 0 | E47: 0 | F47: 0 | G47: =C47+E47-F47 -> 0
A48: 12140 | B48: Participaciones y aportaciones de capital | C48: 0 | E48: 0 | F48: 0 | G48: =C48+E48-F48 -> 0
A49: 12200 | B49: DERECHOS A RECIBIR EFECTIVO O EQUIVALENTES A LARGO PLAZO | C49: =SUM(C50:C54) -> 0 | E49: =SUM(E50:E54) -> 0 | F49: =SUM(F50:F54) -> 0 | G49: =SUM(G50:G54) -> 0
A50: 12210 | B50: Documentos por cobrar a largo plazo | C50: 0 | E50: 0 | F50: 0 | G50: =C50+E50-F50 -> 0
A51: 12220 | B51: Deudores diversos a largo plazo | C51: 0 | E51: 0 | F51: 0 | G51: =C51+E51-F51 -> 0
A52: 12230 | B52: Ingresos por recuperar a largo plazo | C52: 0 | E52: 0 | F52: 0 | G52: =C52+E52-F52 -> 0
A53: 12240 | B53: Préstamos otorgados a largo plazo | C53: 0 | E53: 0 | F53: 0 | G53: =C53+E53-F53 -> 0
A54: 12290 | B54: Otros derechos a recibir efectivo o equivalentes a largo plazo | C54: 0 | E54: 0 | F54: 0 | G54: =C54+E54-F54 -> 0
A55: 12300 | B55: BIENES INMUEBLES, INFRAESTRUCTURA Y CONSTRUCCIONES EN PROCESO | C55: =SUM(C56:C62) -> 16868234.87 | E55: =SUM(E56:E62) -> 8962182.42 | F55: =SUM(F56:F62) -> 0 | G55: =SUM(G56:G62) -> 25830417.29
A56: 12310 | B56: Terrenos | C56: 0 | E56: 0 | F56: 0 | G56: =C56+E56-F56 -> 0
A57: 12320 | B57: Viviendas | C57: 0 | E57: 0 | F57: 0 | G57: 0
A58: 12330 | B58: Edificios no habitacionales | C58: 0 | E58: 0 | F58: 0 | G58: 0
A59: 12340 | B59: Infraestructura | C59: 0 | E59: 0 | F59: 0 | G59: 0
A60: 12350 | B60: Construcciones en proceso en bienes de dominio público | C60: 16868234.87 | E60: 8962182.42 | F60: 0 | G60: 25830417.29
A61: 12360 | B61: Construcciones en proceso en bienes propios | C61: 0 | E61: 0 | F61: 0 | G61: 0
A62: 12390 | B62: Otros bienes inmuebles | C62: 0 | E62: 0 | F62: 0 | G62: 0
A63: 12400 | B63: BIENES MUEBLES | C63: =SUM(C64:C71) -> 2169894.25 | E63: =SUM(E64:E71) -> 360412.97 | F63: =SUM(F64:F71) -> 0 | G63: =SUM(G64:G71) -> 2530307.22
A64: 12410 | B64: Mobiliario y equipo de administración | C64: 65188.01 | E64: 132912.97 | F64: 0 | G64: =C64+E64-F64 -> 198100.98
A65: 12420 | B65: Mobiliario y equipo educacional y recreativo | C65: 0 | E65: 0 | F65: 0 | G65: 0
A66: 12430 | B66: Equipo e instrumental médico y de laboratorio | C66: 0 | E66: 0 | F66: 0 | G66: 0
A67: 12440 | B67: Vehículos y equipo de transporte | C67: 2104706.24 | E67: 227500 | F67: 0 | G67: 2332206.24
A68: 12450 | B68: Equipo de defensa y seguridad | C68: 0 | E68: 0 | F68: 0 | G68: 0
A69: 12460 | B69: Maquinaria, otros equipos y herramientas | C69: 0 | E69: 0 | F69: 0 | G69: 0
A70: 12470 | B70: Colecciones, obras de arte y objetos valiosos | C70: 0 | E70: 0 | F70: 0 | G70: 0
A71: 12480 | B71: Activos biológicos | C71: 0 | E71: 0 | F71: 0 | G71: 0
A72: 12500 | B72: ACTIVOS INTANGIBLES | C72: =SUM(C73:C77) -> 0 | E72: =SUM(E73:E77) -> 0 | F72: =SUM(F73:F77) -> 0 | G72: =SUM(G73:G77) -> 0
A73: 12510 | B73: Software | C73: 0 | E73: 0 | F73: 0 | G73: =C73+E73-F73 -> 0
A74: 12520 | B74: Patentes, marcas y derechos | C74: 0 | E74: 0 | F74: 0 | G74: =C74+E74-F74 -> 0
A75: 12530 | B75: Concesiones y franquicias | C75: 0 | E75: 0 | F75: 0 | G75: =C75+E75-F75 -> 0
A76: 12540 | B76: Licencias | C76: 0 | E76: 0 | F76: 0 | G76: =C76+E76-F76 -> 0
A77: 12590 | B77: Otros activos intangibles | C77: 0 | E77: 0 | F77: 0 | G77: =C77+E77-F77 -> 0
A78: 12600 | B78: DEPRECIACIÓN, DETERIORO Y AMORTIZACIÓN ACUMULADA DE BIENES | D78: =SUM(D79:D83) -> 0 | E78: =SUM(E79:E83) -> 0 | F78: =SUM(F79:F83) -> 0 | H78: =D78+F78-E78 -> 0
A79: 12610 | B79: Depreciación acumulada de bienes inmuebles | D79: 0 | E79: 0 | F79: 0 | H79: =D79+F79-E79 -> 0
A80: 12620 | B80: Depreciación acumulada de infraestructura | D80: 0 | E80: 0 | F80: 0 | H80: =D80+F80-E80 -> 0
A81: 12630 | B81: Depreciación acumulada de bienes muebles | D81: 0 | E81: 0 | F81: 0 | H81: 0
A82: 12640 | B82: Deterioro acumulado de activos biológicos | D82: 0 | E82: 0 | F82: 0 | H82: 0
A83: 12650 | B83: Amortización acumulada de activos intangibles | D83: 0 | E83: 0 | F83: 0 | H83: 0
A84: 12700 | B84: ACTIVOS DIFERIDOS | C84: =SUM(C85:C90) -> 0 | E84: =SUM(E85:E90) -> 0 | F84: =SUM(F85:F90) -> 0 | G84: =SUM(G85:G90) -> 0
A85: 12710 | B85: Estudios, formulación y evaluación de proyectos | C85: 0 | E85: 0 | F85: 0 | G85: =C85+E85-F85 -> 0
A86: 12720 | B86: Derechos sobre bienes en régimen de arrendamiento financiero | C86: 0 | E86: 0 | F86: 0 | G86: 0
A87: 12730 | B87: Gastos pagados por adelantado a largo plazo | C87: 0 | E87: 0 | F87: 0 | G87: 0
A88: 12740 | B88: Anticipos a largo plazo | C88: 0 | E88: 0 | F88: 0 | G88: 0
A89: 12750 | B89: Beneficios al retiro de empleados pagados por adelantado | C89: 0 | E89: 0 | F89: 0 | G89: 0
A90: 12790 | B90: Otros activos diferidos | C90: 0 | E90: 0 | F90: 0 | G90: 0
A91: 12800 | B91: ESTIMACIÓN POR PÉRDIDA O DETERIORO DE ACTIVOS NO CIRCULANTES | D91: =SUM(D92:D96) -> 0 | E91: =SUM(E92:E96) -> 0 | F91: =SUM(F92:F96) -> 0 | H91: =D91+F91-E91 -> 0
A92: 12810 | B92: Estimaciones por pérdida de cuentas incobrables de documentos por cobrar a largo plazo | C92: 0 | E92: 0 | F92: 0 | H92: =D92+F92-E92 -> 0
A93: 12820 | B93: Estimaciones por pérdida de cuentas incobrables de deudores diversos por cobrar a largo plazo | C93: 0 | E93: 0 | F93: 0 | H93: =D93+F93-E93 -> 0
A94: 12830 | B94: Estimaciones por pérdida de cuentas incobrables de ingresos por cobrar a largo plazo | C94: 0 | E94: 0 | F94: 0 | H94: 0
A95: 12840 | B95: Estimaciones por pérdida de cuentas incobrables de préstamos otorgados a largo plazo | C95: 0 | E95: 0 | F95: 0 | H95: 0
A96: 12890 | B96: Estimaciones por pérdida de otras cuentas incobrables a largo plazo | C96: 0 | E96: 0 | F96: 0 | H96: 0
A97: 12900 | B97: OTROS ACTIVOS NO CIRCULANTES | C97: =SUM(C98:C100) -> 0 | E97: =SUM(E98:E100) -> 0 | F97: =SUM(F98:F100) -> 0 | G97: =SUM(G98:G100) -> 0
A98: 12910 | B98: Bienes en concesión | C98: 0 | E98: 0 | F98: 0 | G98: =C98+E98-F98 -> 0
A99: 12920 | B99: Bienes en arrendamiento financiero | C99: 0 | E99: 0 | F99: 0 | G99: =C99+E99-F99 -> 0
A100: 12930 | B100: Bienes en comodato | C100: 0 | E100: 0 | F100: 0 | G100: =C100+E100-F100 -> 0
A101: 20000 | B101: PASIVO | D101: =D102+D143 -> 3948060.41 | E101: =E102+E143 -> 76441234.16 | F101: =F102+F143 -> 72820416.48 | H101: =H102+H143 -> 327242.73
A102: 21000 | B102: PASIVO CIRCULANTE | D102: =D103+D113+D117+D121+D124+D128+D135+D139 -> 3948060.41 | E102: =E103+E113+E117+E121+E124+E128+E135+E139 -> 76441234.16 | F102: =F103+F113+F117+F121+F124+F128+F135+F139 -> 72820416.48 | H102: =H103+H113+H117+H121+H124+H128+H135+H139 -> 327242.73
A103: 21100 | B103: CUENTAS POR PAGAR A CORTO PLAZO | D103: =SUM(D104:D112) -> 0 | E103: =SUM(E104:E112) -> 71300622.06 | F103: =SUM(F104:F112) -> 71561682.79 | H103: =SUM(H104:H112) -> 261060.73
A104: 21110 | B104: Servicios personales por pagar a corto plazo | D104: 0 | E104: 14353238.81 | F104: 14353238.81 | H104: =D104+F104-E104 -> 0
A105: 21120 | B105: Proveedores por pagar a corto plazo | D105: 0 | E105: 46058481.58 | F105: 46058481.58 | H105: 0
A106: 21130 | B106: Contratistas por obras públicas por pagar a corto plazo | D106: 0 | E106: 7827081.95 | F106: 7827081.95 | H106: 0
A107: 21140 | B107: Participaciones y aportaciones por pagar a corto plazo | D107: 0 | E107: 0 | F107: 0 | H107: 0
A108: 21150 | B108: Transferencias otorgadas por pagar a corto plazo | D108: 0 | E108: 2951547.05 | F108: 2951547.05 | H108: 0
A109: 21160 | B109: Intereses, comisiones y otros gastos de la deuda pública por pagar a corto plazo | D109: 0 | E109: 38454.21 | F109: 38454.21 | H109: 0
A110: 21170 | B110: Retenciones y contribuciones por pagar a corto plazo | D110: 0 | E110: 71818.46 | F110: 332879.19 | H110: 261060.73
A111: 21180 | B111: Devoluciones de la ley de ingresos por pagar a corto plazo | D111: 0 | E111: 0 | F111: 0 | H111: 0
A112: 21190 | B112: Otras cuentas por pagar a corto plazo | D112: 0 | E112: 0 | F112: 0 | H112: 0
A113: 21200 | B113: DOCUMENTOS POR PAGAR A CORTO PLAZO | D113: =SUM(D114:D116) -> 1498060.41 | E113: =SUM(E114:E116) -> 2490612.1 | F113: =SUM(F114:F116) -> 1058733.69 | H113: =SUM(H114:H116) -> 66182
A114: 21210 | B114: Documentos comerciales por pagar a corto plazo | D114: 0 | E114: 0 | F114: 0 | H114: =D114+F114-E114 -> 0
A115: 21220 | B115: Documentos con contratistas por obras públicas por pagar a corto plazo | D115: 0 | E115: 0 | F115: 0 | H115: =D115+F115-E115 -> 0
A116: 21290 | B116: Otros documentos por pagar a corto plazo | D116: 1498060.41 | E116: 2490612.1 | F116: 1058733.69 | H116: =D116+F116-E116 -> 66182
A117: 21300 | B117: PORCIÓN A CORTO PLAZO DE LA DEUDA PÚBLICA A LARGO PLAZO | D117: =SUM(D118+D120) -> 2450000 | E117: =SUM(E118+E120) -> 2650000 | F117: =SUM(F118+F120) -> 200000 | H117: =SUM(H118+H120) -> 0
A118: 21310 | B118: Porción a corto plazo de la deuda pública interna | D118: 2450000 | E118: 2650000 | F118: 200000 | H118: =D118+F118-E118 -> 0
A119: 21320 | B119: Porción a corto plazo de la deuda pública externa | D119: 0 | E119: 0 | F119: 0
A120: 21330 | B120: Porción a corto plazo de arrendamiento financiero | D120: 0 | E120: 0 | F120: 0 | H120: =D120+F120-E120 -> 0
A121: 21400 | B121: TÍTULOS Y VALORES A CORTO PLAZO | D121: =SUM(D122) -> 0 | E121: =SUM(E122) -> 0 | F121: =SUM(F122) -> 0 | H121: =SUM(H122) -> 0
A122: 21410 | B122: Títulos y valores de la deuda pública interna a corto plazo | D122: 0 | E122: 0 | F122: 0 | H122: =D122+F122-E122 -> 0
A123: 21420 | B123: Títulos y valores de la deuda pública externa a corto plazo | D123: 0 | E123: 0 | F123: 0
A124: 21500 | B124: PASIVOS DIFERIDOS A CORTO PLAZO | D124: =SUM(D125:D127) -> 0 | E124: =SUM(E125:E127) -> 0 | F124: =SUM(F125:F127) -> 0 | H124: =SUM(H125:H127) -> 0
A125: 21510 | B125: Ingresos cobrados por adelantado a corto plazo | D125: 0 | E125: 0 | F125: 0 | H125: =D125+F125-E125 -> 0
A126: 21520 | B126: Intereses cobrados por adelantado a corto plazo | D126: 0 | E126: 0 | F126: 0 | H126: =D126+F126-E126 -> 0
A127: 21590 | B127: Otros pasivos diferidos a corto plazo | D127: 0 | E127: 0 | F127: 0 | H127: =D127+F127-E127 -> 0
A128: 21600 | B128: FONDOS Y BIENES DE TERCEROS EN GARANTÍA Y/O ADMINISTRACIÓN A CORTO PLAZO | D128: =SUM(D129:D134) -> 0 | E128: =SUM(E129:E134) -> 0 | F128: =SUM(F129:F134) -> 0 | H128: =SUM(H129:H134) -> 0
A129: 21610 | B129: Fondos en garantía a corto plazo | D129: 0 | E129: 0 | F129: 0 | H129: =D129+F129-E129 -> 0
A130: 21620 | B130: Fondos en administración a corto plazo | D130: 0 | E130: 0 | F130: 0 | H130: 0
A131: 21630 | B131: Fondos contingentes a corto plazo | D131: 0 | E131: 0 | F131: 0 | H131: 0
A132: 21640 | B132: Fondos de fideicomisos, mandatos y contratos análogos a corto plazo | D132: 0 | E132: 0 | F132: 0 | H132: 0
A133: 21650 | B133: Otros fondos de terceros en garantía y/o administración a corto plazo | D133: 0 | E133: 0 | F133: 0 | H133: 0
A134: 21660 | B134: Valores y bienes en garantía a corto plazo | D134: 0 | E134: 0 | F134: 0 | H134: 0
A135: 21700 | B135: PROVISIONES A CORTO PLAZO | D135: =SUM(D136:D138) -> 0 | E135: =SUM(E136:E138) -> 0 | F135: =SUM(F136:F138) -> 0 | H135: =SUM(H136:H138) -> 0
A136: 21710 | B136: Provisión para demandas y juicios a corto plazo | D136: 0 | E136: 0 | F136: 0 | H136: =D136+F136-E136 -> 0
A137: 21720 | B137: Provisión para contingencias a corto plazo | D137: 0 | E137: 0 | F137: 0 | H137: =D137+F137-E137 -> 0
A138: 21790 | B138: Otras provisiones a corto plazo | D138: 0 | E138: 0 | F138: 0 | H138: =D138+F138-E138 -> 0
A139: 21900 | B139: OTROS PASIVOS A CORTO PLAZO | D139: =SUM(D140:D142) -> 0 | E139: =SUM(E140:E142) -> 0 | F139: =SUM(F140:F142) -> 0 | H139: =SUM(H140:H142) -> 0
A140: 21910 | B140: Ingresos por clasificar | D140: 0 | E140: 0 | F140: 0 | H140: =D140+F140-E140 -> 0
A141: 21920 | B141: Recaudación por participar | D141: 0 | E141: 0 | F141: 0 | H141: =D141+F141-E141 -> 0
A142: 21990 | B142: Otros pasivos circulantes | D142: 0 | E142: 0 | F142: 0 | H142: =D142+F142-E142 -> 0
A143: 22000 | B143: PASIVO NO CIRCULANTE | D143: =SUM(D144+D147+D151+D157+D161+D168) -> 0 | E143: =SUM(E144+E147+E151+E157+E161+E168) -> 0 | F143: =SUM(F144+F147+F151+F157+F161+F168) -> 0 | H143: =SUM(H144+H147+H151+H157+H161+H168) -> 0
A144: 22100 | B144: CUENTAS POR PAGAR A LARGO PLAZO | D144: =SUM(D145:D146) -> 0 | E144: =SUM(E145:E146) -> 0 | F144: =SUM(F145:F146) -> 0 | H144: =SUM(H145:H146) -> 0
A145: 22110 | B145: Proveedores por pagar a largo plazo | D145: 0 | E145: 0 | F145: 0 | H145: =D145+F145-E145 -> 0
A146: 22120 | B146: Contratistas por obras públicas por pagar a largo plazo | D146: 0 | E146: 0 | F146: 0 | H146: =D146+F146-E146 -> 0
A147: 22200 | B147: DOCUMENTOS POR PAGAR A LARGO PLAZO | D147: =SUM(D148:D150) -> 0 | E147: =SUM(E148:E150) -> 0 | F147: =SUM(F148:F150) -> 0 | H147: =SUM(H148:H150) -> 0
A148: 22210 | B148: Documentos comerciales por pagar a largo plazo | D148: 0 | E148: 0 | F148: 0 | H148: =D148+F148-E148 -> 0
A149: 22220 | B149: Documentos con contratistas por obras públicas por pagar a largo plazo | D149: 0 | E149: 0 | F149: 0 | H149: =D149+F149-E149 -> 0
A150: 22290 | B150: Otros documentos por pagar a largo plazo | D150: 0 | E150: 0 | F150: 0 | H150: =D150+F150-E150 -> 0
A151: 22300 | B151: DEUDA PÚBLICA A LARGO PLAZO | D151: =SUM(D152:D156) -> 0 | E151: =SUM(E152:E156) -> 0 | F151: =SUM(F152:F156) -> 0 | H151: =SUM(H152:H156) -> 0
A152: 22310 | B152: Títulos y valores de la deuda pública interna a largo plazo | D152: 0 | E152: 0 | F152: 0 | H152: =D152+F152-E152 -> 0
A153: 22320 | B153: Títulos y valores de la deuda pública externa a largo plazo | D153: 0 | E153: 0 | F153: 0
A154: 22330 | B154: Préstamos de la deuda pública interna por pagar a largo plazo | D154: 0 | E154: 0 | F154: 0 | H154: =D154+F154-E154 -> 0
A155: 22340 | B155: Préstamos de la deuda pública externa por pagar a largo plazo | D155: 0 | E155: 0 | F155: 0
A156: 22350 | B156: Arrendamiento financiero por pagar a largo plazo | D156: 0 | E156: 0 | F156: 0 | H156: =D156+F156-E156 -> 0
A157: 22400 | B157: PASIVOS DIFERIDOS A LARGO PLAZO | D157: =SUM(D158:D160) -> 0 | E157: =SUM(E158:E160) -> 0 | F157: =SUM(F158:F160) -> 0 | H157: =SUM(H158:H160) -> 0
A158: 22410 | B158: Créditos diferidos a largo plazo | D158: 0 | E158: 0 | F158: 0 | H158: =D158+F158-E158 -> 0
A159: 22420 | B159: Intereses cobrados por adelantado a largo plazo | D159: 0 | E159: 0 | F159: 0 | H159: =D159+F159-E159 -> 0
A160: 22490 | B160: Otros pasivos diferidos a largo plazo | D160: 0 | E160: 0 | F160: 0 | H160: =D160+F160-E160 -> 0
A161: 22500 | B161: FONDOS Y BIENES DE TERCEROS EN GARANTÍA Y/O ADMINISTRACIÓN A LARGO PLAZO | D161: =SUM(D162:D167) -> 0 | E161: =SUM(E162:E167) -> 0 | F161: =SUM(F162:F167) -> 0 | H161: =SUM(H162:H167) -> 0
A162: 22510 | B162: Fondos en garantía a largo plazo | D162: 0 | E162: 0 | F162: 0 | H162: =D162+F162-E162 -> 0
A163: 22520 | B163: Fondos en administración a largo plazo | D163: 0 | E163: 0 | F163: 0 | H163: 0
A164: 22530 | B164: Fondos contingentes a largo plazo | D164: 0 | E164: 0 | F164: 0 | H164: 0
A165: 22540 | B165: Fondos de fideicomisos, mandatos y contratos análogos a largo plazo | D165: 0 | E165: 0 | F165: 0 | H165: 0
A166: 22550 | B166: Otros fondos de terceros en garantía y/o administración a largo plazo | D166: 0 | E166: 0 | F166: 0 | H166: 0
A167: 22560 | B167: Valores y bienes en garantía a largo plazo | D167: 0 | E167: 0 | F167: 0 | H167: 0
A168: 22600 | B168: PROVISIONES A LARGO PLAZO | D168: =SUM(D169:D172) -> 0 | E168: =SUM(E169:E172) -> 0 | F168: =SUM(F169:F172) -> 0 | H168: =SUM(H169:H172) -> 0
A169: 22610 | B169: Provisión para demandas y juicios a largo plazo | D169: 0 | E169: 0 | F169: 0 | H169: =D169+F169-E169 -> 0
A170: 22620 | B170: Provisión para pensiones a largo plazo | D170: 0 | E170: 0 | F170: 0 | H170: =D170+F170-E170 -> 0
A171: 22630 | B171: Provisión para contingencias a largo plazo | D171: 0 | E171: 0 | F171: 0 | H171: =D171+F171-E171 -> 0
A172: 22690 | B172: Otras provisiones a largo plazo | D172: 0 | E172: 0 | F172: 0 | H172: =D172+F172-E172 -> 0
A173: 30000 | B173: HACIENDA PÚBLICA/ PATRIMONIO | D173: =D174+D178+D193 -> 16728672.55 | E173: =E174+E178+E193 -> 0 | F173: =F174+F178+F193 -> 12073953.71 | H173: =H174+H178+H193 -> 28802626.26
A174: 31000 | B174: HACIENDA PÚBLICA/ PATRIMONIO CONTRIBUIDO | D174: =SUM(D175:D177) -> 0 | E174: =SUM(E175:E177) -> 0 | F174: =SUM(F175:F177) -> 0 | H174: =SUM(H175:H177) -> 0
A175: 31100 | B175: APORTACIONES | D175: 0 | E175: 0 | F175: 0 | H175: =D175+F175-E175 -> 0
A176: 31200 | B176: DONACIONES DE CAPITAL | D176: 0 | E176: 0 | F176: 0 | H176: =D176+F176-E176 -> 0
A177: 31300 | B177: ACTUALIZACIÓN DE LA HACIENDA PÚBLICA/PATRIMONIO | D177: 0 | E177: 0 | F177: 0 | H177: =D177+F177-E177 -> 0
A178: 32000 | B178: HACIENDA PÚBLICA/PATRIMONIO GENERADO | D178: =D179+D180+D181+D186+D190 -> 16728672.55 | E178: =E179+E180+E181+E186+E190 -> 0 | F178: =F179+F180+F181+F186+F190 -> 12073953.71 | H178: =H179+H180+H181+H186+H190 -> 28802626.26
A179: 32100 | B179: RESULTADOS DEL EJERCICIO (AHORRO/ DESAHORRO) | D179: =IF(C751>D752,C751,(D752)*-1) -> 8267371.7 | E179: =F752 -> 0 | F179: =E751 -> 12073953.71 | H179: =F179-E179 -> 12073953.71
A180: 32200 | B180: RESULTADOS DE EJERCICIOS ANTERIORES | D180: 8461300.85 | E180: 0 | F180: 0 | H180: =D179+D180+F180-E180 -> 16728672.55
A181: 32300 | B181: REVALÚOS | D181: =SUM(D182:D185) -> 0 | E181: =SUM(E182:E185) -> 0 | F181: =SUM(F182:F185) -> 0 | H181: =SUM(H182:H185) -> 0
A182: 32310 | B182: Revalúo de bienes inmuebles | D182: 0 | E182: 0 | F182: 0 | H182: =D182+F182-E182 -> 0
A183: 32320 | B183: Revalúo de bienes muebles | D183: 0 | E183: 0 | F183: 0 | H183: =D183+F183-E183 -> 0
A184: 32330 | B184: Revalúo de bienes intangibles | D184: 0 | E184: 0 | F184: 0 | H184: =D184+F184-E184 -> 0
A185: 32390 | B185: Otros revalúos | D185: 0 | E185: 0 | F185: 0 | H185: =D185+F185-E185 -> 0
A186: 32400 | B186: RESERVAS | D186: =SUM(D187:D189) -> 0 | E186: =SUM(E187:E189) -> 0 | F186: =SUM(F187:F189) -> 0 | H186: =SUM(H187:H189) -> 0
A187: 32410 | B187: Reservas de patrimonio | D187: 0 | E187: 0 | F187: 0 | H187: =D187+F187-E187 -> 0
A188: 32420 | B188: Reservas territoriales | D188: 0 | E188: 0 | F188: 0 | H188: =D188+F188-E188 -> 0
A189: 32430 | B189: Reservas por contingencias | D189: 0 | E189: 0 | F189: 0 | H189: =D189+F189-E189 -> 0
A190: 32500 | B190: RECTIFICACIONES DE RESULTADOS DE EJERCICIOS ANTERIORES | D190: =SUM(D191:D192) -> 0 | E190: =SUM(E191:E192) -> 0 | F190: =SUM(F191:F192) -> 0 | H190: =SUM(H191:H192) -> 0
A191: 32510 | B191: Cambios en políticas contables | D191: 0 | E191: 0 | F191: 0 | H191: =D191+F191-E191 -> 0
A192: 32520 | B192: Cambios por errores contables | D192: 0 | E192: 0 | F192: 0 | H192: =D192+F192-E192 -> 0
A193: 33000 | B193: EXCESO O INSUFICIENCIA EN LA ACTUALIZACIÓN DE LA HACIENDA PÚBLICA/ PATRIMONIO | D193: =SUM(D194:D195) -> 0 | E193: =SUM(E194:E195) -> 0 | F193: =SUM(F194:F195) -> 0 | H193: =SUM(H194:H195) -> 0
A194: 33100 | B194: RESULTADO POR POSICIÓN MONETARIA | D194: 0 | E194: 0 | F194: 0 | H194: =D194+F194-E194 -> 0
A195: 33200 | B195: RESULTADO POR TENENCIA DE ACTIVOS NO MONETARIOS | D195: 0 | E195: 0 | F195: 0 | H195: =D195+F195-E195 -> 0
A196: 40000 | B196: INGRESOS Y OTROS BENEFICIOS | D196: =D197+D307+D355 -> 43025166.68 | E196: =E197+E307+E355 -> 0 | F196: =F197+F307+F355 -> 49351198 | H196: =H197+H307+H355 -> 49351198
A197: 41000 | B197: INGRESOS DE GESTIÓN | D197: =D198+D219+D225+D230+D262+D271+D292+D304 -> 5796928.3 | E197: =E198+E219+E225+E230+E262+E271+E292+E304 -> 0 | F197: =F198+F219+F225+F230+F262+F271+F292+F304 -> 9645868.57 | H197: =H198+H219+H225+H230+H262+H271+H292+H304 -> 9645868.57
A198: 41100 | B198: IMPUESTOS | D198: =D199+D201+D205+D206+D207+D208+D209+D215+D217 -> 2849601.27 | E198: =E199+E201+E205+E206+E207+E208+E209+E215+E217 -> 0 | F198: =F199+F201+F205+F206+F207+F208+F209+F215+F217 -> 4282314.98 | H198: =H199+H201+H205+H206+H207+H208+H209+H215+H217 -> 4282314.98
A199: 41110 | B199: Impuestos sobre los ingresos | D199: =SUM(D200) -> 0 | E199: =SUM(E200) -> 0 | F199: =SUM(F200) -> 15088 | H199: =F199-E199 -> 15088
A200: 41110-1 | B200: Impuestos sobre espectáculos públicos | D200: 0 | E200: 0 | F200: 15088 | H200: =F200-E200 -> 15088
... 1887 more rows

Sheet F3
A1: =Validacion!A2 -> Atemajac de Brizuela
A2: ESTADO DE FLUJOS DE EFECTIVO
A3: ='F6'!A3 -> Del 1° de Enero al 31 de Diciembre de 2021
A5: CONCEPTO | F5: 2021 | G5: 2020
A6: Flujos de efectivo de las actividades de operación
B7: Origen | F7: =SUM(F8:F17) -> 49351198 | G7: =SUM(G8:G17) -> 43025166.68
C8: Impuestos | F8: 4282314.98 | G8: 2849601.27
C9: Cuotas y aportaciones de seguridad social
C10: Contribuciones de mejoras
C11: Derechos | F11: 4717158.67 | G11: 2154316.19
C12: Productos | F12: 53968.85 | G12: 182923.84
C13: Aprovechamientos | F13: 592426.07 | G13: 610087
C14: Ingresos por venta de bienes y prestación servicios
C15: Participaciones, aportaciones, convenios, incentivos derivados de la colaboración fiscal y fondos distitntos de aportaciones | F15: 39705329.43 | G15: 37228238.38
C16: Transferencias, asignaciones, subsidios y subvenciones, y pensiones y jubilaciones
C17: Otros origenes de operación
B18: Aplicación | F18: =SUM(F19:F34) -> 37277244.29 | G18: =SUM(G19:G34) -> 34757794.98
C19: Servicios personales | F19: 18118436.47 | G19: 17054348.79
C20: Materiales y suministros | F20: 3906677.51 | G20: 4617870.82
C21: Servicios generales | F21: 11709801.48 | G21: 8723825.72
C22: Transferencias internas y asignaciones al sector público | F22: 1020000 | G22: 1168021
C23: Transferencias al resto del sector público | F23: 480000 | G23: 105000
C24: Subsidios y subvenciones
C25: Ayudas sociales | F25: 2003874.62 | G25: 2918963.17
C26: Pensiones y jubilaciones
C27: Transferencias a fideicomisos, mandatos y contratos análogos
C28: Transferencias a la seguridad ocial
C29: Donativos | G29: 30000
C30: Transferencias al exterior
C31: Participaciones
C32: Aportaciones
C33: Convenios
C34: Otros aplicaciones de operación | F34: 38454.21 | G34: 139765.48
A35: Flujos netos de efectivo por actividades de operación | F35: =F7-F18 -> 12073953.71 | G35: =G7-G18 -> 8267371.7
A36: Flujos de efectivo de las actividades de inversión
B37: Origen | F37: =SUM(F38:F40) -> 0 | G37: =SUM(G38:G40) -> 56221027.58
C38: Bienes inmuebles, infraestructura y construcciones en proceso
C39: Bienes muebles
C40: Otros Orígenes de inversión | F40: 0 | G40: 56221027.58
B41: Aplicación | F41: =SUM(F42:F44) -> 9322595.39 | G41: =SUM(G42:G44) -> 64613859.54
C42: Bienes inmuebles, infraestructura y construcciones en proceso | F42: 8962182.42 | G42: 8475875.36
C43: Bienes muebles | F43: 360412.97 | G43: 126188.01
C44: Otras aplicaciones de inversión | F44: 0 | G44: 56011796.17
A45: Flujos netos de efectivo por actividades de inversión | F45: =F37-F41 -> -9322595.39 | G45: =G37-G41 -> -8392831.96
A46: Flujo de efectivo de las actividades de financiamiento
B47: Origen | F47: =F48+F51 -> 456120.23 | G47: =G48+G51 -> 38333433.12
C48: Endeudamiento neto | F48: =F49+F50 -> 195059.5 | G48: =G49+G50 -> 0
C49: Interno | F49: 195059.5
C50: Externo
C51: Otros origenes de financiamiento | F51: 261060.73 | G51: 38333433.12
B52: Aplicación | F52: =F53+F56 -> 3881878.41 | G52: =G53+G56 -> 38588039.07
C53: Servicios de la deuda | F53: =F54+F55 -> 2450000 | G53: =G54+G55 -> 0
C54: Interno | F54: 2450000
C55: Externo
C56: Otras aplicaciones de finaciamiento | F56: 1431878.41 | G56: 38588039.07
A57: Flujos netos de efectivo por actividades de financiamiento | F57: =F47-F52 -> -3425758.18 | G57: =G47-G52 -> -254605.95
A58: Incremento/disminución neta en el efectivo y equivalentes al efectivo | F58: =F35+F45+F57 -> -674399.86 | G58: =G35+G45+G57 -> -380066.21
A59: Efectivo y equivalentes al efectivo al inicio del ejercicio | F59: =G60 -> 1439544.34 | G59: 1819610.55
A60: Efectivo y equivalentes al efectivo al final del ejercicio | F60: =F58+F59 -> 765144.48 | G60: =+G58+G59 -> 1439544.34
A62: Bajo protesta de decir verdad declaramos que los estados financieros y sus notas, son razonablemente correctos y son responsabilidad del emisor.
C67: =Validacion!A7 -> C. SANTIAGO LEON CASTRO | E67: =Validacion!A9 -> L.T. JOCELYN SANCHEZ HERRERA
C69: Presidente Municipal o Titular del ente público | E69: Encargado de Hacienda Municipal o Responsable de las finanzas del ente público

Sheet F9-IDP
A1: CONCEPTO | J1: No. 1 | AJ1: CONCEPTO | AS1: No. 2 | BS1: CONCEPTO | CB1: No. 3 | DB1: CONCEPTO | DK1: No. 4 | EK1: CONCEPTO | ET1: No. 5 | FT1: CONCEPTO | GC1: No. 6 | HC1: CONCEPTO | HL1: No. 7 | IL1: CONCEPTO | IU1: No. 8 | JU1: CONCEPTO | KD1: No. 9 | LD1: CONCEPTO | LM1: No. 10
A2: TIPO DE OBLIGACIÓN: | J2: =IF(L2="Institución de crédito","1",IF(L2="Títulos y valores","2",IF(L2="Arrendamiento financiero","3",""))) -> 1 | K2: =IF(L2>0,".-","") -> .- | L2: Institución de crédito | AJ2: TIPO DE OBLIGACIÓN: | AS2: =IF(AU2="Institución de crédito","1",IF(AU2="Títulos y valores","2",IF(AU2="Arrendamiento financiero","3",""))) -> 1 | AT2: =IF(AU2>0,".-","") -> .- | AU2: Institución de crédito | BS2: TIPO DE OBLIGACIÓN: | CB2: =IF(CD2="Institución de crédito","1",IF(CD2="Títulos y valores","2",IF(CD2="Arrendamiento financiero","3",""))) -> 1 | CC2: =IF(CD2>0,".-","") -> .- | CD2: Institución de crédito | DB2: TIPO DE OBLIGACIÓN: | DK2: =IF(DM2="Institución de crédito","1",IF(DM2="Títulos y valores","2",IF(DM2="Arrendamiento financiero","3",""))) ->  | DL2: =IF(DM2>0,".-","") ->  | EK2: TIPO DE OBLIGACIÓN: | ET2: =IF(EV2="Institución de crédito","1",IF(EV2="Títulos y valores","2",IF(EV2="Arrendamiento financiero","3",""))) ->  | EU2: =IF(EV2>0,".-","") ->  | FT2: TIPO DE OBLIGACIÓN: | GC2: =IF(GE2="Institución de crédito","1",IF(GE2="Títulos y valores","2",IF(GE2="Arrendamiento financiero","3",""))) ->  | GD2: =IF(GE2>0,".-","") ->  | HC2: TIPO DE OBLIGACIÓN: | HL2: =IF(HN2="Institución de crédito","1",IF(HN2="Títulos y valores","2",IF(HN2="Arrendamiento financiero","3",""))) ->  | HM2: =IF(HN2>0,".-","") ->  | IL2: TIPO DE OBLIGACIÓN: | IU2: =IF(IW2="Institución de crédito","1",IF(IW2="Títulos y valores","2",IF(IW2="Arrendamiento financiero","3",""))) ->  | IV2: =IF(IW2>0,".-","") ->  | JU2: TIPO DE OBLIGACIÓN: | KD2: =IF(KF2="Institución de crédito","1",IF(KF2="Títulos y valores","2",IF(KF2="Arrendamiento financiero","3",""))) ->  | KE2: =IF(KF2>0,".-","") ->  | LD2: TIPO DE OBLIGACIÓN: | LM2: =IF(LO2="Institución de crédito","1",IF(LO2="Títulos y valores","2",IF(LO2="Arrendamiento financiero","3",""))) ->  | LN2: =IF(LO2>0,".-","") -> 
A3: NOMBRE DEL ACREEDOR: | J3: SHP | AJ3: NOMBRE DEL ACREEDOR: | AS3: FRANCISCO AMADO GUZMAN SANCHEZ | BS3: NOMBRE DEL ACREEDOR: | CB3: FRANCISCO AMADO GUZMAN SANCHEZ | DB3: NOMBRE DEL ACREEDOR: | EK3: NOMBRE DEL ACREEDOR: | FT3: NOMBRE DEL ACREEDOR: | HC3: NOMBRE DEL ACREEDOR: | IL3: NOMBRE DEL ACREEDOR: | JU3: NOMBRE DEL ACREEDOR: | LD3: NOMBRE DEL ACREEDOR:
A4: MONTO DISPUESTO: | J4: 2000000 | R4: FECHA DE INICIO: | Z4: 2021-01-01 | AJ4: MONTO DISPUESTO: | AS4: 450000 | BA4: FECHA DE INICIO: | BI4: 2021-01-01 | BS4: MONTO DISPUESTO: | CB4: 200000 | CJ4: FECHA DE INICIO: | CR4: 2021-01-01 | DB4: MONTO DISPUESTO: | DS4: FECHA DE INICIO: | EK4: MONTO DISPUESTO: | FB4: FECHA DE INICIO: | FT4: MONTO DISPUESTO: | GK4: FECHA DE INICIO: | HC4: MONTO DISPUESTO: | HT4: FECHA DE INICIO: | IL4: MONTO DISPUESTO: | JC4: FECHA DE INICIO: | JU4: MONTO DISPUESTO: | KL4: FECHA DE INICIO: | LD4: MONTO DISPUESTO: | LU4: FECHA DE INICIO:
R5: FECHA DE VENCIMIENTO: | Z5: 2021-12-31 | BA5: FECHA DE VENCIMIENTO: | BI5: 2021-12-31 | CJ5: FECHA DE VENCIMIENTO: | CR5: 2021-12-31 | DS5: FECHA DE VENCIMIENTO: | FB5: FECHA DE VENCIMIENTO: | GK5: FECHA DE VENCIMIENTO: | HT5: FECHA DE VENCIMIENTO: | JC5: FECHA DE VENCIMIENTO: | KL5: FECHA DE VENCIMIENTO: | LU5: FECHA DE VENCIMIENTO:
A6: SALDO AL 1° DE ENERO DE 2021 A CORTO PLAZO: | R6: 2000000 | AJ6: SALDO AL 1° DE ENERO DE 2021 A CORTO PLAZO: | BA6: 450000 | BS6: SALDO AL 1° DE ENERO DE 2021 A CORTO PLAZO: | CJ6: 0 | DB6: SALDO AL 1° DE ENERO DE 2021 A CORTO PLAZO: | EK6: SALDO AL 1° DE ENERO DE 2021 A CORTO PLAZO: | FT6: SALDO AL 1° DE ENERO DE 2021 A CORTO PLAZO: | HC6: SALDO AL 1° DE ENERO DE 2021 A CORTO PLAZO: | IL6: SALDO AL 1° DE ENERO DE 2021 A CORTO PLAZO: | JU6: SALDO AL 1° DE ENERO DE 2021 A CORTO PLAZO: | LD6: SALDO AL 1° DE ENERO DE 2021 A CORTO PLAZO:
A7: SALDO AL 1° DE ENERO DE 2021 A LARGO PLAZO: | R7: 0 | AJ7: SALDO AL 1° DE ENERO DE 2021 A LARGO PLAZO: | BA7: 0 | BS7: SALDO AL 1° DE ENERO DE 2021 A LARGO PLAZO: | CJ7: 0 | DB7: SALDO AL 1° DE ENERO DE 2021 A LARGO PLAZO: | EK7: SALDO AL 1° DE ENERO DE 2021 A LARGO PLAZO: | FT7: SALDO AL 1° DE ENERO DE 2021 A LARGO PLAZO: | HC7: SALDO AL 1° DE ENERO DE 2021 A LARGO PLAZO: | IL7: SALDO AL 1° DE ENERO DE 2021 A LARGO PLAZO: | JU7: SALDO AL 1° DE ENERO DE 2021 A LARGO PLAZO: | LD7: SALDO AL 1° DE ENERO DE 2021 A LARGO PLAZO:
A8: OBLIGACIONES A LARGO PLAZO | AJ8: OBLIGACIONES A LARGO PLAZO | BS8: OBLIGACIONES A LARGO PLAZO | DB8: OBLIGACIONES A LARGO PLAZO | EK8: OBLIGACIONES A LARGO PLAZO | FT8: OBLIGACIONES A LARGO PLAZO | HC8: OBLIGACIONES A LARGO PLAZO | IL8: OBLIGACIONES A LARGO PLAZO | JU8: OBLIGACIONES A LARGO PLAZO | LD8: OBLIGACIONES A LARGO PLAZO
A9: CONCEPTO | E9: DISPOSICIÓN | K9: AMORTIZACIÓN | Q9: REVALUACIONES | W9: INTERÉS | AC9: COMISIONES | AJ9: CONCEPTO | AN9: DISPOSICIÓN | AT9: AMORTIZACIÓN | AZ9: REVALUACIONES | BF9: INTERÉS | BL9: COMISIONES | BS9: CONCEPTO | BW9: DISPOSICIÓN | CC9: AMORTIZACIÓN | CI9: REVALUACIONES | CO9: INTERÉS | CU9: COMISIONES | DB9: CONCEPTO | DF9: DISPOSICIÓN | DL9: AMORTIZACIÓN | DR9: REVALUACIONES | DX9: INTERÉS | ED9: COMISIONES | EK9: CONCEPTO | EO9: DISPOSICIÓN | EU9: AMORTIZACIÓN | FA9: REVALUACIONES | FG9: INTERÉS | FM9: COMISIONES | FT9: CONCEPTO | FX9: DISPOSICIÓN | GD9: AMORTIZACIÓN | GJ9: REVALUACIONES | GP9: INTERÉS | GV9: COMISIONES | HC9: CONCEPTO | HG9: DISPOSICIÓN | HM9: AMORTIZACIÓN | HS9: REVALUACIONES | HY9: INTERÉS | IE9: COMISIONES | IL9: CONCEPTO | IP9: DISPOSICIÓN | IV9: AMORTIZACIÓN | JB9: REVALUACIONES | JH9: INTERÉS | JN9: COMISIONES | JU9: CONCEPTO | JY9: DISPOSICIÓN | KE9: AMORTIZACIÓN | KK9: REVALUACIONES | KQ9: INTERÉS | KW9: COMISIONES | LD9: CONCEPTO | LH9: DISPOSICIÓN | LN9: AMORTIZACIÓN | LT9: REVALUACIONES | LZ9: INTERÉS | MF9: COMISIONES
A10: Largo Plazo | E10: 0 | K10: 0 | Q10: 0 | W10: 0 | AC10: 0 | AJ10: Largo Plazo | AN10: 0 | AT10: 0 | AZ10: 0 | BF10: 0 | BL10: 0 | BS10: Largo Plazo | BW10: 0 | CC10: 0 | CI10: 0 | CO10: 0 | CU10: 0 | DB10: Largo Plazo | EK10: Largo Plazo | FT10: Largo Plazo | HC10: Largo Plazo | IL10: Largo Plazo | JU10: Largo Plazo | LD10: Largo Plazo
A11: OBLIGACIONES A CORTO PLAZO | AJ11: OBLIGACIONES A CORTO PLAZO | BS11: OBLIGACIONES A CORTO PLAZO | DB11: OBLIGACIONES A CORTO PLAZO | EK11: OBLIGACIONES A CORTO PLAZO | FT11: OBLIGACIONES A CORTO PLAZO | HC11: OBLIGACIONES A CORTO PLAZO | IL11: OBLIGACIONES A CORTO PLAZO | JU11: OBLIGACIONES A CORTO PLAZO | LD11: OBLIGACIONES A CORTO PLAZO
A12: MES | E12: DISPOSICIÓN | K12: AMORTIZACIÓN | Q12: REVALUACIONES | W12: INTERÉS | AC12: COMISIONES | AJ12: MES | AN12: DISPOSICIÓN | AT12: AMORTIZACIÓN | AZ12: REVALUACIONES | BF12: INTERÉS | BL12: COMISIONES | BS12: MES | BW12: DISPOSICIÓN | CC12: AMORTIZACIÓN | CI12: REVALUACIONES | CO12: INTERÉS | CU12: COMISIONES | DB12: MES | DF12: DISPOSICIÓN | DL12: AMORTIZACIÓN | DR12: REVALUACIONES | DX12: INTERÉS | ED12: COMISIONES | EK12: MES | EO12: DISPOSICIÓN | EU12: AMORTIZACIÓN | FA12: REVALUACIONES | FG12: INTERÉS | FM12: COMISIONES | FT12: MES | FX12: DISPOSICIÓN | GD12: AMORTIZACIÓN | GJ12: REVALUACIONES | GP12: INTERÉS | GV12: COMISIONES | HC12: MES | HG12: DISPOSICIÓN | HM12: AMORTIZACIÓN | HS12: REVALUACIONES | HY12: INTERÉS | IE12: COMISIONES | IL12: MES | IP12: DISPOSICIÓN | IV12: AMORTIZACIÓN | JB12: REVALUACIONES | JH12: INTERÉS | JN12: COMISIONES | JU12: MES | JY12: DISPOSICIÓN | KE12: AMORTIZACIÓN | KK12: REVALUACIONES | KQ12: INTERÉS | KW12: COMISIONES | LD12: MES | LH12: DISPOSICIÓN | LN12: AMORTIZACIÓN | LT12: REVALUACIONES | LZ12: INTERÉS | MF12: COMISIONES
A13: ENERO | K13: 328565.15 | W13: 11177.21 | AJ13: ENERO | BS13: ENERO | BW13: 200000 | DB13: ENERO | EK13: ENERO | FT13: ENERO | HC13: ENERO | IL13: ENERO | JU13: ENERO | LD13: ENERO
A14: FEBRERO | K14: 330401.36 | W14: 9341 | AJ14: FEBRERO | BS14: FEBRERO | DB14: FEBRERO | EK14: FEBRERO | FT14: FEBRERO | HC14: FEBRERO | IL14: FEBRERO | JU14: FEBRERO | LD14: FEBRERO
A15: MARZO | K15: 332973.12 | W15: 6769.24 | AJ15: MARZO | AT15: 300000 | BS15: MARZO | DB15: MARZO | EK15: MARZO | FT15: MARZO | HC15: MARZO | IL15: MARZO | JU15: MARZO | LD15: MARZO
A16: ABRIL | K16: 334108.7 | W16: 5633.66 | AJ16: ABRIL | BS16: ABRIL | DB16: ABRIL | EK16: ABRIL | FT16: ABRIL | HC16: ABRIL | IL16: ABRIL | JU16: ABRIL | LD16: ABRIL
A17: MAYO | K17: 336097.4 | W17: 3644.96 | AJ17: MAYO | AT17: 150000 | BS17: MAYO | DB17: MAYO | EK17: MAYO | FT17: MAYO | HC17: MAYO | IL17: MAYO | JU17: MAYO | LD17: MAYO
A18: JUNIO | K18: 337854.27 | W18: 1888.14 | AJ18: JUNIO | BS18: JUNIO | DB18: JUNIO | EK18: JUNIO | FT18: JUNIO | HC18: JUNIO | IL18: JUNIO | JU18: JUNIO | LD18: JUNIO
A19: JULIO | AJ19: JULIO | BS19: JULIO | DB19: JULIO | EK19: JULIO | FT19: JULIO | HC19: JULIO | IL19: JULIO | JU19: JULIO | LD19: JULIO
A20: AGOSTO | AJ20: AGOSTO | BS20: AGOSTO | DB20: AGOSTO | EK20: AGOSTO | FT20: AGOSTO | HC20: AGOSTO | IL20: AGOSTO | JU20: AGOSTO | LD20: AGOSTO
A21: SEPTIEMBRE | AJ21: SEPTIEMBRE | BS21: SEPTIEMBRE | CC21: 200000 | DB21: SEPTIEMBRE | EK21: SEPTIEMBRE | FT21: SEPTIEMBRE | HC21: SEPTIEMBRE | IL21: SEPTIEMBRE | JU21: SEPTIEMBRE | LD21: SEPTIEMBRE
A22: OCTUBRE | AJ22: OCTUBRE | BS22: OCTUBRE | DB22: OCTUBRE | EK22: OCTUBRE | FT22: OCTUBRE | HC22: OCTUBRE | IL22: OCTUBRE | JU22: OCTUBRE | LD22: OCTUBRE
A23: NOVIEMBRE | AJ23: NOVIEMBRE | BS23: NOVIEMBRE | DB23: NOVIEMBRE | EK23: NOVIEMBRE | FT23: NOVIEMBRE | HC23: NOVIEMBRE | IL23: NOVIEMBRE | JU23: NOVIEMBRE | LD23: NOVIEMBRE
A24: DICIEMBRE | AJ24: DICIEMBRE | BS24: DICIEMBRE | DB24: DICIEMBRE | EK24: DICIEMBRE | FT24: DICIEMBRE | HC24: DICIEMBRE | IL24: DICIEMBRE | JU24: DICIEMBRE | LD24: DICIEMBRE
A25: SUMA | E25: =SUM(E13:J24) -> 0 | K25: =SUM(K13:P24) -> 2000000 | Q25: =SUM(Q13:V24) -> 0 | W25: =SUM(W13:AB24) -> 38454.21 | AC25: =SUM(AC13:AH24) -> 0 | AJ25: SUMA | AN25: =SUM(AN13:AS24) -> 0 | AT25: =SUM(AT13:AY24) -> 450000 | AZ25: =SUM(AZ13:BE24) -> 0 | BF25: =SUM(BF13:BK24) -> 0 | BL25: =SUM(BL13:BQ24) -> 0 | BS25: SUMA | BW25: =SUM(BW13:CB24) -> 200000 | CC25: =SUM(CC13:CH24) -> 200000 | CI25: =SUM(CI13:CN24) -> 0 | CO25: =SUM(CO13:CT24) -> 0 | CU25: =SUM(CU13:CZ24) -> 0 | DB25: SUMA | DF25: =SUM(DF13:DK24) -> 0 | DL25: =SUM(DL13:DQ24) -> 0 | DR25: =SUM(DR13:DW24) -> 0 | DX25: =SUM(DX13:EC24) -> 0 | ED25: =SUM(ED13:EI24) -> 0 | EK25: SUMA | EO25: =SUM(EO13:ET24) -> 0 | EU25: =SUM(EU13:EZ24) -> 0 | FA25: =SUM(FA13:FF24) -> 0 | FG25: =SUM(FG13:FL24) -> 0 | FM25: =SUM(FM13:FR24) -> 0 | FT25: SUMA | FX25: =SUM(FX13:GC24) -> 0 | GD25: =SUM(GD13:GI24) -> 0 | GJ25: =SUM(GJ13:GO24) -> 0 | GP25: =SUM(GP13:GU24) -> 0 | GV25: =SUM(GV13:HA24) -> 0 | HC25: SUMA | HG25: =SUM(HG13:HL24) -> 0 | HM25: =SUM(HM13:HR24) -> 0 | HS25: =SUM(HS13:HX24) -> 0 | HY25: =SUM(HY13:ID24) -> 0 | IE25: =SUM(IE13:IJ24) -> 0 | IL25: SUMA | IP25: =SUM(IP13:IU24) -> 0 | IV25: =SUM(IV13:JA24) -> 0 | JB25: =SUM(JB13:JG24) -> 0 | JH25: =SUM(JH13:JM24) -> 0 | JN25: =SUM(JN13:JS24) -> 0 | JU25: SUMA | JY25: =SUM(JY13:KD24) -> 0 | KE25: =SUM(KE13:KJ24) -> 0 | KK25: =SUM(KK13:KP24) -> 0 | KQ25: =SUM(KQ13:KV24) -> 0 | KW25: =SUM(KW13:LB24) -> 0 | LD25: SUMA | LH25: =SUM(LH13:LM24) -> 0 | LN25: =SUM(LN13:LS24) -> 0 | LT25: =SUM(LT13:LY24) -> 0 | LZ25: =SUM(LZ13:ME24) -> 0 | MF25: =SUM(MF13:MK24) -> 0

Sheet F9-EDP
A1: =Validacion!A2 -> Atemajac de Brizuela
A2: ESTADO E INFORME ANALÍTICO DE LA DEUDA PÚBLICA Y OTROS PASIVOS
A3: =IF(Validacion!A11="ENERO",Validacion!E131,"Del 1° de Enero al "&INDEX(Validacion!D131:D142,MATCH(Validacion!A11,Validacion!C131:C142,0))) -> Del 1° de Enero al 31 de Diciembre de 2021
A5: Denominación de la deuda pública y otros pasivos | N5: Saldo al 1° de enero de 2021 | U5: Disposiciones del periodo | AB5: Amortizaciones del periodo | AI5: Revaluaciones, reclasificaciones y otros ajustes | AP5: Saldo del periodo | AW5: Pago de intereses del periodo | BD5: Pago de comisiones y demás costos asociados duarante el periodo
A10: Deuda Pública
B11: Corto Plazo | N11: =SUM(N12:T14) -> 2450000 | U11: =SUM(U12:AA14) -> 200000 | AB11: =SUM(AB12:AH14) -> 2650000 | AI11: =SUM(AI12:AO14) -> 0 | AP11: =SUM(AP12:AV14) -> 0 | AW11: =SUM(AW12:BC14) -> 38454.21 | BD11: =SUM(BD12:BJ14) -> 0
C12: Instituciones de Crédito | N12: =IF('F9-IDP'!$J$2="1",'F9-IDP'!$R$6,0)+IF('F9-IDP'!$AS$2="1",'F9-IDP'!$BA$6,0)+IF('F9-IDP'!$CB$2="1",'F9-IDP'!$CJ$6,0)+IF('F9-IDP'!$DK$2="1",'F9-IDP'!$DS$6,0)+IF('F9-IDP'!$ET$2="1",'F9-IDP'!$FB$6,0)+IF('F9-IDP'!$GC$2="1",'F9-IDP'!$GK$6,0)+IF('F9-IDP'!$HL$2="1",'F9-IDP'!$HT$6,0)+IF('F9-IDP'!$IU$2="1",'F9-IDP'!$JC$6,0)+IF('F9-IDP'!$KD$2="1",'F9-IDP'!$KL$6,0)+IF('F9-IDP'!$LM$2="1",'F9-IDP'!$LU$6,0) -> 2450000 | U12: =IF('F9-IDP'!$J$2="1",'F9-IDP'!$E$25,0)+IF('F9-IDP'!$AS$2="1",'F9-IDP'!$AN$25,0)+IF('F9-IDP'!$CB$2="1",'F9-IDP'!$BW$25,0)+IF('F9-IDP'!$DK$2="1",'F9-IDP'!$DF$25,0)+IF('F9-IDP'!$ET$2="1",'F9-IDP'!$EO$25,0)+IF('F9-IDP'!$GC$2="1",'F9-IDP'!$FX$25,0)+IF('F9-IDP'!$HL$2="1",'F9-IDP'!$HG$25,0)+IF('F9-IDP'!$IU$2="1",'F9-IDP'!$IP$25,0)+IF('F9-IDP'!$KD$2="1",'F9-IDP'!$JY$25,0)+IF('F9-IDP'!$LM$2="1",'F9-IDP'!$LH$25,0) -> 200000 | AB12: =IF('F9-IDP'!$J$2="1",'F9-IDP'!$K$25,0)+IF('F9-IDP'!$AS$2="1",'F9-IDP'!$AT$25,0)+IF('F9-IDP'!$CB$2="1",'F9-IDP'!$CC$25,0)+IF('F9-IDP'!$DK$2="1",'F9-IDP'!$DL$25,0)+IF('F9-IDP'!$ET$2="1",'F9-IDP'!$EU$25,0)+IF('F9-IDP'!$GC$2="1",'F9-IDP'!$GD$25,0)+IF('F9-IDP'!$HL$2="1",'F9-IDP'!$HM$25,0)+IF('F9-IDP'!$IU$2="1",'F9-IDP'!$IV$25,0)+IF('F9-IDP'!$KD$2="1",'F9-IDP'!$KE$25,0)+IF('F9-IDP'!$LM$2="1",'F9-IDP'!$LN$25,0) -> 2650000 | AI12: =IF('F9-IDP'!$J$2="1",'F9-IDP'!$Q$25,0)+IF('F9-IDP'!$AS$2="1",'F9-IDP'!$AZ$25,0)+IF('F9-IDP'!$CB$2="1",'F9-IDP'!$CI$25,0)+IF('F9-IDP'!$DK$2="1",'F9-IDP'!$DR$25,0)+IF('F9-IDP'!$ET$2="1",'F9-IDP'!$FA$25,0)+IF('F9-IDP'!$GC$2="1",'F9-IDP'!$GJ$25,0)+IF('F9-IDP'!$HL$2="1",'F9-IDP'!$HS$25,0)+IF('F9-IDP'!$IU$2="1",'F9-IDP'!$JB$25,0)+IF('F9-IDP'!$KD$2="1",'F9-IDP'!$KK$25,0)+IF('F9-IDP'!$LM$2="1",'F9-IDP'!$LT$25,0) -> 0 | AP12: =N12+U12-AB12+AI12 -> 0 | AW12: =IF('F9-IDP'!$J$2="1",'F9-IDP'!$W$25,0)+IF('F9-IDP'!$AS$2="1",'F9-IDP'!$BF$25,0)+IF('F9-IDP'!$CB$2="1",'F9-IDP'!$CO$25,0)+IF('F9-IDP'!$DK$2="1",'F9-IDP'!$DX$25,0)+IF('F9-IDP'!$ET$2="1",'F9-IDP'!$FG$25,0)+IF('F9-IDP'!$GC$2="1",'F9-IDP'!$GP$25,0)+IF('F9-IDP'!$HL$2="1",'F9-IDP'!$HY$25,0)+IF('F9-IDP'!$IU$2="1",'F9-IDP'!$JH$25,0)+IF('F9-IDP'!$KD$2="1",'F9-IDP'!$KQ$25,0)+IF('F9-IDP'!$LM$2="1",'F9-IDP'!$LZ$25,0) -> 38454.21 | BD12: =IF('F9-IDP'!$J$2="1",'F9-IDP'!$AC$25,0)+IF('F9-IDP'!$AS$2="1",'F9-IDP'!$BL$25,0)+IF('F9-IDP'!$CB$2="1",'F9-IDP'!$CU$25,0)+IF('F9-IDP'!$DK$2="1",'F9-IDP'!$ED$25,0)+IF('F9-IDP'!$ET$2="1",'F9-IDP'!$FM$25,0)+IF('F9-IDP'!$GC$2="1",'F9-IDP'!$GV$25,0)+IF('F9-IDP'!$HL$2="1",'F9-IDP'!$IE$25,0)+IF('F9-IDP'!$IU$2="1",'F9-IDP'!$JN$25,0)+IF('F9-IDP'!$KD$2="1",'F9-IDP'!$KW$25,0)+IF('F9-IDP'!$LM$2="1",'F9-IDP'!$MF$25,0) -> 0
C13: Títulos y Valores | N13: =IF('F9-IDP'!$J$2="2",'F9-IDP'!$R$6,0)+IF('F9-IDP'!$AS$2="2",'F9-IDP'!$BA$6,0)+IF('F9-IDP'!$CB$2="2",'F9-IDP'!$CJ$6,0)+IF('F9-IDP'!$DK$2="2",'F9-IDP'!$DS$6,0)+IF('F9-IDP'!$ET$2="2",'F9-IDP'!$FB$6,0)+IF('F9-IDP'!$GC$2="2",'F9-IDP'!$GK$6,0)+IF('F9-IDP'!$HL$2="2",'F9-IDP'!$HT$6,0)+IF('F9-IDP'!$IU$2="2",'F9-IDP'!$JC$6,0)+IF('F9-IDP'!$KD$2="2",'F9-IDP'!$KL$6,0)+IF('F9-IDP'!$LM$2="2",'F9-IDP'!$LU$6,0) -> 0 | U13: =IF('F9-IDP'!$J$2="2",'F9-IDP'!$E$25,0)+IF('F9-IDP'!$AS$2="2",'F9-IDP'!$AN$25,0)+IF('F9-IDP'!$CB$2="2",'F9-IDP'!$BW$25,0)+IF('F9-IDP'!$DK$2="2",'F9-IDP'!$DF$25,0)+IF('F9-IDP'!$ET$2="2",'F9-IDP'!$EO$25,0)+IF('F9-IDP'!$GC$2="2",'F9-IDP'!$FX$25,0)+IF('F9-IDP'!$HL$2="2",'F9-IDP'!$HG$25,0)+IF('F9-IDP'!$IU$2="2",'F9-IDP'!$IP$25,0)+IF('F9-IDP'!$KD$2="2",'F9-IDP'!$JY$25,0)+IF('F9-IDP'!$LM$2="2",'F9-IDP'!$LH$25,0) -> 0 | AB13: =IF('F9-IDP'!$J$2="2",'F9-IDP'!$K$25,0)+IF('F9-IDP'!$AS$2="2",'F9-IDP'!$AT$25,0)+IF('F9-IDP'!$CB$2="2",'F9-IDP'!$CC$25,0)+IF('F9-IDP'!$DK$2="2",'F9-IDP'!$DL$25,0)+IF('F9-IDP'!$ET$2="2",'F9-IDP'!$EU$25,0)+IF('F9-IDP'!$GC$2="2",'F9-IDP'!$GD$25,0)+IF('F9-IDP'!$HL$2="2",'F9-IDP'!$HM$25,0)+IF('F9-IDP'!$IU$2="2",'F9-IDP'!$IV$25,0)+IF('F9-IDP'!$KD$2="2",'F9-IDP'!$KE$25,0)+IF('F9-IDP'!$LM$2="2",'F9-IDP'!$LN$25,0) -> 0 | AI13: =IF('F9-IDP'!$J$2="2",'F9-IDP'!$Q$25,0)+IF('F9-IDP'!$AS$2="2",'F9-IDP'!$AZ$25,0)+IF('F9-IDP'!$CB$2="2",'F9-IDP'!$CI$25,0)+IF('F9-IDP'!$DK$2="2",'F9-IDP'!$DR$25,0)+IF('F9-IDP'!$ET$2="2",'F9-IDP'!$FA$25,0)+IF('F9-IDP'!$GC$2="2",'F9-IDP'!$GJ$25,0)+IF('F9-IDP'!$HL$2="2",'F9-IDP'!$HS$25,0)+IF('F9-IDP'!$IU$2="2",'F9-IDP'!$JB$25,0)+IF('F9-IDP'!$KD$2="2",'F9-IDP'!$KK$25,0)+IF('F9-IDP'!$LM$2="2",'F9-IDP'!$LT$25,0) -> 0 | AP13: =N13+U13-AB13+AI13 -> 0 | AW13: =IF('F9-IDP'!$J$2="2",'F9-IDP'!$W$25,0)+IF('F9-IDP'!$AS$2="2",'F9-IDP'!$BF$25,0)+IF('F9-IDP'!$CB$2="2",'F9-IDP'!$CO$25,0)+IF('F9-IDP'!$DK$2="2",'F9-IDP'!$DX$25,0)+IF('F9-IDP'!$ET$2="2",'F9-IDP'!$FG$25,0)+IF('F9-IDP'!$GC$2="2",'F9-IDP'!$GP$25,0)+IF('F9-IDP'!$HL$2="2",'F9-IDP'!$HY$25,0)+IF('F9-IDP'!$IU$2="2",'F9-IDP'!$JH$25,0)+IF('F9-IDP'!$KD$2="2",'F9-IDP'!$KQ$25,0)+IF('F9-IDP'!$LM$2="2",'F9-IDP'!$LZ$25,0) -> 0 | BD13: =IF('F9-IDP'!$J$2="2",'F9-IDP'!$AC$25,0)+IF('F9-IDP'!$AS$2="2",'F9-IDP'!$BL$25,0)+IF('F9-IDP'!$CB$2="2",'F9-IDP'!$CU$25,0)+IF('F9-IDP'!$DK$2="2",'F9-IDP'!$ED$25,0)+IF('F9-IDP'!$ET$2="2",'F9-IDP'!$FM$25,0)+IF('F9-IDP'!$GC$2="2",'F9-IDP'!$GV$25,0)+IF('F9-IDP'!$HL$2="2",'F9-IDP'!$IE$25,0)+IF('F9-IDP'!$IU$2="2",'F9-IDP'!$JN$25,0)+IF('F9-IDP'!$KD$2="2",'F9-IDP'!$KW$25,0)+IF('F9-IDP'!$LM$2="2",'F9-IDP'!$MF$25,0) -> 0
C14: Arrendamiento Financiero | N14: =IF('F9-IDP'!$J$2="3",'F9-IDP'!$R$6,0)+IF('F9-IDP'!$AS$2="3",'F9-IDP'!$BA$6,0)+IF('F9-IDP'!$CB$2="3",'F9-IDP'!$CJ$6,0)+IF('F9-IDP'!$DK$2="3",'F9-IDP'!$DS$6,0)+IF('F9-IDP'!$ET$2="3",'F9-IDP'!$FB$6,0)+IF('F9-IDP'!$GC$2="3",'F9-IDP'!$GK$6,0)+IF('F9-IDP'!$HL$2="3",'F9-IDP'!$HT$6,0)+IF('F9-IDP'!$IU$2="3",'F9-IDP'!$JC$6,0)+IF('F9-IDP'!$KD$2="3",'F9-IDP'!$KL$6,0)+IF('F9-IDP'!$LM$2="3",'F9-IDP'!$LU$6,0) -> 0 | U14: =IF('F9-IDP'!$J$2="3",'F9-IDP'!$E$25,0)+IF('F9-IDP'!$AS$2="3",'F9-IDP'!$AN$25,0)+IF('F9-IDP'!$CB$2="3",'F9-IDP'!$BW$25,0)+IF('F9-IDP'!$DK$2="3",'F9-IDP'!$DF$25,0)+IF('F9-IDP'!$ET$2="3",'F9-IDP'!$EO$25,0)+IF('F9-IDP'!$GC$2="3",'F9-IDP'!$FX$25,0)+IF('F9-IDP'!$HL$2="3",'F9-IDP'!$HG$25,0)+IF('F9-IDP'!$IU$2="3",'F9-IDP'!$IP$25,0)+IF('F9-IDP'!$KD$2="3",'F9-IDP'!$JY$25,0)+IF('F9-IDP'!$LM$2="3",'F9-IDP'!$LH$25,0) -> 0 | AB14: =IF('F9-IDP'!$J$2="3",'F9-IDP'!$K$25,0)+IF('F9-IDP'!$AS$2="3",'F9-IDP'!$AT$25,0)+IF('F9-IDP'!$CB$2="3",'F9-IDP'!$CC$25,0)+IF('F9-IDP'!$DK$2="3",'F9-IDP'!$DL$25,0)+IF('F9-IDP'!$ET$2="3",'F9-IDP'!$EU$25,0)+IF('F9-IDP'!$GC$2="3",'F9-IDP'!$GD$25,0)+IF('F9-IDP'!$HL$2="3",'F9-IDP'!$HM$25,0)+IF('F9-IDP'!$IU$2="3",'F9-IDP'!$IV$25,0)+IF('F9-IDP'!$KD$2="3",'F9-IDP'!$KE$25,0)+IF('F9-IDP'!$LM$2="3",'F9-IDP'!$LN$25,0) -> 0 | AI14: =IF('F9-IDP'!$J$2="3",'F9-IDP'!$Q$25,0)+IF('F9-IDP'!$AS$2="3",'F9-IDP'!$AZ$25,0)+IF('F9-IDP'!$CB$2="3",'F9-IDP'!$CI$25,0)+IF('F9-IDP'!$DK$2="3",'F9-IDP'!$DR$25,0)+IF('F9-IDP'!$ET$2="3",'F9-IDP'!$FA$25,0)+IF('F9-IDP'!$GC$2="3",'F9-IDP'!$GJ$25,0)+IF('F9-IDP'!$HL$2="3",'F9-IDP'!$HS$25,0)+IF('F9-IDP'!$IU$2="3",'F9-IDP'!$JB$25,0)+IF('F9-IDP'!$KD$2="3",'F9-IDP'!$KK$25,0)+IF('F9-IDP'!$LM$2="3",'F9-IDP'!$LT$25,0) -> 0 | AP14: =N14+U14-AB14+AI14 -> 0 | AW14: =IF('F9-IDP'!$J$2="3",'F9-IDP'!$W$25,0)+IF('F9-IDP'!$AS$2="3",'F9-IDP'!$BF$25,0)+IF('F9-IDP'!$CB$2="3",'F9-IDP'!$CO$25,0)+IF('F9-IDP'!$DK$2="3",'F9-IDP'!$DX$25,0)+IF('F9-IDP'!$ET$2="3",'F9-IDP'!$FG$25,0)+IF('F9-IDP'!$GC$2="3",'F9-IDP'!$GP$25,0)+IF('F9-IDP'!$HL$2="3",'F9-IDP'!$HY$25,0)+IF('F9-IDP'!$IU$2="3",'F9-IDP'!$JH$25,0)+IF('F9-IDP'!$KD$2="3",'F9-IDP'!$KQ$25,0)+IF('F9-IDP'!$LM$2="3",'F9-IDP'!$LZ$25,0) -> 0 | BD14: =IF('F9-IDP'!$J$2="3",'F9-IDP'!$AC$25,0)+IF('F9-IDP'!$AS$2="3",'F9-IDP'!$BL$25,0)+IF('F9-IDP'!$CB$2="3",'F9-IDP'!$CU$25,0)+IF('F9-IDP'!$DK$2="3",'F9-IDP'!$ED$25,0)+IF('F9-IDP'!$ET$2="3",'F9-IDP'!$FM$25,0)+IF('F9-IDP'!$GC$2="3",'F9-IDP'!$GV$25,0)+IF('F9-IDP'!$HL$2="3",'F9-IDP'!$IE$25,0)+IF('F9-IDP'!$IU$2="3",'F9-IDP'!$JN$25,0)+IF('F9-IDP'!$KD$2="3",'F9-IDP'!$KW$25,0)+IF('F9-IDP'!$LM$2="3",'F9-IDP'!$MF$25,0) -> 0
B15: Largo Plazo | N15: =SUM(N16:T18) -> 0 | U15: =SUM(U16:AA18) -> 0 | AB15: =SUM(AB16:AH18) -> 0 | AI15: =SUM(AI16:AO18) -> 0 | AP15: =SUM(AP16:AV18) -> 0 | AW15: =SUM(AW16:BC18) -> 0 | BD15: =SUM(BD16:BJ18) -> 0
C16: Instituciones de Crédito | N16: =IF('F9-IDP'!$J$2="1",'F9-IDP'!$R$7,0)+IF('F9-IDP'!$AS$2="1",'F9-IDP'!$BA$7,0)+IF('F9-IDP'!$CB$2="1",'F9-IDP'!$CJ$7,0)+IF('F9-IDP'!$DK$2="1",'F9-IDP'!$DS$7,0)+IF('F9-IDP'!$ET$2="1",'F9-IDP'!$FB$7,0)+IF('F9-IDP'!$GC$2="1",'F9-IDP'!$GK$7,0)+IF('F9-IDP'!$HL$2="1",'F9-IDP'!$HT$7,0)+IF('F9-IDP'!$IU$2="1",'F9-IDP'!$JC$7,0)+IF('F9-IDP'!$KD$2="1",'F9-IDP'!$KL$7,0)+IF('F9-IDP'!$LM$2="1",'F9-IDP'!$LU$7,0) -> 0 | U16: =IF('F9-IDP'!$J$2="1",'F9-IDP'!$E$10,0)+IF('F9-IDP'!$AS$2="1",'F9-IDP'!$AN$10,0)+IF('F9-IDP'!$CB$2="1",'F9-IDP'!$BW$10,0)+IF('F9-IDP'!$DK$2="1",'F9-IDP'!$DF$10,0)+IF('F9-IDP'!$ET$2="1",'F9-IDP'!$EO$10,0)+IF('F9-IDP'!$GC$2="1",'F9-IDP'!$FX$10,0)+IF('F9-IDP'!$HL$2="1",'F9-IDP'!$HG$10,0)+IF('F9-IDP'!$IU$2="1",'F9-IDP'!$IP$10,0)+IF('F9-IDP'!$KD$2="1",'F9-IDP'!$JY$10,0)+IF('F9-IDP'!$LM$2="1",'F9-IDP'!$LH$10,0) -> 0 | AB16: =IF('F9-IDP'!$J$2="1",'F9-IDP'!$K$10,0)+IF('F9-IDP'!$AS$2="1",'F9-IDP'!$AT$10,0)+IF('F9-IDP'!$CB$2="1",'F9-IDP'!$CC$10,0)+IF('F9-IDP'!$DK$2="1",'F9-IDP'!$DL$10,0)+IF('F9-IDP'!$ET$2="1",'F9-IDP'!$EU$10,0)+IF('F9-IDP'!$GC$2="1",'F9-IDP'!$GD$10,0)+IF('F9-IDP'!$HL$2="1",'F9-IDP'!$HM$10,0)+IF('F9-IDP'!$IU$2="1",'F9-IDP'!$IV$10,0)+IF('F9-IDP'!$KD$2="1",'F9-IDP'!$KE$10,0)+IF('F9-IDP'!$LM$2="1",'F9-IDP'!$LN$10,0) -> 0 | AI16: =IF('F9-IDP'!$J$2="1",'F9-IDP'!$Q$10,0)+IF('F9-IDP'!$AS$2="1",'F9-IDP'!$AZ$10,0)+IF('F9-IDP'!$CB$2="1",'F9-IDP'!$CI$10,0)+IF('F9-IDP'!$DK$2="1",'F9-IDP'!$DR$10,0)+IF('F9-IDP'!$ET$2="1",'F9-IDP'!$FA$10,0)+IF('F9-IDP'!$GC$2="1",'F9-IDP'!$GJ$10,0)+IF('F9-IDP'!$HL$2="1",'F9-IDP'!$HS$10,0)+IF('F9-IDP'!$IU$2="1",'F9-IDP'!$JB$10,0)+IF('F9-IDP'!$KD$2="1",'F9-IDP'!$KK$10,0)+IF('F9-IDP'!$LM$2="1",'F9-IDP'!$LT$10,0) -> 0 | AP16: =N16+U16-AB16+AI16 -> 0 | AW16: =IF('F9-IDP'!$J$2="1",'F9-IDP'!$W$10,0)+IF('F9-IDP'!$AS$2="1",'F9-IDP'!$BF$10,0)+IF('F9-IDP'!$CB$2="1",'F9-IDP'!$CO$10,0)+IF('F9-IDP'!$DK$2="1",'F9-IDP'!$DX$10,0)+IF('F9-IDP'!$ET$2="1",'F9-IDP'!$FG$10,0)+IF('F9-IDP'!$GC$2="1",'F9-IDP'!$GP$10,0)+IF('F9-IDP'!$HL$2="1",'F9-IDP'!$HY$10,0)+IF('F9-IDP'!$IU$2="1",'F9-IDP'!$JH$10,0)+IF('F9-IDP'!$KD$2="1",'F9-IDP'!$KQ$10,0)+IF('F9-IDP'!$LM$2="1",'F9-IDP'!$LZ$10,0) -> 0 | BD16: =IF('F9-IDP'!$J$2="1",'F9-IDP'!$AC$10,0)+IF('F9-IDP'!$AS$2="1",'F9-IDP'!$BL$10,0)+IF('F9-IDP'!$CB$2="1",'F9-IDP'!$CU$10,0)+IF('F9-IDP'!$DK$2="1",'F9-IDP'!$ED$10,0)+IF('F9-IDP'!$ET$2="1",'F9-IDP'!$FM$10,0)+IF('F9-IDP'!$GC$2="1",'F9-IDP'!$GV$10,0)+IF('F9-IDP'!$HL$2="1",'F9-IDP'!$IE$10,0)+IF('F9-IDP'!$IU$2="1",'F9-IDP'!$JN$10,0)+IF('F9-IDP'!$KD$2="1",'F9-IDP'!$KW$10,0)+IF('F9-IDP'!$LM$2="1",'F9-IDP'!$MF$10,0) -> 0
C17: Títulos y Valores | N17: =IF('F9-IDP'!$J$2="2",'F9-IDP'!$R$7,0)+IF('F9-IDP'!$AS$2="2",'F9-IDP'!$BA$7,0)+IF('F9-IDP'!$CB$2="2",'F9-IDP'!$CJ$7,0)+IF('F9-IDP'!$DK$2="2",'F9-IDP'!$DS$7,0)+IF('F9-IDP'!$ET$2="2",'F9-IDP'!$FB$7,0)+IF('F9-IDP'!$GC$2="2",'F9-IDP'!$GK$7,0)+IF('F9-IDP'!$HL$2="2",'F9-IDP'!$HT$7,0)+IF('F9-IDP'!$IU$2="2",'F9-IDP'!$JC$7,0)+IF('F9-IDP'!$KD$2="2",'F9-IDP'!$KL$7,0)+IF('F9-IDP'!$LM$2="2",'F9-IDP'!$LU$7,0) -> 0 | U17: =IF('F9-IDP'!$J$2="2",'F9-IDP'!$E$10,0)+IF('F9-IDP'!$AS$2="2",'F9-IDP'!$AN$10,0)+IF('F9-IDP'!$CB$2="2",'F9-IDP'!$BW$10,0)+IF('F9-IDP'!$DK$2="2",'F9-IDP'!$DF$10,0)+IF('F9-IDP'!$ET$2="2",'F9-IDP'!$EO$10,0)+IF('F9-IDP'!$GC$2="2",'F9-IDP'!$FX$10,0)+IF('F9-IDP'!$HL$2="2",'F9-IDP'!$HG$10,0)+IF('F9-IDP'!$IU$2="2",'F9-IDP'!$IP$10,0)+IF('F9-IDP'!$KD$2="2",'F9-IDP'!$JY$10,0)+IF('F9-IDP'!$LM$2="2",'F9-IDP'!$LH$10,0) -> 0 | AB17: =IF('F9-IDP'!$J$2="2",'F9-IDP'!$K$10,0)+IF('F9-IDP'!$AS$2="2",'F9-IDP'!$AT$10,0)+IF('F9-IDP'!$CB$2="2",'F9-IDP'!$CC$10,0)+IF('F9-IDP'!$DK$2="2",'F9-IDP'!$DL$10,0)+IF('F9-IDP'!$ET$2="2",'F9-IDP'!$EU$10,0)+IF('F9-IDP'!$GC$2="2",'F9-IDP'!$GD$10,0)+IF('F9-IDP'!$HL$2="2",'F9-IDP'!$HM$10,0)+IF('F9-IDP'!$IU$2="2",'F9-IDP'!$IV$10,0)+IF('F9-IDP'!$KD$2="2",'F9-IDP'!$KE$10,0)+IF('F9-IDP'!$LM$2="2",'F9-IDP'!$LN$10,0) -> 0 | AI17: =IF('F9-IDP'!$J$2="2",'F9-IDP'!$Q$10,0)+IF('F9-IDP'!$AS$2="2",'F9-IDP'!$AZ$10,0)+IF('F9-IDP'!$CB$2="2",'F9-IDP'!$CI$10,0)+IF('F9-IDP'!$DK$2="2",'F9-IDP'!$DR$10,0)+IF('F9-IDP'!$ET$2="2",'F9-IDP'!$FA$10,0)+IF('F9-IDP'!$GC$2="2",'F9-IDP'!$GJ$10,0)+IF('F9-IDP'!$HL$2="2",'F9-IDP'!$HS$10,0)+IF('F9-IDP'!$IU$2="2",'F9-IDP'!$JB$10,0)+IF('F9-IDP'!$KD$2="2",'F9-IDP'!$KK$10,0)+IF('F9-IDP'!$LM$2="2",'F9-IDP'!$LT$10,0) -> 0 | AP17: =N17+U17-AB17+AI17 -> 0 | AW17: =IF('F9-IDP'!$J$2="2",'F9-IDP'!$W$10,0)+IF('F9-IDP'!$AS$2="2",'F9-IDP'!$BF$10,0)+IF('F9-IDP'!$CB$2="2",'F9-IDP'!$CO$10,0)+IF('F9-IDP'!$DK$2="2",'F9-IDP'!$DX$10,0)+IF('F9-IDP'!$ET$2="2",'F9-IDP'!$FG$10,0)+IF('F9-IDP'!$GC$2="2",'F9-IDP'!$GP$10,0)+IF('F9-IDP'!$HL$2="2",'F9-IDP'!$HY$10,0)+IF('F9-IDP'!$IU$2="2",'F9-IDP'!$JH$10,0)+IF('F9-IDP'!$KD$2="2",'F9-IDP'!$KQ$10,0)+IF('F9-IDP'!$LM$2="2",'F9-IDP'!$LZ$10,0) -> 0 | BD17: =IF('F9-IDP'!$J$2="2",'F9-IDP'!$AC$10,0)+IF('F9-IDP'!$AS$2="2",'F9-IDP'!$BL$10,0)+IF('F9-IDP'!$CB$2="2",'F9-IDP'!$CU$10,0)+IF('F9-IDP'!$DK$2="2",'F9-IDP'!$ED$10,0)+IF('F9-IDP'!$ET$2="2",'F9-IDP'!$FM$10,0)+IF('F9-IDP'!$GC$2="2",'F9-IDP'!$GV$10,0)+IF('F9-IDP'!$HL$2="2",'F9-IDP'!$IE$10,0)+IF('F9-IDP'!$IU$2="2",'F9-IDP'!$JN$10,0)+IF('F9-IDP'!$KD$2="2",'F9-IDP'!$KW$10,0)+IF('F9-IDP'!$LM$2="2",'F9-IDP'!$MF$10,0) -> 0
C18: Arrendamiento Financiero | N18: =IF('F9-IDP'!$J$2="3",'F9-IDP'!$R$7,0)+IF('F9-IDP'!$AS$2="3",'F9-IDP'!$BA$7,0)+IF('F9-IDP'!$CB$2="3",'F9-IDP'!$CJ$7,0)+IF('F9-IDP'!$DK$2="3",'F9-IDP'!$DS$7,0)+IF('F9-IDP'!$ET$2="3",'F9-IDP'!$FB$7,0)+IF('F9-IDP'!$GC$2="3",'F9-IDP'!$GK$7,0)+IF('F9-IDP'!$HL$2="3",'F9-IDP'!$HT$7,0)+IF('F9-IDP'!$IU$2="3",'F9-IDP'!$JC$7,0)+IF('F9-IDP'!$KD$2="3",'F9-IDP'!$KL$7,0)+IF('F9-IDP'!$LM$2="3",'F9-IDP'!$LU$7,0) -> 0 | U18: =IF('F9-IDP'!$J$2="3",'F9-IDP'!$E$10,0)+IF('F9-IDP'!$AS$2="3",'F9-IDP'!$AN$10,0)+IF('F9-IDP'!$CB$2="3",'F9-IDP'!$BW$10,0)+IF('F9-IDP'!$DK$2="3",'F9-IDP'!$DF$10,0)+IF('F9-IDP'!$ET$2="3",'F9-IDP'!$EO$10,0)+IF('F9-IDP'!$GC$2="3",'F9-IDP'!$FX$10,0)+IF('F9-IDP'!$HL$2="3",'F9-IDP'!$HG$10,0)+IF('F9-IDP'!$IU$2="3",'F9-IDP'!$IP$10,0)+IF('F9-IDP'!$KD$2="3",'F9-IDP'!$JY$10,0)+IF('F9-IDP'!$LM$2="3",'F9-IDP'!$LH$10,0) -> 0 | AB18: =IF('F9-IDP'!$J$2="3",'F9-IDP'!$K$10,0)+IF('F9-IDP'!$AS$2="3",'F9-IDP'!$AT$10,0)+IF('F9-IDP'!$CB$2="3",'F9-IDP'!$CC$10,0)+IF('F9-IDP'!$DK$2="3",'F9-IDP'!$DL$10,0)+IF('F9-IDP'!$ET$2="3",'F9-IDP'!$EU$10,0)+IF('F9-IDP'!$GC$2="3",'F9-IDP'!$GD$10,0)+IF('F9-IDP'!$HL$2="3",'F9-IDP'!$HM$10,0)+IF('F9-IDP'!$IU$2="3",'F9-IDP'!$IV$10,0)+IF('F9-IDP'!$KD$2="3",'F9-IDP'!$KE$10,0)+IF('F9-IDP'!$LM$2="3",'F9-IDP'!$LN$10,0) -> 0 | AI18: =IF('F9-IDP'!$J$2="3",'F9-IDP'!$Q$10,0)+IF('F9-IDP'!$AS$2="3",'F9-IDP'!$AZ$10,0)+IF('F9-IDP'!$CB$2="3",'F9-IDP'!$CI$10,0)+IF('F9-IDP'!$DK$2="3",'F9-IDP'!$DR$10,0)+IF('F9-IDP'!$ET$2="3",'F9-IDP'!$FA$10,0)+IF('F9-IDP'!$GC$2="3",'F9-IDP'!$GJ$10,0)+IF('F9-IDP'!$HL$2="3",'F9-IDP'!$HS$10,0)+IF('F9-IDP'!$IU$2="3",'F9-IDP'!$JB$10,0)+IF('F9-IDP'!$KD$2="3",'F9-IDP'!$KK$10,0)+IF('F9-IDP'!$LM$2="3",'F9-IDP'!$LT$10,0) -> 0 | AP18: =N18+U18-AB18+AI18 -> 0 | AW18: =IF('F9-IDP'!$J$2="3",'F9-IDP'!$W$10,0)+IF('F9-IDP'!$AS$2="3",'F9-IDP'!$BF$10,0)+IF('F9-IDP'!$CB$2="3",'F9-IDP'!$CO$10,0)+IF('F9-IDP'!$DK$2="3",'F9-IDP'!$DX$10,0)+IF('F9-IDP'!$ET$2="3",'F9-IDP'!$FG$10,0)+IF('F9-IDP'!$GC$2="3",'F9-IDP'!$GP$10,0)+IF('F9-IDP'!$HL$2="3",'F9-IDP'!$HY$10,0)+IF('F9-IDP'!$IU$2="3",'F9-IDP'!$JH$10,0)+IF('F9-IDP'!$KD$2="3",'F9-IDP'!$KQ$10,0)+IF('F9-IDP'!$LM$2="3",'F9-IDP'!$LZ$10,0) -> 0 | BD18: =IF('F9-IDP'!$J$2="3",'F9-IDP'!$AC$10,0)+IF('F9-IDP'!$AS$2="3",'F9-IDP'!$BL$10,0)+IF('F9-IDP'!$CB$2="3",'F9-IDP'!$CU$10,0)+IF('F9-IDP'!$DK$2="3",'F9-IDP'!$ED$10,0)+IF('F9-IDP'!$ET$2="3",'F9-IDP'!$FM$10,0)+IF('F9-IDP'!$GC$2="3",'F9-IDP'!$GV$10,0)+IF('F9-IDP'!$HL$2="3",'F9-IDP'!$IE$10,0)+IF('F9-IDP'!$IU$2="3",'F9-IDP'!$JN$10,0)+IF('F9-IDP'!$KD$2="3",'F9-IDP'!$KW$10,0)+IF('F9-IDP'!$LM$2="3",'F9-IDP'!$MF$10,0) -> 0
A19: Otros Pasivos | N19: =Balanza!D101-'F9-EDP'!N11:T11-'F9-EDP'!N15:T15 -> 1498060.41 | AP19: =Balanza!H101-'F9-EDP'!AP11:AV11-'F9-EDP'!AP15:AV15 -> 327242.73
A20: Total de la Deuda Pública y Otros Pasivos | N20: =N11+N19+N15 -> 3948060.41 | U20: =U11+U19+U15 -> 200000 | AB20: =AB11+AB19+AB15 -> 2650000 | AI20: =AI11+AI19+AI15 -> 0 | AP20: =AP11+AP19+AP15 -> 327242.73 | AW20: =AW11+AW19+AW15 -> 38454.21 | BD20: =BD11+BD19+BD15 -> 0
A23: Denominaciónde la deuda pública y otros pasivos | N23: Saldo al 1° de enero de 2021 | U23: Disposiciones del periodo | AB23: Amortizaciones del periodo | AI23: Revaluaciones, reclasificaciones y otros ajustes | AP23: Saldo del periodo | AW23: Pago de intereses del periodo | BD23: Pago de comisiones y demás costos asociados duarante el periodo
A27: Deuda Contingente
A28: 1.- | N28: 0 | U28: 0 | AB28: 0 | AI28: 0 | AP28: =N28+U28-AB28+AI28 -> 0
A29: 2.- | AP29: =N29+U29-AB29+AI29 -> 0
A30: 3.- | AP30: =N30+U30-AB30+AI30 -> 0
A31: 4.- | AP31: =N31+U31-AB31+AI31 -> 0
A32: 5.- | AP32: =N32+U32-AB32+AI32 -> 0
B33: SUMA | N33: =SUM(N28:T31) -> 0 | U33: =SUM(U28:AA31) -> 0 | AB33: =SUM(AB28:AH31) -> 0 | AI33: =SUM(AI28:AO31) -> 0 | AP33: =SUM(AP28:AV31) -> 0 | AW33: =SUM(AW28:BC31) -> 0 | BD33: =SUM(BD28:BJ31) -> 0
A34: Valor de Instrumentos Bonos Cupón Cero
A35: 1.- | AP35: =N35+U35-AB35+AI35 -> 0
A36: 2.- | AP36: =N36+U36-AB36+AI36 -> 0
A37: 3.- | AP37: =N37+U37-AB37+AI37 -> 0
A38: 4.- | AP38: =N38+U38-AB38+AI38 -> 0
A39: 5.- | AP39: =N39+U39-AB39+AI39 -> 0
B40: SUMA | N40: =SUM(N35:T39) -> 0 | U40: =SUM(U35:AA39) -> 0 | AB40: =SUM(AB35:AH39) -> 0 | AI40: =SUM(AI35:AO39) -> 0 | AP40: =SUM(AP35:AV39) -> 0 | AW40: =SUM(AW35:BC39) -> 0 | BD40: =SUM(BD35:BJ39) -> 0
A41: Obligaciones a Corto Plazo
A42: Obligaciones a corto plazo | N42: Monto contratado | X42: Plazo pactado | AH42: Tasa de interés | AR42: Comisiones y costos relacionados | BB42: Tasa afectiva
A44: 1.-
A45: 2.-
A46: 3.-
A47: 4.-
A48: 5.-
B49: SUMA | N49: =SUM(N44:W48) -> 0 | AR49: =SUM(AR44:BA48) -> 0
C51: Bajo protesta de decir verdad declaramos que los Estados Financieros y sus Notas son razonablemente correctos y responsabilidad del emisor.
F56: =Validacion!A7 -> C. SANTIAGO LEON CASTRO | AG56: =Validacion!A9 -> L.T. JOCELYN SANCHEZ HERRERA
F57: Presidente Municipal o Títular del ente público | AG57: Encargado de la Hacienda Pública Municipal o Responsable de las finanzas del ente público

Sheet F9-IAO
A1: =Validacion!A2 -> Atemajac de Brizuela
A2: INFORME ANALÍTICO DE OBLIGACIONES DIFERENTES DE FINANCIAMIENTO
A3: ='F9-EDP'!A3 -> Del 1° de Enero al 31 de Diciembre de 2021
A5: Denominación de las obligaciones diferentes de financiamiento | N5: Fecha del contrato | S5: Fecha de inicio de operaciones del proyecto | X5: Fecha de vencimiento | AC5: Monto de la inversión pactado | AI5: Plazo pactado | AN5: Monto promedio mensual del pago de la contraprestación | AT5: Monto promedio mensual del pago de la contraprestación correspondiente al pago de inversión | AZ5: Monto pagado de la inversión del periodo | BF5: Monto pagado de la inversión actualizado del periodo | BL5: Saldo pendiente por pagar de la inversión
A11: Asociación Público Privadas | AC11: =SUM(AC12:AH14) -> 0 | AN11: =SUM(AN12:AS14) -> 0 | AT11: =SUM(AT12:AY14) -> 0 | AZ11: =SUM(AZ12:BE14) -> 0 | BF11: =SUM(BF12:BK14) -> 0 | BL11: =SUM(BL12:BQ14) -> 0
B12: 1.- | C12: SIN MOVIMIENTOS | N12: 2021-01-01 | S12: 2021-02-01 | X12: 2021-12-31 | BL12: =AC12-BF12 -> 0
B13: 2.- | BL13: =AC13-BF13 -> 0
B14: 3.- | BL14: =AC14-BF14 -> 0
A15: Otros instrumentos | AC15: =SUM(AC16:AH18) -> 0 | AN15: =SUM(AN16:AS18) -> 0 | AT15: =SUM(AT16:AY18) -> 0 | AZ15: =SUM(AZ16:BE18) -> 0 | BF15: =SUM(BF16:BK18) -> 0 | BL15: =SUM(BL16:BQ18) -> 0
B16: 1.- | BL16: =AC16-BF16 -> 0
B17: 2.- | BL17: =AC17-BF17 -> 0
B18: 3.- | BL18: =AC18-BF18 -> 0
A19: Total de Obligaciones Diferentes de Financiamiento | AC19: =AC11+AC15 -> 0 | AN19: =AN11+AN15 -> 0 | AT19: =AT11+AT15 -> 0 | AZ19: =AZ11+AZ15 -> 0 | BF19: =BF11+BF15 -> 0 | BL19: =BL11+BL15 -> 0
C22: Bajo protesta de decir verdad declaramos que los Estados Financieros y sus Notas son razonablemente correctos y responsabilidad del emisor.
F27: =Validacion!A7 -> C. SANTIAGO LEON CASTRO | AP27: =Validacion!A9 -> L.T. JOCELYN SANCHEZ HERRERA
F28: Presidente Municipal o Títular del ente público | AP28: Encargado de la Hacienda Pública Municipal o Responsable de las finanzas del ente público

Sheet F10
A1: =Validacion!A2 -> Atemajac de Brizuela
A2: INFORMATIVA DE PROVEEDORES
A3: =INDEX(Validacion!E131:E142,MATCH(Validacion!A11,Validacion!C131:C142,0)) -> Del 1° al 31 de Diciembre de 2021
A5: N° | B5: PROVEEDOR Y/O PRESTADOR | C5: R.F.C. | D5: DOMICILIO | E5: CIUDAD | F5: CODIGO POSTAL | G5: FUENTE DE FINANCIAMIENTO | H5: ORIGEN DEL RECURSO POR CUENTA BANCARIA | I5: FORMA DE PAGO | J5: DESCRIPCIÓN DEL GASTO | K5: IMPORTE | L5: FECHA DE LA FACTURA | M5: FOLIO DE FACTURA
A6: Fila | B6: Proveedor | C6: RFC | D6: Domicilio | E6: Ciudad | F6: CP | G6: FF | H6: Origen | I6: Forma De Pago | J6: Descripcion Del Gasto | K6: Importe | L6: Fecha Factura | M6: Folio Factura
A7: 1 | B7: BBVA BANCOMER SA | C7: XAXX010101000 | D7: PASEO DE LA REFORMA 510, COL. JUAREZ | E7: CIUDAD DE MEXICO | F7: 6600 | G7: 151 | H7: BA PARTICIPACIONES 8760 | I7: Ref N° SPEI | J7: PAGO DE COMICIONES BANCARIAS PARA CANCELACION DE CUENTAS. | K7: 5359.2 | L7: 2021-09-28 | M7: C47FF
A8: 2 | B8: BDP MAYOREO SA DE CV | C8: XAXX010101000 | D8: . | E8: . | F8: 45790 | G8: 111 | H8: s/ref | I8: Ref N° EF | J8: PAGO DE 24 PAQUETES DE ROSA POR LOS FESTEJOS DEL DIA DE LA MADRES EN EL MPIO. DE ACUERDO A COMPROBANTE ADJUNTO. | K8: 20044.8 | L8: 2021-09-27 | M8: 16D43
A9: 3 | B9: COMERCIALIZADORA INDUSTRIAL GYGAX SA DE CV | C9: XAXX010101000 | D9: . | E9: . | F9: 44690 | G9: 111 | H9: s/ref | I9: Ref N° EF | J9: PAGO DE MATERIAL ELECTRICO PARA EL MANTENIMIENTO DE RED DE ALUMBRADO PUBLICO EN EL MPIO. DE ACUERDO A COMPROBANTE ADJUNTO. | K9: 10380.49 | L9: 2021-09-20 | M9: 3368
A10: 4 | B10: COMERCIALIZADORA INDUSTRIAL GYGAX SA DE CV | C10: XAXX010101000 | D10: . | E10: . | F10: 44690 | G10: 111 | H10: s/ref | I10: Ref N° EF | J10: PAGO DE MATERIAL ELECTRICO PARA EL MANTENIMIENTO DE RED DE ALUMBRADO PUBLICO EN EL MPIO. DE ACUERDO A COMPROBANTE ADJUNTO. | K10: 12992 | L10: 2021-09-20 | M10: 3370
A11: 5 | B11: COMERCIALIZADORA INDUSTRIAL GYGAX SA DE CV | C11: XAXX010101000 | D11: . | E11: . | F11: 44690 | G11: 151 | H11: s/ref | I11: Ref N° EF | J11: PAGO DE MATERIAL ELECTRICO PARA EL MANTENIMIENTO DE RED DE ALUMBRADO PUBLICO EN EL MPIO. DE ACUERDO A COMPROBANTE ADJUNTO. | K11: 19460.04 | L11: 2021-09-20 | M11: 3366
A12: 6 | B12: COMERCIALIZADORA INDUSTRIAL GYGAX SA DE CV | C12: XAXX010101000 | D12: . | E12: . | F12: 44690 | G12: 111 | H12: s/ref | I12: Ref N° EF | J12: PAGO DE MATERIAL ELECTRICO PARA EL MANTENIMIENTO DE RED DE ALUMBRADO PUBLICO EN EL MPIO. DE ACUERDO A COMPROBANTE ADJUNTO. | K12: 9355.46 | L12: 2021-09-20 | M12: 3369
A13: 7 | B13: DISTRIBUIODORA ARPOFINA S.A. DE C.V. | C13: XAXX010101000 | D13: - | E13: - | F13: 45070 | G13: 111 | H13: BA TESORERIA 6536 | I13: Cheque N° 2613 | J13: PAGO DE MATERIAL ELECTRICO ALUMBRADO PUBLICO MUNICIPIOS. | K13: 7087.46 | L13: 2021-09-30 | M13: FD785
A14: 8 | B14: EDIFICADORA ALTAS CUMBRES S.A. DE C.V. | C14: XAXX010101000 | D14: C. SAN JUAN BOSCO NO. 4676 | E14: ATEMAJAC DE BRIZUELA,JAL. | F14: 44190 | G14: 151 | H14: BA PARTICIPACIONES 8760 | I14: Transf N° 000714887 | J14: PAGO DE RENTA DE PIPA DE AGUA 16 AL 15 DE JUNIO 2021 PARA ABASTECIMIENTO DE AGUA EN ESTA POBLACION DE ACUERDO A COMPROBANTE ADJUNTO. | K14: 40600 | L14: 2021-09-09 | M14: 2A09A
A15: 9 | B15: ELIZABETH DAVILA DE LA TORRE | C15: LEDR7011147G9 | D15: RAMON CORONA S/N | E15: ATEMAJAC DE BRIZUELA | F15: 45790 | G15: 151 | H15: BA PARTICIPACIONES 8760 | I15: Transf N° 0069054033 | J15: RENTA DE MUEBLE PARA 3ER INFORME DE GOBIERNO EN ATEMAJAC DE BRIZUELA, JALISCO DE ACUERDO A COMPROBANTE ADJUNTO. | K15: 5104 | L15: 2021-09-17 | M15: 1C375
A16: 10 | B16: ESTHER ARREGUIN CAMACHO | C16: AECE561128SY5 | D16: MARIA URIBE NO. 154 | E16: GUADALAJARA,JAL. | F16: 44820 | G16: 151 | H16: BA PARTICIPACIONES 8760 | I16: Transf N° 0046115025 | J16: PAGO DE HIPOCLORITO DE SODIO PARA CLORAACION DE AGUA EN ESTA POBLACION. | K16: 6960 | L16: 2021-09-09 | M16: B638F9
A17: 11 | B17: J. REFUGIO LARA CERVANTES | C17: LACJ550228TIA | D17: RAMON CORONA NO. 333 | E17: ZACOALCO DE TORRES,JAL. | F17: 45750 | G17: 151 | H17: BA PARTICIPACIONES 8760 | I17: Cheque N° 1270 | J17: PAGO DE TRABAJOS DE MECANICA A VEHICULOS DE LA ADMINISTRACION PUBLICA MUNICIPAL DE ACUERDO A COMPROBANTES ADJUNTOS. | K17: 8600 | L17: 2021-09-17 | M17: ECC77
A18: 12 | B18: J. REFUGIO LARA CERVANTES | C18: LACJ550228TIA | D18: RAMON CORONA NO. 333 | E18: ZACOALCO DE TORRES,JAL. | F18: 45750 | G18: 151 | H18: s/ref | I18: s/ref | J18: SERVICIO DE REPARACION DE CREMALLERA A CAMIONETA RAM DE OBRAS PUBLICAS. DE ACUERDO A COMPROBANTE ADJUTO. | K18: 8000 | L18: 2021-09-29 | M18: 22940
A19: 13 | B19: J. REFUGIO LARA CERVANTES | C19: LACJ550228TIA | D19: RAMON CORONA NO. 333 | E19: ZACOALCO DE TORRES,JAL. | F19: 45750 | G19: 252 | H19: s/ref | I19: s/ref | J19: SERVICIO DE REPARACION DE DE TRASMISION CUERPO DE VALVULAS Y SOLENOIDES A PATRULLA DE SEGURIDAD PUBLICA. DE ACUERDO A COMPROBANTE ADJUTO. | K19: 7400 | L19: 2021-09-29 | M19: 2CE31
A20: 14 | B20: J. REFUGIO LARA CERVANTES | C20: LACJ550228TIA | D20: RAMON CORONA NO. 333 | E20: ZACOALCO DE TORRES,JAL. | F20: 45750 | G20: 111 | H20: BA ESTRATEGIA ALE 0241 | I20: Transf N° 0093415132 | J20: PAGO POR LA REPARACION DE PATRULLA DE LA UNIDAD ESPECIALIZADA POLICIAL DEL PROGRAMA ESTRATEGIA ALE 2021. DE ACUERDO A COMPROBANTE ADJUNTO. | K20: 7182.35 | L20: 2021-09-13 | M20: 17E7D
A21: 15 | B21: J. REFUGIO LARA CERVANTES | C21: LACJ550228TIA | D21: RAMON CORONA NO. 333 | E21: ZACOALCO DE TORRES,JAL. | F21: 45750 | G21: 111 | H21: BA ESTRATEGIA ALE 0241 | I21: Transf N° 0093415078 | J21: PAGO POR LA REPARACION DE PATRULLA DE LA UNIDAD ESPECIALIZADA POLICIAL DEL PROGRAMA ESTRATEGIA ALE 2021. DE ACUERDO A COMPROBANTE ADJUNTO. | K21: 13920 | L21: 2021-09-13 | M21: F6C26
A22: 16 | B22: JOSE DE JESUS GUZMAN LOPEZ | C22: GULJ5502275M4 | D22: PRIMERO DE MAYO 12631 | E22: ZAPOTLAN EL GRANDE | F22: 49000 | G22: 111 | H22: BA TESORERIA 6536 | I22: Transf N° 0042121027 | J22: PAGO DE CANAL 4 QUE TRANSMITIO EL 3ER INFORME DE GOBIERNO MUNCIPAL EN EL MUNICIPIO DE ATEMAJAC DE BRIZUELA JALISCO DE ACUERDO A COMPROBANTE ADJUNTO. | K22: 9280 | L22: 2021-09-23 | M22: 27BB2
A23: 17 | B23: JUAN PABLO SANCHEZ LOMELI | C23: SALJ7809037V3 | D23: . | E23: . | F23: 45790 | G23: 151 | H23: s/ref | I23: s/ref | J23: PAGO DE GACETAS MUNIPIPALES IMPRESAS A COLOR, ENCUADERNADOS CON PAST BLANCA. DE ACUERDO A COMPROBANTE ADJUNTO. | K23: 13298.24 | L23: 2021-09-13 | M23: 64DCA
A24: 18 | B24: JUAN PABLO SANCHEZ LOMELI | C24: SALJ7809037V3 | D24: . | E24: . | F24: 45790 | G24: 151 | H24: BA PARTICIPACIONES 8760 | I24: Transf N° 0093415025 | J24: PAGO DE IMPRESION DE 3ER INFORME DE GOBIERNO MUNICIPAL EN ATEMAJAC DE BRIZUELA, JALISCO DE ACUERDO A COMPROBANTE ADJUNTO. | K24: 14916.8 | L24: 2021-09-13 | M24: 6DF26
A25: 19 | B25: KENWORTH DE JALISCO SA DE CV | C25: XAXX010101000 | D25: . | E25: . | F25: 45790 | G25: 151 | H25: BA PARTICIPACIONES 8760 | I25: Transf N° 0033149050 | J25: PAGO DE REPARACION DE VOLTEO DE MODULO DE MAQUINARIA DE ACUERDO A COMPROBANTES ADJUNTOS. | K25: 13484.65 | L25: 2021-09-06 | M25: 02DD5
A26: 20 | B26: MARCELA LARIOS TORREJON | C26: LATM7308121M6 | D26: - | E26: - | F26: 49064 | G26: 151 | H26: BA PARTICIPACIONES 8760 | I26: Cheque N° 1292 | J26: PAGO A PROVEEDORES DIVERSOS DE ACUERDO A COMPROBANTES ADJUNTOS. | K26: 34452 | L26: 2021-09-28 | M26: 89D25
A27: 21 | B27: MARIA ENE ALVAREZ CHAVEZ | C27: AACE930407PA4 | D27: . | E27: . | F27: 49000 | G27: 111 | H27: BA ESTRATEGIA ALE 0241 | I27: Transf N° 0044676033 | J27: PAGO POR LA ROTULACION DE PATRULLA DE LA UNIDAD ESPECIALIZADA POLICIAL DEL PROGRAMA ESTRATEGIA ALE 2021. DE ACUERDO A COMPROBANTE ADJUNTO. | K27: 7499.99 | L27: 2021-09-08 | M27: F8661
A28: 22 | B28: MARTHA NAVA RUBIO | C28: NARM790926QB3 | D28: MELCHOR OCAMPO S/N | E28: ATEMAJAC DE BRIZUELA,JAL. | F28: 45790 | G28: 151 | H28: BA PARTICIPACIONES 8760 | I28: Cheque N° 1250 | J28: PAGO DE CORONAS FUNEBLES EN APOYO A FAMILIARE DE FINADOS EN LA POBLACION DE ATEMAJAC DE BRIZUELA, DE ACUERDO A COMPROBANTES ADJUNTOS. | K28: 10800 | L28: 2021-09-08 | M28: 9B9ED
A29: 23 | B29: MARTHA NAVA RUBIO | C29: NARM790926QB3 | D29: MELCHOR OCAMPO S/N | E29: ATEMAJAC DE BRIZUELA,JAL. | F29: 45790 | G29: 151 | H29: BA PARTICIPACIONES 8760 | I29: Cheque N° 1278 | J29: PAGO DE CORONAS FUNEBRES A PERSONAS DE FAMILIARES DE FINADOS EN LA POBLACION DE ATEMAJAC DE BRIZUELA, JALISCO DE ACUERDO A COMPROBANTES ADJUNTOS. | K29: 15000 | L29: 2021-09-17 | M29: EB089
A30: 24 | B30: OSCAR FILIBERTO HERRERA VAZQUEZ | C30: HEVO890608HE5 | D30: . | E30: ATEMAJAC DE BRIZUELA, JALISCO. | F30: 45790 | G30: 111 | H30: s/ref | I30: s/ref | J30: PAGO DE MATERIAL ELECTRICO PARA EL MANTENIMIENTO DE RED DE ALUMBRADO PUBLICO EN EL MPIO. DE ACUERDO A COMPROBANTE ADJUNTO. | K30: 7070.2 | L30: 2021-09-23 | M30: 6A9B1
A31: 25 | B31: OSCAR FILIBERTO HERRERA VAZQUEZ | C31: HEVO890608HE5 | D31: . | E31: ATEMAJAC DE BRIZUELA, JALISCO. | F31: 45790 | G31: 111 | H31: s/ref | I31: s/ref | J31: PAGO DE MATERIAL ELECTRICO PARA EL MANTENIMIENTO DE RED DE ALUMBRADO PUBLICO EN EL MPIO. DE ACUERDO A COMPROBANTE ADJUNTO. | K31: 9581.6 | L31: 2021-09-27 | M31: 569BF
A32: 26 | B32: OSCAR FILIBERTO HERRERA VAZQUEZ | C32: HEVO890608HE5 | D32: . | E32: ATEMAJAC DE BRIZUELA, JALISCO. | F32: 45790 | G32: 151 | H32: BA PARTICIPACIONES 8760 | I32: Transf N° - | J32: PAGO DE MATERIALES DE FONTANERIA PARA MANTENIMIENTO A LINEA DE AGUA POTABLE DE ACUERDO A COMPROBANTES ADJUNTOS. | K32: 25833.2 | L32: 2021-09-30 | M32: F7C30
A33: 27 | B33: OSCAR FILIBERTO HERRERA VAZQUEZ | C33: HEVO890608HE5 | D33: . | E33: ATEMAJAC DE BRIZUELA, JALISCO. | F33: 45790 | G33: 111 | H33: s/ref | I33: s/ref | J33: PAGO DE MATERIALES VARIOS PARA DIVERSAS OBRAS DE MANTENIMIENTO DE ESPACIOS PUBLICOS DEL MPIO. DE ACUERDO A COMPROBANTE ADJUNTO. | K33: 8183.8 | L33: 2021-09-22 | M33: FC3BF
A34: 28 | B34: OSCAR FILIBERTO HERRERA VAZQUEZ | C34: HEVO890608HE5 | D34: . | E34: ATEMAJAC DE BRIZUELA, JALISCO. | F34: 45790 | G34: 111 | H34: s/ref | I34: s/ref | J34: PAGO DE MATERIALES VARIOS PARA DIVERSAS OBRAS DE MANTENIMIENTO DE ESPACIOS PUBLICOS DEL MPIO. DE ACUERDO A COMPROBANTE ADJUNTO. | K34: 9036.4 | L34: 2021-09-24 | M34: F587E
A35: 29 | B35: PALMIRA GOMEZ ARRIAGA | C35: GOAP890517RM8 | D35: . | E35: . | F35: 45790 | G35: 111 | H35: BA TESORERIA 6536 | I35: Cheque N° 2615 | J35: PAGO DE SERVICIO DE RETROESCAVADORA TRABAJOS PUENTE EN LA LOCALIDAD DE AGUA CALIENTE. | K35: 22620 | L35: 2021-09-28 | M35: 18435
A36: 30 | B36: RAMIRO ALEJANDRO CORDOVA ZAMORA | C36: COZR780427H70 | D36: GONZALEZ GALLO S/N | E36: ATEMAJAC DE BRIZUELA,JAL. | F36: 45790 | G36: 111 | H36: BA TESORERIA 6536 | I36: Transf N° 0046115059 | J36: PAGO DE MATERIALES DE FONTANERIA Y REPARACION EN OBRAS PUBLICAS MUNICIPALES DE ACUERDO A COMPROBANTES ADJUNTOS. | K36: 11527.01 | L36: 2021-09-09 | M36: 3.8e+86
A37: 31 | B37: SERVICIO TECHALUTA S.A. DE C.V. | C37: XAXX010101000 | D37: CARR. ACATLAN DE JUAREZ- CD, GUZMAN KM 44.5 | E37: TECHALUTA DE MONTENEGRO, JAL. | F37: 49230 | G37: 111 | H37: BA TESORERIA 6536 | I37: Cheque N° 2550 | J37: COMBUSTIBLE SERVICIOS PUBLICOS 8 DE SEPTIEMBRE 2021 DE ACUERDO A COMPROBANTES ADJUNTOS. | K37: 8569.8 | L37: 2021-09-08 | M37: C051F
A38: 32 | B38: SERVICIO TECHALUTA S.A. DE C.V. | C38: XAXX010101000 | D38: CARR. ACATLAN DE JUAREZ- CD, GUZMAN KM 44.5 | E38: TECHALUTA DE MONTENEGRO, JAL. | F38: 49230 | G38: 151 | H38: BA PARTICIPACIONES 8760 | I38: Cheque N° 1291 | J38: PAGO DE ENERGIA ELECTRICA CICLO 15 ALUMBRADO PUBLICO MUNICIPA MES DE SEPTIEMBRE 2021, COMBUSTIBLES SERVICIOS PUBLICOS Y PROVEEDORES DIVERSOS. | K38: 6276.86 | L38: 2021-09-28 | M38: FEBA5
A39: 33 | B39: SERVICIO ZZVV S.A. DE C.V. | C39: XAXX010101000 | D39: CARRETERA TAPALPA- GUADALAJARA KM. 7 | E39: TAPALPA,JAL | F39: 49340 | G39: 111 | H39: BA TESORERIA 6536 | I39: Cheque N° 2537 | J39: COMBUSTIBLE SERIVIOS PUBLICOS 2 DE SEPTIEMBRE 2021, DE ACURDO A COMPROBANTES ADJUNTOS. | K39: 5000 | L39: 2021-09-03 | M39: 82775
A40: 34 | B40: SERVICIO ZZVV S.A. DE C.V. | C40: XAXX010101000 | D40: CARRETERA TAPALPA- GUADALAJARA KM. 7 | E40: TAPALPA,JAL | F40: 49340 | G40: 111 | H40: BA TESORERIA 6536 | I40: Cheque N° 2540 | J40: COMBUSTIBLE SERVICIOS PUBLICOS MUNCIPALES DIA 6 DE SEPTIEMBRE 2021 DE ACURDO A COMBROBANTE ADJUNTO. | K40: 5000 | L40: 2021-09-07 | M40: 14B2B
A41: 35 | B41: SERVICIO ZZVV S.A. DE C.V. | C41: XAXX010101000 | D41: CARRETERA TAPALPA- GUADALAJARA KM. 7 | E41: TAPALPA,JAL | F41: 49340 | G41: 111 | H41: BA TESORERIA 6536 | I41: Cheque N° 2554 | J41: COMBUSTIBLE SERVICIOS PUBLICOS DIA 16 DE SEPTIEMBRE 2021, DE ACURDO A COMPROBANTES ADJUNTOS. | K41: 5000 | L41: 2021-09-15 | M41: 58555
A42: 36 | B42: SERVICIO ZZVV S.A. DE C.V. | C42: XAXX010101000 | D42: CARRETERA TAPALPA- GUADALAJARA KM. 7 | E42: TAPALPA,JAL | F42: 49340 | G42: 111 | H42: BA TESORERIA 6536 | I42: Cheque N° 2558 | J42: COMBUSTIBLE SERVICIOS PUBLICOS DIA 13 DE SEPTIEMBRE 2021 DE ACUERDO A COMPROBANTE ADJUNTO. | K42: 5000 | L42: 2021-09-13 | M42: 35552
A43: 37 | B43: SERVICIO ZZVV S.A. DE C.V. | C43: XAXX010101000 | D43: CARRETERA TAPALPA- GUADALAJARA KM. 7 | E43: TAPALPA,JAL | F43: 49340 | G43: 111 | H43: BA TESORERIA 6536 | I43: Cheque N° 2575 | J43: COMBUSTIBLES DE SERVICIO PUBLICO DIA 20 DE SEPTIEMBRE DE ACUERDO A COMPROBANTE ADJUNTO. | K43: 5000 | L43: 2021-09-20 | M43: E3816
A44: 38 | B44: SERVICIO ZZVV S.A. DE C.V. | C44: XAXX010101000 | D44: CARRETERA TAPALPA- GUADALAJARA KM. 7 | E44: TAPALPA,JAL | F44: 49340 | G44: 111 | H44: BA TESORERIA 6536 | I44: Cheque N° 2571 | J44: PAGO DE DIESEL MODULO DE MAQUINARIA PERIODO DEL 18 Y 20 DE SEPTIEMBRE 2021. | K44: 7769.6 | L44: 2021-09-17 | M44: E5C45
A45: 39 | B45: SERVICIO ZZVV S.A. DE C.V. | C45: XAXX010101000 | D45: CARRETERA TAPALPA- GUADALAJARA KM. 7 | E45: TAPALPA,JAL | F45: 49340 | G45: 111 | H45: BA TESORERIA 6536 | I45: Cheque N° 2589 | J45: PAGO DE COMBUSTIBLE SERVICIOS PUBLICOS DIA 23 DE SEPTIEMBRE 2021 DE ACUERDO A COMPROBANTES ADJUNTOS. | K45: 5000 | L45: 2021-09-23 | M45: 549D6
A46: 40 | B46: SERVICIO ZZVV S.A. DE C.V. | C46: XAXX010101000 | D46: CARRETERA TAPALPA- GUADALAJARA KM. 7 | E46: TAPALPA,JAL | F46: 49340 | G46: 111 | H46: BA TESORERIA 6536 | I46: Cheque N° 2614 | J46: COMBUSTIBLE SERVICIOS PUBLICOS DIA 27 Y 28 DE SEPTIEMBRE 2021. | K46: 5000 | L46: 2021-09-30 | M46: AE966
A47: 41 | B47: SERVICIO ZZVV S.A. DE C.V. | C47: XAXX010101000 | D47: CARRETERA TAPALPA- GUADALAJARA KM. 7 | E47: TAPALPA,JAL | F47: 49340 | G47: 151 | H47: BA PARTICIPACIONES 8760 | I47: Cheque N° 1242 | J47: DIESEL MODULO DE MAQUINARIA DIA 6 SEPTIEMBRE 2021 DE ACUERDO A COMPROBANTE ADJUNTO. | K47: 6500 | L47: 2021-09-07 | M47: A51D6
A48: 42 | B48: SISTEMA PARA EL DESARROLLO INTEGRAL DE LA FAMILIA | C48: XAXX010101000 | D48: XICOTENCATL NO. 445 COL LOS PINOS | E48: ATEMAJAC DE BRIZUELA,JAL. | F48: 45790 | G48: 151 | H48: BA PARTICIPACIONES 8760 | I48: Transf N° 0046115160 | J48: SUBSIDIO A DIF MUNICIPAL ATEMAJAC DE BRIZUELA ,JALISCO CORRESPONDIENTE A EL MES DE SEPTIEMBRE 2021, DE ACUERDO A COMPROBANTE ADJUNTO. | K48: 110000 | L48: 2021-09-09 | M48: A0614
A49: 43 | B49: SISTEMAS INTERMUNICIPAL DE MANEJO DE RESIDUOS LAGUNAS | C49: XAXX010101000 | D49: - | E49: - | F49: 49000 | G49: 151 | H49: BA PARTICIPACIONES 8760 | I49: Transf N° 0083481019 | J49: PAGO DE DISPOSICION FINAL DE RECIDUOS SOLIDOS URBANOS EN EL RELLENO SANITARIO INTERMUNICIPAL DEL SIMAR LAGUNAS CORRESPONDIENTE A EL MES DE AGOSTO 2021 DE ACUERDO A COMPROBANTE ADJUNTO. | K49: 56595.46 | L49: 2021-09-15 | M49: 3FD7A
A50: 44 | B50: SOFIA BONALES GOMEZ | C50: BOGS950315V32 | D50: JOSE ANTONIO TORRES NO. 124 C | E50: ZACOALCO DE TORRES, JAL | F50: 45750 | G50: 111 | H50: BA ESTRATEGIA ALE 0241 | I50: Transf N° 045152199 | J50: PAGO DE MATERIAL DE DIFUSION PARA LA UNIDAD ESPECIALIZADA POLICIAL DEL PROGRAMA ESTRATEGIA ALE 2021. DE ACUERDO A COMPROBANTE ADJUNTO. | K50: 8850.8 | L50: 2021-09-09 | M50: 60DA9
A51: 45 | B51: ALONSO ALFARO CARO | C51: AACA781112JM1 | D51: AV. HIDALGO NO. 2081 | E51: GUADALAJARA,JAL. | F51: 44600 | G51: 151 | H51: BA PARTICIPACIONES 8760 | I51: Transf N° 0084400051 | J51: PAGO POR LA RENTA DE COPIADORAS PARA OFICINAS DE ESTE AYUNTAMIENTO MPAL. LOS MESES DE OCTUBRE Y NOVIEMBRE 2020. DE ACUERDO A COMPROBANTES ADJUNTOS. | K51: 2231.26 | L51: 2020-12-30 | M51: BC985
A52: 46 | B52: ALONSO ALFARO CARO | C52: AACA781112JM1 | D52: AV. HIDALGO NO. 2081 | E52: GUADALAJARA,JAL. | F52: 44600 | G52: 151 | H52: BA PARTICIPACIONES 8760 | I52: Transf N° 0084400051 | J52: PAGO POR LA RENTA DE COPIADORAS PARA OFICINAS DE ESTE AYUNTAMIENTO MPAL. LOS MESES DE OCTUBRE Y NOVIEMBRE 2020. DE ACUERDO A COMPROBANTES ADJUNTOS. | K52: 1160 | L52: 2020-12-30 | M52: 79607
A53: 47 | B53: ALONSO ALFARO CARO | C53: AACA781112JM1 | D53: AV. HIDALGO NO. 2081 | E53: GUADALAJARA,JAL. | F53: 44600 | G53: 151 | H53: BA PARTICIPACIONES 8760 | I53: Transf N° 0084400051 | J53: PAGO POR LA RENTA DE COPIADORAS PARA OFICINAS DE ESTE AYUNTAMIENTO MPAL. LOS MESES DE OCTUBRE Y NOVIEMBRE 2020. DE ACUERDO A COMPROBANTES ADJUNTOS. | K53: 1450 | L53: 2020-12-30 | M53: D18B0
A54: 48 | B54: ALONSO ALFARO CARO | C54: AACA781112JM1 | D54: AV. HIDALGO NO. 2081 | E54: GUADALAJARA,JAL. | F54: 44600 | G54: 151 | H54: BA PARTICIPACIONES 8760 | I54: Transf N° 0084400051 | J54: PAGO POR LA RENTA DE COPIADORAS PARA OFICINAS DE ESTE AYUNTAMIENTO MPAL. LOS MESES DE OCTUBRE Y NOVIEMBRE 2020. DE ACUERDO A COMPROBANTES ADJUNTOS. | K54: 1673.3 | L54: 2020-12-30 | M54: DA49A
A55: 49 | B55: ALONSO ALFARO CARO | C55: AACA781112JM1 | D55: AV. HIDALGO NO. 2081 | E55: GUADALAJARA,JAL. | F55: 44600 | G55: 151 | H55: BA PARTICIPACIONES 8760 | I55: Transf N° 0084400051 | J55: PAGO POR LA RENTA DE COPIADORAS PARA OFICINAS DE ESTE AYUNTAMIENTO MPAL. LOS MESES DE OCTUBRE Y NOVIEMBRE 2020. DE ACUERDO A COMPROBANTES ADJUNTOS. | K55: 1160 | L55: 2020-12-30 | M55: 12273
A56: 50 | B56: ALONSO ALFARO CARO | C56: AACA781112JM1 | D56: AV. HIDALGO NO. 2081 | E56: GUADALAJARA,JAL. | F56: 44600 | G56: 151 | H56: BA PARTICIPACIONES 8760 | I56: Transf N° 0084400051 | J56: PAGO POR LA RENTA DE COPIADORAS PARA OFICINAS DE ESTE AYUNTAMIENTO MPAL. LOS MESES DE OCTUBRE Y NOVIEMBRE 2020. DE ACUERDO A COMPROBANTES ADJUNTOS. | K56: 1432.02 | L56: 2020-12-30 | M56: 65070
A57: 51 | B57: ALONSO ALFARO CARO | C57: AACA781112JM1 | D57: AV. HIDALGO NO. 2081 | E57: GUADALAJARA,JAL. | F57: 44600 | G57: 111 | H57: BA TESORERIA 6536 | I57: Transf N° 0063030015 | J57: PAGO POR LA RENTA DE IMPRESORAS PARA ESTE AYUNTAMIENTO. DE ACUERDO A COMPROBANTES ADJUNTOS. | K57: 1450 | L57: 2020-10-19 | M57: 5C96C
A58: 52 | B58: ALONSO ALFARO CARO | C58: AACA781112JM1 | D58: AV. HIDALGO NO. 2081 | E58: GUADALAJARA,JAL. | F58: 44600 | G58: 111 | H58: BA TESORERIA 6536 | I58: Transf N° 0063030015 | J58: PAGO POR LA RENTA DE IMPRESORAS PARA ESTE AYUNTAMIENTO. DE ACUERDO A COMPROBANTES ADJUNTOS. | K58: 1450 | L58: 2020-10-19 | M58: E408A
A59: 53 | B59: ALONSO ALFARO CARO | C59: AACA781112JM1 | D59: AV. HIDALGO NO. 2081 | E59: GUADALAJARA,JAL. | F59: 44600 | G59: 111 | H59: BA TESORERIA 6536 | I59: Transf N° 0063030015 | J59: PAGO POR LA RENTA DE IMPRESORAS PARA ESTE AYUNTAMIENTO. DE ACUERDO A COMPROBANTES ADJUNTOS. | K59: 1160 | L59: 2020-10-19 | M59: B38FF
A60: 54 | B60: ALONSO ALFARO CARO | C60: AACA781112JM1 | D60: AV. HIDALGO NO. 2081 | E60: GUADALAJARA,JAL. | F60: 44600 | G60: 111 | H60: BA TESORERIA 6536 | I60: Transf N° 0063030015 | J60: PAGO POR LA RENTA DE IMPRESORAS PARA ESTE AYUNTAMIENTO. DE ACUERDO A COMPROBANTES ADJUNTOS. | K60: 1029.5 | L60: 2020-10-19 | M60: A7A4D
A61: 55 | B61: ALONSO ALFARO CARO | C61: AACA781112JM1 | D61: AV. HIDALGO NO. 2081 | E61: GUADALAJARA,JAL. | F61: 44600 | G61: 111 | H61: BA TESORERIA 6536 | I61: Transf N° 61045 | J61: RENTA DE COPIADORAS PARA OFICINAS DE PRESIDENCIA, REGISTRO CIVIL, OBRAS PUBLICA Y HACIENDA MUNICIPAL PERIODO DEL 11 DE SEPTIEMBRE AL 10 DE MAYO 2020. | K61: 1602.54 | L61: 2020-12-04 | M61: 0FBFB
A62: 56 | B62: ALONSO ALFARO CARO | C62: AACA781112JM1 | D62: AV. HIDALGO NO. 2081 | E62: GUADALAJARA,JAL. | F62: 44600 | G62: 111 | H62: BA TESORERIA 6536 | I62: Transf N° 61045 | J62: RENTA DE COPIADORAS PARA OFICINAS DE PRESIDENCIA, REGISTRO CIVIL, OBRAS PUBLICA Y HACIENDA MUNICIPAL PERIODO DEL 11 DE SEPTIEMBRE AL 10 DE MAYO 2020. | K62: 1160 | L62: 2020-12-04 | M62: 2D079
A63: 57 | B63: ALONSO ALFARO CARO | C63: AACA781112JM1 | D63: AV. HIDALGO NO. 2081 | E63: GUADALAJARA,JAL. | F63: 44600 | G63: 111 | H63: BA TESORERIA 6536 | I63: Transf N° 61045 | J63: RENTA DE COPIADORAS PARA OFICINAS DE PRESIDENCIA, REGISTRO CIVIL, OBRAS PUBLICA Y HACIENDA MUNICIPAL PERIODO DEL 11 DE SEPTIEMBRE AL 10 DE MAYO 2020. | K63: 1544.25 | L63: 2020-12-04 | M63: 24867
A64: 58 | B64: ALONSO ALFARO CARO | C64: AACA781112JM1 | D64: AV. HIDALGO NO. 2081 | E64: GUADALAJARA,JAL. | F64: 44600 | G64: 111 | H64: BA TESORERIA 6536 | I64: Transf N° 0055228013 | J64: PAGO POR LA RENTA DE COPIADORAS PARA OFICINAS DE ESTE AYUNTAMIENTO. DE ACUERDO A COMPROBANTES ADJUNTOS. | K64: 1853.39 | L64: 2020-11-05 | M64: 20591
A65: 59 | B65: ALONSO ALFARO CARO | C65: AACA781112JM1 | D65: AV. HIDALGO NO. 2081 | E65: GUADALAJARA,JAL. | F65: 44600 | G65: 111 | H65: BA TESORERIA 6536 | I65: Transf N° 0055228013 | J65: PAGO POR LA RENTA DE COPIADORAS PARA OFICINAS DE ESTE AYUNTAMIENTO. DE ACUERDO A COMPROBANTES ADJUNTOS. | K65: 1450 | L65: 2020-11-05 | M65: 4FAD1
A66: 60 | B66: ALONSO ALFARO CARO | C66: AACA781112JM1 | D66: AV. HIDALGO NO. 2081 | E66: GUADALAJARA,JAL. | F66: 44600 | G66: 111 | H66: BA TESORERIA 6536 | I66: Transf N° 0055228013 | J66: PAGO POR LA RENTA DE COPIADORAS PARA OFICINAS DE ESTE AYUNTAMIENTO. DE ACUERDO A COMPROBANTES ADJUNTOS. | K66: 1160 | L66: 2020-11-05 | M66: 1FB15
A67: 61 | B67: ALTA TECNOLOGIA EN ACUMULADORES SA DE CV | C67: XAXX010101000 | D67: . | E67: . | F67: 45790 | G67: 151 | H67: BA PARTICIPACIONES 8760 | I67: Cheque N° 673 | J67: PAGO DE COMBUSTIBLE Y MANTENIMIENTO DE AMBULANCIA DE PROTECCION CIVIL DE ESTE MPIO. DE ACUERDO A COMPROBANTES ADJUNTOS. | K67: 2395 | L67: 2020-04-17 | M67: 0FF7B
A68: 62 | B68: ANNEL GRAJEDA GOVEA | C68: GAGA861128I11 | D68: - | E68: - | F68: 45790 | G68: 151 | H68: BA PARTICIPACIONES 8760 | I68: Cheque N° 712 | J68: REPOSICION DE CAJA CHICA DE EGRESOS CORRESPONDIENTE AL DIA 15 DE MAYO 2020. DE ACUERDO A COMPROBANTE ADJUNTO. | K68: 1029 | L68: 2020-05-15 | M68: 85C33
A69: 63 | B69: ANTONIO HERNANDEZ RODRIGUEZ | C69: HERA710613S63 | D69: - | E69: - | F69: 45790 | G69: 151 | H69: BA PARTICIPACIONES 8760 | I69: Cheque N° 0537 | J69: PAGO DE COMBUSTIBLE PARA AMBULANCIA Y VIATICOS A CHOFER DE PROTECCION CIVIL. DE ACUERDO A COMPROBANTES ADJUNTOS. | K69: 1042.65 | L69: 2020-02-25 | M69: 3F4B2
A70: 64 | B70: ANTONIO HERRERA GONZALEZ | C70: HEGA3908016F5 | D70: - | E70: ATEMAJAC DE BRIZUELA,JAL. | F70: 45790 | G70: 111 | H70: BA TESORERIA 6536 | I70: Transf N° 0055228059 | J70: PAGO DE MATERIALES, SUMINISTROS Y HERRAMIENTAS VARIOS PARA EL MANTENIMIENTO DE ESPACIOS PUBLICOS EN EL MPIO. DE ACUERDO A COMPROBANTES ADJUNTOS. | K70: 1448.99 | L70: 2020-11-12 | M70: 59B46
A71: 65 | B71: ANTONIO HERRERA GONZALEZ | C71: HEGA3908016F5 | D71: - | E71: ATEMAJAC DE BRIZUELA,JAL. | F71: 45790 | G71: 111 | H71: BA TESORERIA 6536 | I71: Transf N° 0055228059 | J71: PAGO DE MATERIALES, SUMINISTROS Y HERRAMIENTAS VARIOS PARA EL MANTENIMIENTO DE ESPACIOS PUBLICOS EN EL MPIO. DE ACUERDO A COMPROBANTES ADJUNTOS. | K71: 4167 | L71: 2020-11-12 | M71: AA5A5
A72: 66 | B72: ANTONIO HERRERA GONZALEZ | C72: HEGA3908016F5 | D72: - | E72: ATEMAJAC DE BRIZUELA,JAL. | F72: 45790 | G72: 111 | H72: BA TESORERIA 6536 | I72: Transf N° 00911152015 | J72: PAGO DE MATERIALES VARIOS PARA EL MANTENIMIENTO DE ESPACIOS PUBLICOS EN EL MPIO. DE ACUERDO A COMPROBANTE ADJUNTO. | K72: 10040.33 | L72: 2020-01-22 | M72: 6A2DA
A73: 67 | B73: ANTONIO HERRERA GONZALEZ | C73: HEGA3908016F5 | D73: - | E73: ATEMAJAC DE BRIZUELA,JAL. | F73: 45790 | G73: 151 | H73: BA PARTICIPACIONES 8760 | I73: Cheque N° 0556 | J73: PAGO DE MATERIALES VARIOS PARA EL MANTENIMIENTO Y CONCERVACION DE ESPACIOS PUBLICOS EN EL MPIO. DE ACUERDO A COMPROBANTE ADJUNTO | K73: 9195.03 | L73: 2020-03-09 | M73: A92CA
A74: 68 | B74: ANTONIO HERRERA GONZALEZ | C74: HEGA3908016F5 | D74: - | E74: ATEMAJAC DE BRIZUELA,JAL. | F74: 45790 | G74: 151 | H74: BA PARTICIPACIONES 8760 | I74: Transf N° 0076696047 | J74: PAGO DE MATERIALES DIVERSOS PARA DIVERSAS OBRAS DE MANENIMIENTO DE ESPACIOS PUBLICOS EN EL MPIO. DE ACUERDO A COMPRABANTE ADJUNTO. | K74: 1063 | L74: 2020-05-19 | M74: 0
A75: 69 | B75: ANTONIO HERRERA GONZALEZ | C75: HEGA3908016F5 | D75: - | E75: ATEMAJAC DE BRIZUELA,JAL. | F75: 45790 | G75: 151 | H75: BA PARTICIPACIONES 8760 | I75: Transf N° 0076696047 | J75: PAGO DE MATERIALES DIVERSOS PARA DIVERSAS OBRAS DE MANENIMIENTO DE ESPACIOS PUBLICOS EN EL MPIO. DE ACUERDO A COMPRABANTE ADJUNTO. | K75: 1150 | L75: 2020-05-19 | M75: 9F151
A76: 70 | B76: ANTONIO HERRERA GONZALEZ | C76: HEGA3908016F5 | D76: - | E76: ATEMAJAC DE BRIZUELA,JAL. | F76: 45790 | G76: 151 | H76: BA PARTICIPACIONES 8760 | I76: Transf N° 0076696047 | J76: PAGO DE MATERIALES DIVERSOS PARA DIVERSAS OBRAS DE MANENIMIENTO DE ESPACIOS PUBLICOS EN EL MPIO. DE ACUERDO A COMPRABANTE ADJUNTO. | K76: 1043 | L76: 2020-05-19 | M76: ED468
A77: 71 | B77: ANTONIO HERRERA GONZALEZ | C77: HEGA3908016F5 | D77: - | E77: ATEMAJAC DE BRIZUELA,JAL. | F77: 45790 | G77: 151 | H77: BA PARTICIPACIONES 8760 | I77: Transf N° 0076696047 | J77: PAGO DE MATERIALES DIVERSOS PARA DIVERSAS OBRAS DE MANENIMIENTO DE ESPACIOS PUBLICOS EN EL MPIO. DE ACUERDO A COMPRABANTE ADJUNTO. | K77: 1397.01 | L77: 2020-05-19 | M77: 7EA68
A78: 72 | B78: ANTONIO HERRERA GONZALEZ | C78: HEGA3908016F5 | D78: - | E78: ATEMAJAC DE BRIZUELA,JAL. | F78: 45790 | G78: 151 | H78: BA PARTICIPACIONES 8760 | I78: Transf N° 0076696047 | J78: PAGO DE MATERIALES DIVERSOS PARA DIVERSAS OBRAS DE MANENIMIENTO DE ESPACIOS PUBLICOS EN EL MPIO. DE ACUERDO A COMPRABANTE ADJUNTO. | K78: 1974.01 | L78: 2020-05-19 | M78: D031D
A79: 73 | B79: ANTONIO HERRERA GONZALEZ | C79: HEGA3908016F5 | D79: - | E79: ATEMAJAC DE BRIZUELA,JAL. | F79: 45790 | G79: 151 | H79: BA PARTICIPACIONES 8760 | I79: Transf N° 0071051042 | J79: PAGO DE MATERIALES VARIOS PARA DIVERSAS OBRAS DE MANTENIMIENTO DE ESPACIOS PUBLICOS EN EL MPIO. DE ACUERDO A COMPROBANTES ADJUNTOS. | K79: 2323 | L79: 2020-07-20 | M79: BD8EE
A80: 74 | B80: ANTONIO HERRERA GONZALEZ | C80: HEGA3908016F5 | D80: - | E80: ATEMAJAC DE BRIZUELA,JAL. | F80: 45790 | G80: 151 | H80: BA PARTICIPACIONES 8760 | I80: Transf N° 0071051042 | J80: PAGO DE MATERIALES VARIOS PARA DIVERSAS OBRAS DE MANTENIMIENTO DE ESPACIOS PUBLICOS EN EL MPIO. DE ACUERDO A COMPROBANTES ADJUNTOS. | K80: 1284 | L80: 2020-07-20 | M80: 5.4e+78
A81: 75 | B81: ANTONIO HERRERA GONZALEZ | C81: HEGA3908016F5 | D81: - | E81: ATEMAJAC DE BRIZUELA,JAL. | F81: 45790 | G81: 151 | H81: BA PARTICIPACIONES 8760 | I81: Transf N° 0071051042 | J81: PAGO DE MATERIALES VARIOS PARA DIVERSAS OBRAS DE MANTENIMIENTO DE ESPACIOS PUBLICOS EN EL MPIO. DE ACUERDO A COMPROBANTES ADJUNTOS. | K81: 2486.01 | L81: 2020-07-20 | M81: 43BEC
A82: 76 | B82: ARGUS GASOLINERA S.A. DE C.V. | C82: XAXX010101000 | D82: JUSTO SIERRA NO. 475 | E82: ACATLAN DE JUAREZ, JAL | F82: 45700 | G82: 111 | H82: BA TESORERIA 6536 | I82: Cheque N° 2355 | J82: PAGO DE COMBUSTIBLE PARA VEHICULOS DEL SERVICIO PUBLICO DE ESTE MPIO. DE ACUERDO A COMPROBANTES ADJUNTOS. | K82: 1000 | L82: 2020-09-25 | M82: CBCCE
A83: 77 | B83: ARTURO CAZARES QUEVEDO | C83: CAQA600909C64 | D83: 8 DE JULIO NO. 138 COL. CENTRO | E83: GUADALAJARA | F83: 44100 | G83: 111 | H83: BA TESORERIA 6536 | I83: Transf N° 0080903014 | J83: PAGO DE SELLOS FECHADOR Y MATERIAL ELECTRICO, PARA DIVERSAS ACTIVIDADES DEL AYUNTAMIENTO. DE ACUERDO A COMPROBANTES ADJUNTOS. | K83: 1508 | L83: 2020-04-30 | M83: 238EC
A84: 78 | B84: ASESORIA COMERCIALIZADORA Y DESARROLLO DIADA SA DE CV | C84: XAXX010101000 | D84: . | E84: . | F84: 45790 | G84: 151 | H84: BA PARTICIPACIONES 8760 | I84: Transf N° 0088202036 | J84: PAGO DE TERMOMETRO DIGITAL LASER PARA SEGUIMEINTO DE PROTOCOLOS DE CHEQUEO Y SANITIZACION COVID 19 EN EL ACCESO DE PRESIDENCIA MPAL. DE ACUERDO A COMPROBANTE ADJUNTO. | K84: 2668 | L84: 2020-08-18 | M84: 1EC20
A85: 79 | B85: ASESORIA COMERCIALIZADORA Y DESARROLLO DIADA SA DE CV | C85: XAXX010101000 | D85: . | E85: . | F85: 45790 | G85: 151 | H85: BA PARTICIPACIONES 8760 | I85: Cheque N° 0617 | J85: PAGO DE HOJAS BLANCAS TAMAÑO CARTA PARA OFICINAS ADMINISTRATIVAS DE ESTE AYUNTAMIENTO. DE ACUEDO A COMPROBANTE ADJUNTO. | K85: 6030 | L85: 2020-03-26 | M85: 84411
A86: 80 | B86: ASESORIA COMERCIALIZADORA Y DESARROLLO DIADA SA DE CV | C86: XAXX010101000 | D86: . | E86: . | F86: 45790 | G86: 151 | H86: BA PARTICIPACIONES 8760 | I86: Cheque N° 0616 | J86: PAGO DE CUBETA DE GRASA Y ACEITE PARA MODULO DE MAQUINARIA DE ESTE AYUNTAMIENTO. DE ACUERDO A COMPROBANTE ADJUNTO. | K86: 6570.24 | L86: 2020-03-26 | M86: 728FB
A87: 81 | B87: ATEMAJAC GASOLINERA Y LUBRICANTES S.A. DE C.V. | C87: XAXX010101000 | D87: CARR CATARINA ATEMAJAC, KM. 32.5 | E87: ATEMAJAC DE BRIZUELA,JAL. | F87: 45790 | G87: 151 | H87: BA PARTICIPACIONES 8760 | I87: Transf N° 0028777047 | J87: PAGO DE COMBUSTIBLE PARA VEHICULOS DEL SERVICIO PUBLICO MPAL DE LA SEMANA DEL 29 DE AGOSTO AL 5 DE SEPTIEMBRE 2020. DE ACUERDO A COMPROBANTES ADJUNTOS. | K87: 6631 | L87: 2020-10-02 | M87: F7852
A88: 82 | B88: ATEMAJAC GASOLINERA Y LUBRICANTES S.A. DE C.V. | C88: XAXX010101000 | D88: CARR CATARINA ATEMAJAC, KM. 32.5 | E88: ATEMAJAC DE BRIZUELA,JAL. | F88: 45790 | G88: 151 | H88: BA PARTICIPACIONES 8760 | I88: Transf N° 0028777047 | J88: PAGO DE COMBUSTIBLE PARA VEHICULOS DEL SERVICIO PUBLICO MPAL DE LA SEMANA DEL 29 DE AGOSTO AL 5 DE SEPTIEMBRE 2020. DE ACUERDO A COMPROBANTES ADJUNTOS. | K88: 5080 | L88: 2020-10-02 | M88: 8673A
A89: 83 | B89: ATEMAJAC GASOLINERA Y LUBRICANTES S.A. DE C.V. | C89: XAXX010101000 | D89: CARR CATARINA ATEMAJAC, KM. 32.5 | E89: ATEMAJAC DE BRIZUELA,JAL. | F89: 45790 | G89: 151 | H89: BA PARTICIPACIONES 8760 | I89: Transf N° 0028777047 | J89: PAGO DE COMBUSTIBLE PARA VEHICULOS DEL SERVICIO PUBLICO MPAL DE LA SEMANA DEL 29 DE AGOSTO AL 5 DE SEPTIEMBRE 2020. DE ACUERDO A COMPROBANTES ADJUNTOS. | K89: 15320 | L89: 2020-10-02 | M89: 5ABF4
A90: 84 | B90: ATEMAJAC GASOLINERA Y LUBRICANTES S.A. DE C.V. | C90: XAXX010101000 | D90: CARR CATARINA ATEMAJAC, KM. 32.5 | E90: ATEMAJAC DE BRIZUELA,JAL. | F90: 45790 | G90: 151 | H90: BA PARTICIPACIONES 8760 | I90: Transf N° 0028777047 | J90: PAGO DE COMBUSTIBLE PARA VEHICULOS DEL SERVICIO PUBLICO MPAL DE LA SEMANA DEL 29 DE AGOSTO AL 5 DE SEPTIEMBRE 2020. DE ACUERDO A COMPROBANTES ADJUNTOS. | K90: 6883 | L90: 2020-10-02 | M90: 28602
A91: 85 | B91: ATEMAJAC GASOLINERA Y LUBRICANTES S.A. DE C.V. | C91: XAXX010101000 | D91: CARR CATARINA ATEMAJAC, KM. 32.5 | E91: ATEMAJAC DE BRIZUELA,JAL. | F91: 45790 | G91: 151 | H91: BA PARTICIPACIONES 8760 | I91: Transf N° 0028777047 | J91: PAGO DE COMBUSTIBLE PARA VEHICULOS DEL SERVICIO PUBLICO MPAL DE LA SEMANA DEL 29 DE AGOSTO AL 5 DE SEPTIEMBRE 2020. DE ACUERDO A COMPROBANTES ADJUNTOS. | K91: 2451 | L91: 2020-10-02 | M91: 46471
A92: 86 | B92: ATEMAJAC GASOLINERA Y LUBRICANTES S.A. DE C.V. | C92: XAXX010101000 | D92: CARR CATARINA ATEMAJAC, KM. 32.5 | E92: ATEMAJAC DE BRIZUELA,JAL. | F92: 45790 | G92: 151 | H92: BA PARTICIPACIONES 8760 | I92: Transf N° 0028777047 | J92: PAGO DE COMBUSTIBLE PARA VEHICULOS DEL SERVICIO PUBLICO MPAL DE LA SEMANA DEL 29 DE AGOSTO AL 5 DE SEPTIEMBRE 2020. DE ACUERDO A COMPROBANTES ADJUNTOS. | K92: 10252 | L92: 2020-10-02 | M92: 2EB7A
A93: 87 | B93: ATEMAJAC GASOLINERA Y LUBRICANTES S.A. DE C.V. | C93: XAXX010101000 | D93: CARR CATARINA ATEMAJAC, KM. 32.5 | E93: ATEMAJAC DE BRIZUELA,JAL. | F93: 45790 | G93: 151 | H93: BA PARTICIPACIONES 8760 | I93: Transf N° 0028777047 | J93: PAGO DE COMBUSTIBLE PARA VEHICULOS DEL SERVICIO PUBLICO MPAL DE LA SEMANA DEL 29 DE AGOSTO AL 5 DE SEPTIEMBRE 2020. DE ACUERDO A COMPROBANTES ADJUNTOS. | K93: 8561 | L93: 2020-10-02 | M93: 75C94
A94: 88 | B94: ATEMAJAC GASOLINERA Y LUBRICANTES S.A. DE C.V. | C94: XAXX010101000 | D94: CARR CATARINA ATEMAJAC, KM. 32.5 | E94: ATEMAJAC DE BRIZUELA,JAL. | F94: 45790 | G94: 151 | H94: BA PARTICIPACIONES 8760 | I94: Transf N° 0028777047 | J94: PAGO DE COMBUSTIBLE PARA VEHICULOS DEL SERVICIO PUBLICO MPAL DE LA SEMANA DEL 29 DE AGOSTO AL 5 DE SEPTIEMBRE 2020. DE ACUERDO A COMPROBANTES ADJUNTOS. | K94: 1482 | L94: 2020-10-02 | M94: C8768
A95: 89 | B95: ATEMAJAC GASOLINERA Y LUBRICANTES S.A. DE C.V. | C95: XAXX010101000 | D95: CARR CATARINA ATEMAJAC, KM. 32.5 | E95: ATEMAJAC DE BRIZUELA,JAL. | F95: 45790 | G95: 151 | H95: BA PARTICIPACIONES 8760 | I95: Transf N° 0028777015 | J95: PAGO DE COMBUSTIBLE PARA VEHICULOS DEL SERVICIO PUBLICO MPAL DE LA SEMANA DEL 22 AL 28 DE AGOSTO 2020. DE ACUERDO A COMPROBANTES ADJUNTOS. | K95: 3000 | L95: 2020-10-02 | M95: 4A536
A96: 90 | B96: ATEMAJAC GASOLINERA Y LUBRICANTES S.A. DE C.V. | C96: XAXX010101000 | D96: CARR CATARINA ATEMAJAC, KM. 32.5 | E96: ATEMAJAC DE BRIZUELA,JAL. | F96: 45790 | G96: 151 | H96: BA PARTICIPACIONES 8760 | I96: Transf N° 0028777015 | J96: PAGO DE COMBUSTIBLE PARA VEHICULOS DEL SERVICIO PUBLICO MPAL DE LA SEMANA DEL 22 AL 28 DE AGOSTO 2020. DE ACUERDO A COMPROBANTES ADJUNTOS. | K96: 5512 | L96: 2020-10-02 | M96: C000DC
A97: 91 | B97: ATEMAJAC GASOLINERA Y LUBRICANTES S.A. DE C.V. | C97: XAXX010101000 | D97: CARR CATARINA ATEMAJAC, KM. 32.5 | E97: ATEMAJAC DE BRIZUELA,JAL. | F97: 45790 | G97: 151 | H97: BA PARTICIPACIONES 8760 | I97: Transf N° 0028777015 | J97: PAGO DE COMBUSTIBLE PARA VEHICULOS DEL SERVICIO PUBLICO MPAL DE LA SEMANA DEL 22 AL 28 DE AGOSTO 2020. DE ACUERDO A COMPROBANTES ADJUNTOS. | K97: 12140 | L97: 2020-10-02 | M97: F969E
A98: 92 | B98: ATEMAJAC GASOLINERA Y LUBRICANTES S.A. DE C.V. | C98: XAXX010101000 | D98: CARR CATARINA ATEMAJAC, KM. 32.5 | E98: ATEMAJAC DE BRIZUELA,JAL. | F98: 45790 | G98: 151 | H98: BA PARTICIPACIONES 8760 | I98: Transf N° 0028777015 | J98: PAGO DE COMBUSTIBLE PARA VEHICULOS DEL SERVICIO PUBLICO MPAL DE LA SEMANA DEL 22 AL 28 DE AGOSTO 2020. DE ACUERDO A COMPROBANTES ADJUNTOS. | K98: 1200 | L98: 2020-10-02 | M98: 415A4
A99: 93 | B99: ATEMAJAC GASOLINERA Y LUBRICANTES S.A. DE C.V. | C99: XAXX010101000 | D99: CARR CATARINA ATEMAJAC, KM. 32.5 | E99: ATEMAJAC DE BRIZUELA,JAL. | F99: 45790 | G99: 151 | H99: BA PARTICIPACIONES 8760 | I99: Transf N° 0028777015 | J99: PAGO DE COMBUSTIBLE PARA VEHICULOS DEL SERVICIO PUBLICO MPAL DE LA SEMANA DEL 22 AL 28 DE AGOSTO 2020. DE ACUERDO A COMPROBANTES ADJUNTOS. | K99: 16600 | L99: 2020-10-02 | M99: C7ED5
A100: 94 | B100: ATEMAJAC GASOLINERA Y LUBRICANTES S.A. DE C.V. | C100: XAXX010101000 | D100: CARR CATARINA ATEMAJAC, KM. 32.5 | E100: ATEMAJAC DE BRIZUELA,JAL. | F100: 45790 | G100: 151 | H100: BA PARTICIPACIONES 8760 | I100: Transf N° 0028777015 | J100: PAGO DE COMBUSTIBLE PARA VEHICULOS DEL SERVICIO PUBLICO MPAL DE LA SEMANA DEL 22 AL 28 DE AGOSTO 2020. DE ACUERDO A COMPROBANTES ADJUNTOS. | K100: 1850 | L100: 2020-10-02 | M100: F7199
A101: 95 | B101: ATEMAJAC GASOLINERA Y LUBRICANTES S.A. DE C.V. | C101: XAXX010101000 | D101: CARR CATARINA ATEMAJAC, KM. 32.5 | E101: ATEMAJAC DE BRIZUELA,JAL. | F101: 45790 | G101: 151 | H101: BA PARTICIPACIONES 8760 | I101: Transf N° 0028777015 | J101: PAGO DE COMBUSTIBLE PARA VEHICULOS DEL SERVICIO PUBLICO MPAL DE LA SEMANA DEL 22 AL 28 DE AGOSTO 2020. DE ACUERDO A COMPROBANTES ADJUNTOS. | K101: 13460 | L101: 2020-10-02 | M101: 9F913
A102: 96 | B102: ATEMAJAC GASOLINERA Y LUBRICANTES S.A. DE C.V. | C102: XAXX010101000 | D102: CARR CATARINA ATEMAJAC, KM. 32.5 | E102: ATEMAJAC DE BRIZUELA,JAL. | F102: 45790 | G102: 111 | H102: s/ref | I102: s/ref | J102: PAGO DE VIATICOS A PRESIDENTE MUNICIPAL POR COMISION A DIVERSOS EVENTOS EN LA REGION Y TRASLADOS A GUADALAJARA. DE ACUERDO A COMPROABANTES ADJUNTOS. | K102: 2000 | L102: 2020-06-05 | M102: 8617
A103: 97 | B103: ATEMAJAC GASOLINERA Y LUBRICANTES S.A. DE C.V. | C103: XAXX010101000 | D103: CARR CATARINA ATEMAJAC, KM. 32.5 | E103: ATEMAJAC DE BRIZUELA,JAL. | F103: 45790 | G103: 111 | H103: s/ref | I103: s/ref | J103: PAGO DE VIATICOS A PRESIDENTE MUNICIPAL POR COMISION A DIVERSOS EVENTOS EN LA REGION Y TRASLADOS A GUADALAJARA. DE ACUERDO A COMPROABANTES ADJUNTOS. | K103: 2000 | L103: 2020-06-05 | M103: 7B206
A104: 98 | B104: ATEMAJAC GASOLINERA Y LUBRICANTES S.A. DE C.V. | C104: XAXX010101000 | D104: CARR CATARINA ATEMAJAC, KM. 32.5 | E104: ATEMAJAC DE BRIZUELA,JAL. | F104: 45790 | G104: 111 | H104: s/ref | I104: s/ref | J104: PAGO DE VIATICOS A PRESIDENTE MUNICIPAL POR COMISION A DIVERSOS EVENTOS EN LA REGION Y TRASLADOS A GUADALAJARA. DE ACUERDO A COMPROABANTES ADJUNTOS. | K104: 2000 | L104: 2020-06-05 | M104: DDD37
A105: 99 | B105: ATEMAJAC GASOLINERA Y LUBRICANTES S.A. DE C.V. | C105: XAXX010101000 | D105: CARR CATARINA ATEMAJAC, KM. 32.5 | E105: ATEMAJAC DE BRIZUELA,JAL. | F105: 45790 | G105: 111 | H105: s/ref | I105: s/ref | J105: PAGO DE VIATICOS A PRESIDENTE MUNICIPAL POR COMISION A DIVERSOS EVENTOS EN LA REGION Y TRASLADOS A GUADALAJARA. DE ACUERDO A COMPROABANTES ADJUNTOS. | K105: 2000 | L105: 2020-06-23 | M105: 11242
A106: 100 | B106: ATEMAJAC GASOLINERA Y LUBRICANTES S.A. DE C.V. | C106: XAXX010101000 | D106: CARR CATARINA ATEMAJAC, KM. 32.5 | E106: ATEMAJAC DE BRIZUELA,JAL. | F106: 45790 | G106: 111 | H106: s/ref | I106: s/ref | J106: PAGO DE VIATICOS A PRESIDENTE MUNICIPAL POR COMISION A DIVERSOS EVENTOS EN LA REGION Y TRASLADOS A GUADALAJARA. DE ACUERDO A COMPROABANTES ADJUNTOS. | K106: 1000 | L106: 2020-06-23 | M106: 4F5FB
A107: 101 | B107: ATEMAJAC GASOLINERA Y LUBRICANTES S.A. DE C.V. | C107: XAXX010101000 | D107: CARR CATARINA ATEMAJAC, KM. 32.5 | E107: ATEMAJAC DE BRIZUELA,JAL. | F107: 45790 | G107: 111 | H107: s/ref | I107: s/ref | J107: PAGO DE VIATICOS A PRESIDENTE MUNICIPAL POR COMISION A DIVERSOS EVENTOS EN LA REGION Y TRASLADOS A GUADALAJARA. DE ACUERDO A COMPROABANTES ADJUNTOS. | K107: 1000 | L107: 2020-06-23 | M107: 46575
A108: 102 | B108: ATEMAJAC GASOLINERA Y LUBRICANTES S.A. DE C.V. | C108: XAXX010101000 | D108: CARR CATARINA ATEMAJAC, KM. 32.5 | E108: ATEMAJAC DE BRIZUELA,JAL. | F108: 45790 | G108: 111 | H108: s/ref | I108: s/ref | J108: PAGO DE VIATICOS A PRESIDENTE MUNICIPAL POR COMISION A DIVERSOS EVENTOS EN LA REGION Y TRASLADOS A GUADALAJARA. DE ACUERDO A COMPROABANTES ADJUNTOS. | K108: 1000 | L108: 2020-06-23 | M108: 78BE6
A109: 103 | B109: ATEMAJAC GASOLINERA Y LUBRICANTES S.A. DE C.V. | C109: XAXX010101000 | D109: CARR CATARINA ATEMAJAC, KM. 32.5 | E109: ATEMAJAC DE BRIZUELA,JAL. | F109: 45790 | G109: 151 | H109: BA PARTICIPACIONES 8760 | I109: Cheque N° 0666 | J109: PAGO DE VIATICOS A TESORERO MUNICIPAL POR DIVERSAS COMISIONES Y TRALADOS A GUADALAJARA. DE ACUERDO A COMPROBANTES ADJUNTOS. | K109: 2500 | L109: 2020-04-14 | M109: D8FB3
A110: 104 | B110: ATEMAJAC GASOLINERA Y LUBRICANTES S.A. DE C.V. | C110: XAXX010101000 | D110: CARR CATARINA ATEMAJAC, KM. 32.5 | E110: ATEMAJAC DE BRIZUELA,JAL. | F110: 45790 | G110: 111 | H110: BA TESORERIA 6536 | I110: Cheque N° 2267 | J110: REPOSICION DE CAJA CHICA DE EGRESOS CORRESPONDIENTE AL DIA 30 DE ABRIL 2020. DE ACUERDO A COMPROBANTES ADJUNTOS. | K110: 1250.01 | L110: 2020-04-30 | M110: 1BD9B
A111: 105 | B111: ATEMAJAC GASOLINERA Y LUBRICANTES S.A. DE C.V. | C111: XAXX010101000 | D111: CARR CATARINA ATEMAJAC, KM. 32.5 | E111: ATEMAJAC DE BRIZUELA,JAL. | F111: 45790 | G111: 151 | H111: s/ref | I111: s/ref | J111: PAGO DE VIATICOS A PRESIDENTE MUNICIPAL POR COMISION A DIVERSOS EVENTOS. DE ACUERDO A COMPROBANTES ADJUNTOS | K111: 1200 | L111: 2020-08-31 | M111: 8CB5E
A112: 106 | B112: ATEMAJAC GASOLINERA Y LUBRICANTES S.A. DE C.V. | C112: XAXX010101000 | D112: CARR CATARINA ATEMAJAC, KM. 32.5 | E112: ATEMAJAC DE BRIZUELA,JAL. | F112: 45790 | G112: 151 | H112: s/ref | I112: s/ref | J112: PAGO DE VIATICOS A PRESIDENTE MUNICIPAL POR COMISION A DIVERSOS EVENTOS. DE ACUERDO A COMPROBANTES ADJUNTOS | K112: 1000 | L112: 2020-08-31 | M112: 10F80F
A113: 107 | B113: ATEMAJAC GASOLINERA Y LUBRICANTES S.A. DE C.V. | C113: XAXX010101000 | D113: CARR CATARINA ATEMAJAC, KM. 32.5 | E113: ATEMAJAC DE BRIZUELA,JAL. | F113: 45790 | G113: 151 | H113: s/ref | I113: s/ref | J113: PAGO DE VIATICOS A PRESIDENTE MUNICIPAL POR COMISION A DIVERSOS EVENTOS | K113: 1050 | L113: 2020-06-30 | M113: 3E934
A114: 108 | B114: ATEMAJAC GASOLINERA Y LUBRICANTES S.A. DE C.V. | C114: XAXX010101000 | D114: CARR CATARINA ATEMAJAC, KM. 32.5 | E114: ATEMAJAC DE BRIZUELA,JAL. | F114: 45790 | G114: 151 | H114: s/ref | I114: s/ref | J114: PAGO DE VIATICOS A PRESIDENTE MUNICIPAL POR COMISION A DIVERSOS EVENTOS. DE ACUERDO A COMPROBANTES ADJUNTOS | K114: 1100 | L114: 2020-06-08 | M114: 90F01
A115: 109 | B115: ATEMAJAC GASOLINERA Y LUBRICANTES S.A. DE C.V. | C115: XAXX010101000 | D115: CARR CATARINA ATEMAJAC, KM. 32.5 | E115: ATEMAJAC DE BRIZUELA,JAL. | F115: 45790 | G115: 151 | H115: s/ref | I115: s/ref | J115: PAGO DE VIATICOS A PRESIDENTE MUNICIPAL POR COMISION A DIVERSOS EVENTOS. DE ACUERDO A COMPROBANTES ADJUNTOS | K115: 1200 | L115: 2020-06-08 | M115: EDC30
A116: 110 | B116: ATEMAJAC GASOLINERA Y LUBRICANTES S.A. DE C.V. | C116: XAXX010101000 | D116: CARR CATARINA ATEMAJAC, KM. 32.5 | E116: ATEMAJAC DE BRIZUELA,JAL. | F116: 45790 | G116: 151 | H116: s/ref | I116: s/ref | J116: PAGO DE VIATICOS A PRESIDENTE MUNICIPAL POR COMISION A DIVERSOS EVENTOS. DE ACUERDO A COMPROBANTES ADJUNTOS | K116: 1100 | L116: 2020-07-27 | M116: CFB4F
A117: 111 | B117: ATEMAJAC GASOLINERA Y LUBRICANTES S.A. DE C.V. | C117: XAXX010101000 | D117: CARR CATARINA ATEMAJAC, KM. 32.5 | E117: ATEMAJAC DE BRIZUELA,JAL. | F117: 45790 | G117: 151 | H117: s/ref | I117: s/ref | J117: PAGO DE VIATICOS A PRESIDENTE MUNICIPAL POR COMISION A DIVERSOS EVENTOS. DE ACUERDO A COMPROBANTES ADJUNTOS | K117: 1000 | L117: 2020-07-27 | M117: FA523
A118: 112 | B118: ATEMAJAC GASOLINERA Y LUBRICANTES S.A. DE C.V. | C118: XAXX010101000 | D118: CARR CATARINA ATEMAJAC, KM. 32.5 | E118: ATEMAJAC DE BRIZUELA,JAL. | F118: 45790 | G118: 151 | H118: BA PARTICIPACIONES 8760 | I118: Cheque N° 455 | J118: REPOSICION DE CAJA CHICA DE EGRESOS DEL DIA 15 DE ENERO 2020. DE ACUERDO A COMPROBANTE ADJUNTO. | K118: 1000 | L118: 2020-01-01 | M118: 12C28
A119: 113 | B119: ATEMAJAC GASOLINERA Y LUBRICANTES S.A. DE C.V. | C119: XAXX010101000 | D119: CARR CATARINA ATEMAJAC, KM. 32.5 | E119: ATEMAJAC DE BRIZUELA,JAL. | F119: 45790 | G119: 151 | H119: BA PARTICIPACIONES 8760 | I119: Cheque N° 455 | J119: REPOSICION DE CAJA CHICA DE EGRESOS DEL DIA 15 DE ENERO 2020. DE ACUERDO A COMPROBANTE ADJUNTO. | K119: 1000 | L119: 2020-01-01 | M119: 3A2ED
A120: 114 | B120: ATEMAJAC GASOLINERA Y LUBRICANTES S.A. DE C.V. | C120: XAXX010101000 | D120: CARR CATARINA ATEMAJAC, KM. 32.5 | E120: ATEMAJAC DE BRIZUELA,JAL. | F120: 45790 | G120: 151 | H120: BA PARTICIPACIONES 8760 | I120: Cheque N° 455 | J120: REPOSICION DE CAJA CHICA DE EGRESOS DEL DIA 15 DE ENERO 2020. DE ACUERDO A COMPROBANTE ADJUNTO. | K120: 1000 | L120: 2020-01-01 | M120: 551BB
A121: 115 | B121: ATEMAJAC GASOLINERA Y LUBRICANTES S.A. DE C.V. | C121: XAXX010101000 | D121: CARR CATARINA ATEMAJAC, KM. 32.5 | E121: ATEMAJAC DE BRIZUELA,JAL. | F121: 45790 | G121: 151 | H121: BA PARTICIPACIONES 8760 | I121: Cheque N° 0493 | J121: REPOSICION DE CAJA CHICA DE EGRESOS DEL DIA 7 DE FEBRERO 2020. DE ACUERDO A COMPROBANTES ADJUNTO. | K121: 1700 | L121: 2020-02-07 | M121: C80EF
A122: 116 | B122: ATEMAJAC GASOLINERA Y LUBRICANTES S.A. DE C.V. | C122: XAXX010101000 | D122: CARR CATARINA ATEMAJAC, KM. 32.5 | E122: ATEMAJAC DE BRIZUELA,JAL. | F122: 45790 | G122: 151 | H122: BA PARTICIPACIONES 8760 | I122: Cheque N° 0493 | J122: REPOSICION DE CAJA CHICA DE EGRESOS DEL DIA 7 DE FEBRERO 2020. DE ACUERDO A COMPROBANTES ADJUNTO. | K122: 1300 | L122: 2020-02-07 | M122: F1263
A123: 117 | B123: ATEMAJAC GASOLINERA Y LUBRICANTES S.A. DE C.V. | C123: XAXX010101000 | D123: CARR CATARINA ATEMAJAC, KM. 32.5 | E123: ATEMAJAC DE BRIZUELA,JAL. | F123: 45790 | G123: 151 | H123: BA PARTICIPACIONES 8760 | I123: Cheque N° 0590 | J123: REPOSICION DE CAJA CHICA DE EGRESOS DEL DIA 19 DE MARZO 2020. DE ACUERDO A COMPROBANTES ADJUNTOS. | K123: 1100 | L123: 2020-03-19 | M123: BC608
A124: 118 | B124: ATEMAJAC GASOLINERA Y LUBRICANTES S.A. DE C.V. | C124: XAXX010101000 | D124: CARR CATARINA ATEMAJAC, KM. 32.5 | E124: ATEMAJAC DE BRIZUELA,JAL. | F124: 45790 | G124: 111 | H124: BA TESORERIA 6536 | I124: Cheque N° 2247 | J124: APOYO PARA TRASLADO DE ESTUDIANTES DE LA LOCALIDAD DE TIERRA BLANCA CORRESPONDIENTE AL MES DE MARZO 2020. DE ACUERDO A COMPROBANTE ADJUNTO. | K124: 2500 | L124: 2020-04-02 | M124: 475CB
A125: 119 | B125: ATEMAJAC GASOLINERA Y LUBRICANTES S.A. DE C.V. | C125: XAXX010101000 | D125: CARR CATARINA ATEMAJAC, KM. 32.5 | E125: ATEMAJAC DE BRIZUELA,JAL. | F125: 45790 | G125: 111 | H125: BA TESORERIA 6536 | I125: Cheque N° 2246 | J125: APOYO PARA TRASLADO DE ESTUDIANTES DE LA LOCALIDAD DE TIERRA BLANCA CORRESPONDIENTE AL MES DE FEBRERO 2020. DE ACUERDO A COMPROBANTE ADJUNTO. | K125: 2500 | L125: 2020-04-02 | M125: D8FB3
A126: 120 | B126: ATEMAJAC GASOLINERA Y LUBRICANTES S.A. DE C.V. | C126: XAXX010101000 | D126: CARR CATARINA ATEMAJAC, KM. 32.5 | E126: ATEMAJAC DE BRIZUELA,JAL. | F126: 45790 | G126: 151 | H126: s/ref | I126: s/ref | J126: REPOSICION DE CAJA CHICA DE EGRESOS CORRESPONDIENTE AL DIA 12 DE JUNIO 2020. DE ACUERDO A COMPROBANTES ADJUNTOS. | K126: 1250.01 | L126: 2020-06-12 | M126: 1BD9B
A127: 121 | B127: ATEMAJAC GASOLINERA Y LUBRICANTES S.A. DE C.V. | C127: XAXX010101000 | D127: CARR CATARINA ATEMAJAC, KM. 32.5 | E127: ATEMAJAC DE BRIZUELA,JAL. | F127: 45790 | G127: 151 | H127: s/ref | I127: s/ref | J127: REPOSICION DE CAJA CHICA DE EGRESOS CORRESPONDIENTE AL DIA 19 DE JUNIO 2020. DE ACUERDO A COMPROBANTES ADJUNTOS. | K127: 2500 | L127: 2020-06-19 | M127: 4AA99
A128: 122 | B128: ATEMAJAC GASOLINERA Y LUBRICANTES S.A. DE C.V. | C128: XAXX010101000 | D128: CARR CATARINA ATEMAJAC, KM. 32.5 | E128: ATEMAJAC DE BRIZUELA,JAL. | F128: 45790 | G128: 151 | H128: s/ref | I128: s/ref | J128: REPOSICION DE FONDO FIJO DE CAJA CHICA DE EGRESOS. DE ACUERDO A COMPROBANTES ADJUNTOS. | K128: 18412 | L128: 2020-06-19 | M128: 46327
A129: 123 | B129: ATEMAJAC GASOLINERA Y LUBRICANTES S.A. DE C.V. | C129: XAXX010101000 | D129: CARR CATARINA ATEMAJAC, KM. 32.5 | E129: ATEMAJAC DE BRIZUELA,JAL. | F129: 45790 | G129: 151 | H129: BA PARTICIPACIONES 8760 | I129: Transf N° 0016043097 | J129: PAGO DE COMBUSTIBLE PARA VEHICULOS DEL SERVICIO PUBLICO DE ESTE AYUNTAMIENTO DE LA SEMANA DEL 3 AL 12 DE JULIO 2020. DE ACUERDO A COMPROBANTES ADJUNTOS. | K129: 12262 | L129: 2020-07-17 | M129: 803000000000
A130: 124 | B130: ATEMAJAC GASOLINERA Y LUBRICANTES S.A. DE C.V. | C130: XAXX010101000 | D130: CARR CATARINA ATEMAJAC, KM. 32.5 | E130: ATEMAJAC DE BRIZUELA,JAL. | F130: 45790 | G130: 151 | H130: BA PARTICIPACIONES 8760 | I130: Transf N° 0016043097 | J130: PAGO DE COMBUSTIBLE PARA VEHICULOS DEL SERVICIO PUBLICO DE ESTE AYUNTAMIENTO DE LA SEMANA DEL 3 AL 12 DE JULIO 2020. DE ACUERDO A COMPROBANTES ADJUNTOS. | K130: 16241 | L130: 2020-07-17 | M130: 8.2e+29
A131: 125 | B131: ATEMAJAC GASOLINERA Y LUBRICANTES S.A. DE C.V. | C131: XAXX010101000 | D131: CARR CATARINA ATEMAJAC, KM. 32.5 | E131: ATEMAJAC DE BRIZUELA,JAL. | F131: 45790 | G131: 151 | H131: BA PARTICIPACIONES 8760 | I131: Transf N° 0016043097 | J131: PAGO DE COMBUSTIBLE PARA VEHICULOS DEL SERVICIO PUBLICO DE ESTE AYUNTAMIENTO DE LA SEMANA DEL 3 AL 12 DE JULIO 2020. DE ACUERDO A COMPROBANTES ADJUNTOS. | K131: 16800 | L131: 2020-07-17 | M131: AA7A4
A132: 126 | B132: ATEMAJAC GASOLINERA Y LUBRICANTES S.A. DE C.V. | C132: XAXX010101000 | D132: CARR CATARINA ATEMAJAC, KM. 32.5 | E132: ATEMAJAC DE BRIZUELA,JAL. | F132: 45790 | G132: 151 | H132: BA PARTICIPACIONES 8760 | I132: Transf N° 0016043097 | J132: PAGO DE COMBUSTIBLE PARA VEHICULOS DEL SERVICIO PUBLICO DE ESTE AYUNTAMIENTO DE LA SEMANA DEL 3 AL 12 DE JULIO 2020. DE ACUERDO A COMPROBANTES ADJUNTOS. | K132: 6566 | L132: 2020-07-17 | M132: 5.5e+17
A133: 127 | B133: ATEMAJAC GASOLINERA Y LUBRICANTES S.A. DE C.V. | C133: XAXX010101000 | D133: CARR CATARINA ATEMAJAC, KM. 32.5 | E133: ATEMAJAC DE BRIZUELA,JAL. | F133: 45790 | G133: 151 | H133: BA PARTICIPACIONES 8760 | I133: Transf N° 0016043097 | J133: PAGO DE COMBUSTIBLE PARA VEHICULOS DEL SERVICIO PUBLICO DE ESTE AYUNTAMIENTO DE LA SEMANA DEL 3 AL 12 DE JULIO 2020. DE ACUERDO A COMPROBANTES ADJUNTOS. | K133: 5715 | L133: 2020-07-17 | M133: 1F2F6
A134: 128 | B134: ATEMAJAC GASOLINERA Y LUBRICANTES S.A. DE C.V. | C134: XAXX010101000 | D134: CARR CATARINA ATEMAJAC, KM. 32.5 | E134: ATEMAJAC DE BRIZUELA,JAL. | F134: 45790 | G134: 151 | H134: BA PARTICIPACIONES 8760 | I134: Transf N° 0016043097 | J134: PAGO DE COMBUSTIBLE PARA VEHICULOS DEL SERVICIO PUBLICO DE ESTE AYUNTAMIENTO DE LA SEMANA DEL 3 AL 12 DE JULIO 2020. DE ACUERDO A COMPROBANTES ADJUNTOS. | K134: 1670 | L134: 2020-07-17 | M134: B6410
A135: 129 | B135: ATEMAJAC GASOLINERA Y LUBRICANTES S.A. DE C.V. | C135: XAXX010101000 | D135: CARR CATARINA ATEMAJAC, KM. 32.5 | E135: ATEMAJAC DE BRIZUELA,JAL. | F135: 45790 | G135: 111 | H135: BA TESORERIA 6536 | I135: Transf N° 0081609037 | J135: PAGO DE COMBUSTIBLE DIESEL PARA VEHICULOS DEL SERVICIO PUBLICO MUNICIPAL. DE ACUERDO A COMPROBANTE ADJUNTO. | K135: 5032 | L135: 2020-07-22 | M135: 7F1F6
A136: 130 | B136: ATEMAJAC GASOLINERA Y LUBRICANTES S.A. DE C.V. | C136: XAXX010101000 | D136: CARR CATARINA ATEMAJAC, KM. 32.5 | E136: ATEMAJAC DE BRIZUELA,JAL. | F136: 45790 | G136: 111 | H136: BA TESORERIA 6536 | I136: Transf N° 0081609020 | J136: PAGO DE COMBUSTIBLE PARA VEHICULOS DEL SERVICIO PUBLICO MUNICIPAL DE LA SEMANA DEL 13 AL 17 DE JULIO 2020. DE ACUERDO A COMPROBANTE ADJUNTO. | K136: 12690 | L136: 2020-07-22 | M136: 6A50C
A137: 131 | B137: ATEMAJAC GASOLINERA Y LUBRICANTES S.A. DE C.V. | C137: XAXX010101000 | D137: CARR CATARINA ATEMAJAC, KM. 32.5 | E137: ATEMAJAC DE BRIZUELA,JAL. | F137: 45790 | G137: 111 | H137: BA TESORERIA 6536 | I137: Transf N° 0081609020 | J137: PAGO DE COMBUSTIBLE PARA VEHICULOS DEL SERVICIO PUBLICO MUNICIPAL DE LA SEMANA DEL 13 AL 17 DE JULIO 2020. DE ACUERDO A COMPROBANTE ADJUNTO. | K137: 8200 | L137: 2020-07-22 | M137: 9B999
A138: 132 | B138: ATEMAJAC GASOLINERA Y LUBRICANTES S.A. DE C.V. | C138: XAXX010101000 | D138: CARR CATARINA ATEMAJAC, KM. 32.5 | E138: ATEMAJAC DE BRIZUELA,JAL. | F138: 45790 | G138: 111 | H138: BA TESORERIA 6536 | I138: Transf N° 0081609020 | J138: PAGO DE COMBUSTIBLE PARA VEHICULOS DEL SERVICIO PUBLICO MUNICIPAL DE LA SEMANA DEL 13 AL 17 DE JULIO 2020. DE ACUERDO A COMPROBANTE ADJUNTO. | K138: 9640 | L138: 2020-07-22 | M138: 4C40E
A139: 133 | B139: ATEMAJAC GASOLINERA Y LUBRICANTES S.A. DE C.V. | C139: XAXX010101000 | D139: CARR CATARINA ATEMAJAC, KM. 32.5 | E139: ATEMAJAC DE BRIZUELA,JAL. | F139: 45790 | G139: 111 | H139: BA TESORERIA 6536 | I139: Transf N° 0006402015 | J139: PAGO DE COMBUSTIBLE PARA VEHICULOS DEL SERVICIO PUBLICO MUNICIPAL DE LA SEMANA DEL 29 DE JUNIO AL 02 DE JULIO 2020. DE ACUERDO A COMPROBANTE ADJUNTO. | K139: 3645 | L139: 2020-07-14 | M139: A4236
A140: 134 | B140: ATEMAJAC GASOLINERA Y LUBRICANTES S.A. DE C.V. | C140: XAXX010101000 | D140: CARR CATARINA ATEMAJAC, KM. 32.5 | E140: ATEMAJAC DE BRIZUELA,JAL. | F140: 45790 | G140: 111 | H140: BA TESORERIA 6536 | I140: Transf N° 0006402015 | J140: PAGO DE COMBUSTIBLE PARA VEHICULOS DEL SERVICIO PUBLICO MUNICIPAL DE LA SEMANA DEL 29 DE JUNIO AL 02 DE JULIO 2020. DE ACUERDO A COMPROBANTE ADJUNTO. | K140: 7390.01 | L140: 2020-07-14 | M140: 3D9A4
A141: 135 | B141: ATEMAJAC GASOLINERA Y LUBRICANTES S.A. DE C.V. | C141: XAXX010101000 | D141: CARR CATARINA ATEMAJAC, KM. 32.5 | E141: ATEMAJAC DE BRIZUELA,JAL. | F141: 45790 | G141: 111 | H141: BA TESORERIA 6536 | I141: Transf N° 0006402015 | J141: PAGO DE COMBUSTIBLE PARA VEHICULOS DEL SERVICIO PUBLICO MUNICIPAL DE LA SEMANA DEL 29 DE JUNIO AL 02 DE JULIO 2020. DE ACUERDO A COMPROBANTE ADJUNTO. | K141: 1072.5 | L141: 2020-07-14 | M141: C6E90
A142: 136 | B142: ATEMAJAC GASOLINERA Y LUBRICANTES S.A. DE C.V. | C142: XAXX010101000 | D142: CARR CATARINA ATEMAJAC, KM. 32.5 | E142: ATEMAJAC DE BRIZUELA,JAL. | F142: 45790 | G142: 111 | H142: BA TESORERIA 6536 | I142: Transf N° 0006402015 | J142: PAGO DE COMBUSTIBLE PARA VEHICULOS DEL SERVICIO PUBLICO MUNICIPAL DE LA SEMANA DEL 29 DE JUNIO AL 02 DE JULIO 2020. DE ACUERDO A COMPROBANTE ADJUNTO. | K142: 2145 | L142: 2020-07-14 | M142: 50FC01
A143: 137 | B143: ATEMAJAC GASOLINERA Y LUBRICANTES S.A. DE C.V. | C143: XAXX010101000 | D143: CARR CATARINA ATEMAJAC, KM. 32.5 | E143: ATEMAJAC DE BRIZUELA,JAL. | F143: 45790 | G143: 111 | H143: BA TESORERIA 6536 | I143: Transf N° 0006402015 | J143: PAGO DE COMBUSTIBLE PARA VEHICULOS DEL SERVICIO PUBLICO MUNICIPAL DE LA SEMANA DEL 29 DE JUNIO AL 02 DE JULIO 2020. DE ACUERDO A COMPROBANTE ADJUNTO. | K143: 10880 | L143: 2020-07-14 | M143: 99410
A144: 138 | B144: ATEMAJAC GASOLINERA Y LUBRICANTES S.A. DE C.V. | C144: XAXX010101000 | D144: CARR CATARINA ATEMAJAC, KM. 32.5 | E144: ATEMAJAC DE BRIZUELA,JAL. | F144: 45790 | G144: 111 | H144: BA TESORERIA 6536 | I144: Transf N° 0006402015 | J144: PAGO DE COMBUSTIBLE PARA VEHICULOS DEL SERVICIO PUBLICO MUNICIPAL DE LA SEMANA DEL 29 DE JUNIO AL 02 DE JULIO 2020. DE ACUERDO A COMPROBANTE ADJUNTO. | K144: 6160 | L144: 2020-07-14 | M144: A08B8
A145: 139 | B145: ATEMAJAC GASOLINERA Y LUBRICANTES S.A. DE C.V. | C145: XAXX010101000 | D145: CARR CATARINA ATEMAJAC, KM. 32.5 | E145: ATEMAJAC DE BRIZUELA,JAL. | F145: 45790 | G145: 111 | H145: BA TESORERIA 6536 | I145: Transf N° 0006402015 | J145: PAGO DE COMBUSTIBLE PARA VEHICULOS DEL SERVICIO PUBLICO MUNICIPAL DE LA SEMANA DEL 29 DE JUNIO AL 02 DE JULIO 2020. DE ACUERDO A COMPROBANTE ADJUNTO. | K145: 2691 | L145: 2020-07-14 | M145: 2.4e+56
A146: 140 | B146: ATEMAJAC GASOLINERA Y LUBRICANTES S.A. DE C.V. | C146: XAXX010101000 | D146: CARR CATARINA ATEMAJAC, KM. 32.5 | E146: ATEMAJAC DE BRIZUELA,JAL. | F146: 45790 | G146: 151 | H146: s/ref | I146: s/ref | J146: PAGO DE COMBUSTIBLE PARA VEHICULOS DEL SERVICIO PUBLICO DE ESTE MPIO. DE ACUERDO A COMPROBANTES ADJUNTOS. | K146: 4892 | L146: 2020-09-02 | M146: 60538
A147: 141 | B147: ATEMAJAC GASOLINERA Y LUBRICANTES S.A. DE C.V. | C147: XAXX010101000 | D147: CARR CATARINA ATEMAJAC, KM. 32.5 | E147: ATEMAJAC DE BRIZUELA,JAL. | F147: 45790 | G147: 151 | H147: s/ref | I147: s/ref | J147: PAGO DE COMBUSTIBLE PARA VEHICULOS DEL SERVICIO PUBLICO DE ESTE MPIO. DE ACUERDO A COMPROBANTES ADJUNTOS. | K147: 1700 | L147: 2020-09-02 | M147: C0CC7
A148: 142 | B148: ATEMAJAC GASOLINERA Y LUBRICANTES S.A. DE C.V. | C148: XAXX010101000 | D148: CARR CATARINA ATEMAJAC, KM. 32.5 | E148: ATEMAJAC DE BRIZUELA,JAL. | F148: 45790 | G148: 151 | H148: s/ref | I148: s/ref | J148: PAGO DE COMBUSTIBLE PARA VEHICULOS DEL SERVICIO PUBLICO MPAL. DE ACUERDO A COMPROBANTES ADJUNTOS. | K148: 1357 | L148: 2020-09-30 | M148: BBDA9
A149: 143 | B149: ATEMAJAC GASOLINERA Y LUBRICANTES S.A. DE C.V. | C149: XAXX010101000 | D149: CARR CATARINA ATEMAJAC, KM. 32.5 | E149: ATEMAJAC DE BRIZUELA,JAL. | F149: 45790 | G149: 151 | H149: s/ref | I149: s/ref | J149: PAGO DE COMBUSTIBLE PARA VEHICULOS DEL SERVICIO PUBLICO MPAL. DE ACUERDO A COMPROBANTES ADJUNTOS. | K149: 4513.4 | L149: 2020-09-30 | M149: B90A0
A150: 144 | B150: ATEMAJAC GASOLINERA Y LUBRICANTES S.A. DE C.V. | C150: XAXX010101000 | D150: CARR CATARINA ATEMAJAC, KM. 32.5 | E150: ATEMAJAC DE BRIZUELA,JAL. | F150: 45790 | G150: 151 | H150: s/ref | I150: s/ref | J150: PAGO DE COMBUSTIBLE PARA VEHICULOS DEL SERVICIO PUBLICO MPAL. DE ACUERDO A COMPROBANTES ADJUNTOS. | K150: 1708 | L150: 2020-09-30 | M150: FE809
A151: 145 | B151: ATEMAJAC GASOLINERA Y LUBRICANTES S.A. DE C.V. | C151: XAXX010101000 | D151: CARR CATARINA ATEMAJAC, KM. 32.5 | E151: ATEMAJAC DE BRIZUELA,JAL. | F151: 45790 | G151: 111 | H151: s/ref | I151: s/ref | J151: PAGO DE COMBUSTIBLE PARA VEHICULOS DEL SERVICIO PUBLICO DE ESTE MPIO. DE ACUERDO A COMPROBANTES ADJUNTOS. | K151: 1708 | L151: 2020-09-01 | M151: AB964
A152: 146 | B152: ATEMAJAC GASOLINERA Y LUBRICANTES S.A. DE C.V. | C152: XAXX010101000 | D152: CARR CATARINA ATEMAJAC, KM. 32.5 | E152: ATEMAJAC DE BRIZUELA,JAL. | F152: 45790 | G152: 111 | H152: s/ref | I152: s/ref | J152: PAGO DE COMBUSTIBLE PARA VEHICULOS DEL SERVICIO PUBLICO DE ESTE MPIO. DE ACUERDO A COMPROBANTES ADJUNTOS. | K152: 15619 | L152: 2020-09-01 | M152: 81A65
A153: 147 | B153: ATEMAJAC GASOLINERA Y LUBRICANTES S.A. DE C.V. | C153: XAXX010101000 | D153: CARR CATARINA ATEMAJAC, KM. 32.5 | E153: ATEMAJAC DE BRIZUELA,JAL. | F153: 45790 | G153: 111 | H153: s/ref | I153: s/ref | J153: PAGO DE COMBUSTIBLE PARA VEHICULOS DEL SERVICIO PUBLICO DE ESTE MPIO. DE ACUERDO A COMPROBANTES ADJUNTOS. | K153: 13940.4 | L153: 2020-09-01 | M153: F463B
A154: 148 | B154: ATEMAJAC GASOLINERA Y LUBRICANTES S.A. DE C.V. | C154: XAXX010101000 | D154: CARR CATARINA ATEMAJAC, KM. 32.5 | E154: ATEMAJAC DE BRIZUELA,JAL. | F154: 45790 | G154: 111 | H154: s/ref | I154: s/ref | J154: PAGO DE COMBUSTIBLE PARA VEHICULOS DEL SERVICIO PUBLICO DE ESTE MPIO. DE ACUERDO A COMPROBANTES ADJUNTOS. | K154: 13505.3 | L154: 2020-09-01 | M154: A2B17
A155: 149 | B155: ATEMAJAC GASOLINERA Y LUBRICANTES S.A. DE C.V. | C155: XAXX010101000 | D155: CARR CATARINA ATEMAJAC, KM. 32.5 | E155: ATEMAJAC DE BRIZUELA,JAL. | F155: 45790 | G155: 151 | H155: s/ref | I155: Ref N° EF | J155: PAGO DE GASTOS VARIOS CORRESPONDIENTES AL MES DE JULIO Y JUNIO 2020. DE ACUERDO A COMPROBANTES ADJUNTOS. | K155: 1000 | L155: 2020-07-30 | M155: 21B68
A156: 150 | B156: ATEMAJAC GASOLINERA Y LUBRICANTES S.A. DE C.V. | C156: XAXX010101000 | D156: CARR CATARINA ATEMAJAC, KM. 32.5 | E156: ATEMAJAC DE BRIZUELA,JAL. | F156: 45790 | G156: 111 | H156: BA TESORERIA 6536 | I156: Transf N° 0036896074 | J156: PAGO DE COMBUSTIBLE PARA VEHICULOS AL SERVICIO PUBLICO DE ESTE MUNICIPIO DE LA SEMANA DEL 06 AL 12 DE ENERO 2020. DE ACUERDO A COMPROBANTES ADJUNTOS. | K156: 9009 | L156: 2020-01-01 | M156: 9E729
A157: 151 | B157: ATEMAJAC GASOLINERA Y LUBRICANTES S.A. DE C.V. | C157: XAXX010101000 | D157: CARR CATARINA ATEMAJAC, KM. 32.5 | E157: ATEMAJAC DE BRIZUELA,JAL. | F157: 45790 | G157: 111 | H157: BA TESORERIA 6536 | I157: Transf N° 0036896074 | J157: PAGO DE COMBUSTIBLE PARA VEHICULOS AL SERVICIO PUBLICO DE ESTE MUNICIPIO DE LA SEMANA DEL 06 AL 12 DE ENERO 2020. DE ACUERDO A COMPROBANTES ADJUNTOS. | K157: 46888.02 | L157: 2020-01-01 | M157: 53575
A158: 152 | B158: ATEMAJAC GASOLINERA Y LUBRICANTES S.A. DE C.V. | C158: XAXX010101000 | D158: CARR CATARINA ATEMAJAC, KM. 32.5 | E158: ATEMAJAC DE BRIZUELA,JAL. | F158: 45790 | G158: 111 | H158: BA TESORERIA 6536 | I158: Transf N° 0034730017 | J158: PAGO DE COMBUSTIBLE PARA VEHICULOS DEL SERVICIO PUBLICO MUNICIPAL DE LA SEMANA DEL 20 AL 26 DE ENERO 2020. DE ACUERDO A COMPROBANTES ADJUNTOS. | K158: 41548 | L158: 2020-01-31 | M158: 939A8
A159: 153 | B159: ATEMAJAC GASOLINERA Y LUBRICANTES S.A. DE C.V. | C159: XAXX010101000 | D159: CARR CATARINA ATEMAJAC, KM. 32.5 | E159: ATEMAJAC DE BRIZUELA,JAL. | F159: 45790 | G159: 111 | H159: BA TESORERIA 6536 | I159: Transf N° 0034730017 | J159: PAGO DE COMBUSTIBLE PARA VEHICULOS DEL SERVICIO PUBLICO MUNICIPAL DE LA SEMANA DEL 20 AL 26 DE ENERO 2020. DE ACUERDO A COMPROBANTES ADJUNTOS. | K159: 10117 | L159: 2020-01-31 | M159: 3903E
A160: 154 | B160: ATEMAJAC GASOLINERA Y LUBRICANTES S.A. DE C.V. | C160: XAXX010101000 | D160: CARR CATARINA ATEMAJAC, KM. 32.5 | E160: ATEMAJAC DE BRIZUELA,JAL. | F160: 45790 | G160: 111 | H160: BA TESORERIA 6536 | I160: Transf N° 0001722089 | J160: PAGO DE COMBUSTIBLE PARA VEHICULOS DE ESTE AYUNTAMIENTO DEL PERIODO DEL 13 AL 19 DE ENERO 2020. DE ACUERDO A COMPROBANTES ADJUNTOS. | K160: 9020 | L160: 2020-01-24 | M160: DFAC9
A161: 155 | B161: ATEMAJAC GASOLINERA Y LUBRICANTES S.A. DE C.V. | C161: XAXX010101000 | D161: CARR CATARINA ATEMAJAC, KM. 32.5 | E161: ATEMAJAC DE BRIZUELA,JAL. | F161: 45790 | G161: 111 | H161: BA TESORERIA 6536 | I161: Transf N° 0001722089 | J161: PAGO DE COMBUSTIBLE PARA VEHICULOS DE ESTE AYUNTAMIENTO DEL PERIODO DEL 13 AL 19 DE ENERO 2020. DE ACUERDO A COMPROBANTES ADJUNTOS. | K161: 4324 | L161: 2020-01-24 | M161: 6CE86
A162: 156 | B162: ATEMAJAC GASOLINERA Y LUBRICANTES S.A. DE C.V. | C162: XAXX010101000 | D162: CARR CATARINA ATEMAJAC, KM. 32.5 | E162: ATEMAJAC DE BRIZUELA,JAL. | F162: 45790 | G162: 111 | H162: BA TESORERIA 6536 | I162: Transf N° 0001722089 | J162: PAGO DE COMBUSTIBLE PARA VEHICULOS DE ESTE AYUNTAMIENTO DEL PERIODO DEL 13 AL 19 DE ENERO 2020. DE ACUERDO A COMPROBANTES ADJUNTOS. | K162: 4356 | L162: 2020-01-24 | M162: 3B35C
A163: 157 | B163: ATEMAJAC GASOLINERA Y LUBRICANTES S.A. DE C.V. | C163: XAXX010101000 | D163: CARR CATARINA ATEMAJAC, KM. 32.5 | E163: ATEMAJAC DE BRIZUELA,JAL. | F163: 45790 | G163: 111 | H163: BA TESORERIA 6536 | I163: Transf N° 0001722089 | J163: PAGO DE COMBUSTIBLE PARA VEHICULOS DE ESTE AYUNTAMIENTO DEL PERIODO DEL 13 AL 19 DE ENERO 2020. DE ACUERDO A COMPROBANTES ADJUNTOS. | K163: 1456 | L163: 2020-01-24 | M163: E95BB
A164: 158 | B164: ATEMAJAC GASOLINERA Y LUBRICANTES S.A. DE C.V. | C164: XAXX010101000 | D164: CARR CATARINA ATEMAJAC, KM. 32.5 | E164: ATEMAJAC DE BRIZUELA,JAL. | F164: 45790 | G164: 111 | H164: BA TESORERIA 6536 | I164: Transf N° 0001722089 | J164: PAGO DE COMBUSTIBLE PARA VEHICULOS DE ESTE AYUNTAMIENTO DEL PERIODO DEL 13 AL 19 DE ENERO 2020. DE ACUERDO A COMPROBANTES ADJUNTOS. | K164: 2343 | L164: 2020-01-24 | M164: 5793D
A165: 159 | B165: ATEMAJAC GASOLINERA Y LUBRICANTES S.A. DE C.V. | C165: XAXX010101000 | D165: CARR CATARINA ATEMAJAC, KM. 32.5 | E165: ATEMAJAC DE BRIZUELA,JAL. | F165: 45790 | G165: 111 | H165: BA TESORERIA 6536 | I165: Transf N° 0001722089 | J165: PAGO DE COMBUSTIBLE PARA VEHICULOS DE ESTE AYUNTAMIENTO DEL PERIODO DEL 13 AL 19 DE ENERO 2020. DE ACUERDO A COMPROBANTES ADJUNTOS. | K165: 14616 | L165: 2020-01-24 | M165: A24F2
A166: 160 | B166: ATEMAJAC GASOLINERA Y LUBRICANTES S.A. DE C.V. | C166: XAXX010101000 | D166: CARR CATARINA ATEMAJAC, KM. 32.5 | E166: ATEMAJAC DE BRIZUELA,JAL. | F166: 45790 | G166: 111 | H166: BA TESORERIA 6536 | I166: Transf N° 0001722089 | J166: PAGO DE COMBUSTIBLE PARA VEHICULOS DE ESTE AYUNTAMIENTO DEL PERIODO DEL 13 AL 19 DE ENERO 2020. DE ACUERDO A COMPROBANTES ADJUNTOS. | K166: 12280 | L166: 2020-01-24 | M166: 48078
A167: 161 | B167: ATEMAJAC GASOLINERA Y LUBRICANTES S.A. DE C.V. | C167: XAXX010101000 | D167: CARR CATARINA ATEMAJAC, KM. 32.5 | E167: ATEMAJAC DE BRIZUELA,JAL. | F167: 45790 | G167: 111 | H167: BA TESORERIA 6536 | I167: Transf N° 0001722089 | J167: PAGO DE COMBUSTIBLE PARA VEHICULOS DE ESTE AYUNTAMIENTO DEL PERIODO DEL 13 AL 19 DE ENERO 2020. DE ACUERDO A COMPROBANTES ADJUNTOS. | K167: 13580 | L167: 2020-01-24 | M167: 69DD8
A168: 162 | B168: ATEMAJAC GASOLINERA Y LUBRICANTES S.A. DE C.V. | C168: XAXX010101000 | D168: CARR CATARINA ATEMAJAC, KM. 32.5 | E168: ATEMAJAC DE BRIZUELA,JAL. | F168: 45790 | G168: 111 | H168: BA TESORERIA 6536 | I168: Transf N° 0001722089 | J168: PAGO DE COMBUSTIBLE PARA VEHICULOS DE ESTE AYUNTAMIENTO DEL PERIODO DEL 13 AL 19 DE ENERO 2020. DE ACUERDO A COMPROBANTES ADJUNTOS. | K168: 2950 | L168: 2020-01-24 | M168: 1A1F3
A169: 163 | B169: ATEMAJAC GASOLINERA Y LUBRICANTES S.A. DE C.V. | C169: XAXX010101000 | D169: CARR CATARINA ATEMAJAC, KM. 32.5 | E169: ATEMAJAC DE BRIZUELA,JAL. | F169: 45790 | G169: 111 | H169: BA TESORERIA 6536 | I169: Transf N° 0092277015 | J169: PAGO DE COMBUSTIBLE DE PARA VEHICULOS DEL SERVICIO PUBLICO DE ESTE MPIO CORRESPONDIENTE A LA SEMANA DEL 10 AL 16 DE FEBRERO 2020. DE ACUERDO A COMPROBANTES ADJUNTOS. | K169: 1917 | L169: 2020-02-24 | M169: 3F95A
A170: 164 | B170: ATEMAJAC GASOLINERA Y LUBRICANTES S.A. DE C.V. | C170: XAXX010101000 | D170: CARR CATARINA ATEMAJAC, KM. 32.5 | E170: ATEMAJAC DE BRIZUELA,JAL. | F170: 45790 | G170: 111 | H170: BA TESORERIA 6536 | I170: Transf N° 0092277015 | J170: PAGO DE COMBUSTIBLE DE PARA VEHICULOS DEL SERVICIO PUBLICO DE ESTE MPIO CORRESPONDIENTE A LA SEMANA DEL 10 AL 16 DE FEBRERO 2020. DE ACUERDO A COMPROBANTES ADJUNTOS. | K170: 9900 | L170: 2020-02-24 | M170: B1ED6
A171: 165 | B171: ATEMAJAC GASOLINERA Y LUBRICANTES S.A. DE C.V. | C171: XAXX010101000 | D171: CARR CATARINA ATEMAJAC, KM. 32.5 | E171: ATEMAJAC DE BRIZUELA,JAL. | F171: 45790 | G171: 111 | H171: BA TESORERIA 6536 | I171: Transf N° 0092277015 | J171: PAGO DE COMBUSTIBLE DE PARA VEHICULOS DEL SERVICIO PUBLICO DE ESTE MPIO CORRESPONDIENTE A LA SEMANA DEL 10 AL 16 DE FEBRERO 2020. DE ACUERDO A COMPROBANTES ADJUNTOS. | K171: 3370 | L171: 2020-02-24 | M171: FB54C
A172: 166 | B172: ATEMAJAC GASOLINERA Y LUBRICANTES S.A. DE C.V. | C172: XAXX010101000 | D172: CARR CATARINA ATEMAJAC, KM. 32.5 | E172: ATEMAJAC DE BRIZUELA,JAL. | F172: 45790 | G172: 111 | H172: BA TESORERIA 6536 | I172: Transf N° 0092277015 | J172: PAGO DE COMBUSTIBLE DE PARA VEHICULOS DEL SERVICIO PUBLICO DE ESTE MPIO CORRESPONDIENTE A LA SEMANA DEL 10 AL 16 DE FEBRERO 2020. DE ACUERDO A COMPROBANTES ADJUNTOS. | K172: 17858 | L172: 2020-02-24 | M172: 64184
A173: 167 | B173: ATEMAJAC GASOLINERA Y LUBRICANTES S.A. DE C.V. | C173: XAXX010101000 | D173: CARR CATARINA ATEMAJAC, KM. 32.5 | E173: ATEMAJAC DE BRIZUELA,JAL. | F173: 45790 | G173: 111 | H173: BA TESORERIA 6536 | I173: Transf N° 0092277015 | J173: PAGO DE COMBUSTIBLE DE PARA VEHICULOS DEL SERVICIO PUBLICO DE ESTE MPIO CORRESPONDIENTE A LA SEMANA DEL 10 AL 16 DE FEBRERO 2020. DE ACUERDO A COMPROBANTES ADJUNTOS. | K173: 5517 | L173: 2020-02-24 | M173: 8B70C
A174: 168 | B174: ATEMAJAC GASOLINERA Y LUBRICANTES S.A. DE C.V. | C174: XAXX010101000 | D174: CARR CATARINA ATEMAJAC, KM. 32.5 | E174: ATEMAJAC DE BRIZUELA,JAL. | F174: 45790 | G174: 111 | H174: BA TESORERIA 6536 | I174: Transf N° 0092277015 | J174: PAGO DE COMBUSTIBLE DE PARA VEHICULOS DEL SERVICIO PUBLICO DE ESTE MPIO CORRESPONDIENTE A LA SEMANA DEL 10 AL 16 DE FEBRERO 2020. DE ACUERDO A COMPROBANTES ADJUNTOS. | K174: 4370 | L174: 2020-02-24 | M174: D892C
A175: 169 | B175: ATEMAJAC GASOLINERA Y LUBRICANTES S.A. DE C.V. | C175: XAXX010101000 | D175: CARR CATARINA ATEMAJAC, KM. 32.5 | E175: ATEMAJAC DE BRIZUELA,JAL. | F175: 45790 | G175: 111 | H175: BA TESORERIA 6536 | I175: Transf N° 0092277015 | J175: PAGO DE COMBUSTIBLE DE PARA VEHICULOS DEL SERVICIO PUBLICO DE ESTE MPIO CORRESPONDIENTE A LA SEMANA DEL 10 AL 16 DE FEBRERO 2020. DE ACUERDO A COMPROBANTES ADJUNTOS. | K175: 8220.01 | L175: 2020-02-24 | M175: 397000000000
A176: 170 | B176: ATEMAJAC GASOLINERA Y LUBRICANTES S.A. DE C.V. | C176: XAXX010101000 | D176: CARR CATARINA ATEMAJAC, KM. 32.5 | E176: ATEMAJAC DE BRIZUELA,JAL. | F176: 45790 | G176: 111 | H176: BA TESORERIA 6536 | I176: Transf N° 0092277015 | J176: PAGO DE COMBUSTIBLE DE PARA VEHICULOS DEL SERVICIO PUBLICO DE ESTE MPIO CORRESPONDIENTE A LA SEMANA DEL 10 AL 16 DE FEBRERO 2020. DE ACUERDO A COMPROBANTES ADJUNTOS. | K176: 6700 | L176: 2020-02-24 | M176: 3343D
A177: 171 | B177: ATEMAJAC GASOLINERA Y LUBRICANTES S.A. DE C.V. | C177: XAXX010101000 | D177: CARR CATARINA ATEMAJAC, KM. 32.5 | E177: ATEMAJAC DE BRIZUELA,JAL. | F177: 45790 | G177: 111 | H177: BA TESORERIA 6536 | I177: Transf N° 0092277015 | J177: PAGO DE COMBUSTIBLE DE PARA VEHICULOS DEL SERVICIO PUBLICO DE ESTE MPIO CORRESPONDIENTE A LA SEMANA DEL 10 AL 16 DE FEBRERO 2020. DE ACUERDO A COMPROBANTES ADJUNTOS. | K177: 5700 | L177: 2020-02-24 | M177: 62D67
A178: 172 | B178: ATEMAJAC GASOLINERA Y LUBRICANTES S.A. DE C.V. | C178: XAXX010101000 | D178: CARR CATARINA ATEMAJAC, KM. 32.5 | E178: ATEMAJAC DE BRIZUELA,JAL. | F178: 45790 | G178: 111 | H178: BA TESORERIA 6536 | I178: Transf N° 0092277015 | J178: PAGO DE COMBUSTIBLE DE PARA VEHICULOS DEL SERVICIO PUBLICO DE ESTE MPIO CORRESPONDIENTE A LA SEMANA DEL 10 AL 16 DE FEBRERO 2020. DE ACUERDO A COMPROBANTES ADJUNTOS. | K178: 7231.1 | L178: 2020-02-24 | M178: EF493
A179: 173 | B179: ATEMAJAC GASOLINERA Y LUBRICANTES S.A. DE C.V. | C179: XAXX010101000 | D179: CARR CATARINA ATEMAJAC, KM. 32.5 | E179: ATEMAJAC DE BRIZUELA,JAL. | F179: 45790 | G179: 111 | H179: BA TESORERIA 6536 | I179: Transf N° 0088927039 | J179: PAGO DE COMBUSTIBLE PARA VEHICULOS DE SERVICIO PUBLICO DE ESTE MPIO DEL LA SEMANA DE 11 AL 23 DE MARZO 2020. DE ACUERDO A COMPROBANTE ADJUNTO. | K179: 57751 | L179: 2020-03-09 | M179: 12950
A180: 174 | B180: ATEMAJAC GASOLINERA Y LUBRICANTES S.A. DE C.V. | C180: XAXX010101000 | D180: CARR CATARINA ATEMAJAC, KM. 32.5 | E180: ATEMAJAC DE BRIZUELA,JAL. | F180: 45790 | G180: 111 | H180: BA TESORERIA 6536 | I180: Transf N° 0088927055 | J180: PAGO DE DIESEL PARA VEHICULOS DE SERVICIO PUBLICO DE ESTE MPIO DEL LA SEMANA DEL 17 AL 23 DE FEBRERO 2020. DE ACUERDO A COMPROBANTE ADJUNTO. | K180: 8653 | L180: 2020-03-09 | M180: 359D2
A181: 175 | B181: ATEMAJAC GASOLINERA Y LUBRICANTES S.A. DE C.V. | C181: XAXX010101000 | D181: CARR CATARINA ATEMAJAC, KM. 32.5 | E181: ATEMAJAC DE BRIZUELA,JAL. | F181: 45790 | G181: 111 | H181: BA TESORERIA 6536 | I181: Transf N° 0072201179 | J181: PAGO DE COMBUSTIBLE PARA VEHICULOS DE SERVICIO PUBLICO DE ESTE MPIO DEL LA SEMANA DEL 09 AL 15 DE MARZO 2020. DE ACUERDO A COMPROBANTE ADJUNTO. | K181: 2748 | L181: 2020-03-25 | M181: BD750
A182: 176 | B182: ATEMAJAC GASOLINERA Y LUBRICANTES S.A. DE C.V. | C182: XAXX010101000 | D182: CARR CATARINA ATEMAJAC, KM. 32.5 | E182: ATEMAJAC DE BRIZUELA,JAL. | F182: 45790 | G182: 111 | H182: BA TESORERIA 6536 | I182: Transf N° 0072201179 | J182: PAGO DE COMBUSTIBLE PARA VEHICULOS DE SERVICIO PUBLICO DE ESTE MPIO DEL LA SEMANA DEL 09 AL 15 DE MARZO 2020. DE ACUERDO A COMPROBANTE ADJUNTO. | K182: 5553 | L182: 2020-03-25 | M182: D91E1
A183: 177 | B183: ATEMAJAC GASOLINERA Y LUBRICANTES S.A. DE C.V. | C183: XAXX010101000 | D183: CARR CATARINA ATEMAJAC, KM. 32.5 | E183: ATEMAJAC DE BRIZUELA,JAL. | F183: 45790 | G183: 111 | H183: BA TESORERIA 6536 | I183: Transf N° 0072201179 | J183: PAGO DE COMBUSTIBLE PARA VEHICULOS DE SERVICIO PUBLICO DE ESTE MPIO DEL LA SEMANA DEL 09 AL 15 DE MARZO 2020. DE ACUERDO A COMPROBANTE ADJUNTO. | K183: 3132 | L183: 2020-03-25 | M183: 3E0F7
A184: 178 | B184: ATEMAJAC GASOLINERA Y LUBRICANTES S.A. DE C.V. | C184: XAXX010101000 | D184: CARR CATARINA ATEMAJAC, KM. 32.5 | E184: ATEMAJAC DE BRIZUELA,JAL. | F184: 45790 | G184: 111 | H184: BA TESORERIA 6536 | I184: Transf N° 0072201179 | J184: PAGO DE COMBUSTIBLE PARA VEHICULOS DE SERVICIO PUBLICO DE ESTE MPIO DEL LA SEMANA DEL 09 AL 15 DE MARZO 2020. DE ACUERDO A COMPROBANTE ADJUNTO. | K184: 2800 | L184: 2020-03-25 | M184: E9798
A185: 179 | B185: ATEMAJAC GASOLINERA Y LUBRICANTES S.A. DE C.V. | C185: XAXX010101000 | D185: CARR CATARINA ATEMAJAC, KM. 32.5 | E185: ATEMAJAC DE BRIZUELA,JAL. | F185: 45790 | G185: 111 | H185: BA TESORERIA 6536 | I185: Transf N° 0072201179 | J185: PAGO DE COMBUSTIBLE PARA VEHICULOS DE SERVICIO PUBLICO DE ESTE MPIO DEL LA SEMANA DEL 09 AL 15 DE MARZO 2020. DE ACUERDO A COMPROBANTE ADJUNTO. | K185: 4182 | L185: 2020-03-25 | M185: 9BA9F
A186: 180 | B186: ATEMAJAC GASOLINERA Y LUBRICANTES S.A. DE C.V. | C186: XAXX010101000 | D186: CARR CATARINA ATEMAJAC, KM. 32.5 | E186: ATEMAJAC DE BRIZUELA,JAL. | F186: 45790 | G186: 111 | H186: BA TESORERIA 6536 | I186: Transf N° 0072201179 | J186: PAGO DE COMBUSTIBLE PARA VEHICULOS DE SERVICIO PUBLICO DE ESTE MPIO DEL LA SEMANA DEL 09 AL 15 DE MARZO 2020. DE ACUERDO A COMPROBANTE ADJUNTO. | K186: 7568 | L186: 2020-03-25 | M186: 17577
A187: 181 | B187: ATEMAJAC GASOLINERA Y LUBRICANTES S.A. DE C.V. | C187: XAXX010101000 | D187: CARR CATARINA ATEMAJAC, KM. 32.5 | E187: ATEMAJAC DE BRIZUELA,JAL. | F187: 45790 | G187: 111 | H187: BA TESORERIA 6536 | I187: Transf N° 0072201179 | J187: PAGO DE COMBUSTIBLE PARA VEHICULOS DE SERVICIO PUBLICO DE ESTE MPIO DEL LA SEMANA DEL 09 AL 15 DE MARZO 2020. DE ACUERDO A COMPROBANTE ADJUNTO. | K187: 1582 | L187: 2020-03-25 | M187: 42BC4
A188: 182 | B188: ATEMAJAC GASOLINERA Y LUBRICANTES S.A. DE C.V. | C188: XAXX010101000 | D188: CARR CATARINA ATEMAJAC, KM. 32.5 | E188: ATEMAJAC DE BRIZUELA,JAL. | F188: 45790 | G188: 111 | H188: BA TESORERIA 6536 | I188: Transf N° 0072201179 | J188: PAGO DE COMBUSTIBLE PARA VEHICULOS DE SERVICIO PUBLICO DE ESTE MPIO DEL LA SEMANA DEL 09 AL 15 DE MARZO 2020. DE ACUERDO A COMPROBANTE ADJUNTO. | K188: 17911 | L188: 2020-03-25 | M188: 8293B
A189: 183 | B189: ATEMAJAC GASOLINERA Y LUBRICANTES S.A. DE C.V. | C189: XAXX010101000 | D189: CARR CATARINA ATEMAJAC, KM. 32.5 | E189: ATEMAJAC DE BRIZUELA,JAL. | F189: 45790 | G189: 111 | H189: BA TESORERIA 6536 | I189: Transf N° 0072201179 | J189: PAGO DE COMBUSTIBLE PARA VEHICULOS DE SERVICIO PUBLICO DE ESTE MPIO DEL LA SEMANA DEL 09 AL 15 DE MARZO 2020. DE ACUERDO A COMPROBANTE ADJUNTO. | K189: 16021 | L189: 2020-03-25 | M189: 92499
A190: 184 | B190: ATEMAJAC GASOLINERA Y LUBRICANTES S.A. DE C.V. | C190: XAXX010101000 | D190: CARR CATARINA ATEMAJAC, KM. 32.5 | E190: ATEMAJAC DE BRIZUELA,JAL. | F190: 45790 | G190: 111 | H190: BA TESORERIA 6536 | I190: Transf N° 0072201179 | J190: PAGO DE COMBUSTIBLE PARA VEHICULOS DE SERVICIO PUBLICO DE ESTE MPIO DEL LA SEMANA DEL 09 AL 15 DE MARZO 2020. DE ACUERDO A COMPROBANTE ADJUNTO. | K190: 14590.01 | L190: 2020-03-25 | M190: 35882
A191: 185 | B191: ATEMAJAC GASOLINERA Y LUBRICANTES S.A. DE C.V. | C191: XAXX010101000 | D191: CARR CATARINA ATEMAJAC, KM. 32.5 | E191: ATEMAJAC DE BRIZUELA,JAL. | F191: 45790 | G191: 111 | H191: BA TESORERIA 6536 | I191: Transf N° 0019291094 | J191: PAGO DE DIESEL PARA VEHICULOS DE SERVICIO PUBLICO DE ESTE MPIO DEL LA SEMANA DEL 02 AL 08 DE MARZO 2020. DE ACUERDO A COMPROBANTE ADJUNTO. | K191: 6475 | L191: 2020-03-20 | M191: 6E812
A192: 186 | B192: ATEMAJAC GASOLINERA Y LUBRICANTES S.A. DE C.V. | C192: XAXX010101000 | D192: CARR CATARINA ATEMAJAC, KM. 32.5 | E192: ATEMAJAC DE BRIZUELA,JAL. | F192: 45790 | G192: 111 | H192: BA TESORERIA 6536 | I192: Transf N° 0019291094 | J192: PAGO DE DIESEL PARA VEHICULOS DE SERVICIO PUBLICO DE ESTE MPIO DEL LA SEMANA DEL 02 AL 08 DE MARZO 2020. DE ACUERDO A COMPROBANTE ADJUNTO. | K192: 5888 | L192: 2020-03-20 | M192: D1A0A
A193: 187 | B193: ATEMAJAC GASOLINERA Y LUBRICANTES S.A. DE C.V. | C193: XAXX010101000 | D193: CARR CATARINA ATEMAJAC, KM. 32.5 | E193: ATEMAJAC DE BRIZUELA,JAL. | F193: 45790 | G193: 111 | H193: BA TESORERIA 6536 | I193: Transf N° 0019291078 | J193: PAGO DE COMBUSTIBLE PARA VEHICULOS DE SERVICIO PUBLICO DE ESTE MPIO DEL LA SEMANA DE 09 AL 15 DE MARZO 2020. DE ACUERDO A COMPROBANTE ADJUNTO. | K193: 16490 | L193: 2020-03-20 | M193: CBB105
A194: 188 | B194: ATEMAJAC GASOLINERA Y LUBRICANTES S.A. DE C.V. | C194: XAXX010101000 | D194: CARR CATARINA ATEMAJAC, KM. 32.5 | E194: ATEMAJAC DE BRIZUELA,JAL. | F194: 45790 | G194: 111 | H194: BA TESORERIA 6536 | I194: Transf N° 0019291078 | J194: PAGO DE COMBUSTIBLE PARA VEHICULOS DE SERVICIO PUBLICO DE ESTE MPIO DEL LA SEMANA DE 09 AL 15 DE MARZO 2020. DE ACUERDO A COMPROBANTE ADJUNTO. | K194: 2130 | L194: 2020-03-20 | M194: 295DB
A195: 189 | B195: ATEMAJAC GASOLINERA Y LUBRICANTES S.A. DE C.V. | C195: XAXX010101000 | D195: CARR CATARINA ATEMAJAC, KM. 32.5 | E195: ATEMAJAC DE BRIZUELA,JAL. | F195: 45790 | G195: 111 | H195: BA TESORERIA 6536 | I195: Transf N° 0019291078 | J195: PAGO DE COMBUSTIBLE PARA VEHICULOS DE SERVICIO PUBLICO DE ESTE MPIO DEL LA SEMANA DE 09 AL 15 DE MARZO 2020. DE ACUERDO A COMPROBANTE ADJUNTO. | K195: 14570 | L195: 2020-03-20 | M195: C255E
A196: 190 | B196: ATEMAJAC GASOLINERA Y LUBRICANTES S.A. DE C.V. | C196: XAXX010101000 | D196: CARR CATARINA ATEMAJAC, KM. 32.5 | E196: ATEMAJAC DE BRIZUELA,JAL. | F196: 45790 | G196: 111 | H196: BA TESORERIA 6536 | I196: Transf N° 0019291078 | J196: PAGO DE COMBUSTIBLE PARA VEHICULOS DE SERVICIO PUBLICO DE ESTE MPIO DEL LA SEMANA DE 09 AL 15 DE MARZO 2020. DE ACUERDO A COMPROBANTE ADJUNTO. | K196: 16040 | L196: 2020-03-20 | M196: 81871
A197: 191 | B197: ATEMAJAC GASOLINERA Y LUBRICANTES S.A. DE C.V. | C197: XAXX010101000 | D197: CARR CATARINA ATEMAJAC, KM. 32.5 | E197: ATEMAJAC DE BRIZUELA,JAL. | F197: 45790 | G197: 111 | H197: BA TESORERIA 6536 | I197: Transf N° 0019291078 | J197: PAGO DE COMBUSTIBLE PARA VEHICULOS DE SERVICIO PUBLICO DE ESTE MPIO DEL LA SEMANA DE 09 AL 15 DE MARZO 2020. DE ACUERDO A COMPROBANTE ADJUNTO. | K197: 5040 | L197: 2020-03-20 | M197: 143C4
A198: 192 | B198: ATEMAJAC GASOLINERA Y LUBRICANTES S.A. DE C.V. | C198: XAXX010101000 | D198: CARR CATARINA ATEMAJAC, KM. 32.5 | E198: ATEMAJAC DE BRIZUELA,JAL. | F198: 45790 | G198: 111 | H198: BA TESORERIA 6536 | I198: Transf N° 0019291078 | J198: PAGO DE COMBUSTIBLE PARA VEHICULOS DE SERVICIO PUBLICO DE ESTE MPIO DEL LA SEMANA DE 09 AL 15 DE MARZO 2020. DE ACUERDO A COMPROBANTE ADJUNTO. | K198: 1830 | L198: 2020-03-20 | M198: C3C59
A199: 193 | B199: ATEMAJAC GASOLINERA Y LUBRICANTES S.A. DE C.V. | C199: XAXX010101000 | D199: CARR CATARINA ATEMAJAC, KM. 32.5 | E199: ATEMAJAC DE BRIZUELA,JAL. | F199: 45790 | G199: 111 | H199: BA TESORERIA 6536 | I199: Transf N° 0019291078 | J199: PAGO DE COMBUSTIBLE PARA VEHICULOS DE SERVICIO PUBLICO DE ESTE MPIO DEL LA SEMANA DE 09 AL 15 DE MARZO 2020. DE ACUERDO A COMPROBANTE ADJUNTO. | K199: 4833.1 | L199: 2020-03-20 | M199: 0CFF2
A200: 194 | B200: ATEMAJAC GASOLINERA Y LUBRICANTES S.A. DE C.V. | C200: XAXX010101000 | D200: CARR CATARINA ATEMAJAC, KM. 32.5 | E200: ATEMAJAC DE BRIZUELA,JAL. | F200: 45790 | G200: 151 | H200: BA PARTICIPACIONES 8760 | I200: Transf N° 0081609055 | J200: PAGO DE COMBUSTIBLE PARA VEHICULOS DEL SERVICIO PUBLICO DE ESTE AYUNTAMIENTO DE LA SEMANA DEL 13 AL 17 DE JULIO 2020. DE ACUERDO A COMPROBANTES ADJUNTOS. | K200: 3400 | L200: 2020-07-16 | M200: BAC9A
A201: 195 | B201: ATEMAJAC GASOLINERA Y LUBRICANTES S.A. DE C.V. | C201: XAXX010101000 | D201: CARR CATARINA ATEMAJAC, KM. 32.5 | E201: ATEMAJAC DE BRIZUELA,JAL. | F201: 45790 | G201: 151 | H201: BA PARTICIPACIONES 8760 | I201: Transf N° 0081609055 | J201: PAGO DE COMBUSTIBLE PARA VEHICULOS DEL SERVICIO PUBLICO DE ESTE AYUNTAMIENTO DE LA SEMANA DEL 13 AL 17 DE JULIO 2020. DE ACUERDO A COMPROBANTES ADJUNTOS. | K201: 1600 | L201: 2020-07-16 | M201: C111B
... 840 more rows

Sheet F11
A1: =Validacion!A2 -> Atemajac de Brizuela
A2: INFORME SOBRE PASIVOS CONTINGENTES
A3: ='F1'!B3 -> Al 31 de Diciembre de 2021
A5: DESCRIPCIÓN | AE5: IMPORTE
A6: NO SE CUENTA CON PASIVOS CONTINGENTES
A207: Bajo protesta de decir verdad declaramos que los Estados Financieros y sus Notas son razonablemente correctos y resposabilidad del emisor
B210: =Validacion!A7 -> C. SANTIAGO LEON CASTRO | W210: =Validacion!A9 -> L.T. JOCELYN SANCHEZ HERRERA
B212: Presidente Municipal o Titular del ente público | W212: Encargado de la Hacienda Municipal o Responsable de las finanzas del ente público

Sheet F7B
A1: =Validacion!A2 -> Atemajac de Brizuela
A2: ESTADO ANALÍTICO DE INGRESOS DETALLADO - LDF
A3: ='F6'!A3 -> Del 1° de Enero al 31 de Diciembre de 2021
A5: RUBRO DE INGRESOS | C5: INGRESO | H5: DIFERENCIA
C6: ESTIMADO | D6: AMPLIACIÓN Y REDUCCIÓN | E6: MODIFICADO | F6: DEVENGADO | G6: RECAUDADO
A7: INGRESOS DE LIBRE DISPOSICIÓN
A8: Impuestos | C8: =Balanza!G796 -> 3016201 | D8: =Balanza!G930 -> 0 | E8: =C8+D8 -> 3016201 | F8: =Balanza!F997 -> 4282314.98 | G8: =Balanza!H1064 -> 4282314.98 | H8: =G8-C8 -> 1266113.98
A9: Cuotas y aportaciones de seguridad social | C9: =Balanza!G806 -> 0 | D9: =Balanza!G940 -> 0 | E9: =C9+D9 -> 0 | F9: =Balanza!F1007 -> 0 | G9: =Balanza!H1074 -> 0 | H9: =G9-C9 -> 0
A10: Contribuciones de mejoras | C10: =Balanza!G812 -> 0 | D10: =Balanza!G946 -> 0 | E10: 0 | F10: =Balanza!F1013 -> 0 | G10: =Balanza!H1080 -> 0 | H10: 0
A11: Derechos | C11: =Balanza!G815 -> 1732545 | D11: =Balanza!G949 -> 0 | E11: 1732545 | F11: =Balanza!F1016 -> 4717158.67 | G11: =Balanza!H1083 -> 4717158.67 | H11: 2984613.67
A12: Productos | C12: =Balanza!G822 -> 164588 | D12: =Balanza!G956 -> 0 | E12: 164588 | F12: =Balanza!F1023 -> 53968.85 | G12: =Balanza!H1090 -> 53968.85 | H12: -110619.15
A13: Aprovechamientos | C13: =Balanza!G826 -> 550910 | D13: =Balanza!G960 -> 0 | E13: 550910 | F13: =Balanza!F1027 -> 592426.07 | G13: =Balanza!H1094 -> 592426.07 | H13: 41516.07
A14: Ingresos por ventas de bienes y servicios | C14: =Balanza!G831 -> 0 | D14: =Balanza!G965 -> 0 | E14: 0 | F14: =Balanza!F1032 -> 0 | G14: =Balanza!H1099 -> 0 | H14: 0
A15: Participaciones | C15: =SUM(C16:C26) -> 23528908 | D15: 0 | E15: 23528908 | F15: 24420587.93 | G15: 24420587.93 | H15: 891679.93
B16: Fondo general de participaciones | C16: 23528908 | E16: 23528908 | F16: 17159367.49 | G16: 17159367.49 | H16: =G16-C16 -> -6369540.51
B17: Fondo de fomento municipal | E17: 0 | F17: 4099611.85 | G17: 4099611.85 | H17: 4099611.85
B18: Fondo de fiscalización y recaudación | E18: 0 | F18: 232160.82 | G18: 232160.82 | H18: 232160.82
B19: Fondo de compensación | E19: 0 | H19: 0
B20: Fondo de extracción de hidrocarburos | E20: 0 | H20: 0
B21: Impuesto especial sobre producción y servicios | E21: 0 | F21: 446914.35 | G21: 446914.35 | H21: 446914.35
B22: 0.136% de la recaudación federal participable | E22: 0 | H22: 0
B23: 3.17% sobre extracción del petróleo | E23: 0 | H23: 0
B24: Gasolinas y diésel | E24: 0 | F24: 770457.35 | G24: 770457.35 | H24: 770457.35
B25: Fondo de impuesto sobre la renta | E25: 0 | F25: 1555537.17 | G25: 1555537.17 | H25: 1555537.17
B26: Fondo de estabilización de los ingresos de las entidades federativas | E26: 0 | F26: 156538.9 | G26: 156538.9 | H26: 156538.9
A27: Incentivos derivados de la colaboración fiscal | C27: =SUM(C28:C32) -> 0 | D27: 0 | E27: 0 | F27: 465218.26 | G27: 465218.26 | H27: 465218.26
B28: Tenencia o uso de vehículos | E28: 0 | F28: 301.58 | G28: 301.58 | H28: =G28-C28 -> 301.58
B29: Fondo de compensación ISAN | E29: 0 | F29: 74455.32 | G29: 74455.32 | H29: 74455.32
B30: Impuesto sobre automóviles nuevos | E30: 0 | F30: 390461.36 | G30: 390461.36 | H30: 390461.36
B31: Fondo de compensación de repecos-intermedios | E31: 0 | H31: 0
B32: Otros incentivos económicos | E32: 0 | H32: 0
A33: Transferencias | C33: =Balanza!G849+Balanza!G857 -> 0 | D33: =Balanza!G983+Balanza!G991 -> 0 | E33: 0 | F33: =Balanza!F1050+Balanza!F1058 -> 0 | G33: =Balanza!H1117+Balanza!H1125 -> 0 | H33: =C33-G33 -> 0
A34: Convenios | C34: =C35 -> 3000000 | D34: =D35 -> 0 | E34: =E35 -> 3000000 | F34: =F35 -> 1865390 | G34: =G35 -> 1865390 | H34: =G34-C34 -> -1134610
B35: Otros convenios y subsidios | C35: =Balanza!G844+Balanza!G852 -> 3000000 | D35: =Balanza!G978+Balanza!G986 -> 0 | E35: 3000000 | F35: =Balanza!F1045+Balanza!F1053 -> 1865390 | G35: =Balanza!H1112+Balanza!H1120 -> 1865390 | H35: =G35-C35 -> -1134610
A36: Otros ingresos de libre disposición | C36: =SUM(C37:C38) -> 0 | D36: 0 | E36: 0 | F36: 0 | G36: 0 | H36: 0
B37: Participaciones en ingresos locales | E37: 0 | H37: =G37-C37 -> 0
B38: Otros ingresos de libre disposición | C38: =Balanza!G855 -> 0 | D38: =Balanza!G989 -> 0 | E38: 0 | F38: =Balanza!F1056 -> 0 | G38: =Balanza!H1123 -> 0 | H38: 0
B39: Total de ingresos de libre disposición | C39: =C8+C9+C10+C11+C12+C13+C14+C15+C27+C33+C34+C36 -> 31993152 | D39: 0 | E39: 31993152 | F39: 36397064.76 | G39: 36397064.76 | H39: 4403912.76
E40: Ingresos excedentes de ingresos de libre disposición
A41: TRANSFERENCIAS FEDERALES ETIQUETADAS
A42: Aportaciones | C42: =SUM(C43:C50) -> 13005666 | D42: 0 | E42: 13005666 | F42: 12954133.24 | G42: 12954133.24 | H42: -51532.76
B43: Fondo de aportaciones para la nómina educativa y gasto operativo | C43: 0 | D43: 0 | E43: =C43+D43 -> 0 | F43: 0 | G43: 0 | H43: =G43-C43 -> 0
B44: Fondo de aportaciones para los servicios de salud | C44: 0 | D44: 0 | E44: 0 | F44: 0 | G44: 0 | H44: 0
B45: Fondo de aportaciones para la infraestructura social | C45: 8086710 | E45: 8086710 | F45: 7786787.16 | G45: 7786787.16 | H45: -299922.84
B46: Fondo de aportaciones para el fortalecimiento de los municipios y de las demarcaciones territoriales del distrito federal | C46: 4918956 | E46: 4918956 | F46: 5167346.08 | G46: 5167346.08 | H46: 248390.08
B47: Fondo de aportaciones múltiples | C47: 0 | D47: 0 | E47: 0 | F47: 0 | G47: 0 | H47: 0
B48: Fondo de aportaciones para la educación tecnológica y de adultos | C48: 0 | D48: 0 | E48: 0 | F48: 0 | G48: 0 | H48: 0
B49: Fondo de aportaciones para la seguridad pública de los estados y del distrito federal | C49: 0 | D49: 0 | E49: 0 | F49: 0 | G49: 0 | H49: 0
B50: Fondo de aportaciones para el fortalecimiento de las entidades federativas | C50: 0 | D50: 0 | E50: 0 | F50: 0 | G50: 0 | H50: 0
A51: Convenios | C51: =SUM(C52:C55) -> 0 | D51: =SUM(D52:D55) -> 0 | E51: 0 | F51: 0 | G51: 0 | H51: 0
B52: Convenios de protección social en salud | E52: 0 | H52: 0
B53: Convenios de descentralización | E53: 0 | H53: 0
B54: Convenios de reasignación | E54: 0 | H54: 0
B55: Otros convenios y subsidios | E55: 0 | H55: 0
A56: Fondos distintos de aportaciones | C56: =C57+C58 -> 0 | D56: =D57+D58 -> 0 | E56: 0 | F56: 0 | G56: 0 | H56: 0
B57: Fondo para entidades federativas y municipios productores de hidrocarburos | E57: 0 | H57: 0
B58: Fondo minero | E58: 0 | H58: 0
A59: Transferencias, subsidios y subvenciones, y pensiones y jubilaciones | C59: =Balanza!G850+Balanza!G853 -> 0 | D59: =Balanza!G984+Balanza!G987 -> 0 | E59: 0 | F59: =Balanza!F1051+Balanza!F1054 -> 0 | G59: =Balanza!H1118+Balanza!H1121 -> 0 | H59: 0
A60: Otras transferencias federales etiquetadas | C60: 0 | D60: 0 | E60: 0 | F60: 0 | G60: 0 | H60: 0
B61: Total de transferencias federales etiquetadas | C61: =C42+C51+C56+C59+C60 -> 13005666 | D61: =D42+D51+D56+D59+D60 -> 0 | E61: 13005666 | F61: 12954133.24 | G61: 12954133.24 | H61: -51532.76
A62: INGRESOS DERIVADOS DE FINANCIAMIENTO
B63: Ingresos derivados de financiamiento | C63: =C68 -> 0 | D63: =D68 -> 0 | E63: 0 | F63: =F68 -> 0 | G63: =G68 -> 0 | H63: 0
B64: Total de ingresos | C64: =C39+C61+C63 -> 44998818 | D64: =D39+D61+D63 -> 0 | E64: 44998818 | F64: 49351198 | G64: 49351198 | H64: =H39+H61+H63 -> 4352380
A65: DATOS INFORMATIVOS
B66: Ingresos derivados de financiamientos con fuente de pago de ingresos de libre disposición | E66: 0 | H66: 0
B67: Ingresos derivados de financiamientos con fuente de pago de transferencias federales etiquetadas | E67: 0 | H67: 0
B68: Ingresos derivados de financiamiento | C68: =SUM(C66:C67) -> 0 | D68: 0 | E68: 0 | F68: 0 | G68: 0 | H68: 0
A70: Bajo protesta de decir verdad declaramos que los estados financieros y sus notas, son razonablemente correctos y son responsabilidad del emisor.
B74: =Validacion!A7 -> C. SANTIAGO LEON CASTRO | E74: =Validacion!A9 -> L.T. JOCELYN SANCHEZ HERRERA
B76: Presidente Municipal o Titular del ente público | E76: Encargado de la Hacienda Municipal o Responsable de las finanzas del ente público

Sheet F18A
A1: =Validacion!A2 -> Atemajac de Brizuela
A2: ESTADO ANALÍTICO DEL EJERCICIO DEL PRESUPUESTO DE EGRESOS DETALLADO - LDF
A3: CLASIFICACIÓN ADMINISTRATIVA
A4: ='F6'!A3 -> Del 1° de Enero al 31 de Diciembre de 2021
A6: CONCEPTO | B6: EGRESOS | G6: SUBEJERCICIO
B7: APROBADO | C7: AMPLIACIONES/ (REDUCCIONES) | D7: MODIFICADO | E7: DEVENGADO | F7: PAGADO
A8: I. GASTO NO ETIQUETADO
A9: GOBIERNO MUNICIPAL | B9: 28993152 | D9: =B9+C9 -> 28993152 | E9: 36095706.44 | F9: 36095706.44 | G9: =D9-E9 -> -7102554.44
D10: =B10+C10 -> 0 | G10: =D10-E10 -> 0
D11: 0 | G11: 0
D12: 0 | G12: 0
D13: 0 | G13: 0
D14: 0 | G14: 0
D15: 0 | G15: 0
D16: 0 | G16: 0
D17: 0 | G17: 0
D18: 0 | G18: 0
D19: 0 | G19: 0
D20: 0 | G20: 0
D21: 0 | G21: 0
D22: 0 | G22: 0
D23: 0 | G23: 0
D24: 0 | G24: 0
D25: 0 | G25: 0
D26: 0 | G26: 0
D27: 0 | G27: 0
D28: 0 | G28: 0
D29: 0 | G29: 0
D30: 0 | G30: 0
D31: 0 | G31: 0
D32: 0 | G32: 0
D33: 0 | G33: 0
A34: TOTAL DEL GASTO NO ETIQUETADO | B34: =SUM(B8:B33) -> 28993152 | C34: =SUM(C8:C33) -> 0 | D34: 28993152 | E34: 36095706.44 | F34: 36095706.44 | G34: -7102554.44
A35: II. GASTO ETIQUETADO
A36: GOBIERNO MUNICIPAL | B36: 16005666 | D36: =B36+C36 -> 16005666 | E36: 12954133.24 | F36: 12954133.24 | G36: =D36-E36 -> 3051532.76
D37: =B37+C37 -> 0 | G37: =D37-E37 -> 0
D38: 0 | G38: 0
D39: 0 | G39: 0
D40: 0 | G40: 0
D41: 0 | G41: 0
D42: 0 | G42: 0
D43: 0 | G43: 0
D44: 0 | G44: 0
D45: 0 | G45: 0
D46: 0 | G46: 0
D47: 0 | G47: 0
D48: 0 | G48: 0
D49: 0 | G49: 0
D50: 0 | G50: 0
D51: 0 | G51: 0
D52: 0 | G52: 0
D53: 0 | G53: 0
D54: 0 | G54: 0
D55: 0 | G55: 0
D56: 0 | G56: 0
D57: 0 | G57: 0
D58: 0 | G58: 0
D59: 0 | G59: 0
D60: 0 | G60: 0
A61: TOTAL DEL GASTO ETIQUETADO | B61: =SUM(B35:B60) -> 16005666 | C61: =SUM(C35:C60) -> 0 | D61: 16005666 | E61: 12954133.24 | F61: 12954133.24 | G61: 3051532.76
A62: TOTAL DEL GASTO | B62: =B34+B61 -> 44998818 | C62: =C34+C61 -> 0 | D62: 44998818 | E62: 49049839.68 | F62: 49049839.68 | G62: -4051021.68
A64: Bajo protesta de decir verdad declaramos que los estados financieros y sus notas, son razonablemente correctos y son responsabilidad del emisor.
A68: =Validacion!A7 -> C. SANTIAGO LEON CASTRO | D68: =Validacion!A9 -> L.T. JOCELYN SANCHEZ HERRERA
A70: Presidente Municipal o titular del ente público | D70: Encargado de la Hacienda Municipal o Responsable de las finanzas del ente público

Sheet F19A
B1: =Validacion!A2 -> Atemajac de Brizuela
B2: ESTADO ANALÍTICO DEL EJERCICIO DEL PRESUPUESTO DE EGRESOS DETALLADO - LDF
B3: CLASIFICACIÓN FUNCIONAL (FINALIDAD Y FUNCIÓN)
C4: ='F6'!A3 -> Del 1° de Enero al 31 de Diciembre de 2021
A6: CONCEPTO | D6: EGRESOS | I6: SUBEJERCICIO
D7: APROBADO | E7: AMPLIACIONES/ (REDUCCIONES) | F7: MODIFICADO | G7: DEVENGADO | H7: PAGADO
A8: I | B8: GASTO NO ETIQUETADO
B9: A Gobierno | D9: =SUM(D10:D17) -> 28993152 | E9: =SUM(E10:E17) -> 0 | F9: =D9+E9 -> 28993152 | G9: =SUM(G10:G17) -> 36095706.44 | H9: 36095706.44 | I9: =F9-G9 -> -7102554.44
C10: Legislación | F10: =D10+E10 -> 0 | I10: =F10-G10 -> 0
C11: Justicia | F11: 0 | I11: 0
C12: Coordinación de la política de gobierno | F12: 0 | I12: 0
C13: Relaciones exteriores | F13: 0 | I13: 0
C14: Asuntos financieros y hacendarios | F14: 0 | I14: 0
C15: Seguridad nacional | F15: 0 | I15: 0
C16: Asuntos de orden público y de seguridad interior | F16: 0 | I16: 0
C17: Otros servicios generales | D17: 28993152 | F17: 28993152 | G17: 36095706.44 | H17: 36095706.44 | I17: -7102554.44
B18: B Desarrollo social | D18: =SUM(D19:D25) -> 0 | E18: =SUM(E19:E25) -> 0 | F18: 0 | G18: =SUM(G19:G25) -> 0 | H18: 0 | I18: 0
C19: Protección ambiental | F19: 0 | I19: 0
C20: Vivienda y servicios a la comunidad | F20: 0 | I20: 0
C21: Salud | F21: 0 | I21: 0
C22: Recreación, cultura y otras manifestaciones sociales | F22: 0 | I22: 0
C23: Educación | F23: 0 | I23: 0
C24: Protección social | F24: 0 | I24: 0
C25: Otros asuntos sociales | F25: 0 | I25: 0
B26: C Desarrollo económico | D26: =SUM(D27:D35) -> 0 | E26: =SUM(E27:E35) -> 0 | F26: 0 | G26: =SUM(G27:G35) -> 0 | H26: 0 | I26: 0
C27: Asuntos económicos, comerciales y laborales en general | F27: 0 | I27: 0
C28: Agropecuaria, silvicultura, pesca y caza | F28: 0 | I28: 0
C29: Combustibles y energía | F29: 0 | I29: 0
C30: Minería, manufacturas y construcción | F30: 0 | I30: 0
C31: Transporte | F31: 0 | I31: 0
C32: Comunicaciones | F32: 0 | I32: 0
C33: Turismo | F33: 0 | I33: 0
C34: Ciencia, tecnología e innovación | F34: 0 | I34: 0
C35: Otras industrias y otros asuntos económicos | F35: 0 | I35: 0
B36: D Otras no clasificadas en fdunciones anteriores | D36: =SUM(D37:D40) -> 0 | E36: =SUM(E37:E40) -> 0 | F36: 0 | G36: =SUM(G37:G40) -> 0 | H36: =SUM(H37:H40) -> 0 | I36: 0
C37: Transacciones de la deuda publica / costo financiero de la deuda | F37: 0 | I37: 0
C38: Transferencias, participaciones y aportaciones entre diferentes niveles y órdenes de gobierno | F38: 0 | I38: 0
C39: Saneamiento del sistema financiero | F39: 0 | I39: 0
C40: Adeudos de ejercicios fiscales anteriores | F40: 0 | I40: 0
C41: TOTAL DEL GASTO NO ETIQUETADO | D41: =D9+D18+D26+D36 -> 28993152 | E41: =E9+E18+E26+E36 -> 0 | F41: 28993152 | G41: =G9+G18+G26+G36 -> 36095706.44 | H41: =H9+H18+H26+H36 -> 36095706.44 | I41: -7102554.44
A42: II | B42: GASTO ETIQUETADO
B43: A Gobierno | D43: =SUM(D44:D51) -> 16005666 | E43: =SUM(E44:E51) -> 0 | F43: =D43+E43 -> 16005666 | G43: =SUM(G44:G51) -> 12954133.24 | H43: 12954133.24 | I43: =F43-G43 -> 3051532.76
C44: Legislación | F44: =D44+E44 -> 0 | I44: =F44-G44 -> 0
C45: Justicia | F45: 0 | I45: 0
C46: Coordinación de la política de gobierno | F46: 0 | I46: 0
C47: Relaciones exteriores | F47: 0 | I47: 0
C48: Asuntos financieros y hacendarios | F48: 0 | I48: 0
C49: Seguridad nacional | F49: 0 | I49: 0
C50: Asuntos de orden público y de seguridad interior | F50: 0 | I50: 0
C51: Otros servicios generales | D51: 16005666 | F51: 16005666 | G51: 12954133.24 | H51: 12954133.24 | I51: 3051532.76
B52: B Desarrollo social | D52: =SUM(D53:D59) -> 0 | E52: =SUM(E53:E59) -> 0 | F52: 0 | G52: =SUM(G53:G59) -> 0 | H52: 0 | I52: 0
C53: Protección ambiental | F53: 0 | I53: 0
C54: Vivienda y servicios a la comunidad | F54: 0 | I54: 0
C55: Salud | F55: 0 | I55: 0
C56: Recreación, cultura y otras manifestaciones sociales | F56: 0 | I56: 0
C57: Educación | F57: 0 | I57: 0
C58: Protección social | F58: 0 | I58: 0
C59: Otros asuntos sociales | F59: 0 | I59: 0
B60: C Desarrollo económico | D60: =SUM(D61:D69) -> 0 | E60: =SUM(E61:E69) -> 0 | F60: 0 | G60: =SUM(G61:G69) -> 0 | H60: 0 | I60: 0
C61: Asuntos económicos, comerciales y laborales en general | F61: 0 | I61: 0
C62: Agropecuaria, silvicultura, pesca y caza | F62: 0 | I62: 0
C63: Combustibles y energía | F63: 0 | I63: 0
C64: Minería, manufacturas y construcción | F64: 0 | I64: 0
C65: Transporte | F65: 0 | I65: 0
C66: Comunicaciones | F66: 0 | I66: 0
C67: Turismo | F67: 0 | I67: 0
C68: Ciencia, tecnología e innovación | F68: 0 | I68: 0
C69: Otras industrias y otros asuntos económicos | F69: 0 | I69: 0
B70: D Otras no clasificadas en fdunciones anteriores | D70: =SUM(D71:D74) -> 0 | E70: =SUM(E71:E74) -> 0 | F70: 0 | G70: =SUM(G71:G74) -> 0 | H70: =SUM(H71:H74) -> 0 | I70: 0
C71: Transacciones de la deuda publica / costo financiero de la deuda | F71: 0 | I71: 0
C72: Transferencias, participaciones y aportaciones entre diferentes niveles y órdenes de gobierno | F72: 0 | I72: 0
C73: Saneamiento del sistema financiero | F73: 0 | I73: 0
C74: Adeudos de ejercicios fiscales anteriores | F74: 0 | I74: 0
C75: TOTAL DEL GASTO ETIQUETADO | D75: =D43+D52+D60+D70 -> 16005666 | E75: =E43+E52+E60+E70 -> 0 | F75: =D75+E75 -> 16005666 | G75: =G43+G52+G60+G70 -> 12954133.24 | H75: =H43+H52+H60+H70 -> 12954133.24 | I75: 3051532.76
C76: TOTAL DEL GASTO | D76: =D41+D75 -> 44998818 | E76: =E41+E75 -> 0 | F76: =F41+F75 -> 44998818 | G76: 49049839.68 | H76: 49049839.68 | I76: -4051021.68
B78: Bajo protesta de decir verdad declaramos que los estados financieros y sus notas, son razonablemente correctos y son responsabilidad del emisor.
C81: =Validacion!A7 -> C. SANTIAGO LEON CASTRO | E81: =Validacion!A9 -> L.T. JOCELYN SANCHEZ HERRERA
C83: Presidente Municipal o titular del ente público | E83: Encargado de la Hacienda Municipal o Responsable de las finanzas del ente público

Sheet F21
A1: =Validacion!A2 -> Atemajac de Brizuela
A2: ESTADO ANALÍTICO DEL EJERCICIO DEL PRESPUESTO DE EGRESOS DETALLADO - LDF
A3: CLASIFICACIÓN DE SERVICIOS PERSONALES POR CATEGORÍA
A4: ='F6'!A3 -> Del 1° de Enero al 31 de Diciembre de 2021
A6: CONCEPTO | D6: EGRESOS | I6: SUBEJERCICIO
D7: APROBADO | E7: AMPLIACIONES/ (REDUCCIONES) | F7: MODFICADO | G7: DEVENGADO | H7: PAGADO
A8: I | B8: GASTOS NO ETIQUETADOS
B9: A | C9: Personal administrativo y de servicio público | D9: 28993152 | F9: =D9+E9 -> 28993152 | G9: 36095706.44 | H9: 36095706.44 | I9: =F9-G9 -> -7102554.44
B10: B | C10: Magisterio | F10: =D10+E10 -> 0 | I10: =F10-G10 -> 0
B11: C | C11: Servicios de salud | D11: =D12+D13 -> 0 | E11: =E12+E13 -> 0 | F11: 0 | G11: =G12+G13 -> 0 | H11: =H12+H13 -> 0 | I11: 0
C12: Personal administrativo | F12: 0 | I12: 0
C13: Personal médico, paramédico y afín | F13: 0 | I13: 0
B14: D | C14: Seguridad pública | F14: 0 | I14: 0
B15: E | C15: Gastos asociados a la implementación de nuevas leyes federales o reformas a las mismas | D15: =D16+D17 -> 0 | E15: =E16+E17 -> 0 | F15: 0 | G15: =G16+G17 -> 0 | H15: =H16+H17 -> 0 | I15: 0
C16: Nombre del programa o ley | F16: 0 | I16: 0
C17: Nombre del programa o ley | F17: 0 | I17: 0
B18: F | C18: Sentencias laborales definitivas | F18: 0 | I18: 0
C19: TOTAL DEL GASTO NO ETIQUETADO | D19: =D9+D10+D11+D14+D15+D18 -> 28993152 | E19: =E9+E10+E11+E14+E15+E18 -> 0 | F19: 28993152 | G19: 36095706.44 | H19: 36095706.44 | I19: -7102554.44
A20: II | B20: GASTOS ETIQUETADOS
B21: A | C21: Personal administrativo y de servicio público | D21: 16005666 | F21: =D21+E21 -> 16005666 | G21: 12954133.24 | H21: 12954133.24 | I21: =F21-G21 -> 3051532.76
B22: B | C22: Magisterio | F22: =D22+E22 -> 0 | I22: 0
B23: C | C23: Servicios de salud | D23: =D24+D25 -> 0 | E23: =E24+E25 -> 0 | F23: =D23+E23 -> 0 | G23: =G24+G25 -> 0 | H23: 0 | I23: 0
C24: Personal administrativo | F24: =D24+E24 -> 0 | I24: 0
C25: Personal médico, paramédico y afín | F25: 0 | I25: 0
B26: D | C26: Seguridad pública | F26: =D26+E26 -> 0 | I26: 0
B27: E | C27: Gastos asociados a la implementación de nuevas leyes federales o reformas a las mismas | D27: =D28+D29 -> 0 | E27: =E28+E29 -> 0 | F27: =D27+E27 -> 0 | G27: =G28+G29 -> 0 | H27: 0 | I27: 0
C28: Nombre del programa o ley | F28: =D28+E28 -> 0 | I28: 0
C29: Nombre del programa o ley | F29: 0 | I29: 0
B30: F | C30: Sentencias laborales definitivas | F30: =D30+E30 -> 0 | I30: 0
C31: TOTAL DEL GASTO ETIQUETADO | D31: =D21+D22+D23+D26+D27+D30 -> 16005666 | E31: =E21+E22+E23+E26+E27+E30 -> 0 | F31: =D31+E31 -> 16005666 | G31: =G21+G22+G23+G26+G27+G30 -> 12954133.24 | H31: =H21+H22+H23+H26+H27+H30 -> 12954133.24 | I31: 3051532.76
A32: III | B32: TOTAL DEL GASTO DE SERVICIOS PERSONALES | D32: =D19+D31 -> 44998818 | E32: =E19+E31 -> 0 | F32: =F19+F31 -> 44998818 | G32: 49049839.68 | H32: 49049839.68 | I32: =F32-G32 -> -4051021.68
A34: Bajo protesta de decir verdad declaramos que los estados financieros y sus notas, son razonablemente correctos y son responsabilidad del emisor.
C37: =Validacion!A7 -> C. SANTIAGO LEON CASTRO | F37: =Validacion!A9 -> L.T. JOCELYN SANCHEZ HERRERA
C39: Presidente Municipal o titular del ente público | F39: Encargado de la Hacienda Municipal o Responsable de las finanzas del ente público

Sheet F22
A1: =Validacion!A2 -> Atemajac de Brizuela
A2: BALANCE PRESUPUESTARIO - LDF
A3: ='F6'!A3 -> Del 1° de Enero al 31 de Diciembre de 2021
A5: CONCEPTO | E5: ESTIMADO/ APROBADO | F5: DEVENGADO | G5: RECAUDADO/ PAGADO
A6: A | C6: Ingresos totales | E6: =SUM(E7:E9) -> 42998818 | F6: =SUM(F7:F9) -> 46901198 | G6: 46901198
B7: A1 | C7: Ingresos de libre disposición | E7: =F7B!C39 -> 31993152 | F7: =F7B!F39 -> 36397064.76 | G7: =F7B!G39 -> 36397064.76
B8: A2 | C8: Transferencias federales etiquetadas | E8: =F7B!C61 -> 13005666 | F8: =F7B!F61 -> 12954133.24 | G8: =F7B!G61 -> 12954133.24
B9: A3 | C9: Financiamiento neto | E9: =E33 -> -2000000 | F9: =F33 -> -2450000 | G9: =G33 -> -2450000
A10: B | C10: Egresos presupuestarios | E10: =SUM(E11:E12) -> 42998818 | F10: =SUM(F11:F12) -> 46599839.68 | G10: 46599839.68
B11: B1 | C11: Gastos no etiquetado (sin incluir amortización de la deuda pública) | E11: =F8B!D80-E31 -> 26993152 | F11: =F8B!G80-F31 -> 33645706.44 | G11: =F8B!H80-G31 -> 33645706.44
B12: B2 | C12: Gasto etiquetado (sin incluir amortización de la deuda pública) | E12: =F8B!D154-E32 -> 16005666 | F12: =F8B!G154-F32 -> 12954133.24 | G12: =F8B!H154-G32 -> 12954133.24
A13: C | C13: Remanentes del ejercicio anterior | E13: =SUM(E14:E15) -> 0 | F13: =SUM(F14:F15) -> 0 | G13: 0
B14: C1 | C14: Remanentes de ingresos de libre disposición aplicados en el periodo | F14: 0 | G14: 0
B15: C2 | C15: Remanentes de transferencias federales etiquetadas aplicados en el periodo | F15: 0 | G15: 0
A16: I | C16: Balance presupuestario | E16: =E6-E10+E13 -> 0 | F16: =F6-F10+F13 -> 301358.32 | G16: 301358.32
A17: II | C17: Balance presupuestario sin financiamiento neto | E17: =E16-E9 -> 2000000 | F17: =F16-F9 -> 2751358.32 | G17: 2751358.32
A18: III | C18: Balance presupuestario sin financiamiento neto y sin remanentes del ejercicio anterior | E18: =E17-E13 -> 2000000 | F18: =F17-F13 -> 2751358.32 | G18: 2751358.32
A20: CONCEPTO | E20: APROBADO | F20: DEVENGADO | G20: PAGADO
A21: E | C21: Intereses, comisiones y gastos de la deuda | E21: =SUM(E22:E23) -> 38455 | F21: =SUM(F22:F23) -> 38454.21 | G21: 38454.21
B22: E1 | C22: Intereses, comisiones y gastos de la deuda con gasto no etiquetado | E22: =SUM(F8B!D74:D76) -> 38455 | F22: =SUM(F8B!G74:G76) -> 38454.21 | G22: =SUM(F8B!H74:H76) -> 38454.21
B23: E2 | C23: Intereses, comisiones y gastos de la deuda con gasto etiquetado | E23: =SUM(F8B!D148:D150) -> 0 | F23: =SUM(F8B!G148:G150) -> 0 | G23: =SUM(F8B!H148:H150) -> 0
A24: IV | C24: Balance primario | E24: =E18+E21 -> 2038455 | F24: =F18+F21 -> 2789812.53 | G24: 2789812.53
A26: CONCEPTO | E26: ESTIMADO/ APROBADO | F26: DEVENGADO | G26: RECAUDADO/ PAGADO
A27: F | C27: Financiamiento | E27: =SUM(E28:E29) -> 0 | F27: =SUM(F28:F29) -> 0 | G27: 0
B28: F1 | C28: Financiamiento con fuente de pago de ingresos de libre disposición | E28: =F7B!C66 -> 0 | F28: =F7B!F66 -> 0 | G28: =F7B!G66 -> 0
B29: F2 | C29: Financiamiento con fuente de pago de transferencias federales etiquetadas | E29: =F7B!C67 -> 0 | F29: =F7B!F67 -> 0 | G29: =F7B!G67 -> 0
A30: G | C30: Amortización de la deuda | E30: =SUM(E31:E32) -> 2000000 | F30: =SUM(F31:F32) -> 2450000 | G30: 2450000
B31: G1 | C31: Amortización de la deuda pública con gasto no etiquetado | E31: =F8B!D73 -> 2000000 | F31: =F8B!G73 -> 2450000 | G31: =F8B!H73 -> 2450000
B32: G2 | C32: Amortización de la deuda pública con gasto etiquetado | E32: =F8B!D147 -> 0 | F32: =F8B!G147 -> 0 | G32: =F8B!H147 -> 0
A33: A3 | C33: Financiamiento Neto | E33: =E27-E30 -> -2000000 | F33: =F27-F30 -> -2450000 | G33: -2450000
A35: CONCEPTO | E35: ESTIMADO/ APROBADO | F35: DEVENGADO | G35: RECAUDADO/ PAGADO
A36: A1 | C36: Ingresos de libre disposición | E36: =E7 -> 31993152 | F36: =F7 -> 36397064.76 | G36: =G7 -> 36397064.76
A37: A3.1 | C37: Financiamiento neto con fuente de pago de ingresos de libre disposición | E37: =E38-E39 -> -2000000 | F37: =F38-F39 -> -2450000 | G37: =G38-G39 -> -2450000
B38: F1 | C38: Financiamiento con fuente de pago de ingresos de libre disposición | E38: =E28 -> 0 | F38: =F28 -> 0 | G38: =G28 -> 0
B39: G1 | C39: Amortización de la deuda pública con gasto etiquetado | E39: =E31 -> 2000000 | F39: =F31 -> 2450000 | G39: =G31 -> 2450000
A40: B1 | C40: Gasto no etiquetado (sin incluir amortización de la deuda pública) | E40: =E11 -> 26993152 | F40: =F11 -> 33645706.44 | G40: =G11 -> 33645706.44
A41: C1 | C41: Remanente de ingresos de libre disposición aplicados en el periodo | F41: =F14 -> 0 | G41: =G14 -> 0
A42: V | C42: Balance presupuestario de recursos disponibles | E42: =E36+E37-E40+E41 -> 3000000 | F42: =F36+F37-F40+F41 -> 301358.32 | G42: =G36+G37-G40+G41 -> 301358.32
A43: VI | C43: Balance presupuestario de recursos disponibles sin financiamiento neto | E43: =E42-E37 -> 5000000 | F43: =F42-F37 -> 2751358.32 | G43: =G42-G37 -> 2751358.32
A45: CONCEPTO | E45: ESTIMADO/ APROBADO | F45: DEVENGADO | G45: RECAUDADO/ PAGADO
A46: A2 | C46: Transferencias federales etiquetadas | E46: =E8 -> 13005666 | F46: =F8 -> 12954133.24 | G46: =G8 -> 12954133.24
A47: A3.2 | C47: Financiamiento neto con fuente de pago de transferencias federales etiquetadas | E47: =E48-E49 -> 0 | F47: =F48-F49 -> 0 | G47: 0
B48: F2 | C48: Financiamiento con fuente de pago de transferencias federales | E48: =E29 -> 0 | F48: =F29 -> 0 | G48: =G29 -> 0
B49: G2 | C49: Amortización de la deuda pública con gasto etiquetado | E49: =E32 -> 0 | F49: =F32 -> 0 | G49: =G32 -> 0
A50: B2 | C50: Gasto etiquetado (sin incluir amortización de la deuda pública) | E50: =E12 -> 16005666 | F50: =F12 -> 12954133.24 | G50: =G12 -> 12954133.24
A51: C2 | C51: Remanente de transferencias federales etiquetadas aplicados en el periodo | F51: =F15 -> 0 | G51: =G15 -> 0
A52: VII | C52: Balance presupuestario de recursos etiquetados | E52: =E46+E47-E50+E51 -> -3000000 | F52: =F46+F47-F50+F51 -> 0 | G52: =G46+G47-G50+G51 -> 0
A53: VIII | C53: Balance presupuestario de recursos etiquetados sin financiamiento neto | E53: =E52-E47 -> -3000000 | F53: =F52-F47 -> 0 | G53: =G52-G47 -> 0
A55: Bajo protesta de decir verdad declaramos que los estados financieros y sus notas, son razonablemente correctos y son responsabilidad del emisor.
C59: =Validacion!A7 -> C. SANTIAGO LEON CASTRO | E59: =Validacion!A9 -> L.T. JOCELYN SANCHEZ HERRERA
C61: Presidente Municipal o titular del ente público | E61: Encargado de la Hacienda Municipal o Responsable de las finanzas del ente público

Sheet F23
A1: =Validacion!A2 -> Atemajac de Brizuela
A2: INFORMATIVA ANUAL DE OBRAS
A3: ='F6'!A3 -> Del 1° de Enero al 31 de Diciembre de 2021
A5: NOMBRE DE OBRA O NÚMERO DE ORDEN DE TRABAJO | B5: LOCALIDAD | C5: DESCRIPCIÓN DE LA OBRA U OBJETO DEL CONTRATO | D5: NOMBRE DEL EJECUTOR DE LA OBRA | E5: UBICACIÓN GEOGRÁFICA | G5: MODALIDAD DE EJECUCIÓN | K5: PLAZO DE EJECUCIÓN | N5: PRORROGA Y/O DIFERIMIENTO | P5: ORIGEN DEL RECURSO (MONTO) | T5: IMPORTE TOTAL DEL PAGO | U5: ESTATUS DE LA OBRA | V5: ENTREGA RECEPCIÓN Y/O MINUTA DE TERMINACIÓIN
G7: ADMÓN. DIRECTA | H7: CONTRATO
E8: LATITUD | F8: LONGITUD | H8: ADJ. DIRECTA | I8: CONCURSO SIMPL. | J8: LICITA. PÚBLICA | K8: INICIO | L8: TERMINO | M8: DÍAS NATURALES | N8: SI | O8: NO | P8: PROPIOS | Q8: ESTATAL | R8: FISMDF | S8: CONVENIO FEDERAL | V8: SI | W8: NO
A9: MANTENIMIENTO TEMPLO DE SAN BARTOLO | B9: ATEMAJAC DE BRIZUELA | C9: MENTENIMIENTO A PARROQUIA | D9: CONSTRUCTORA | E9: 0 | F9: 0 | H9: X | K9: 2021-11-11 | L9: 2021-12-16 | M9: =L9-K9 -> 35 | O9: X | R9: 900000 | T9: =SUM(P9:S9) -> 900000 | U9: Terminada | V9: X
A10: CONTRUCCION DE REDES HIDRO SANITARIAS | B10: ATEMAJAC DE BRIZUELA | C10: CONSTRICCION DE REDES HIDRO SANITARIAS | D10: CONTRUCTORA RUIZ | E10: 0 | F10: 0 | H10: X | K10: 2021-11-29 | L10: 2021-12-31 | M10: =L10-K10 -> 32 | O10: X | R10: 543544.99 | T10: =SUM(P10:S10) -> 543544.99 | U10: Terminada | V10: X
A11: MANTENIMIENTO POZO PUEBLO NUEVO | B11: PUEBLO NUEVO | C11: POZO PUEBLO NUEVO | D11: ND | E11: 0 | F11: 0 | H11: X | K11: 2021-12-01 | L11: 2021-12-31 | M11: 30 | O11: X | R11: 77363.66 | T11: 77363.66 | U11: Terminada | V11: X
A12: REHABILITACION POZO PLAN | B12: ATEMAJAC DE BRIZUELA | C12: REHABILITACION POZO PLAN | D12: ND | E12: 0 | F12: 0 | H12: X | K12: 2021-12-01 | L12: 2021-12-31 | M12: 30 | O12: X | R12: 80296.81 | T12: 80296.81 | U12: Terminada | V12: X
A13: MANTENIMIENTO POZO ATEMAJAC | B13: ATEMAJAC DE BRIZUELA | C13: REHABILITACION POZO ATEMAJAC | D13: ND | E13: 0 | F13: 0 | H13: X | K13: 2021-12-01 | L13: 2021-12-31 | M13: 30 | O13: X | R13: 77440 | T13: 77440 | U13: Terminada | V13: X
M14: 0 | T14: 0
M15: 0 | T15: 0
M16: 0 | T16: 0
M17: 0 | T17: 0
M18: 0 | T18: 0
M19: 0 | T19: 0
M20: 0 | T20: 0
M21: 0 | T21: 0
M22: 0 | T22: 0
M23: 0 | T23: 0
M24: 0 | T24: 0
M25: 0 | T25: 0
M26: 0 | T26: 0
M27: 0 | T27: 0
M28: 0 | T28: 0
M29: 0 | T29: 0
M30: 0 | T30: 0
M31: 0 | T31: 0
M32: 0 | T32: 0
M33: 0 | T33: 0
M34: 0 | T34: 0
M35: 0 | T35: 0
M36: 0 | T36: 0
M37: 0 | T37: 0
M38: 0 | T38: 0
M39: 0 | T39: 0
M40: 0 | T40: 0
M41: 0 | T41: 0
M42: 0 | T42: 0
M43: 0 | T43: 0
M44: 0 | T44: 0
M45: 0 | T45: 0
M46: 0 | T46: 0
M47: 0 | T47: 0
M48: 0 | T48: 0
M49: 0 | T49: 0
M50: 0 | T50: 0
M51: 0 | T51: 0
M52: 0 | T52: 0
M53: 0 | T53: 0
M54: 0 | T54: 0
M55: 0 | T55: 0
M56: 0 | T56: 0
M57: 0 | T57: 0
M58: 0 | T58: 0
M59: 0 | T59: 0
M60: 0 | T60: 0
M61: 0 | T61: 0
M62: 0 | T62: 0
M63: 0 | T63: 0
M64: 0 | T64: 0
M65: 0 | T65: 0
M66: 0 | T66: 0
M67: 0 | T67: 0
M68: 0 | T68: 0
M69: 0 | T69: 0
M70: 0 | T70: 0
M71: 0 | T71: 0
M72: 0 | T72: 0
M73: 0 | T73: 0
M74: =L74-K74 -> 0 | T74: =SUM(P74:S74) -> 0
M75: 0 | T75: 0
M76: 0 | T76: 0
M77: 0 | T77: 0
M78: 0 | T78: 0
M79: 0 | T79: 0
M80: 0 | T80: 0
M81: 0 | T81: 0
M82: 0 | T82: 0
M83: 0 | T83: 0
M84: 0 | T84: 0
M85: 0 | T85: 0
M86: 0 | T86: 0
M87: 0 | T87: 0
M88: 0 | T88: 0
M89: 0 | T89: 0
M90: 0 | T90: 0
M91: 0 | T91: 0
M92: 0 | T92: 0
M93: 0 | T93: 0
M94: 0 | T94: 0
M95: 0 | T95: 0
M96: 0 | T96: 0
M97: 0 | T97: 0
M98: 0 | T98: 0
M99: 0 | T99: 0
M100: 0 | T100: 0
M101: 0 | T101: 0
M102: 0 | T102: 0
M103: 0 | T103: 0
M104: 0 | T104: 0
M105: 0 | T105: 0
M106: 0 | T106: 0
M107: 0 | T107: 0
M108: 0 | T108: 0
M109: 0 | T109: 0
M110: 0 | T110: 0
M111: 0 | T111: 0
M112: 0 | T112: 0
M113: 0 | T113: 0
M114: 0 | T114: 0
M115: 0 | T115: 0
M116: 0 | T116: 0
M117: 0 | T117: 0
M118: 0 | T118: 0
M119: 0 | T119: 0
M120: 0 | T120: 0
M121: 0 | T121: 0
M122: 0 | T122: 0
M123: 0 | T123: 0
M124: 0 | T124: 0
M125: 0 | T125: 0
M126: 0 | T126: 0
M127: 0 | T127: 0
M128: 0 | T128: 0
M129: 0 | T129: 0
M130: 0 | T130: 0
M131: 0 | T131: 0
M132: 0 | T132: 0
M133: 0 | T133: 0
M134: 0 | T134: 0
M135: 0 | T135: 0
M136: 0 | T136: 0
M137: 0 | T137: 0
M138: =L138-K138 -> 0 | T138: =SUM(P138:S138) -> 0
M139: 0 | T139: 0
M140: 0 | T140: 0
M141: 0 | T141: 0
M142: 0 | T142: 0
M143: 0 | T143: 0
M144: 0 | T144: 0
M145: 0 | T145: 0
M146: 0 | T146: 0
M147: 0 | T147: 0
M148: 0 | T148: 0
M149: 0 | T149: 0
M150: 0 | T150: 0
M151: 0 | T151: 0
M152: 0 | T152: 0
M153: 0 | T153: 0
M154: 0 | T154: 0
M155: 0 | T155: 0
M156: 0 | T156: 0
M157: 0 | T157: 0
M158: 0 | T158: 0
M159: 0 | T159: 0
M160: 0 | T160: 0
M161: 0 | T161: 0
M162: 0 | T162: 0
M163: 0 | T163: 0
M164: 0 | T164: 0
M165: 0 | T165: 0
M166: 0 | T166: 0
M167: 0 | T167: 0
M168: 0 | T168: 0
M169: 0 | T169: 0
M170: 0 | T170: 0
M171: 0 | T171: 0
M172: 0 | T172: 0
M173: 0 | T173: 0
M174: 0 | T174: 0
M175: 0 | T175: 0
M176: 0 | T176: 0
M177: 0 | T177: 0
M178: 0 | T178: 0
M179: 0 | T179: 0
M180: 0 | T180: 0
M181: 0 | T181: 0
M182: 0 | T182: 0
M183: 0 | T183: 0
M184: 0 | T184: 0
M185: 0 | T185: 0
M186: 0 | T186: 0
M187: 0 | T187: 0
M188: 0 | T188: 0
M189: 0 | T189: 0
M190: 0 | T190: 0
M191: 0 | T191: 0
M192: 0 | T192: 0
M193: 0 | T193: 0
M194: 0 | T194: 0
M195: 0 | T195: 0
M196: 0 | T196: 0
M197: 0 | T197: 0
M198: 0 | T198: 0
M199: 0 | T199: 0
M200: 0 | T200: 0
M201: 0 | T201: 0
M202: =L202-K202 -> 0 | T202: =SUM(P202:S202) -> 0
... 298 more rows

Sheet F1
B1: =Validacion!A2 -> Atemajac de Brizuela
B2: ESTADO DE SITUACIÓN FINANCIERA
B3: ="Al "&INDEX(Validacion!D131:D142,MATCH(Validacion!A11,Validacion!C131:C142,0)) -> Al 31 de Diciembre de 2021
A5: CTA. | B5: CONCEPTO | AF5: 2021 | AG5: 2020 | AH5: CTA | AI5: CONCEPTO | BM5: 2021 | BN5: 2020
A6: 10000 | B6: ACTIVO | AH6: 20000 | AI6: PASIVO
A7: 11000 | B7: ACTIVO CIRCULANTE | AH7: 21000 | AI7: PASIVO CIRCULANTE
A8: 11100 | B8: EFECTIVO Y EQUIVALENTES | AF8: =SUM(AF9:AF15) -> 765144.48 | AG8: =SUM(AG9:AG15) -> 1439544.34 | AH8: 21100 | AI8: CUENTAS POR PAGAR A CORTO PLAZO | BM8: =SUM(BM9:BM17) -> 261060.73 | BN8: =SUM(BN9:BN17) -> 0
A9: 11110 | B9: Efectivo | AF9: =Balanza!G6 -> 2557.02 | AG9: =Balanza!C6 -> 94925.3 | AH9: 21110 | AI9: Servicios personales por pagar a corto plazo | BM9: =Balanza!H104 -> 0 | BN9: =Balanza!D104 -> 0
A10: 11120 | B10: Bancos/Tesorería | AF10: =Balanza!G7 -> 762587.46 | AG10: =Balanza!C7 -> 1320619.04 | AH10: 21120 | AI10: Proveedores por pagar a corto plazo | BM10: =Balanza!H105 -> 0 | BN10: =Balanza!D105 -> 0
A11: 11130 | B11: Bancos/Dependencias y otros | AF11: =Balanza!G8 -> 0 | AG11: =Balanza!C8 -> 24000 | AH11: 21130 | AI11: Contratistas por obras públicas por pagar a corto plazo | BM11: =Balanza!H106 -> 0 | BN11: =Balanza!D106 -> 0
A12: 11140 | B12: Inversiones temporales (hasta 3 meses) | AF12: =Balanza!G9 -> 0 | AG12: =Balanza!C9 -> 0 | AH12: 21140 | AI12: Participaciones y aportaciones por pagar a corto plazo | BM12: =Balanza!H107 -> 0 | BN12: =Balanza!D107 -> 0
A13: 11150 | B13: Fondos con afectación específica | AF13: =Balanza!G10 -> 0 | AG13: =Balanza!C10 -> 0 | AH13: 21150 | AI13: Transferencias otorgadas por pagar a corto plazo | BM13: =Balanza!H108 -> 0 | BN13: =Balanza!D108 -> 0
A14: 11160 | B14: Depósitos de fondos de terceros en garantía y/o administración | AF14: =Balanza!G11 -> 0 | AG14: =Balanza!C11 -> 0 | AH14: 21160 | AI14: Intereses, comisiones y otros gastos de la deuda pública por pagar a corto plazo | BM14: =Balanza!H109 -> 0 | BN14: =Balanza!D109 -> 0
A15: 11190 | B15: Otros efectivos y equivalentes | AF15: =Balanza!G12 -> 0 | AG15: =Balanza!C12 -> 0 | AH15: 21170 | AI15: Retenciones y contribuciones por pagar a corto plazo | BM15: =Balanza!H110 -> 261060.73 | BN15: =Balanza!D110 -> 0
A16: 11200 | B16: DERECHOS A RECIBIR EFECTIVO O EQUIVALENTES | AF16: =SUM(AF17:AF23) -> 4000 | AG16: =SUM(AG17:AG23) -> 199059.5 | AH16: 21180 | AI16: Devoluciones de la ley de ingresos por pagar a corto plazo | BM16: =Balanza!H111 -> 0 | BN16: =Balanza!D111 -> 0
A17: 11210 | B17: Inversiones financieras de corto plazo | AF17: =Balanza!G14 -> 0 | AG17: =Balanza!C14 -> 0 | AH17: 21190 | AI17: Otras cuentas por pagar a corto plazo | BM17: =Balanza!H112 -> 0 | BN17: =Balanza!D112 -> 0
A18: 11220 | B18: Cuentas por cobrar a corto plazo | AF18: =Balanza!G15 -> 0 | AG18: =Balanza!C15 -> 0 | AH18: 21200 | AI18: DOCUMENTOS POR PAGAR A CORTO PLAZO | BM18: =SUM(BM19:BM21) -> 66182 | BN18: =SUM(BN19:BN21) -> 1498060.41
A19: 11230 | B19: Deudores diversos por cobrar a corto plazo | AF19: =Balanza!G16 -> 4000 | AG19: =Balanza!C16 -> 176059.5 | AH19: 21210 | AI19: Documentos comerciales por pagar a corto plazo | BM19: =Balanza!H114 -> 0 | BN19: =Balanza!D114 -> 0
A20: 11240 | B20: Ingresos por recuperar a corto plazo | AF20: =Balanza!G17 -> 0 | AG20: =Balanza!C17 -> 0 | AH20: 21220 | AI20: Documentos con contratistas por obras públicas por pagar a corto plazo | BM20: =Balanza!H115 -> 0 | BN20: =Balanza!D115 -> 0
A21: 11250 | B21: Deudores por anticipos de la tesorería a corto plazo | AF21: =Balanza!G18 -> 0 | AG21: =Balanza!C18 -> 0 | AH21: 21290 | AI21: Otros documentos por pagar a corto plazo | BM21: =Balanza!H116 -> 66182 | BN21: =Balanza!D116 -> 1498060.41
A22: 11260 | B22: Préstamos otorgados a corto plazo | AF22: =Balanza!G19 -> 0 | AG22: =Balanza!C19 -> 23000 | AH22: 21300 | AI22: PORCIÓN A CORTO PLAZO DE LA DEUDA PÚBLICA A LARGO PLAZO | BM22: =SUM(BM23:BM25) -> 0 | BN22: =SUM(BN23:BN25) -> 2450000
A23: 11290 | B23: Otros derechos a recibir efectivo o equivalentes a corto plazo | AF23: =Balanza!G20 -> 0 | AG23: =Balanza!C20 -> 0 | AH23: 21310 | AI23: Porción a corto plazo de la deuda pública interna | BM23: =Balanza!H118 -> 0 | BN23: =Balanza!D118 -> 2450000
A24: 11300 | B24: DERECHOS A RECIBIR BIENES O SERVICIOS | AF24: =SUM(AF25:AF29) -> 0 | AG24: =SUM(AG25:AG29) -> 0 | AH24: 21320 | AI24: Porción a corto plazo de la deuda pública externa | BM24: =Balanza!H119 -> 0 | BN24: =Balanza!D119 -> 0
A25: 11310 | B25: Anticipo a proveedores por adquisición de bienes y prestación de servicios a corto plazo | AF25: =Balanza!G22 -> 0 | AG25: =Balanza!C22 -> 0 | AH25: 21330 | AI25: Porción a corto plazo de arrendamiento financiero | BM25: =Balanza!H120 -> 0 | BN25: =Balanza!D120 -> 0
A26: 11320 | B26: Anticipo a proveedores por adquisición de bienes inmuebles y muebles a corto plazo | AF26: =Balanza!G23 -> 0 | AG26: =Balanza!C23 -> 0 | AH26: 21400 | AI26: TÍTULOS Y VALORES A CORTO PLAZO | BM26: =SUM(BM27:BM28) -> 0 | BN26: =SUM(BN27:BN28) -> 0
A27: 11330 | B27: Anticipo a proveedores por adquisición de bienes intangibles a corto plazo | AF27: =Balanza!G24 -> 0 | AG27: =Balanza!C24 -> 0 | AH27: 21410 | AI27: Títulos y valores de la deuda pública interna a corto plazo | BM27: =Balanza!H122 -> 0 | BN27: =Balanza!D122 -> 0
A28: 11340 | B28: Anticipo a contratistas por obras públicas a corto plazo | AF28: =Balanza!G25 -> 0 | AG28: =Balanza!C25 -> 0 | AH28: 21420 | AI28: Títulos y valores de la deuda pública externa a corto plazo | BM28: =Balanza!H123 -> 0 | BN28: =Balanza!D123 -> 0
A29: 11390 | B29: Otros derechos a recibir bienes o servicios a corto plazo | AF29: =Balanza!G26 -> 0 | AG29: =Balanza!C26 -> 0 | AH29: 21500 | AI29: PASIVOS DIFERIDOS A CORTO PLAZO | BM29: =SUM(BM30:BM32) -> 0 | BN29: =SUM(BN30:BN32) -> 0
A30: 11400 | B30: INVENTARIOS | AF30: =SUM(AF31:AF35) -> 0 | AG30: =SUM(AG31:AG35) -> 0 | AH30: 21510 | AI30: Ingresos cobrados por adelantado a corto plazo | BM30: =Balanza!H125 -> 0 | BN30: =Balanza!D125 -> 0
A31: 11410 | B31: Inventario de mercancías para venta | AF31: =Balanza!G28 -> 0 | AG31: =Balanza!C28 -> 0 | AH31: 21520 | AI31: Intereses cobrados por adelantado a corto plazo | BM31: =Balanza!H126 -> 0 | BN31: =Balanza!D126 -> 0
A32: 11420 | B32: Inventario de mercancías terminadas | AF32: =Balanza!G29 -> 0 | AG32: =Balanza!C29 -> 0 | AH32: 21590 | AI32: Otros pasivos diferidos a corto plazo | BM32: =Balanza!H127 -> 0 | BN32: =Balanza!D127 -> 0
A33: 11430 | B33: Inventario de mercancías en proceso de elaboración | AF33: =Balanza!G30 -> 0 | AG33: =Balanza!C30 -> 0 | AH33: 21600 | AI33: FONDOS Y BIENES DE TERCEROS EN GARANTÍA Y/O ADMINISTRACIÓN A CORTO PLAZO | BM33: =SUM(BM34:BM39) -> 0 | BN33: =SUM(BN34:BN39) -> 0
A34: 11440 | B34: Inventario de materias primas, materiales y suministros para producción | AF34: =Balanza!G31 -> 0 | AG34: =Balanza!C31 -> 0 | AH34: 21610 | AI34: Fondos en garantía a corto plazo | BM34: =Balanza!H129 -> 0 | BN34: =Balanza!D129 -> 0
A35: 11450 | B35: Bienes en tránsito | AF35: =Balanza!G32 -> 0 | AG35: =Balanza!C32 -> 0 | AH35: 21620 | AI35: Fondos en administración a corto plazo | BM35: =Balanza!H130 -> 0 | BN35: =Balanza!D130 -> 0
A36: 11500 | B36: ALMACENES | AF36: =AF37 -> 0 | AG36: =AG37 -> 0 | AH36: 21630 | AI36: Fondos contingentes a corto plazo | BM36: =Balanza!H131 -> 0 | BN36: =Balanza!D131 -> 0
A37: 11510 | B37: Almacén de materiales y suministro para el consumo | AF37: =Balanza!G34 -> 0 | AG37: =Balanza!C34 -> 0 | AH37: 21640 | AI37: Fondos de fideicomisos, mandatos y contratos análogos a corto plazo | BM37: =Balanza!H132 -> 0 | BN37: =Balanza!D132 -> 0
A38: 11600 | B38: ESTIMACIÓN POR PÉRDIDA O DETERIORO DE ACTIVOS CIRCULANTES | AF38: =SUM(AF39:AF40) -> 0 | AG38: =SUM(AG39:AG40) -> 0 | AH38: 21650 | AI38: Otros fondos de terceros en garantía y/o administración a corto plazo | BM38: =Balanza!H133 -> 0 | BN38: =Balanza!D133 -> 0
A39: 11610 | B39: Estimaciones para cuentas incobrables por derechos a recibir efectivo o equivalentes | AF39: =Balanza!G36 -> 0 | AG39: =Balanza!C36 -> 0 | AH39: 21660 | AI39: Valores y bienes en garantía a corto plazo | BM39: =Balanza!H134 -> 0 | BN39: =Balanza!D134 -> 0
A40: 11620 | B40: Estimación por deterioro de inventarios | AF40: =Balanza!G37 -> 0 | AG40: =Balanza!C37 -> 0 | AH40: 21700 | AI40: PROVISIONES A CORTO PLAZO | BM40: =SUM(BM41:BM43) -> 0 | BN40: =SUM(BN41:BN43) -> 0
A41: 11900 | B41: OTROS ACTIVOS CIRCULANTES | AF41: =SUM(AF42:AF45) -> 0 | AG41: =SUM(AG42:AG45) -> 0 | AH41: 21710 | AI41: Provisión para demandas y juicios a corto plazo | BM41: =Balanza!H136 -> 0 | BN41: =Balanza!D136 -> 0
A42: 11910 | B42: Valores en garantía | AF42: =Balanza!G39 -> 0 | AG42: =Balanza!C39 -> 0 | AH42: 21720 | AI42: Provisión para contingencias a corto plazo | BM42: =Balanza!H137 -> 0 | BN42: =Balanza!D137 -> 0
A43: 11920 | B43: Bienes en garantía (excluye depósitos de fondos) | AF43: =Balanza!G40 -> 0 | AG43: =Balanza!C40 -> 0 | AH43: 21790 | AI43: Otras provisiones a corto plazo | BM43: =Balanza!H138 -> 0 | BN43: =Balanza!D138 -> 0
A44: 11930 | B44: Bienes derivados de embargos, decomisos, aseguramientos y dación en pago | AF44: =Balanza!G41 -> 0 | AG44: =Balanza!C41 -> 0 | AH44: 21900 | AI44: OTROS PASIVOS A CORTO PLAZO | BM44: =SUM(BM45:BM47) -> 0 | BN44: =SUM(BN45:BN47) -> 0
A45: 11940 | B45: Adquisición con fondos de terceros | AF45: =Balanza!G42 -> 0 | AG45: =Balanza!C42 -> 0 | AH45: 21910 | AI45: Ingresos por clasificar | BM45: =Balanza!H140 -> 0 | BN45: =Balanza!D140 -> 0
B46: ACTIVOS CIRCULANTES | AF46: =AF8+AF16+AF24+AF30+AF36+AF38+AF41 -> 769144.48 | AG46: =AG8+AG16+AG24+AG30+AG36+AG38+AG41 -> 1638603.84 | AH46: 21920 | AI46: Recaudación por participar | BM46: =Balanza!H141 -> 0 | BN46: =Balanza!D141 -> 0
A47: 12000 | B47: ACTIVO NO CIRCULANTE | AH47: 21990 | AI47: Otros pasivos circulantes | BM47: =Balanza!H142 -> 0 | BN47: =Balanza!D142 -> 0
A48: 12100 | B48: INVERSIONES FINANCIERAS A LARGO PLAZO | AF48: =SUM(AF49:AF52) -> 0 | AG48: =SUM(AG49:AG52) -> 0 | AI48: PASIVOS CIRCULANTES | BM48: =BM8+BM18+BM22+BM26+BM29+BM33+BM40+BM44 -> 327242.73 | BN48: =BN8+BN18+BN22+BN26+BN29+BN33+BN40+BN44 -> 3948060.41
A49: 12110 | B49: Inversiones a largo plazo | AF49: =Balanza!G45 -> 0 | AG49: =Balanza!C45 -> 0 | AH49: 22000 | AI49: PASIVO NO CIRCULANTE
A50: 12120 | B50: Títulos y valores a largo plazo | AF50: =Balanza!G46 -> 0 | AG50: =Balanza!C46 -> 0 | AH50: 22100 | AI50: CUENTAS POR PAGAR A LARGO PLAZO | BM50: =SUM(BM51:BM52) -> 0 | BN50: =SUM(BN51:BN52) -> 0
A51: 12130 | B51: Fideicomisos, mandatos y contratos análogos | AF51: =Balanza!G47 -> 0 | AG51: =Balanza!C47 -> 0 | AH51: 22110 | AI51: Proveedores por pagar a largo plazo | BM51: =Balanza!H145 -> 0 | BN51: =Balanza!D145 -> 0
A52: 12140 | B52: Participaciones y aportaciones de capital | AF52: =Balanza!G48 -> 0 | AG52: =Balanza!C48 -> 0 | AH52: 22120 | AI52: Contratistas por obras públicas por pagar a largo plazo | BM52: =Balanza!H146 -> 0 | BN52: =Balanza!D146 -> 0
A53: 12200 | B53: DERECHOS A RECIBIR EFECTIVO O EQUIVALENTES A LARGO PLAZO | AF53: =SUM(AF54:AF58) -> 0 | AG53: =SUM(AG54:AG58) -> 0 | AH53: 22200 | AI53: DOCUMENTOS POR PAGAR A LARGO PLAZO | BM53: =SUM(BM54:BM56) -> 0 | BN53: =SUM(BN54:BN56) -> 0
A54: 12210 | B54: Documentos por cobrar a largo plazo | AF54: =Balanza!G50 -> 0 | AG54: =Balanza!C50 -> 0 | AH54: 22210 | AI54: Documentos comerciales por pagar a largo plazo | BM54: =Balanza!H148 -> 0 | BN54: =Balanza!D148 -> 0
A55: 12220 | B55: Deudores diversos a largo plazo | AF55: =Balanza!G51 -> 0 | AG55: =Balanza!C51 -> 0 | AH55: 22220 | AI55: Documentos con contratistas por obras públicas por pagar a largo plazo | BM55: =Balanza!H149 -> 0 | BN55: =Balanza!D149 -> 0
A56: 12230 | B56: Ingresos por recuperar a largo plazo | AF56: =Balanza!G52 -> 0 | AG56: =Balanza!C52 -> 0 | AH56: 22290 | AI56: Otros documentos por pagar a largo plazo | BM56: =Balanza!H150 -> 0 | BN56: =Balanza!D150 -> 0
A57: 12240 | B57: Préstamos otorgados a largo plazo | AF57: =Balanza!G53 -> 0 | AG57: =Balanza!C53 -> 0 | AH57: 22300 | AI57: DEUDA PÚBLICA A LARGO PLAZO | BM57: =SUM(BM58:BM62) -> 0 | BN57: =SUM(BN58:BN62) -> 0
A58: 12290 | B58: Otros derechos a recibir efectivo o equivalentes a largo plazo | AF58: =Balanza!G54 -> 0 | AG58: =Balanza!C54 -> 0 | AH58: 22310 | AI58: Títulos y valores de la deuda pública interna a largo plazo | BM58: =Balanza!H152 -> 0 | BN58: =Balanza!D152 -> 0
A59: 12300 | B59: BIENES INMUEBLES, INFRAESTRUCTURA Y CONSTRUCCIONES EN PROCESO | AF59: =SUM(AF60:AF66) -> 25830417.29 | AG59: =SUM(AG60:AG66) -> 16868234.87 | AH59: 22320 | AI59: Títulos y valores de la deuda pública externa a largo plazo | BM59: =Balanza!H153 -> 0 | BN59: =Balanza!D153 -> 0
A60: 12310 | B60: Terrenos | AF60: =Balanza!G56 -> 0 | AG60: =Balanza!C56 -> 0 | AH60: 22330 | AI60: Préstamos de la deuda pública interna por pagar a largo plazo | BM60: =Balanza!H154 -> 0 | BN60: =Balanza!D154 -> 0
A61: 12320 | B61: Viviendas | AF61: =Balanza!G57 -> 0 | AG61: =Balanza!C57 -> 0 | AH61: 22340 | AI61: Préstamos de la deuda pública externa por pagar a largo plazo | BM61: =Balanza!H155 -> 0 | BN61: =Balanza!D155 -> 0
A62: 12330 | B62: Edificios no habitacionales | AF62: =Balanza!G58 -> 0 | AG62: =Balanza!C58 -> 0 | AH62: 22350 | AI62: Arrendamiento financiero por pagar a largo plazo | BM62: =Balanza!H156 -> 0 | BN62: =Balanza!D156 -> 0
A63: 12340 | B63: Infraestructura | AF63: =Balanza!G59 -> 0 | AG63: =Balanza!C59 -> 0 | AH63: 22400 | AI63: PASIVOS DIFERIDOS A LARGO PLAZO | BM63: =SUM(BM64:BM66) -> 0 | BN63: =SUM(BN64:BN66) -> 0
A64: 12350 | B64: Construcciones en proceso en bienes de dominio público | AF64: =Balanza!G60 -> 25830417.29 | AG64: =Balanza!C60 -> 16868234.87 | AH64: 22410 | AI64: Créditos diferidos a largo plazo | BM64: =Balanza!H158 -> 0 | BN64: =Balanza!D158 -> 0
A65: 12360 | B65: Construcciones en proceso en bienes propios | AF65: =Balanza!G61 -> 0 | AG65: =Balanza!C61 -> 0 | AH65: 22420 | AI65: Intereses cobrados por adelantado a largo plazo | BM65: =Balanza!H159 -> 0 | BN65: =Balanza!D159 -> 0
A66: 12390 | B66: Otros bienes inmuebles | AF66: =Balanza!G62 -> 0 | AG66: =Balanza!C62 -> 0 | AH66: 22490 | AI66: Otros pasivos diferidos a largo plazo | BM66: =Balanza!H160 -> 0 | BN66: =Balanza!D160 -> 0
A67: 12400 | B67: BIENES MUEBLES | AF67: =SUM(AF68:AF75) -> 2530307.22 | AG67: =SUM(AG68:AG75) -> 2169894.25 | AH67: 22500 | AI67: FONDOS Y BIENES DE TERCEROS EN GARANTÍA Y/O ADMINISTRACIÓN A LARGO PLAZO | BM67: =SUM(BM68:BM73) -> 0 | BN67: =SUM(BN68:BN73) -> 0
A68: 12410 | B68: Mobiliario y equipo de administración | AF68: =Balanza!G64 -> 198100.98 | AG68: =Balanza!C64 -> 65188.01 | AH68: 22510 | AI68: Fondos en garantía a largo plazo | BM68: =Balanza!H162 -> 0 | BN68: =Balanza!D162 -> 0
A69: 12420 | B69: Mobiliario y equipo educacional y recreativo | AF69: =Balanza!G65 -> 0 | AG69: =Balanza!C65 -> 0 | AH69: 22520 | AI69: Fondos en administración a largo plazo | BM69: =Balanza!H163 -> 0 | BN69: =Balanza!D163 -> 0
A70: 12430 | B70: Equipo e instrumental médico y de laboratorio | AF70: =Balanza!G66 -> 0 | AG70: =Balanza!C66 -> 0 | AH70: 22530 | AI70: Fondos contingentes a largo plazo | BM70: =Balanza!H164 -> 0 | BN70: =Balanza!D164 -> 0
A71: 12440 | B71: Vehículos y equipo de transporte | AF71: =Balanza!G67 -> 2332206.24 | AG71: =Balanza!C67 -> 2104706.24 | AH71: 22540 | AI71: Fondos de fideicomisos, mandatos y contratos análogos a largo plazo | BM71: =Balanza!H165 -> 0 | BN71: =Balanza!D165 -> 0
A72: 12450 | B72: Equipo de defensa y seguridad | AF72: =Balanza!G68 -> 0 | AG72: =Balanza!C68 -> 0 | AH72: 22550 | AI72: Otros fondos de terceros en garantía y/o administración a largo plazo | BM72: =Balanza!H166 -> 0 | BN72: =Balanza!D166 -> 0
A73: 12460 | B73: Maquinaria, otros equipos y herramientas | AF73: =Balanza!G69 -> 0 | AG73: =Balanza!C69 -> 0 | AH73: 22560 | AI73: Valores y bienes en garantía a largo plazo | BM73: =Balanza!H167 -> 0 | BN73: =Balanza!D167 -> 0
A74: 12470 | B74: Colecciones, obras de arte y objetos valiosos | AF74: =Balanza!G70 -> 0 | AG74: =Balanza!C70 -> 0 | AH74: 22600 | AI74: PROVISIONES A LARGO PLAZO | BM74: =SUM(BM75:BM78) -> 0 | BN74: =SUM(BN75:BN78) -> 0
A75: 12480 | B75: Activos biológicos | AF75: =Balanza!G71 -> 0 | AG75: =Balanza!C71 -> 0 | AH75: 22610 | AI75: Provisión para demandas y juicios a largo plazo | BM75: =Balanza!H169 -> 0 | BN75: =Balanza!D169 -> 0
A76: 12500 | B76: ACTIVOS INTANGIBLES | AF76: =SUM(AF77:AF81) -> 0 | AG76: =SUM(AG77:AG81) -> 0 | AH76: 22620 | AI76: Provisión para pensiones a largo plazo | BM76: =Balanza!H170 -> 0 | BN76: =Balanza!D170 -> 0
A77: 12510 | B77: Software | AF77: =Balanza!G73 -> 0 | AG77: =Balanza!C73 -> 0 | AH77: 22630 | AI77: Provisión para contingencias a largo plazo | BM77: =Balanza!H171 -> 0 | BN77: =Balanza!D171 -> 0
A78: 12520 | B78: Patentes, marcas y derechos | AF78: =Balanza!G74 -> 0 | AG78: =Balanza!C74 -> 0 | AH78: 22690 | AI78: Otras provisiones a largo plazo | BM78: =Balanza!H172 -> 0 | BN78: =Balanza!D172 -> 0
A79: 12530 | B79: Concesiones y franquicias | AF79: =Balanza!G75 -> 0 | AG79: =Balanza!C75 -> 0 | AI79: PASIVOS NO CIRCULANTES | BM79: =BM50+BM53+BM57+BM63+BM67+BM74 -> 0 | BN79: =BN50+BN53+BN57+BN63+BN67+BN74 -> 0
A80: 12540 | B80: Licencias | AF80: =Balanza!G76 -> 0 | AG80: =Balanza!C76 -> 0 | AI80: TOTAL DE PASIVOS | BM80: =BM48+BM79 -> 327242.73 | BN80: =BN48+BN79 -> 3948060.41
A81: 12590 | B81: Otros activos intangibles | AF81: =Balanza!G77 -> 0 | AG81: =Balanza!C77 -> 0 | AH81: 30000 | AI81: HACIENDA PÚBLICA/ PATRIMONIO
A82: 12600 | B82: DEPRECIACIÓN, DETERIORO Y AMORTIZACIÓN ACUMULADA DE BIENES | AF82: =SUM(AF83:AF87) -> 0 | AG82: =SUM(AG83:AG87) -> 0 | AH82: 31000 | AI82: HACIENDA PÚBLICA/ PATRIMONIO CONTRIBUIDO | BM82: =SUM(BM83:BM85) -> 0 | BN82: =SUM(BN83:BN85) -> 0
A83: 12610 | B83: Depreciación acumulada de bienes inmuebles | AF83: =(Balanza!H79)*-1 -> 0 | AG83: =(Balanza!D79)*-1 -> 0 | AH83: 31100 | AI83: Aportaciones | BM83: =Balanza!H175 -> 0 | BN83: =Balanza!D175 -> 0
A84: 12620 | B84: Depreciación acumulada de infraestructura | AF84: =(Balanza!H80)*-1 -> 0 | AG84: =(Balanza!D80)*-1 -> 0 | AH84: 31200 | AI84: Donaciones de capítal | BM84: =Balanza!H176 -> 0 | BN84: =Balanza!D176 -> 0
A85: 12630 | B85: Depreciación acumulada de bienes muebles | AF85: =(Balanza!H81)*-1 -> 0 | AG85: =(Balanza!D81)*-1 -> 0 | AH85: 31300 | AI85: Actualización de la hacienda pública/patrimonio | BM85: =Balanza!H177 -> 0 | BN85: =Balanza!D177 -> 0
A86: 12640 | B86: Deterioro acumulado de activos biológicos | AF86: =(Balanza!H82)*-1 -> 0 | AG86: =(Balanza!D82)*-1 -> 0 | AH86: 32000 | AI86: HACIENDA PÚBLICA/PATRIMONIO GENERADO | BM86: =BM87+BM88+BM89+BM94+BM98 -> 28802626.26 | BN86: =BN87+BN88+BN89+BN94+BN98 -> 16728672.55
A87: 12650 | B87: Amortización acumulada de activos intangibles | AF87: =(Balanza!H83)*-1 -> 0 | AG87: =(Balanza!D83)*-1 -> 0 | AH87: 32100 | AI87: Resultado del ejercicio (ahorro/desahorro) | BM87: =Balanza!H179 -> 12073953.71 | BN87: =Balanza!D179 -> 8267371.7
A88: 12700 | B88: ACTIVOS DIFERIDOS | AF88: =SUM(AF89:AF94) -> 0 | AG88: =SUM(AG89:AG94) -> 0 | AH88: 32200 | AI88: Resultado de ejercicios anteriores | BM88: =Balanza!H180 -> 16728672.55 | BN88: =Balanza!D180 -> 8461300.85
A89: 12710 | B89: Estudios, formulación y evaluación de proyectos | AF89: =Balanza!G85 -> 0 | AG89: =Balanza!C85 -> 0 | AH89: 32300 | AI89: REVALÚOS | BM89: =SUM(BM90:BM93) -> 0 | BN89: =SUM(BN90:BN93) -> 0
A90: 12720 | B90: Derechos sobre bienes en régimen de arrendamiento financiero | AF90: =Balanza!G86 -> 0 | AG90: =Balanza!C86 -> 0 | AH90: 32310 | AI90: Revalúo de bienes inmuebles | BM90: =Balanza!H182 -> 0 | BN90: =Balanza!D182 -> 0
A91: 12730 | B91: Gastos pagados por adelantado a largo plazo | AF91: =Balanza!G87 -> 0 | AG91: =Balanza!C87 -> 0 | AH91: 32320 | AI91: Revalúo de bienes muebles | BM91: =Balanza!H183 -> 0 | BN91: =Balanza!D183 -> 0
A92: 12740 | B92: Anticipos a largo plazo | AF92: =Balanza!G88 -> 0 | AG92: =Balanza!C88 -> 0 | AH92: 32330 | AI92: Revalúo de bienes intangibles | BM92: =Balanza!H184 -> 0 | BN92: =Balanza!D184 -> 0
A93: 12750 | B93: Beneficios al retiro de empleados pagados por adelantado | AF93: =Balanza!G89 -> 0 | AG93: =Balanza!C89 -> 0 | AH93: 32390 | AI93: Otros revalúos | BM93: =Balanza!H185 -> 0 | BN93: =Balanza!D185 -> 0
A94: 12790 | B94: Otros activos diferidos | AF94: =Balanza!G90 -> 0 | AG94: =Balanza!C90 -> 0 | AH94: 32400 | AI94: RESERVAS | BM94: =SUM(BM95:BM97) -> 0 | BN94: =SUM(BN95:BN97) -> 0
A95: 12800 | B95: ESTIMACIÓN POR PÉRDIDA O DETERIORO DE ACTIVOS NO CIRCULANTES | AF95: =SUM(AF96:AF100) -> 0 | AG95: =SUM(AG96:AG100) -> 0 | AH95: 32410 | AI95: Reservas de patrimonio | BM95: =Balanza!H187 -> 0 | BN95: =Balanza!D187 -> 0
A96: 12810 | B96: Estimaciones por pérdida de cuentas incobrables de documentos por cobrar a largo plazo | AF96: =(Balanza!H92)*-1 -> 0 | AG96: =(Balanza!D92)*-1 -> 0 | AH96: 32420 | AI96: Reservas territoriales | BM96: =Balanza!H188 -> 0 | BN96: =Balanza!D188 -> 0
A97: 12820 | B97: Estimaciones por pérdida de cuentas incobrables de deudores diversos por cobrar a largo plazo | AF97: =(Balanza!H93)*-1 -> 0 | AG97: =(Balanza!D93)*-1 -> 0 | AH97: 32430 | AI97: Reservas por contingencias | BM97: =Balanza!H189 -> 0 | BN97: =Balanza!D189 -> 0
A98: 12830 | B98: Estimaciones por pérdida de cuentas incobrables de ingresos por cobrar a largo plazo | AF98: =(Balanza!H94)*-1 -> 0 | AG98: =(Balanza!D94)*-1 -> 0 | AH98: 32500 | AI98: RECTIFICACIONES DE RESULTADOS DE EJERCICIOS ANTERIORES | BM98: =SUM(BM99:BM100) -> 0 | BN98: =SUM(BN99:BN100) -> 0
A99: 12840 | B99: Estimaciones por pérdida de cuentas incobrables de préstamos otorgados a largo plazo | AF99: =(Balanza!H95)*-1 -> 0 | AG99: =(Balanza!D95)*-1 -> 0 | AH99: 32510 | AI99: Cambios en políticas contables | BM99: =Balanza!H191 -> 0 | BN99: =Balanza!D191 -> 0
A100: 12890 | B100: Estimaciones por pérdida de otras cuentas incobrables a largo plazo | AF100: =(Balanza!H96)*-1 -> 0 | AG100: =(Balanza!D96)*-1 -> 0 | AH100: 32520 | AI100: Cambios por errores contables | BM100: =Balanza!H192 -> 0 | BN100: =Balanza!D192 -> 0
A101: 12900 | B101: OTROS ACTIVOS NO CIRCULANTES | AF101: =SUM(AF102:AF104) -> 0 | AG101: =SUM(AG102:AG104) -> 0 | AH101: 33000 | AI101: EXCESO O INSUFICIENCIA EN LA ACTUALIZACIÓN DE LA HACIENDA PÚBLICA / PATRIMONIO | BM101: =SUM(BM102:BM103) -> 0 | BN101: =SUM(BN102:BN103) -> 0
A102: 12910 | B102: Bienes en concesión | AF102: =Balanza!G98 -> 0 | AG102: =Balanza!C98 -> 0 | AH102: 33100 | AI102: Resultado por posición monetaria | BM102: =Balanza!H194 -> 0 | BN102: =Balanza!D194 -> 0
A103: 12920 | B103: Bienes en arrendamiento financiero | AF103: =Balanza!G99 -> 0 | AG103: =Balanza!C99 -> 0 | AH103: 33200 | AI103: Resultado por tenencia de activos no monetarios | BM103: =Balanza!H195 -> 0 | BN103: =Balanza!D195 -> 0
A104: 12930 | B104: Bienes en comodato | AF104: =Balanza!G100 -> 0 | AG104: =Balanza!C100 -> 0 | BL104: TOTAL HACIENDA PUBLICA / PATRIMONIO | BM104: =BM82+BM86+BM101 -> 28802626.26 | BN104: =BN82+BN86+BN101 -> 16728672.55
B105: ACTIVOS NO CIRCULANTES | AF105: =AF48+AF53+AF59+AF67+AF76+AF82+AF88+AF95+AF101 -> 28360724.51 | AG105: =AG48+AG53+AG59+AG67+AG76+AG82+AG88+AG95+AG101 -> 19038129.12
B106: TOTAL DEL ACTIVO | AF106: =AF46+AF105 -> 29129868.99 | AG106: =AG46+AG105 -> 20676732.96 | AI106: SUMA DE PASIVO Y PATRIMONIO / HACIENDA PÚBLICA | BM106: =BM80+BM104 -> 29129868.99 | BN106: =BN80+BN104 -> 20676732.96
B109: Bajo protesta de decir verdad declaramos que los estados financieros y sus notas, son razonablemente correctos y son responsabilidad del emisor.
Q118: =Validacion!A7 -> C. SANTIAGO LEON CASTRO | AW118: =Validacion!A9 -> L.T. JOCELYN SANCHEZ HERRERA
Q120: Presidente Municipal o Títular del ente público | AW120: Encargado de la Hacienda Pública Municipal o Responsable de las finanzas del ente público

Sheet F1LDF
B1: =Validacion!A2 -> Atemajac de Brizuela
B2: ESTADO DE SITUACIÓN FINANCIERA DETALLADO - LDF
B3: ="Al "&INDEX(Validacion!D131:D142,MATCH(Validacion!A11,Validacion!C131:C142,0)) -> Al 31 de Diciembre de 2021
A5: CTA. | B5: CONCEPTO | AF5: 2021 | AG5: 2020 | AH5: CTA | AI5: CONCEPTO | BM5: 2021 | BN5: 2020
A6: 10000 | B6: ACTIVO | AH6: 20000 | AI6: PASIVO
A7: 11000 | B7: ACTIVO CIRCULANTE | AH7: 21000 | AI7: PASIVO CIRCULANTE
A8: 11100 | B8: EFECTIVO Y EQUIVALENTES | AF8: =SUM(AF9:AF15) -> 765144.48 | AG8: =SUM(AG9:AG15) -> 1439544.34 | AH8: 21100 | AI8: CUENTAS POR PAGAR A CORTO PLAZO | BM8: =SUM(BM9:BM17) -> 261060.73 | BN8: =SUM(BN9:BN17) -> 0
A9: 11110 | B9: Efectivo | AF9: =Balanza!G6 -> 2557.02 | AG9: =Balanza!C6 -> 94925.3 | AH9: 21110 | AI9: Servicios personales por pagar a corto plazo | BM9: =Balanza!H104 -> 0 | BN9: =Balanza!D104 -> 0
A10: 11120 | B10: Bancos/Tesorería | AF10: =Balanza!G7 -> 762587.46 | AG10: =Balanza!C7 -> 1320619.04 | AH10: 21120 | AI10: Proveedores por pagar a corto plazo | BM10: =Balanza!H105 -> 0 | BN10: =Balanza!D105 -> 0
A11: 11130 | B11: Bancos/Dependencias y otros | AF11: =Balanza!G8 -> 0 | AG11: =Balanza!C8 -> 24000 | AH11: 21130 | AI11: Contratistas por obras públicas por pagar a corto plazo | BM11: =Balanza!H106 -> 0 | BN11: =Balanza!D106 -> 0
A12: 11140 | B12: Inversiones temporales (hasta 3 meses) | AF12: =Balanza!G9 -> 0 | AG12: =Balanza!C9 -> 0 | AH12: 21140 | AI12: Participaciones y aportaciones por pagar a corto plazo | BM12: =Balanza!H107 -> 0 | BN12: =Balanza!D107 -> 0
A13: 11150 | B13: Fondos con afectación específica | AF13: =Balanza!G10 -> 0 | AG13: =Balanza!C10 -> 0 | AH13: 21150 | AI13: Transferencias otorgadas por pagar a corto plazo | BM13: =Balanza!H108 -> 0 | BN13: =Balanza!D108 -> 0
A14: 11160 | B14: Depósitos de fondos de terceros en garantía y/o administración | AF14: =Balanza!G11 -> 0 | AG14: =Balanza!C11 -> 0 | AH14: 21160 | AI14: Intereses, comisiones y otros gastos de la deuda pública por pagar a corto plazo | BM14: =Balanza!H109 -> 0 | BN14: =Balanza!D109 -> 0
A15: 11190 | B15: Otros efectivos y equivalentes | AF15: =Balanza!G12 -> 0 | AG15: =Balanza!C12 -> 0 | AH15: 21170 | AI15: Retenciones y contribuciones por pagar a corto plazo | BM15: =Balanza!H110 -> 261060.73 | BN15: =Balanza!D110 -> 0
A16: 11200 | B16: DERECHOS A RECIBIR EFECTIVO O EQUIVALENTES | AF16: =SUM(AF17:AF23) -> 4000 | AG16: =SUM(AG17:AG23) -> 199059.5 | AH16: 21180 | AI16: Devoluciones de la ley de ingresos por pagar a corto plazo | BM16: =Balanza!H111 -> 0 | BN16: =Balanza!D111 -> 0
A17: 11210 | B17: Inversiones financieras de corto plazo | AF17: =Balanza!G14 -> 0 | AG17: =Balanza!C14 -> 0 | AH17: 21190 | AI17: Otras cuentas por pagar a corto plazo | BM17: =Balanza!H112 -> 0 | BN17: =Balanza!D112 -> 0
A18: 11220 | B18: Cuentas por cobrar a corto plazo | AF18: =Balanza!G15 -> 0 | AG18: =Balanza!C15 -> 0 | AH18: 21200 | AI18: DOCUMENTOS POR PAGAR A CORTO PLAZO | BM18: =SUM(BM19:BM21) -> 66182 | BN18: =SUM(BN19:BN21) -> 1498060.41
A19: 11230 | B19: Deudores diversos por cobrar a corto plazo | AF19: =Balanza!G16 -> 4000 | AG19: =Balanza!C16 -> 176059.5 | AH19: 21210 | AI19: Documentos comerciales por pagar a corto plazo | BM19: =Balanza!H114 -> 0 | BN19: =Balanza!D114 -> 0
A20: 11240 | B20: Ingresos por recuperar a corto plazo | AF20: =Balanza!G17 -> 0 | AG20: =Balanza!C17 -> 0 | AH20: 21220 | AI20: Documentos con contratistas por obras públicas por pagar a corto plazo | BM20: =Balanza!H115 -> 0 | BN20: =Balanza!D115 -> 0
A21: 11250 | B21: Deudores por anticipos de la tesorería a corto plazo | AF21: =Balanza!G18 -> 0 | AG21: =Balanza!C18 -> 0 | AH21: 21290 | AI21: Otros documentos por pagar a corto plazo | BM21: =Balanza!H116 -> 66182 | BN21: =Balanza!D116 -> 1498060.41
A22: 11260 | B22: Préstamos otorgados a corto plazo | AF22: =Balanza!G19 -> 0 | AG22: =Balanza!C19 -> 23000 | AH22: 21300 | AI22: PORCIÓN A CORTO PLAZO DE LA DEUDA PÚBLICA A LARGO PLAZO | BM22: =SUM(BM23:BM25) -> 0 | BN22: =SUM(BN23:BN25) -> 2450000
A23: 11290 | B23: Otros derechos a recibir efectivo o equivalentes a corto plazo | AF23: =Balanza!G20 -> 0 | AG23: =Balanza!C20 -> 0 | AH23: 21310 | AI23: Porción a corto plazo de la deuda pública interna | BM23: =Balanza!H118 -> 0 | BN23: =Balanza!D118 -> 2450000
A24: 11300 | B24: DERECHOS A RECIBIR BIENES O SERVICIOS | AF24: =SUM(AF25:AF29) -> 0 | AG24: =SUM(AG25:AG29) -> 0 | AH24: 21320 | AI24: Porción a corto plazo de la deuda pública externa | BM24: =Balanza!H119 -> 0 | BN24: =Balanza!D119 -> 0
A25: 11310 | B25: Anticipo a proveedores por adquisición de bienes y prestación de servicios a corto plazo | AF25: =Balanza!G22 -> 0 | AG25: =Balanza!C22 -> 0 | AH25: 21330 | AI25: Porción a corto plazo de arrendamiento financiero | BM25: =Balanza!H120 -> 0 | BN25: =Balanza!D120 -> 0
A26: 11320 | B26: Anticipo a proveedores por adquisición de bienes inmuebles y muebles a corto plazo | AF26: =Balanza!G23 -> 0 | AG26: =Balanza!C23 -> 0 | AH26: 21400 | AI26: TÍTULOS Y VALORES A CORTO PLAZO | BM26: =SUM(BM27:BM28) -> 0 | BN26: =SUM(BN27:BN28) -> 0
A27: 11330 | B27: Anticipo a proveedores por adquisición de bienes intangibles a corto plazo | AF27: =Balanza!G24 -> 0 | AG27: =Balanza!C24 -> 0 | AH27: 21410 | AI27: Títulos y valores de la deuda pública interna a corto plazo | BM27: =Balanza!H122 -> 0 | BN27: =Balanza!D122 -> 0
A28: 11340 | B28: Anticipo a contratistas por obras públicas a corto plazo | AF28: =Balanza!G25 -> 0 | AG28: =Balanza!C25 -> 0 | AH28: 21420 | AI28: Títulos y valores de la deuda pública externa a corto plazo | BM28: =Balanza!H123 -> 0 | BN28: =Balanza!D123 -> 0
A29: 11390 | B29: Otros derechos a recibir bienes o servicios a corto plazo | AF29: =Balanza!G26 -> 0 | AG29: =Balanza!C26 -> 0 | AH29: 21500 | AI29: PASIVOS DIFERIDOS A CORTO PLAZO | BM29: =SUM(BM30:BM32) -> 0 | BN29: =SUM(BN30:BN32) -> 0
A30: 11400 | B30: INVENTARIOS | AF30: =SUM(AF31:AF35) -> 0 | AG30: =SUM(AG31:AG35) -> 0 | AH30: 21510 | AI30: Ingresos cobrados por adelantado a corto plazo | BM30: =Balanza!H125 -> 0 | BN30: =Balanza!D125 -> 0
A31: 11410 | B31: Inventario de mercancías para venta | AF31: =Balanza!G28 -> 0 | AG31: =Balanza!C28 -> 0 | AH31: 21520 | AI31: Intereses cobrados por adelantado a corto plazo | BM31: =Balanza!H126 -> 0 | BN31: =Balanza!D126 -> 0
A32: 11420 | B32: Inventario de mercancías terminadas | AF32: =Balanza!G29 -> 0 | AG32: =Balanza!C29 -> 0 | AH32: 21590 | AI32: Otros pasivos diferidos a corto plazo | BM32: =Balanza!H127 -> 0 | BN32: =Balanza!D127 -> 0
A33: 11430 | B33: Inventario de mercancías en proceso de elaboración | AF33: =Balanza!G30 -> 0 | AG33: =Balanza!C30 -> 0 | AH33: 21600 | AI33: FONDOS Y BIENES DE TERCEROS EN GARANTÍA Y/O ADMINISTRACIÓN A CORTO PLAZO | BM33: =SUM(BM34:BM39) -> 0 | BN33: =SUM(BN34:BN39) -> 0
A34: 11440 | B34: Inventario de materias primas, materiales y suministros para producción | AF34: =Balanza!G31 -> 0 | AG34: =Balanza!C31 -> 0 | AH34: 21610 | AI34: Fondos en garantía a corto plazo | BM34: =Balanza!H129 -> 0 | BN34: =Balanza!D129 -> 0
A35: 11450 | B35: Bienes en tránsito | AF35: =Balanza!G32 -> 0 | AG35: =Balanza!C32 -> 0 | AH35: 21620 | AI35: Fondos en administración a corto plazo | BM35: =Balanza!H130 -> 0 | BN35: =Balanza!D130 -> 0
A36: 11500 | B36: ALMACENES | AF36: =AF37 -> 0 | AG36: =AG37 -> 0 | AH36: 21630 | AI36: Fondos contingentes a corto plazo | BM36: =Balanza!H131 -> 0 | BN36: =Balanza!D131 -> 0
A37: 11510 | B37: Almacén de materiales y suministro para el consumo | AF37: =Balanza!G34 -> 0 | AG37: =Balanza!C34 -> 0 | AH37: 21640 | AI37: Fondos de fideicomisos, mandatos y contratos análogos a corto plazo | BM37: =Balanza!H132 -> 0 | BN37: =Balanza!D132 -> 0
A38: 11600 | B38: ESTIMACIÓN POR PÉRDIDA O DETERIORO DE ACTIVOS CIRCULANTES | AF38: =SUM(AF39:AF40) -> 0 | AG38: =SUM(AG39:AG40) -> 0 | AH38: 21650 | AI38: Otros fondos de terceros en garantía y/o administración a corto plazo | BM38: =Balanza!H133 -> 0 | BN38: =Balanza!D133 -> 0
A39: 11610 | B39: Estimaciones para cuentas incobrables por derechos a recibir efectivo o equivalentes | AF39: =Balanza!G36 -> 0 | AG39: =Balanza!C36 -> 0 | AH39: 21660 | AI39: Valores y bienes en garantía a corto plazo | BM39: =Balanza!H134 -> 0 | BN39: =Balanza!D134 -> 0
A40: 11620 | B40: Estimación por deterioro de inventarios | AF40: =Balanza!G37 -> 0 | AG40: =Balanza!C37 -> 0 | AH40: 21700 | AI40: PROVISIONES A CORTO PLAZO | BM40: =SUM(BM41:BM43) -> 0 | BN40: =SUM(BN41:BN43) -> 0
A41: 11900 | B41: OTROS ACTIVOS CIRCULANTES | AF41: =SUM(AF42:AF45) -> 0 | AG41: =SUM(AG42:AG45) -> 0 | AH41: 21710 | AI41: Provisión para demandas y juicios a corto plazo | BM41: =Balanza!H136 -> 0 | BN41: =Balanza!D136 -> 0
A42: 11910 | B42: Valores en garantía | AF42: =Balanza!G39 -> 0 | AG42: =Balanza!C39 -> 0 | AH42: 21720 | AI42: Provisión para contingencias a corto plazo | BM42: =Balanza!H137 -> 0 | BN42: =Balanza!D137 -> 0
A43: 11920 | B43: Bienes en garantía (excluye depósitos de fondos) | AF43: =Balanza!G40 -> 0 | AG43: =Balanza!C40 -> 0 | AH43: 21790 | AI43: Otras provisiones a corto plazo | BM43: =Balanza!H138 -> 0 | BN43: =Balanza!D138 -> 0
A44: 11930 | B44: Bienes derivados de embargos, decomisos, aseguramientos y dación en pago | AF44: =Balanza!G41 -> 0 | AG44: =Balanza!C41 -> 0 | AH44: 21900 | AI44: OTROS PASIVOS A CORTO PLAZO | BM44: =SUM(BM45:BM47) -> 0 | BN44: =SUM(BN45:BN47) -> 0
A45: 11940 | B45: Adquisición con fondos de terceros | AF45: =Balanza!G42 -> 0 | AG45: =Balanza!C42 -> 0 | AH45: 21910 | AI45: Ingresos por clasificar | BM45: =Balanza!H140 -> 0 | BN45: =Balanza!D140 -> 0
B46: ACTIVOS CIRCULANTES | AF46: =AF8+AF16+AF24+AF30+AF36+AF38+AF41 -> 769144.48 | AG46: =AG8+AG16+AG24+AG30+AG36+AG38+AG41 -> 1638603.84 | AH46: 21920 | AI46: Recaudación por participar | BM46: =Balanza!H141 -> 0 | BN46: =Balanza!D141 -> 0
A47: 12000 | B47: ACTIVO NO CIRCULANTE | AH47: 21990 | AI47: Otros pasivos circulantes | BM47: =Balanza!H142 -> 0 | BN47: =Balanza!D142 -> 0
A48: 12100 | B48: INVERSIONES FINANCIERAS A LARGO PLAZO | AF48: =SUM(AF49:AF52) -> 0 | AG48: =SUM(AG49:AG52) -> 0 | AI48: PASIVOS CIRCULANTES | BM48: =BM8+BM18+BM22+BM26+BM29+BM33+BM40+BM44 -> 327242.73 | BN48: =BN8+BN18+BN22+BN26+BN29+BN33+BN40+BN44 -> 3948060.41
A49: 12110 | B49: Inversiones a largo plazo | AF49: =Balanza!G45 -> 0 | AG49: =Balanza!C45 -> 0 | AH49: 22000 | AI49: PASIVO NO CIRCULANTE
A50: 12120 | B50: Títulos y valores a largo plazo | AF50: =Balanza!G46 -> 0 | AG50: =Balanza!C46 -> 0 | AH50: 22100 | AI50: CUENTAS POR PAGAR A LARGO PLAZO | BM50: =SUM(BM51:BM52) -> 0 | BN50: =SUM(BN51:BN52) -> 0
A51: 12130 | B51: Fideicomisos, mandatos y contratos análogos | AF51: =Balanza!G47 -> 0 | AG51: =Balanza!C47 -> 0 | AH51: 22110 | AI51: Proveedores por pagar a largo plazo | BM51: =Balanza!H145 -> 0 | BN51: =Balanza!D145 -> 0
A52: 12140 | B52: Participaciones y aportaciones de capital | AF52: =Balanza!G48 -> 0 | AG52: =Balanza!C48 -> 0 | AH52: 22120 | AI52: Contratistas por obras públicas por pagar a largo plazo | BM52: =Balanza!H146 -> 0 | BN52: =Balanza!D146 -> 0
A53: 12200 | B53: DERECHOS A RECIBIR EFECTIVO O EQUIVALENTES A LARGO PLAZO | AF53: =SUM(AF54:AF58) -> 0 | AG53: =SUM(AG54:AG58) -> 0 | AH53: 22200 | AI53: DOCUMENTOS POR PAGAR A LARGO PLAZO | BM53: =SUM(BM54:BM56) -> 0 | BN53: =SUM(BN54:BN56) -> 0
A54: 12210 | B54: Documentos por cobrar a largo plazo | AF54: =Balanza!G50 -> 0 | AG54: =Balanza!C50 -> 0 | AH54: 22210 | AI54: Documentos comerciales por pagar a largo plazo | BM54: =Balanza!H148 -> 0 | BN54: =Balanza!D148 -> 0
A55: 12220 | B55: Deudores diversos a largo plazo | AF55: =Balanza!G51 -> 0 | AG55: =Balanza!C51 -> 0 | AH55: 22220 | AI55: Documentos con contratistas por obras públicas por pagar a largo plazo | BM55: =Balanza!H149 -> 0 | BN55: =Balanza!D149 -> 0
A56: 12230 | B56: Ingresos por recuperar a largo plazo | AF56: =Balanza!G52 -> 0 | AG56: =Balanza!C52 -> 0 | AH56: 22290 | AI56: Otros documentos por pagar a largo plazo | BM56: =Balanza!H150 -> 0 | BN56: =Balanza!D150 -> 0
A57: 12240 | B57: Préstamos otorgados a largo plazo | AF57: =Balanza!G53 -> 0 | AG57: =Balanza!C53 -> 0 | AH57: 22300 | AI57: DEUDA PÚBLICA A LARGO PLAZO | BM57: =SUM(BM58:BM62) -> 0 | BN57: =SUM(BN58:BN62) -> 0
A58: 12290 | B58: Otros derechos a recibir efectivo o equivalentes a largo plazo | AF58: =Balanza!G54 -> 0 | AG58: =Balanza!C54 -> 0 | AH58: 22310 | AI58: Títulos y valores de la deuda pública interna a largo plazo | BM58: =Balanza!H152 -> 0 | BN58: =Balanza!D152 -> 0
A59: 12300 | B59: BIENES INMUEBLES, INFRAESTRUCTURA Y CONSTRUCCIONES EN PROCESO | AF59: =SUM(AF60:AF66) -> 25830417.29 | AG59: =SUM(AG60:AG66) -> 16868234.87 | AH59: 22320 | AI59: Títulos y valores de la deuda pública externa a largo plazo | BM59: =Balanza!H153 -> 0 | BN59: =Balanza!D153 -> 0
A60: 12310 | B60: Terrenos | AF60: =Balanza!G56 -> 0 | AG60: =Balanza!C56 -> 0 | AH60: 22330 | AI60: Préstamos de la deuda pública interna por pagar a largo plazo | BM60: =Balanza!H154 -> 0 | BN60: =Balanza!D154 -> 0
A61: 12320 | B61: Viviendas | AF61: =Balanza!G57 -> 0 | AG61: =Balanza!C57 -> 0 | AH61: 22340 | AI61: Préstamos de la deuda pública externa por pagar a largo plazo | BM61: =Balanza!H155 -> 0 | BN61: =Balanza!D155 -> 0
A62: 12330 | B62: Edificios no habitacionales | AF62: =Balanza!G58 -> 0 | AG62: =Balanza!C58 -> 0 | AH62: 22350 | AI62: Arrendamiento financiero por pagar a largo plazo | BM62: =Balanza!H156 -> 0 | BN62: =Balanza!D156 -> 0
A63: 12340 | B63: Infraestructura | AF63: =Balanza!G59 -> 0 | AG63: =Balanza!C59 -> 0 | AH63: 22400 | AI63: PASIVOS DIFERIDOS A LARGO PLAZO | BM63: =SUM(BM64:BM66) -> 0 | BN63: =SUM(BN64:BN66) -> 0
A64: 12350 | B64: Construcciones en proceso en bienes de dominio público | AF64: =Balanza!G60 -> 25830417.29 | AG64: =Balanza!C60 -> 16868234.87 | AH64: 22410 | AI64: Créditos diferidos a largo plazo | BM64: =Balanza!H158 -> 0 | BN64: =Balanza!D158 -> 0
A65: 12360 | B65: Construcciones en proceso en bienes propios | AF65: =Balanza!G61 -> 0 | AG65: =Balanza!C61 -> 0 | AH65: 22420 | AI65: Intereses cobrados por adelantado a largo plazo | BM65: =Balanza!H159 -> 0 | BN65: =Balanza!D159 -> 0
A66: 12390 | B66: Otros bienes inmuebles | AF66: =Balanza!G62 -> 0 | AG66: =Balanza!C62 -> 0 | AH66: 22490 | AI66: Otros pasivos diferidos a largo plazo | BM66: =Balanza!H160 -> 0 | BN66: =Balanza!D160 -> 0
A67: 12400 | B67: BIENES MUEBLES | AF67: =SUM(AF68:AF75) -> 2530307.22 | AG67: =SUM(AG68:AG75) -> 2169894.25 | AH67: 22500 | AI67: FONDOS Y BIENES DE TERCEROS EN GARANTÍA Y/O ADMINISTRACIÓN A LARGO PLAZO | BM67: =SUM(BM68:BM73) -> 0 | BN67: =SUM(BN68:BN73) -> 0
A68: 12410 | B68: Mobiliario y equipo de administración | AF68: =Balanza!G64 -> 198100.98 | AG68: =Balanza!C64 -> 65188.01 | AH68: 22510 | AI68: Fondos en garantía a largo plazo | BM68: =Balanza!H162 -> 0 | BN68: =Balanza!D162 -> 0
A69: 12420 | B69: Mobiliario y equipo educacional y recreativo | AF69: =Balanza!G65 -> 0 | AG69: =Balanza!C65 -> 0 | AH69: 22520 | AI69: Fondos en administración a largo plazo | BM69: =Balanza!H163 -> 0 | BN69: =Balanza!D163 -> 0
A70: 12430 | B70: Equipo e instrumental médico y de laboratorio | AF70: =Balanza!G66 -> 0 | AG70: =Balanza!C66 -> 0 | AH70: 22530 | AI70: Fondos contingentes a largo plazo | BM70: =Balanza!H164 -> 0 | BN70: =Balanza!D164 -> 0
A71: 12440 | B71: Vehículos y equipo de transporte | AF71: =Balanza!G67 -> 2332206.24 | AG71: =Balanza!C67 -> 2104706.24 | AH71: 22540 | AI71: Fondos de fideicomisos, mandatos y contratos análogos a largo plazo | BM71: =Balanza!H165 -> 0 | BN71: =Balanza!D165 -> 0
A72: 12450 | B72: Equipo de defensa y seguridad | AF72: =Balanza!G68 -> 0 | AG72: =Balanza!C68 -> 0 | AH72: 22550 | AI72: Otros fondos de terceros en garantía y/o administración a largo plazo | BM72: =Balanza!H166 -> 0 | BN72: =Balanza!D166 -> 0
A73: 12460 | B73: Maquinaria, otros equipos y herramientas | AF73: =Balanza!G69 -> 0 | AG73: =Balanza!C69 -> 0 | AH73: 22560 | AI73: Valores y bienes en garantía a largo plazo | BM73: =Balanza!H167 -> 0 | BN73: =Balanza!D167 -> 0
A74: 12470 | B74: Colecciones, obras de arte y objetos valiosos | AF74: =Balanza!G70 -> 0 | AG74: =Balanza!C70 -> 0 | AH74: 22600 | AI74: PROVISIONES A LARGO PLAZO | BM74: =SUM(BM75:BM78) -> 0 | BN74: =SUM(BN75:BN78) -> 0
A75: 12480 | B75: Activos biológicos | AF75: =Balanza!G71 -> 0 | AG75: =Balanza!C71 -> 0 | AH75: 22610 | AI75: Provisión para demandas y juicios a largo plazo | BM75: =Balanza!H169 -> 0 | BN75: =Balanza!D169 -> 0
A76: 12500 | B76: ACTIVOS INTANGIBLES | AF76: =SUM(AF77:AF81) -> 0 | AG76: =SUM(AG77:AG81) -> 0 | AH76: 22620 | AI76: Provisión para pensiones a largo plazo | BM76: =Balanza!H170 -> 0 | BN76: =Balanza!D170 -> 0
A77: 12510 | B77: Software | AF77: =Balanza!G73 -> 0 | AG77: =Balanza!C73 -> 0 | AH77: 22630 | AI77: Provisión para contingencias a largo plazo | BM77: =Balanza!H171 -> 0 | BN77: =Balanza!D171 -> 0
A78: 12520 | B78: Patentes, marcas y derechos | AF78: =Balanza!G74 -> 0 | AG78: =Balanza!C74 -> 0 | AH78: 22690 | AI78: Otras provisiones a largo plazo | BM78: =Balanza!H172 -> 0 | BN78: =Balanza!D172 -> 0
A79: 12530 | B79: Concesiones y franquicias | AF79: =Balanza!G75 -> 0 | AG79: =Balanza!C75 -> 0 | AI79: PASIVOS NO CIRCULANTES | BM79: =BM50+BM53+BM57+BM63+BM67+BM74 -> 0 | BN79: =BN50+BN53+BN57+BN63+BN67+BN74 -> 0
A80: 12540 | B80: Licencias | AF80: =Balanza!G76 -> 0 | AG80: =Balanza!C76 -> 0 | AI80: TOTAL DE PASIVOS | BM80: =BM48+BM79 -> 327242.73 | BN80: =BN48+BN79 -> 3948060.41
A81: 12590 | B81: Otros activos intangibles | AF81: =Balanza!G77 -> 0 | AG81: =Balanza!C77 -> 0 | AH81: 30000 | AI81: HACIENDA PÚBLICA/ PATRIMONIO
A82: 12600 | B82: DEPRECIACIÓN, DETERIORO Y AMORTIZACIÓN ACUMULADA DE BIENES | AF82: =SUM(AF83:AF87) -> 0 | AG82: =SUM(AG83:AG87) -> 0 | AH82: 31000 | AI82: HACIENDA PÚBLICA/ PATRIMONIO CONTRIBUIDO | BM82: =SUM(BM83:BM85) -> 0 | BN82: =SUM(BN83:BN85) -> 0
A83: 12610 | B83: Depreciación acumulada de bienes inmuebles | AF83: =(Balanza!H79)*-1 -> 0 | AG83: =(Balanza!D79)*-1 -> 0 | AH83: 31100 | AI83: Aportaciones | BM83: =Balanza!H175 -> 0 | BN83: =Balanza!D175 -> 0
A84: 12620 | B84: Depreciación acumulada de infraestructura | AF84: =(Balanza!H80)*-1 -> 0 | AG84: =(Balanza!D80)*-1 -> 0 | AH84: 31200 | AI84: Donaciones de capítal | BM84: =Balanza!H176 -> 0 | BN84: =Balanza!D176 -> 0
A85: 12630 | B85: Depreciación acumulada de bienes muebles | AF85: =(Balanza!H81)*-1 -> 0 | AG85: =(Balanza!D81)*-1 -> 0 | AH85: 31300 | AI85: Actualización de la hacienda pública/patrimonio | BM85: =Balanza!H177 -> 0 | BN85: =Balanza!D177 -> 0
A86: 12640 | B86: Deterioro acumulado de activos biológicos | AF86: =(Balanza!H82)*-1 -> 0 | AG86: =(Balanza!D82)*-1 -> 0 | AH86: 32000 | AI86: HACIENDA PÚBLICA/PATRIMONIO GENERADO | BM86: =BM87+BM88+BM89+BM94+BM98 -> 28802626.26 | BN86: =BN87+BN88+BN89+BN94+BN98 -> 16728672.55
A87: 12650 | B87: Amortización acumulada de activos intangibles | AF87: =(Balanza!H83)*-1 -> 0 | AG87: =(Balanza!D83)*-1 -> 0 | AH87: 32100 | AI87: Resultado del ejercicio (ahorro/desahorro) | BM87: =Balanza!H179 -> 12073953.71 | BN87: =Balanza!D179 -> 8267371.7
A88: 12700 | B88: ACTIVOS DIFERIDOS | AF88: =SUM(AF89:AF94) -> 0 | AG88: =SUM(AG89:AG94) -> 0 | AH88: 32200 | AI88: Resultado de ejercicios anteriores | BM88: =Balanza!H180 -> 16728672.55 | BN88: =Balanza!D180 -> 8461300.85
A89: 12710 | B89: Estudios, formulación y evaluación de proyectos | AF89: =Balanza!G85 -> 0 | AG89: =Balanza!C85 -> 0 | AH89: 32300 | AI89: REVALÚOS | BM89: =SUM(BM90:BM93) -> 0 | BN89: =SUM(BN90:BN93) -> 0
A90: 12720 | B90: Derechos sobre bienes en régimen de arrendamiento financiero | AF90: =Balanza!G86 -> 0 | AG90: =Balanza!C86 -> 0 | AH90: 32310 | AI90: Revalúo de bienes inmuebles | BM90: =Balanza!H182 -> 0 | BN90: =Balanza!D182 -> 0
A91: 12730 | B91: Gastos pagados por adelantado a largo plazo | AF91: =Balanza!G87 -> 0 | AG91: =Balanza!C87 -> 0 | AH91: 32320 | AI91: Revalúo de bienes muebles | BM91: =Balanza!H183 -> 0 | BN91: =Balanza!D183 -> 0
A92: 12740 | B92: Anticipos a largo plazo | AF92: =Balanza!G88 -> 0 | AG92: =Balanza!C88 -> 0 | AH92: 32330 | AI92: Revalúo de bienes intangibles | BM92: =Balanza!H184 -> 0 | BN92: =Balanza!D184 -> 0
A93: 12750 | B93: Beneficios al retiro de empleados pagados por adelantado | AF93: =Balanza!G89 -> 0 | AG93: =Balanza!C89 -> 0 | AH93: 32390 | AI93: Otros revalúos | BM93: =Balanza!H185 -> 0 | BN93: =Balanza!D185 -> 0
A94: 12790 | B94: Otros activos diferidos | AF94: =Balanza!G90 -> 0 | AG94: =Balanza!C90 -> 0 | AH94: 32400 | AI94: RESERVAS | BM94: =SUM(BM95:BM97) -> 0 | BN94: =SUM(BN95:BN97) -> 0
A95: 12800 | B95: ESTIMACIÓN POR PÉRDIDA O DETERIORO DE ACTIVOS NO CIRCULANTES | AF95: =SUM(AF96:AF100) -> 0 | AG95: =SUM(AG96:AG100) -> 0 | AH95: 32410 | AI95: Reservas de patrimonio | BM95: =Balanza!H187 -> 0 | BN95: =Balanza!D187 -> 0
A96: 12810 | B96: Estimaciones por pérdida de cuentas incobrables de documentos por cobrar a largo plazo | AF96: =(Balanza!H92)*-1 -> 0 | AG96: =(Balanza!D92)*-1 -> 0 | AH96: 32420 | AI96: Reservas territoriales | BM96: =Balanza!H188 -> 0 | BN96: =Balanza!D188 -> 0
A97: 12820 | B97: Estimaciones por pérdida de cuentas incobrables de deudores diversos por cobrar a largo plazo | AF97: =(Balanza!H93)*-1 -> 0 | AG97: =(Balanza!D93)*-1 -> 0 | AH97: 32430 | AI97: Reservas por contingencias | BM97: =Balanza!H189 -> 0 | BN97: =Balanza!D189 -> 0
A98: 12830 | B98: Estimaciones por pérdida de cuentas incobrables de ingresos por cobrar a largo plazo | AF98: =(Balanza!H94)*-1 -> 0 | AG98: =(Balanza!D94)*-1 -> 0 | AH98: 32500 | AI98: RECTIFICACIONES DE RESULTADOS DE EJERCICIOS ANTERIORES | BM98: =SUM(BM99:BM100) -> 0 | BN98: =SUM(BN99:BN100) -> 0
A99: 12840 | B99: Estimaciones por pérdida de cuentas incobrables de préstamos otorgados a largo plazo | AF99: =(Balanza!H95)*-1 -> 0 | AG99: =(Balanza!D95)*-1 -> 0 | AH99: 32510 | AI99: Cambios en políticas contables | BM99: =Balanza!H191 -> 0 | BN99: =Balanza!D191 -> 0
A100: 12890 | B100: Estimaciones por pérdida de otras cuentas incobrables a largo plazo | AF100: =(Balanza!H96)*-1 -> 0 | AG100: =(Balanza!D96)*-1 -> 0 | AH100: 32520 | AI100: Cambios por errores contables | BM100: =Balanza!H192 -> 0 | BN100: =Balanza!D192 -> 0
A101: 12900 | B101: OTROS ACTIVOS NO CIRCULANTES | AF101: =SUM(AF102:AF104) -> 0 | AG101: =SUM(AG102:AG104) -> 0 | AH101: 33000 | AI101: EXCESO O INSUFICIENCIA EN LA ACTUALIZACIÓN DE LA HACIENDA PÚBLICA / PATRIMONIO | BM101: =SUM(BM102:BM103) -> 0 | BN101: =SUM(BN102:BN103) -> 0
A102: 12910 | B102: Bienes en concesión | AF102: =Balanza!G98 -> 0 | AG102: =Balanza!C98 -> 0 | AH102: 33100 | AI102: Resultado por posición monetaria | BM102: =Balanza!H194 -> 0 | BN102: =Balanza!D194 -> 0
A103: 12920 | B103: Bienes en arrendamiento financiero | AF103: =Balanza!G99 -> 0 | AG103: =Balanza!C99 -> 0 | AH103: 33200 | AI103: Resultado por tenencia de activos no monetarios | BM103: =Balanza!H195 -> 0 | BN103: =Balanza!D195 -> 0
A104: 12930 | B104: Bienes en comodato | AF104: =Balanza!G100 -> 0 | AG104: =Balanza!C100 -> 0 | BL104: TOTAL HACIENDA PUBLICA / PATRIMONIO | BM104: =BM82+BM86+BM101 -> 28802626.26 | BN104: =BN82+BN86+BN101 -> 16728672.55
B105: ACTIVOS NO CIRCULANTES | AF105: =AF48+AF53+AF59+AF67+AF76+AF82+AF88+AF95+AF101 -> 28360724.51 | AG105: =AG48+AG53+AG59+AG67+AG76+AG82+AG88+AG95+AG101 -> 19038129.12
B106: TOTAL DEL ACTIVO | AF106: =AF46+AF105 -> 29129868.99 | AG106: =AG46+AG105 -> 20676732.96 | AI106: SUMA DE PASIVO Y PATRIMONIO / HACIENDA PÚBLICA | BM106: =BM80+BM104 -> 29129868.99 | BN106: =BN80+BN104 -> 20676732.96
B109: Bajo protesta de decir verdad declaramos que los estados financieros y sus notas, son razonablemente correctos y son responsabilidad del emisor.
Q118: =Validacion!A7 -> C. SANTIAGO LEON CASTRO | AW118: =Validacion!A9 -> L.T. JOCELYN SANCHEZ HERRERA
Q120: Presidente Municipal o Títular del ente público | AW120: Encargado de la Hacienda Pública Municipal o Responsable de las finanzas del ente público

Sheet F6
A1: =Validacion!A2 -> Atemajac de Brizuela
A2: ESTADO DE ACTIVIDADES
A3: ='F9-EDP'!A3 -> Del 1° de Enero al 31 de Diciembre de 2021
A5: CTA. | B5: CONCEPTO | AX5: 2021 | AY5: 2020
A6: 40000 | B6: INGRESOS Y OTROS BENEFICIOS
A7: 41000 | B7: INGRESOS DE GESTIÓN | AX7: =AX8+AX29+AX35+AX40+AX72+AX81+AX102+AX114 -> 9645868.57 | AY7: =AY8+AY29+AY35+AY40+AY72+AY81+AY102+AY114 -> 5796928.3
A8: 41100 | B8: IMPUESTOS | AX8: =AX9+AX11+AX15+AX16+AX17+AX18+AX19+AX25+AX27 -> 4282314.98 | AY8: =AY9+AY11+AY15+AY16+AY17+AY18+AY19+AY25+AY27 -> 2849601.27
A9: 41110 | B9: Impuestos sobre los ingresos | AX9: =SUM(AX10) -> 15088 | AY9: =SUM(AY10) -> 0
A10: 41110-1 | B10: Impuestos sobre espectáculos públicos | AX10: =Balanza!H200 -> 15088 | AY10: =Balanza!D200 -> 0
A11: 41120 | B11: Impuestos sobre el patrimonio | AX11: =SUM(AX12:AX14) -> 4235306.85 | AY11: =SUM(AY12:AY14) -> 2801526.16
A12: 41120-1 | B12: Impuesto predial | AX12: =Balanza!H202 -> 2162492.08 | AY12: =Balanza!D202 -> 1862867.3
A13: 41120-2 | B13: Impuestos sobre transmisiones patrimoniales | AX13: =Balanza!H203 -> 2022154.88 | AY13: =Balanza!D203 -> 938658.86
A14: 41120-3 | B14: Impuestos sobre negocios jurídicos | AX14: =Balanza!H204 -> 50659.89 | AY14: =Balanza!D204 -> 0
A15: 41130 | B15: Impuestos sobre la producción, el consumo y las transacciones | AX15: 0 | AY15: 0
A16: 41140 | B16: Impuestos al comercio exterior | AX16: 0 | AY16: 0
A17: 41150 | B17: Impuestos sobre nóminas y asimilables | AX17: 0 | AY17: 0
A18: 41160 | B18: Impuestos ecológicos | AX18: 0 | AY18: 0
A19: 41170 | B19: Accesorios de impuestos | AX19: =SUM(AX20:AX24) -> 31920.13 | AY19: =SUM(AY20:AY24) -> 48075.11
A20: 41170-1 | B20: Recargos | AX20: =Balanza!H210 -> 12455.2 | AY20: =Balanza!D210 -> 35902.37
A21: 41170-2 | B21: Actualizaciones | AX21: =Balanza!H211 -> 0 | AY21: =Balanza!D211 -> 0
A22: 41170-3 | B22: Multas | AX22: =Balanza!H212 -> 10490.8 | AY22: =Balanza!D212 -> 12172.74
A23: 41170-4 | B23: Gastos de ejecución | AX23: =Balanza!H213 -> 0 | AY23: =Balanza!D213 -> 0
A24: 41170-5 | B24: Otros no especificados | AX24: =Balanza!H214 -> 8974.13 | AY24: =Balanza!D214 -> 0
A25: 41180 | B25: Impuestos no comprendidos en la ley de ingresos vigente, causados en ejercicio fiscales anteriores pendientes de liquidar o pago | AX25: =SUM(AX26) -> 0 | AY25: =SUM(AY26) -> 0
A26: 41180-1 | B26: Impuestos no comprendidos en la ley de ingresos vigente, causados en ejercicio fiscales anteriores pendientes de liquidar o pago | AX26: =Balanza!H216 -> 0 | AY26: =Balanza!D216 -> 0
A27: 41190 | B27: Otros Impuestos | AX27: =SUM(AX28) -> 0 | AY27: =SUM(AY28) -> 0
A28: 41190-1 | B28: Otros impuestos | AX28: =Balanza!H218 -> 0 | AY28: =Balanza!D218 -> 0
A29: 41200 | B29: CUOTAS Y APORTACIONES DE SEGURIDAD SOCIAL | AX29: =SUM(AX30:AX34) -> 0 | AY29: =SUM(AY30:AY34) -> 0
A30: 41210 | B30: Aportaciones para fondos de vivienda | AX30: 0 | AY30: 0
A31: 41220 | B31: Cuotas para la seguridad social | AX31: 0 | AY31: 0
A32: 41230 | B32: Cuotas de ahorro para el retiro | AX32: 0 | AY32: 0
A33: 41240 | B33: Accesorios de cuotas y aportaciones de seguridad social | AX33: 0 | AY33: 0
A34: 41290 | B34: Otras cuotas y aportaciones para la seguridad social | AX34: 0 | AY34: 0
A35: 41300 | B35: CONTRIBUCIONES DE MEJORAS | AX35: =AX36+AX38 -> 0 | AY35: =AY36+AY38 -> 0
A36: 41310 | B36: Contribuciones de mejoras por obras públicas | AX36: =SUM(AX37) -> 0 | AY36: =SUM(AY37) -> 0
A37: 41310-1 | B37: Contribuciones de mejoras por obras públicas | AX37: =Balanza!H227 -> 0 | AY37: =Balanza!D227 -> 0
A38: 41320 | B38: Contribuciones de mejoras no comprendidas en la ley de ing. vigente, causadas en ejercicios fiscales anteriores pendientes de liq. o pago | AX38: =SUM(AX39) -> 0 | AY38: =SUM(AY39) -> 0
A39: 41320-1 | B39: Contribuciones de mejoras no comprendidas en la ley de ing. vigente, causadas en ejercicios fiscales anteriores pendientes de liq. o pago | AX39: =Balanza!H229 -> 0 | AY39: =Balanza!D229 -> 0
A40: 41400 | B40: DERECHOS | AX40: =AX41+AX46+AX47+AX62+AX68+AX70 -> 4717158.67 | AY40: =AY41+AY46+AY47+AY62+AY68+AY70 -> 2154316.19
A41: 41410 | B41: Derechos por el uso, goce, aprovechamiento o explotación de bienes de dominio público | AX41: =SUM(AX42:AX45) -> 157383 | AY41: =SUM(AY42:AY45) -> 32057
A42: 41410-1 | B42: Derechos por el uso del piso | AX42: =Balanza!H232 -> 81581 | AY42: =Balanza!D232 -> 4123
A43: 41410-2 | B43: Derechos por el uso de los estacionamientos | AX43: =Balanza!H233 -> 0 | AY43: =Balanza!D233 -> 0
A44: 41410-3 | B44: Derechos de uso de cementerios y panteones municipales | AX44: =Balanza!H234 -> 25732 | AY44: =Balanza!D234 -> 27934
A45: 41410-4 | B45: Derechos de concesiones y demás inmuebles de propiedad municipal | AX45: =Balanza!H235 -> 50070 | AY45: =Balanza!D235 -> 0
A46: 41420 | B46: Derechos a los hidrocarburos (derogada) | AX46: 0 | AY46: 0
A47: 41430 | B47: Derechos por prestación de servicios | AX47: =SUM(AX48:AX61) -> 4552870.15 | AY47: =SUM(AY48:AY61) -> 2110077.19
A48: 41430-1 | B48: Derechos de licencias y permisos de giros | AX48: =Balanza!H238 -> 240109.44 | AY48: =Balanza!D238 -> 89917.36
A49: 41430-2 | B49: Derechos de licencias y permisos de anuncios | AX49: =Balanza!H239 -> 2297 | AY49: =Balanza!D239 -> 0
A50: 41430-3 | B50: Derechos de licencias de construcción, reconstrucción, reparación o demolición de obras | AX50: =Balanza!H240 -> 535054.02 | AY50: =Balanza!D240 -> 158618.75
A51: 41430-4 | B51: Derechos de regularizaciones de los registros de obra | AX51: =Balanza!H241 -> 17582.63 | AY51: =Balanza!D241 -> 334838.71
A52: 41430-5 | B52: Derechos de alineamiento, designación de número oficial e inspección | AX52: =Balanza!H242 -> 572523.32 | AY52: =Balanza!D242 -> 19033.7
A53: 41430-6 | B53: Derechos de licencias de cambio de régimen de propiedad y urbanización | AX53: =Balanza!H243 -> 168680.65 | AY53: =Balanza!D243 -> 0
A54: 41430-7 | B54: Derechos de servicios de obra | AX54: =Balanza!H244 -> 30202.31 | AY54: =Balanza!D244 -> 0
A55: 41430-8 | B55: Derechos de servicios de sanidad | AX55: =Balanza!H245 -> 11878 | AY55: =Balanza!D245 -> 9971.13
A56: 41430-9 | B56: Derechos de servicio de limpieza, recolección, traslado, tratamiento y disposición final de residuos | AX56: =Balanza!H246 -> 0 | AY56: =Balanza!D246 -> 0
A57: 41430-10 | B57: Derechos de agua potable, drenaje, alcantarillado, tratamiento y disposición final de aguas residuales | AX57: =Balanza!H247 -> 870571.82 | AY57: =Balanza!D247 -> 867105.93
A58: 41430-11 | B58: Derechos del rastro | AX58: =Balanza!H248 -> 273901 | AY58: =Balanza!D248 -> 252976
A59: 41430-12 | B59: Derechos del registro civil | AX59: =Balanza!H249 -> 12370 | AY59: =Balanza!D249 -> 14227
A60: 41430-13 | B60: Derechos de las certificaciones | AX60: =Balanza!H250 -> 167377.82 | AY60: =Balanza!D250 -> 167914.41
A61: 41430-14 | B61: Derechos de los servicios de catastro | AX61: =Balanza!H251 -> 1650322.14 | AY61: =Balanza!D251 -> 195474.2
A62: 41440 | B62: Accesorios de derecho | AX62: =SUM(AX63:AX67) -> 6905.52 | AY62: =SUM(AY63:AY67) -> 12182
A63: 41440-1 | B63: Recargos | AX63: =Balanza!H253 -> 900 | AY63: =Balanza!D253 -> 12182
A64: 41440-2 | B64: Actualizaciones | AX64: =Balanza!H254 -> 0 | AY64: =Balanza!D254 -> 0
A65: 41440-3 | B65: Multas | AX65: =Balanza!H255 -> 0 | AY65: =Balanza!D255 -> 0
A66: 41440-4 | B66: Gastos de ejecución | AX66: =Balanza!H256 -> 0 | AY66: =Balanza!D256 -> 0
A67: 41440-5 | B67: Otros no especificados | AX67: =Balanza!H257 -> 6005.52 | AY67: =Balanza!D257 -> 0
A68: 41450 | B68: Derechos no comprendidos en la ley de ingresos vigente, causados en ejercicios fiscales anteriores pendientes de liquidación o pago | AX68: =SUM(AX69) -> 0 | AY68: =SUM(AY69) -> 0
A69: 41450-1 | B69: Derechos no comprendidos en la ley de ingresos vigente, causados en ejercicios fiscales anteriores pendientes de liquidación o pago | AX69: =Balanza!H259 -> 0 | AY69: =Balanza!D259 -> 0
A70: 41490 | B70: Otros derechos | AX70: =SUM(AX71) -> 0 | AY70: =SUM(AY71) -> 0
A71: 41490-1 | B71: Otros derechos | AX71: =Balanza!H261 -> 0 | AY71: =Balanza!D261 -> 0
A72: 41500 | B72: PRODUCTOS | AX72: =AX73+AX76+AX77+AX78+AX80 -> 53968.85 | AY72: =AY73+AY76+AY77+AY78+AY80 -> 182923.84
A73: 41510 | B73: Productos | AX73: =SUM(AX74:AX75) -> 53968.85 | AY73: =SUM(AY74:AY75) -> 182923.84
A74: 41510-1 | B74: Uso, goce, aprovechamiento o explotación de bienes de dominio privado | AX74: =Balanza!H264 -> 0 | AY74: =Balanza!D264 -> 103838
A75: 41510-2 | B75: Productos diversos | AX75: =Balanza!H265 -> 53968.85 | AY75: =Balanza!D265 -> 79085.84
A76: 41520 | B76: Enajenación de bienes muebles no sujetos a ser inventariados (derogada) | AX76: 0 | AY76: 0
A77: 41530 | B77: Accesorios de productos (derogada) | AX77: 0 | AY77: 0
A78: 41540 | B78: Productos no comprendidos en la ley de ingresos vigente, causados en ejercicios fiscales anteriores pendientes de liquidación o pago | AX78: =SUM(AX79) -> 0 | AY78: =SUM(AY79) -> 0
A79: 41540-1 | B79: Productos no comprendidos en la ley de ingresos vigente, causadas en ejercicios fiscales anteriores pendientes de liquidación o pago | AX79: =Balanza!H269 -> 0 | AY79: =Balanza!D269 -> 0
A80: 41590 | B80: Otros productos que generan ingresos corrientes (derogada) | AX80: 0 | AY80: 0
A81: 41600 | B81: APROVECHAMIENTOS | AX81: =AX82+AX83+AX85+AX87+AX89+AX91+AX93+AX94+AX100 -> 592426.07 | AY81: =AY82+AY83+AY85+AY87+AY89+AY91+AY93+AY94+AY100 -> 610087
A82: 41610 | B82: Incentivos derivados de la colaboración fiscal (derogada) | AX82: 0 | AY82: 0
A83: 41620 | B83: Multas | AX83: =SUM(AX84) -> 0 | AY83: =SUM(AY84) -> 8058
A84: 41620-1 | B84: Multas | AX84: =Balanza!H274 -> 0 | AY84: =Balanza!D274 -> 8058
A85: 41630 | B85: Indemnizaciones | AX85: =SUM(AX86) -> 0 | AY85: =SUM(AY86) -> 0
A86: 41630-1 | B86: Indemnizaciones | AX86: =Balanza!H276 -> 0 | AY86: =Balanza!D276 -> 0
A87: 41640 | B87: Reintegros | AX87: =SUM(AX88) -> 349127.05 | AY87: =SUM(AY88) -> 0
A88: 41640-1 | B88: Reintegros | AX88: =Balanza!H278 -> 349127.05 | AY88: =Balanza!D278 -> 0
A89: 41650 | B89: Aprovechamientos provenientes de obras públicas | AX89: =SUM(AX90) -> 0 | AY89: =SUM(AY90) -> 0
A90: 41640-1 | B90: Aprovechamientos provenientes de obras públicas | AX90: =Balanza!H280 -> 0 | AY90: =Balanza!D280 -> 0
A91: 41660 | B91: Aprovechamientos no comprendidos en la ley de ing. vigente, causados en ejercicios fiscales anteriores pendientes de liquidación o pago | AX91: =SUM(AX92) -> 0 | AY91: =SUM(AY92) -> 0
A92: 41640-1 | B92: Aprovechamientos no comprendidos en la ley de ing. vigente, causados en ejercicios fiscales anteriores pendientes de liquidación o pago | AX92: =Balanza!H282 -> 0 | AY92: =Balanza!D282 -> 0
A93: 41670 | B93: Aprovechamientos por aportaciones y cooperaciones (derogada) | AX93: 0 | AY93: 0
A94: 41680 | B94: Accesorios de aprovechamiento | AX94: =SUM(AX95:AX99) -> 243299.02 | AY94: =SUM(AY95:AY99) -> 0
A95: 41680-1 | B95: Recargos | AX95: =Balanza!H285 -> 0 | AY95: =Balanza!D285 -> 0
A96: 41680-2 | B96: Actualizaciones | AX96: =Balanza!H286 -> 0 | AY96: =Balanza!D286 -> 0
A97: 41680-3 | B97: Multas | AX97: =Balanza!H287 -> 16184 | AY97: =Balanza!D287 -> 0
A98: 41680-4 | B98: Gastos de ejecución | AX98: =Balanza!H288 -> 0 | AY98: =Balanza!D288 -> 0
A99: 41680-5 | B99: Otros no especificados | AX99: =Balanza!H289 -> 227115.02 | AY99: =Balanza!D289 -> 0
A100: 41690 | B100: Otros aprovechamientos | AX100: =SUM(AX101) -> 0 | AY100: =SUM(AY101) -> 602029
A101: 41690-1 | B101: Otros aprovechamientos | AX101: =Balanza!H291 -> 0 | AY101: =Balanza!D291 -> 602029
A102: 41700 | B102: INGRESOS POR VENTAS DE BIENES Y PRESTACIÓN DE SERVICIOS | AX102: =AX103+AX105+AX106+AX108+AX109+AX110+AX111+AX113 -> 0 | AY102: =AY103+AY105+AY106+AY108+AY109+AY110+AY111+AY113 -> 0
A103: 41710 | B103: Ingresos por venta de bienes y prestación de servicios de instituciones públicas de seguridad social | AX103: =SUM(AX104) -> 0 | AY103: =SUM(AY104) -> 0
A104: 41710-1 | B104: Ingresos por venta de bienes y prestación de servicios de instituciones públicas de seguridad social | AX104: =Balanza!H294 -> 0 | AY104: =Balanza!D294 -> 0
A105: 41720 | B105: Ingresos por venta de bienes y prestación de servicios de empresas productivas del estado | AX105: 0 | AY105: 0
A106: 41730 | B106: Ingresos por venta de bienes y prestación de servicios de entidades paraestatales y fideicomisos no empresariales y no financieros | AX106: =SUM(AX107) -> 0 | AY106: =SUM(AY107) -> 0
A107: 41730-1 | B107: Ingresos por venta de bienes y prestación de servicios de entidades paraestatales y fideicomisos no empresariales y no financieros | AX107: =Balanza!H297 -> 0 | AY107: =Balanza!D297 -> 0
A108: 41740 | B108: Ingresos por venta de bienes y prestación de servicios de entidades paraestatales empresariales no financieras con participación estatal mayoritaria | AX108: 0 | AY108: 0
A109: 41750 | B109: Ing. por vta. de bienes y prestación de servicios de entidades paraestatales empresariales financieras monetarias con participación estatal mayoritaria | AX109: 0 | AY109: 0
A110: 41760 | B110: Ing. por vta. de bienes y prestación de servicios de entidades paraestatales empresariales financ. no monetarias con participación estatal mayoritaria | AX110: 0 | AY110: 0
A111: 41770 | B111: Ingresos por venta de bienes y prestación de servicios de fideicomisos financieros públicos con participación estatal mayoritaria | AX111: =SUM(AX112) -> 0 | AY111: =SUM(AY112) -> 0
A112: 41770-1 | B112: Ingresos por venta de bienes y prestación de servicios de fideicomisos financieros públicos con participación estatal mayoritaria | AX112: =Balanza!H302 -> 0 | AY112: =Balanza!D302 -> 0
A113: 41780 | B113: Ingresos por venta de bienes y prestación de servicios de los poderes legislativo y judicial, y de los órganos autónomos | AX113: 0 | AY113: 0
A114: 41900 | B114: ING. NO COM. EN LAS FRAC. DE LA LEY DE ING. CAUSADOS EN EJERc. FISC. ANTERIORES PENDIENTES DE LIQ. O PAGO (DEROGADO) | AX114: =SUM(AX115:AX116) -> 0 | AY114: =SUM(AY115:AY116) -> 0
A115: 41910 | B115: Impuestos no comprendidos en las frac. de la ley de ingresos causados en ejercicios fiscales anteriores pendientes de liquidación o pago (derogada) | AX115: 0 | AY115: 0
A116: 41920 | B116: Contrib. de mejo., derech., produc. y aprovecha. no comprend. en las fracc. de la ley de ing. causad. en ejerc. fisc. ante. pend. de liq. o pago (derogada) | AX116: 0 | AY116: 0
A117: 42000 | B117: PART, APORT, CONV, INCEN. DERIV. DE LA COLAB. FISC, FONDOS DISTINTOS DE APORT, TRANSF, ASIG, SUB Y SUBVE, Y PENS. Y JUB. | AX117: =AX118+AX149 -> 39705329.43 | AY117: =AY118+AY149 -> 37228238.38
A118: 42100 | B118: PARTIC. APORT. CONVENIOS, INCENTIVOS DERIVADOS DE LA COLABORACIÓN FISCAL Y FONDOS DISTINTOS DE APORTACIONES. | AX118: =AX119+AX132+AX135+AX140+AX146 -> 39705329.43 | AY118: =AY119+AY132+AY135+AY140+AY146 -> 37228238.38
A119: 42110 | B119: Participaciones | AX119: =SUM(AX120:AX131) -> 24420587.93 | AY119: =SUM(AY120:AY131) -> 22279582.57
A120: 42110-1 | B120: Fondo general de participaciones (federal) | AX120: =Balanza!H310 -> 17152650.69 | AY120: =Balanza!D310 -> 16330744.79
A121: 42110-2 | B121: Fondo de fomento municipal (federal) | AX121: =Balanza!H311 -> 4099611.85 | AY121: =Balanza!D311 -> 4176894.7
A122: 42110-3 | B122: Fondo de fiscalización y recaudación (federal) | AX122: =Balanza!H312 -> 232160.82 | AY122: =Balanza!D312 -> 264839.15
A123: 42110-4 | B123: Fondo de compensación (federal) | AX123: =Balanza!H313 -> 0 | AY123: =Balanza!D313 -> 0
A124: 42110-5 | B124: Fondo de extracción de hidrocarburos (federal) | AX124: =Balanza!H314 -> 0 | AY124: =Balanza!D314 -> 0
A125: 42110-6 | B125: Impuesto especial sobre producción y servicios (federal) | AX125: =Balanza!H315 -> 446914.35 | AY125: =Balanza!D315 -> 399947.24
A126: 42110-7 | B126: 0.136% de la recaudación federal participable (federal) | AX126: =Balanza!H316 -> 0 | AY126: =Balanza!D316 -> 0
A127: 42110-8 | B127: 3.17% sobre extracción de petróleo (federal) | AX127: =Balanza!H317 -> 0 | AY127: =Balanza!D317 -> 0
A128: 42110-9 | B128: Gasolinas y diésel (federal) | AX128: =Balanza!H318 -> 770457.35 | AY128: =Balanza!D318 -> 883807.29
A129: 42110-10 | B129: Fondo del impuesto sobre la renta (federal) | AX129: =Balanza!H319 -> 1555537.17 | AY129: =Balanza!D319 -> 0
A130: 42110-11 | B130: Fondo de estabilización de los ingresos de las entidades federativas (federal) | AX130: =Balanza!H320 -> 156538.9 | AY130: =Balanza!D320 -> 0
A131: 42110-12 | B131: Participaciones del estado | AX131: =Balanza!H321 -> 6716.8 | AY131: =Balanza!D321 -> 223349.4
A132: 42120 | B132: Aportaciones | AX132: =SUM(AX133:AX134) -> 12954133.24 | AY132: =SUM(AY133:AY134) -> 12751805.77
A133: 42120-1 | B133: Fondo de aportaciones para la infraestructura social municipal | AX133: =Balanza!H323 -> 7786787.16 | AY133: =Balanza!D323 -> 7928909.46
A134: 42120-2 | B134: Fondo de aportaciones para el fortalecimiento municipal | AX134: =Balanza!H324 -> 5167346.08 | AY134: =Balanza!D324 -> 4822896.31
A135: 42130 | B135: Convenios | AX135: =SUM(AX136:AX139) -> 1865390 | AY135: =SUM(AY136:AY139) -> 1840233.49
A136: 42130-1 | B136: Convenios de protección social en salud | AX136: =Balanza!H326 -> 0 | AY136: =Balanza!D326 -> 0
A137: 42130-2 | B137: Convenios de descentralizados | AX137: =Balanza!H327 -> 0 | AY137: =Balanza!D327 -> 0
A138: 42130-3 | B138: Convenio de reasignación | AX138: =Balanza!H328 -> 0 | AY138: =Balanza!D328 -> 0
A139: 42130-456 | B139: Otros convenios y subsidios | AX139: =Balanza!H329+Balanza!H330+Balanza!H331 -> 1865390 | AY139: =Balanza!D329+Balanza!D330+Balanza!D331 -> 1840233.49
A140: 42140 | B140: Incentivos derivados de la colaboración fiscal | AX140: =SUM(AX141:AX145) -> 465218.26 | AY140: =SUM(AY141:AY145) -> 356616.55
A141: 42140-1 | B141: Tenencia o uso de vehículos | AX141: =Balanza!H333 -> 301.58 | AY141: =Balanza!D333 -> 540.53
A142: 42140-2 | B142: Fondo de compensación ISAN | AX142: =Balanza!H334 -> 74455.32 | AY142: =Balanza!D334 -> 67939.63
A143: 42140-3 | B143: Impuesto sobre automóviles nuevos | AX143: =Balanza!H335 -> 390461.36 | AY143: =Balanza!D335 -> 288136.39
A144: 42140-4 | B144: Fondo de compensación de repecos-intermedios | AX144: =Balanza!H336 -> 0 | AY144: =Balanza!D336 -> 0
A145: 42140-5 | B145: Otros incentivos económicos | AX145: =Balanza!H337 -> 0 | AY145: =Balanza!D337 -> 0
A146: 42150 | B146: Fondos distintos de aportaciones | AX146: =SUM(AX147:AX148) -> 0 | AY146: =SUM(AY147:AY148) -> 0
A147: 42150-1 | B147: Fondo para entidades federativas y municipios productores de hidrocarburos | AX147: =Balanza!H339 -> 0 | AY147: =Balanza!D339 -> 0
A148: 42150-2 | B148: Fondo minero | AX148: =Balanza!H340 -> 0 | AY148: =Balanza!D340 -> 0
A149: 42200 | B149: TRANSFERENCIAS, ASIGNACIONES, SUBSIDIOS Y SUBVENCIONES, PENSIONES Y JUBILACIONES | AX149: =AX150+AX152+AX153+AX155+AX156+AX158+AX159 -> 0 | AY149: =AY150+AY152+AY153+AY155+AY156+AY158+AY159 -> 0
A150: 42210 | B150: Transferencias y asignaciones | AX150: =SUM(AX151) -> 0 | AY150: =SUM(AY151) -> 0
A151: 42210-12 | B151: Transferencias y asignaciones | AX151: =Balanza!H343+Balanza!H344 -> 0 | AY151: =Balanza!D343+Balanza!D344 -> 0
A152: 42220 | B152: Transferencias del sector público (derogada) | AX152: 0 | AY152: 0
A153: 42230 | B153: Subsidios y subvenciones | AX153: =SUM(AX154) -> 0 | AY153: =SUM(AY154) -> 0
A154: 42230-12 | B154: Subsidios y subvenciones | AX154: =Balanza!H347+Balanza!H348 -> 0 | AY154: =Balanza!D347+Balanza!D348 -> 0
A155: 42240 | B155: Ayudas sociales (derogada) | AX155: 0 | AY155: 0
A156: 42250 | B156: Pensiones y jubilaciones | AX156: =SUM(AX157) -> 0 | AY156: =SUM(AY157) -> 0
A157: 42250-1 | B157: Pensiones y jubilaciones | AX157: =Balanza!H351 -> 0 | AY157: =Balanza!D351 -> 0
A158: 42260 | B158: Transferencias del exterior (derogada) | AX158: 0 | AY158: 0
A159: 42270 | B159: Transferencias del fondo mexicano del petróleo para la estabilización y el desarrollo | AX159: =SUM(AX160) -> 0 | AY159: =SUM(AY160) -> 0
A160: 42270-1 | B160: Transferencias del fondo mexicano del petróleo para la estabilización y el desarrollo | AX160: =Balanza!H354 -> 0 | AY160: =Balanza!D354 -> 0
A161: 43000 | B161: OTROS INGRESOS Y BENEFICIOS | AX161: =AX162+AX165+AX171+AX173+AX175 -> 0 | AY161: =AY162+AY165+AY171+AY173+AY175 -> 0
A162: 43100 | B162: INGRESOS FINANCIEROS | AX162: =SUM(AX163:AX164) -> 0 | AY162: =SUM(AY163:AY164) -> 0
A163: 43110 | B163: Intereses ganados de títulos, valores y demás instrumentos financieros | AX163: =Balanza!H358 -> 0 | AY163: =Balanza!D358 -> 0
A164: 43190 | B164: Otros ingresos financieros | AX164: =Balanza!H360 -> 0 | AY164: =Balanza!D360 -> 0
A165: 43200 | B165: INCREMENTO POR VARIACIÓN DE INVENTARIOS | AX165: =SUM(AX166:AX170) -> 0 | AY165: =SUM(AY166:AY170) -> 0
A166: 43210 | B166: Incremento por varación de inventarios de mercancías para venta | AX166: 0 | AY166: 0
A167: 43220 | B167: Incremento por variación de inventarios de mercancías terminadas | AX167: 0 | AY167: 0
A168: 43230 | B168: Incremento por variación de inventarios de mercancías en proceso de elaboración | AX168: 0 | AY168: 0
A169: 43240 | B169: Incremento por variación de inventarios de materias primas, materiales y suministros para producción | AX169: 0 | AY169: 0
A170: 43250 | B170: Incremento por variación de almacén de mercancías primas, materiales y suministros de consumo | AX170: 0 | AY170: 0
A171: 43300 | B171: DISMINUCIÓN DEL EXCESO DE ESTIMACIONES POR PÉRDIDA O DETERIORO U OBSOLESCENCIA | AX171: =SUM(AX172) -> 0 | AY171: =SUM(AY172) -> 0
A172: 43310 | B172: Disminución del Exceso de Estimaciones por Pérdida o Deterioro u Obsolescencia | AX172: =Balanza!H369 -> 0 | AY172: =Balanza!D369 -> 0
A173: 43400 | B173: DISMINUCIÓN DEL EXCESO DE PROVISIONES | AX173: =AX174 -> 0 | AY173: =AY174 -> 0
A174: 43410 | B174: Disminución del exceso de provisiones | AX174: =Balanza!H372 -> 0 | AY174: =Balanza!D372 -> 0
A175: 43900 | B175: OTROS INGRESOS Y BENEFICIOS VARIOS | AX175: =SUM(AX176:AX183) -> 0 | AY175: =SUM(AY176:AY183) -> 0
A176: 43910 | B176: Otros ingresos de ejercicios anteriores (derogada) | AX176: 0 | AY176: 0
A177: 43920 | B177: Bonificaciónes y descuentos obtenidos | AX177: =Balanza!H376 -> 0 | AY177: =Balanza!D376 -> 0
A178: 43930 | B178: Diferencias por tipo de cambio a favor | AX178: =Balanza!H378 -> 0 | AY178: =Balanza!D378 -> 0
A179: 43940 | B179: Diferencias de cotizaciones a favor en valores negociables | AX179: =Balanza!H380 -> 0 | AY179: =Balanza!D380 -> 0
A180: 43950 | B180: Resultado por posición monetaria | AX180: =Balanza!H382 -> 0 | AY180: =Balanza!D382 -> 0
A181: 43960 | B181: Utilidades por participación patrimonial | AX181: =Balanza!H384 -> 0 | AY181: =Balanza!D384 -> 0
A182: 43970 | B182: Diferencias por reestructuración de deuda pública a favor | AX182: =Balanza!H386 -> 0 | AY182: =Balanza!D386 -> 0
A183: 43990 | B183: Otros ingresos y beneficios varios | AX183: =Balanza!H388 -> 0 | AY183: =Balanza!D388 -> 0
B184: TOTAL DE INGRESOS | AX184: =AX7+AX117+AX161 -> 49351198 | AY184: =AY7+AY117+AY161 -> 43025166.68
A185: 50000 | B185: GASTOS Y OTRAS PÉRDIDAS
A186: 51000 | B186: GASTOS DE FUNCIONAMIENTO | AX186: =AX187+AX222+AX287 -> 33734915.46 | AY186: =AY187+AY222+AY287 -> 30396045.33
A187: 51100 | B187: SERVICIOS PERSONALES | AX187: =AX188+AX193+AX198+AX207+AX212+AX219 -> 18118436.47 | AY187: =AY188+AY193+AY198+AY207+AY212+AY219 -> 17054348.79
A188: 51110 | B188: Remuneraciones al personal de carácter permanente | AX188: =SUM(AX189:AX192) -> 10250517.66 | AY188: =SUM(AY189:AY192) -> 10287161.86
A189: 51110-1 | B189: Dietas | AX189: =Balanza!G393 -> 1462276.57 | AY189: =Balanza!C393 -> 1679546.65
A190: 51110-2 | B190: Haberes | AX190: =Balanza!G394 -> 0 | AY190: =Balanza!C394 -> 0
A191: 51110-3 | B191: Sueldos base al personal permanente | AX191: =Balanza!G395 -> 8788241.09 | AY191: =Balanza!C395 -> 8607615.21
A192: 51110-4 | B192: Remuneraciones por adscripción laboral en el extranjero | AX192: =Balanza!G396 -> 0 | AY192: =Balanza!C396 -> 0
A193: 51120 | B193: Remuneraciones al personal de carácter transitorio | AX193: =SUM(AX194:AX197) -> 5809910.19 | AY193: =SUM(AY194:AY197) -> 4801844.14
A194: 51120-1 | B194: Honorarios asimilables a salarios | AX194: =Balanza!G398 -> 0 | AY194: =Balanza!C398 -> 0
A195: 51120-2 | B195: Sueldos base al personal eventual | AX195: =Balanza!G399 -> 5809910.19 | AY195: =Balanza!C399 -> 4801844.14
A196: 51120-3 | B196: Retribuciones por servicios de carácter social | AX196: =Balanza!G400 -> 0 | AY196: =Balanza!C400 -> 0
A197: 51120-4 | B197: Retribución a los representantes de los trabajadores y de los patrones en la Junta de Conciliación y Arbitraje | AX197: =Balanza!G401 -> 0 | AY197: =Balanza!C401 -> 0
A198: 51130 | B198: Remuneraciones adicionales y especiales | AX198: =SUM(AX199:AX206) -> 1992316.62 | AY198: =SUM(AY199:AY206) -> 1965342.79
A199: 51130-1 | B199: Primas por años de servicios efectivos prestados | AX199: =Balanza!G403 -> 0 | AY199: =Balanza!C403 -> 0
A200: 51130-2 | B200: Primas de vacaciones, dominical y gratificación de fin de año | AX200: =Balanza!G404 -> 1935992.83 | AY200: =Balanza!C404 -> 1893041.43
A201: 51130-3 | B201: Horas extraordinarias | AX201: =Balanza!G405 -> 56323.79 | AY201: =Balanza!C405 -> 72301.36
... 346 more rows

Sheet F2
A1: =Validacion!A2 -> Atemajac de Brizuela
A2: ESTADO DE VARIACIÓN DE LA HACIENDA PÚBLICA
A3: ='F6'!A3 -> Del 1° de Enero al 31 de Diciembre de 2021
B5: CONCEPTO | C5: Hacienda pública/patrimonio contribuido | D5: Hacienda pública/patrimonio generado de ejercicios anteriores | E5: Hacienda pública/patrimonio generado del ejercicio | F5: Exceso o insuficiencia en la actualización de la Hacienda pública/patrimonio | G5: TOTAL
A6: Hacienda pública / patrimonio contribuido neto de 2020 | C6: =SUM(C7:C9) -> 0 | G6: =SUM(C6:F6) -> 0
B7: Aportaciones | C7: =Balanza!D175 -> 0 | G7: =SUM(C7:F7) -> 0
B8: Donaciones de capital | C8: =Balanza!D176 -> 0 | G8: =SUM(C8:F8) -> 0
B9: Actualización de la hacienda pública/patrimonio | C9: =Balanza!D177 -> 0 | G9: 0
A10: Hacienda pública / patrimonio generado neto de 2020 | D10: =SUM(D12:D15) -> 8461300.85 | E10: =SUM(E11) -> 8267371.7 | G10: 16728672.55
B11: Resultados del ejercicio (ahorro/desahorro) | E11: =Balanza!D179 -> 8267371.7 | G11: 8267371.7
B12: Resultados de ejercicios anteriores | D12: =Balanza!D180 -> 8461300.85 | G12: 8461300.85
B13: Revalúos | D13: =Balanza!D181 -> 0 | G13: 0
B14: Reservas | D14: =Balanza!D186 -> 0 | G14: 0
B15: Rectificaciones de resultados de ejercicios anteriores | D15: =Balanza!D190 -> 0 | G15: 0
A16: Exceso o insuficiencia en la actualización de la Hacienda pública/patrimonio neto 2020 | F16: =SUM(F17:F18) -> 0 | G16: 0
B17: Resultado por posición monetaria | F17: =Balanza!D194 -> 0 | G17: 0
B18: Resultado por tenencia de activos no monetarios | F18: =Balanza!D195 -> 0 | G18: 0
A19: Hacienda pública / patrimonio neto final de 2020 | C19: =C6 -> 0 | D19: =D10 -> 8461300.85 | E19: =E10 -> 8267371.7 | F19: =F16 -> 0 | G19: 16728672.55
A20: Cambios en la hacienda pública/patrimonio contribuido neto de 2021 | C20: =SUM(C21:C23) -> 0 | G20: 0
B21: Aportaciones | C21: =Balanza!F175-Balanza!E175 -> 0 | G21: 0
B22: Donaciones de capital | C22: =Balanza!F176-Balanza!E176 -> 0 | G22: 0
B23: Actualización de la hacienda pública/patrimonio | C23: =Balanza!F177-Balanza!E177 -> 0 | G23: 0
A24: Variaciones de la hacienda pública/patrimonio generado neto de 2021 | D24: =SUM(D26) -> 8267371.7 | E24: =SUM(E25:E29) -> 3806582.014 | G24: 12073953.71
B25: Resultados del ejercicio (ahorro/desahorro) | E25: =Balanza!H179 -> 12073953.71 | G25: 12073953.71
B26: Resultados de ejercicios anteriores | D26: =Balanza!H180-Balanza!D180 -> 8267371.7 | E26: =(Balanza!D179)*-1 -> -8267371.7 | G26: 0
B27: Revalúos | E27: =Balanza!F181-Balanza!E181 -> 0 | G27: 0
B28: Reservas | E28: =Balanza!F186-Balanza!E186 -> 0 | G28: 0
B29: Rectificaciones de resultados de ejercicios anteriores | E29: =Balanza!F190-Balanza!E190 -> 0 | G29: 0
A30: Cambios en el exceso o insuficiencia en la actualización de la hacienda pública/patrimonio neto de 2021 | F30: =SUM(F31:F32) -> 0 | G30: 0
B31: Resultados por posición monetaria | F31: =Balanza!F194-Balanza!E194 -> 0 | G31: 0
B32: Resultados por terceros de activos no monetarios | F32: =Balanza!F195-Balanza!E195 -> 0 | G32: 0
A33: Hacienda pública/patrimonio neto final de 2021 | C33: =C19+C20 -> 0 | D33: =D19+D24 -> 16728672.55 | E33: =E19+E24 -> 12073953.71 | F33: =F19+F30 -> 0 | G33: 28802626.26
B35: Bajo protesta de decir verdad declaramos que los estados financieros y sus notas, son razonablemente correctos y son responsabilidad del emisor.
B40: =Validacion!A7 -> C. SANTIAGO LEON CASTRO | D40: =Validacion!A9 -> L.T. JOCELYN SANCHEZ HERRERA
B42: Presidente Municipal o titular del ente público | D42: Encargado de la Hacienda Municipal o Responsable de las finanzas del ente público

Sheet F4A1
A1: =Validacion!A2 -> Atemajac de Brizuela
A2: CONCILIACIÓN ENTRE LOS INGRESO PRESUPUESTARIOS Y CONTABLES
A3: ='F6'!A3 -> Del 1° de Enero al 31 de Diciembre de 2021
A5: CONCEPTO | C5: IMPORTE
A6: 1. Total de ingresos presupuestarios | D6: ='F7'!F70 -> 49351198
A7: 2. Ingresos contables no presupuestarios | D7: =SUM(C8:C13) -> 0
B8: 2.1 Ingresos financieros | C8: ='F6'!AX162 -> 0
B9: 2.2 Incremento por variaciones de inventarios | C9: ='F6'!AX165 -> 0
B10: 2.3 Disminución del exceso de estimación por pérdida o deterioro u obsolescencia | C10: ='F6'!AX171 -> 0
B11: 2.4 Disminución del exceso de provisiones | C11: ='F6'!AX173 -> 0
B12: 2.5 Otros ingresos y beneficios varios | C12: ='F6'!AX175 -> 0
B13: 2.6 Otros ingresos contables no presupuestarios
A14: 3. Ingresos presupuestarios no contables | D14: =SUM(C15:C17) -> 0
B15: 3.1 Aprovechamientos patrimoniales | C15: ='F7'!F39 -> 0
B16: 3.2 Ingresos derivados de financiamientos | C16: ='F7'!F66 -> 0
B17: 3.3 Otros ingresos presupuestarios no contables
A18: 4. Total de ingresos contables | D18: =D6+D7-D14 -> 49351198
A20: Bajo protesta de decir verdad declaramos que los estados financieros y sus notas, son razonablemente correctos y son responsabilidad del emisor.
B24: =Validacion!A7 -> C. SANTIAGO LEON CASTRO
B26: Presidente Municipal o titular del ente público
B30: =Validacion!A9 -> L.T. JOCELYN SANCHEZ HERRERA
B32: Encargado de la Hacienda Municipal o Responsable de las finanzas del ente público

Sheet F4A2
A1: =Validacion!A2 -> Atemajac de Brizuela
A2: CONCILIACIÓN ENTRE LOS EGRESOS PRESUPUESTARIOS Y LOS GASTOS CONTABLES
A3: ='F6'!A3 -> Del 1° de Enero al 31 de Diciembre de 2021
A5: CONCEPTO | C5: IMPORTE
A6: 1. Total de egresos presupuestarios | D6: ='F8'!F80 -> 49049839.68
A7: 2. Egresos presupuestarios no contables | D7: =SUM(C8:C28) -> 11772595.39
B8: 2.1 Materias primas y materiales de producción y comercialización | C8: 0
B9: 2.2 Materiales y suministros | C9: 0
B10: 2.3 Mobiliario y equipo de administración | C10: ='F8'!F47 -> 132912.97
B11: 2.4 Mobiliario y equipo educacional y recreativo | C11: ='F8'!F48 -> 0
B12: 2.5 Equipo e instrumental médico y de laboratorio | C12: ='F8'!F49 -> 0
B13: 2.6 Vehículos y equipo de transporte | C13: ='F8'!F50 -> 227500
B14: 2.7 Equipo de defensa y seguridad | C14: ='F8'!F51 -> 0
B15: 2.8 Maquinaria, otros equipos y herramientas | C15: ='F8'!F52 -> 0
B16: 2.9 Activos biológicos | C16: ='F8'!F53 -> 0
B17: 2.10 Bienes inmuebles | C17: ='F8'!F54 -> 0
B18: 2.11 Activos intangibles | C18: ='F8'!F55 -> 0
B19: 2.12 Obras públicas en bienes de dominio público | C19: ='F8'!F57 -> 8962182.42
B20: 2.13 Obras públicas en bienes propios | C20: ='F8'!F58 -> 0
B21: 2.14 Acciones y participaciones de capital | C21: ='F8'!F62 -> 0
B22: 2.15 Compra de títulos y valores | C22: ='F8'!F63 -> 0
B23: 2.16 Concesión de préstamos | C23: ='F8'!F64 -> 0
B24: 2.17 Inversiones en fideicomisos, mandatos y otros análogos | C24: ='F8'!F65 -> 0
B25: 2.18 Provisiones para contingencias y otras erogaciones especiales | C25: ='F8'!F67 -> 0
B26: 2.19 Amortización de la deuda pública | C26: ='F8'!F73 -> 2450000
B27: 2.20 Adeudos de ejercicios fiscales anteriores (ADEFAS) | C27: ='F8'!F79 -> 0
B28: 2.21 Otros egresos presupuestales no contables
A29: 3. Gastos contables no presupuestales | D29: =SUM(C30:C36) -> 0
B30: 3.1 Estimaciones, depreciaciones, deterioros, obsolescencias y amortizaciones | C30: ='F6'!AX508 -> 0
B31: 3.2 Previsiones | C31: ='F6'!AX517 -> 0
B32: 3.3 Disminución de inventarios | C32: ='F6'!AX520 -> 0
B33: 3.4 Aumento por insuficiencia de estimaciones por pérdida o deterioro u obsolescencias | C33: ='F6'!AX526 -> 0
B34: 3.5 Aumento por insuficiencia de provisiones | C34: ='F6'!AX528 -> 0
B35: 3.6 Otros gastos | C35: ='F6'!AX530 -> 0
B36: 3.7 Otros gastos contables no presupuestales
A37: 4. Total de gastos contables | D37: =D6-D7+D29 -> 37277244.29
A39: Bajo protesta de decir verdad declaramos que los estados financieros y sus notas, son razonablemente correctos y son responsabilidad del emisor.
B43: =Validacion!A7 -> C. SANTIAGO LEON CASTRO
B45: Presidente Municipal o titular del ente público
B49: =Validacion!A9 -> L.T. JOCELYN SANCHEZ HERRERA
B51: Encargado de la Hacienda Municipal o Responsable de las finanzas del ente público

Sheet F5
A1: =Validacion!A2 -> Atemajac de Brizuela
A2: ESTADO ANALÍTICO DEL ACTIVO
A3: ='F6'!A3 -> Del 1° de Enero al 31 de Diciembre de 2021
A5: CONCEPTO | E5: SALDO INICIAL | F5: CARGO DEL PERIODO | G5: ABONO DEL PERIODO | H5: SALDO FINAL | I5: VARIACIÓN DEL PERIODO
A6: Activo | E6: =E7+E15 -> 20676732.96 | F6: =F7+F15 -> 165547245.2 | G6: =G7+G15 -> 157094109.2 | H6: =E6+F6-G6 -> 29129868.99 | I6: =ROUND(H6-E6,2) -> 8453136.03
B7: Activo circulante | E7: =SUM(E8:E14) -> 1638603.84 | F7: =SUM(F8:F14) -> 156224649.8 | G7: =SUM(G8:G14) -> 157094109.2 | H7: =E7+F7-G7 -> 769144.48 | I7: =H7-E7 -> -869459.36
C8: Efectivo y equivalentes | E8: =Balanza!C5 -> 1439544.34 | F8: =Balanza!E5 -> 110003201.9 | G8: =Balanza!F5 -> 110677601.8 | H8: 765144.48 | I8: -674399.86
C9: Derechos a recibir efectivo o equivalentes | E9: =Balanza!C13 -> 199059.5 | F9: =Balanza!E13 -> 43765425.82 | G9: =Balanza!F13 -> 43960485.32 | H9: 4000 | I9: -195059.5
C10: Derechos a recibir bienes o servicios | E10: =Balanza!C21 -> 0 | F10: =Balanza!E21 -> 0 | G10: =Balanza!F21 -> 0 | H10: 0 | I10: 0
C11: Inventarios | E11: =Balanza!C27 -> 0 | F11: =Balanza!E27 -> 0 | G11: =Balanza!F27 -> 0 | H11: 0 | I11: 0
C12: Almacenes | E12: =Balanza!C33 -> 0 | F12: =Balanza!E33 -> 2456022.1 | G12: =Balanza!F33 -> 2456022.1 | H12: 0 | I12: 0
C13: Estimación por pérdida o deterioro de activos circulantes | E13: =Balanza!C35 -> 0 | F13: =Balanza!E35 -> 0 | G13: =Balanza!F35 -> 0 | H13: 0 | I13: 0
C14: Otros activos circulantes | E14: =Balanza!C38 -> 0 | F14: =Balanza!E38 -> 0 | G14: =Balanza!F38 -> 0 | H14: 0 | I14: 0
B15: Activo no circulante | E15: =SUM(E16:E24) -> 19038129.12 | F15: =SUM(F16:F24) -> 9322595.39 | G15: =SUM(G16:G24) -> 0 | H15: 28360724.51 | I15: 9322595.39
C16: Inversiones financieras a largo plazo | E16: =Balanza!C44 -> 0 | F16: =Balanza!E44 -> 0 | G16: =Balanza!F44 -> 0 | H16: 0 | I16: 0
C17: Derechos a recibir efectivo o equivalentes a largo plazo | E17: =Balanza!C49 -> 0 | F17: =Balanza!E49 -> 0 | G17: =Balanza!F49 -> 0 | H17: 0 | I17: 0
C18: Bienes inmuebles, infraestructura y construcciones en proceso | E18: =Balanza!C55 -> 16868234.87 | F18: =Balanza!E55 -> 8962182.42 | G18: =Balanza!F55 -> 0 | H18: 25830417.29 | I18: 8962182.42
C19: Bienes muebles | E19: =Balanza!C63 -> 2169894.25 | F19: =Balanza!E63 -> 360412.97 | G19: =Balanza!F63 -> 0 | H19: 2530307.22 | I19: 360412.97
C20: Activos intangibles | E20: =Balanza!C72 -> 0 | F20: =Balanza!E72 -> 0 | G20: =Balanza!F72 -> 0 | H20: =E20+F20-G20 -> 0 | I20: =H20-E20 -> 0
C21: Depreciación, deterioro y amortización acumulada de bienes | E21: =Balanza!C78 -> 0 | F21: =Balanza!E78 -> 0 | G21: =Balanza!F78 -> 0 | H21: 0 | I21: 0
C22: Activos diferidos | E22: =Balanza!C84 -> 0 | F22: =Balanza!E84 -> 0 | G22: =Balanza!F84 -> 0 | H22: 0 | I22: 0
C23: Estimación por pérdida o deterioro de activos no circulantes | E23: =Balanza!C91 -> 0 | F23: =Balanza!E91 -> 0 | G23: =Balanza!F91 -> 0 | H23: 0 | I23: 0
C24: Otros activos no circulantes | E24: =Balanza!C97 -> 0 | F24: =Balanza!E97 -> 0 | G24: =Balanza!F97 -> 0 | H24: 0 | I24: 0
D26: Bajo protesta de decir verdad declaramos que los estados financieros y sus notas, son razonablemente correctos y son resposabilidad del emisor.
D32: =Validacion!A7 -> C. SANTIAGO LEON CASTRO | F32: =Validacion!A9 -> L.T. JOCELYN SANCHEZ HERRERA
D34: Presidente Municipal o titular del ente público | F34: Encargado de la Hacienda Municipal o Responsable de las finanzas del ente público

Sheet F7
A1: =Validacion!A2 -> Atemajac de Brizuela
A2: ESTADO ANALÍTICO DE INGRESOS
A3: ='F6'!A3 -> Del 1° de Enero al 31 de Diciembre de 2021
A5: RUBRO DE INGRESOS | C5: INGRESO | H5: DIFERENCIA
C6: ESTIMADO | D6: AMPLIACIÓN Y REDUCCIÓN | E6: MODIFICADO | F6: DEVENGADO | G6: RECAUDADO
A7: Impuestos | C7: =SUM(C8:C16) -> 3016201 | D7: =SUM(D8:D16) -> 0 | E7: =C7+D7 -> 3016201 | F7: =SUM(F8:F16) -> 4282314.98 | G7: =SUM(G8:G16) -> 4282314.98 | H7: =G7-C7 -> 1266113.98
B8: Impuestos sobre los ingresos | C8: =Balanza!G797 -> 0 | D8: =Balanza!G931 -> 0 | E8: =C8+D8 -> 0 | F8: =Balanza!F998 -> 15088 | G8: =Balanza!H1065 -> 15088 | H8: =G8-C8 -> 15088
B9: Impuestos sobre patrimonio | C9: =Balanza!G798 -> 2968300 | D9: =Balanza!G932 -> 0 | E9: 2968300 | F9: =Balanza!F999 -> 4235306.85 | G9: =Balanza!H1066 -> 4235306.85 | H9: 1267006.85
B10: Impuestos sobre la producción, el consumo y las transacciones | C10: =Balanza!G799 -> 0 | D10: =Balanza!G933 -> 0 | E10: 0 | F10: =Balanza!F1000 -> 0 | G10: =Balanza!H1067 -> 0 | H10: 0
B11: Impuestos al comercio exterior | C11: =Balanza!G800 -> 0 | D11: =Balanza!G934 -> 0 | E11: 0 | F11: =Balanza!F1001 -> 0 | G11: =Balanza!H1068 -> 0 | H11: 0
B12: Impuestos sobre nóminas y asimilables | C12: =Balanza!G801 -> 0 | D12: =Balanza!G935 -> 0 | E12: 0 | F12: =Balanza!F1002 -> 0 | G12: =Balanza!H1069 -> 0 | H12: 0
B13: Impuestos ecológicos | C13: =Balanza!G802 -> 0 | D13: =Balanza!G936 -> 0 | E13: 0 | F13: =Balanza!F1003 -> 0 | G13: =Balanza!H1070 -> 0 | H13: 0
B14: Accesorios | C14: =Balanza!G803 -> 0 | D14: =Balanza!G937 -> 0 | E14: 0 | F14: =Balanza!F1004 -> 31920.13 | G14: =Balanza!H1071 -> 0 | H14: 0
B15: Otros impuestos | C15: =Balanza!G804 -> 47901 | D15: =Balanza!G938 -> 0 | E15: 47901 | F15: =Balanza!F1005 -> 0 | G15: =Balanza!H1072 -> 31920.13 | H15: -15980.87
B16: Impuestos no comprendidos en la ley de ingresos vigente, causados en ejercicios fiscales anteriores pendientes de liquidar o pago | C16: =Balanza!G805 -> 0 | D16: =Balanza!G939 -> 0 | E16: 0 | F16: =Balanza!F1006 -> 0 | G16: =Balanza!H1073 -> 0 | H16: 0
A17: Cuotas y aportaciones de seguridad social | C17: =SUM(C18:C22) -> 0 | D17: =SUM(D18:D22) -> 0 | E17: 0 | F17: =SUM(F18:F22) -> 0 | G17: 0 | H17: 0
B18: Aportaciones para fondos de vivienda | C18: =Balanza!G807 -> 0 | D18: =Balanza!G941 -> 0 | E18: 0 | F18: =Balanza!F1008 -> 0 | G18: =Balanza!H1075 -> 0 | H18: 0
B19: Cuotas para la seguridad social | C19: =Balanza!G808 -> 0 | D19: =Balanza!G942 -> 0 | E19: 0 | F19: =Balanza!F1009 -> 0 | G19: =Balanza!H1076 -> 0 | H19: 0
B20: Cuotas de ahorro para el retiro | C20: =Balanza!G809 -> 0 | D20: =Balanza!G943 -> 0 | E20: 0 | F20: =Balanza!F1010 -> 0 | G20: =Balanza!H1077 -> 0 | H20: 0
B21: Otras cuotas y aportaciones para la seguridad social | C21: =Balanza!G810 -> 0 | D21: =Balanza!G944 -> 0 | E21: 0 | F21: =Balanza!F1011 -> 0 | G21: =Balanza!H1078 -> 0 | H21: 0
B22: Accesorios de cuotas y aportaciones de seguridad social | C22: =Balanza!G811 -> 0 | D22: =Balanza!G945 -> 0 | E22: 0 | F22: =Balanza!F1012 -> 0 | G22: =Balanza!H1079 -> 0 | H22: 0
A23: Contribuciones de mejora | C23: =SUM(C24:C25) -> 0 | D23: =SUM(D24:D25) -> 0 | E23: 0 | F23: =SUM(F24:F25) -> 0 | G23: 0 | H23: 0
B24: Contribuciones de mejoras por obras públicas | C24: =Balanza!G813 -> 0 | D24: =Balanza!G947 -> 0 | E24: 0 | F24: =Balanza!F1014 -> 0 | G24: =Balanza!H1081 -> 0 | H24: 0
B25: Contribuciones de mejoras no comprendidas en la ley de ingresos vigente, causadas en ejercicios fiscales anteriores pendientes de liquidación o pago | C25: =Balanza!G814 -> 0 | D25: =Balanza!G948 -> 0 | E25: 0 | F25: =Balanza!F1015 -> 0 | G25: =Balanza!H1082 -> 0 | H25: 0
A26: Derechos | C26: =SUM(C27:C32) -> 1732545 | D26: =SUM(D27:D32) -> 0 | E26: 1732545 | F26: =SUM(F27:F32) -> 4717158.67 | G26: 4717158.67 | H26: 2984613.67
B27: Derechos por el uso, goce, aprovechamiento o explotación de bienes de dominio público | C27: =Balanza!G816 -> 32899 | D27: =Balanza!G950 -> 0 | E27: 32899 | F27: =Balanza!F1017 -> 157383 | G27: =Balanza!H1084 -> 157383 | H27: 124484
B28: Derecho a los hidrocarburos (derogado) | C28: =Balanza!G817 -> 0 | D28: =Balanza!G951 -> 0 | E28: 0 | F28: =Balanza!F1018 -> 0 | G28: =Balanza!H1085 -> 0 | H28: 0
B29: Derechos por prestación de servicios | C29: =Balanza!G818 -> 1686977 | D29: =Balanza!G952 -> 0 | E29: 1686977 | F29: =Balanza!F1019 -> 4552870.15 | G29: =Balanza!H1086 -> 4552870.15 | H29: 2865893.15
B30: Otros derechos | C30: =Balanza!G819 -> 0 | D30: =Balanza!G953 -> 0 | E30: 0 | F30: =Balanza!F1020 -> 0 | G30: =Balanza!H1087 -> 0 | H30: 0
B31: Accesorios | C31: =Balanza!G820 -> 12669 | D31: =Balanza!G954 -> 0 | E31: 12669 | F31: =Balanza!F1021 -> 6905.52 | G31: =Balanza!H1088 -> 0 | H31: -12669
B32: Derechos no comprendidos en la ley de ingresos vigente, causados en ejercicios fiscales anteriores pendientes de liquidación o pago | C32: =Balanza!G821 -> 0 | D32: =Balanza!G955 -> 0 | E32: 0 | F32: =Balanza!F1022 -> 0 | G32: =Balanza!H1089 -> 6905.52 | H32: 6905.52
A33: Productos | C33: =SUM(C34:C36) -> 164588 | D33: =SUM(D34:D36) -> 0 | E33: 164588 | F33: =SUM(F34:F36) -> 53968.85 | G33: 53968.85 | H33: -110619.15
B34: Productos | C34: =Balanza!G823 -> 164588 | D34: =Balanza!G957 -> 0 | E34: 164588 | F34: =Balanza!F1024 -> 53968.85 | G34: =Balanza!H1091 -> 53968.85 | H34: -110619.15
B35: Productos de capital (derogado) | C35: =Balanza!G824 -> 0 | D35: =Balanza!G958 -> 0 | E35: 0 | F35: =Balanza!F1025 -> 0 | G35: =Balanza!H1092 -> 0 | H35: 0
B36: Productos no comprendidos en la ley de ingresos vigente, causados en ejercicios fiscales anteriores pendientes de liquidación o pago | C36: =Balanza!G825 -> 0 | D36: =Balanza!G959 -> 0 | E36: 0 | F36: =Balanza!F1026 -> 0 | G36: =Balanza!H1093 -> 0 | H36: 0
A37: Aprovechamientos | C37: =SUM(C38:C41) -> 550910 | D37: =SUM(D38:D41) -> 0 | E37: 550910 | F37: =SUM(F38:F41) -> 592426.07 | G37: 592426.07 | H37: 41516.07
B38: Aprovechamientos | C38: =Balanza!G827 -> 8380 | D38: =Balanza!G961 -> 0 | E38: 8380 | F38: =Balanza!F1028 -> 349127.05 | G38: =Balanza!H1095 -> 349127.05 | H38: 340747.05
B39: Aprovechamientos patrimoniales | C39: =Balanza!G828 -> 0 | D39: =Balanza!G962 -> 0 | E39: 0 | F39: =Balanza!F1029 -> 0 | G39: =Balanza!H1096 -> 0 | H39: 0
B40: Accesorios de aprovechamientos | C40: =Balanza!G829 -> 0 | D40: =Balanza!G963 -> 0 | E40: 0 | F40: =Balanza!F1030 -> 0 | G40: =Balanza!H1097 -> 0 | H40: 0
B41: Aprovechamientos no comprendidos en la ley de ingresos vigente, causados en ejercicios fiscales anteriores pendientes de liquidación o pago | C41: =Balanza!G830 -> 542530 | D41: =Balanza!G964 -> 0 | E41: 542530 | F41: =Balanza!F1031 -> 243299.02 | G41: =Balanza!H1098 -> 243299.02 | H41: -299230.98
A42: Ingresos por venta de bienes, prestación de servicios y otros ingresos | C42: =SUM(C43:C51) -> 0 | D42: =SUM(D43:D51) -> 0 | E42: 0 | F42: =SUM(F43:F51) -> 0 | G42: 0 | H42: 0
B43: Ingresos por venta de bienes y prestación de servicios de instituciones públicas de seguridad social | C43: =Balanza!G832 -> 0 | D43: =Balanza!G966 -> 0 | E43: 0 | F43: =Balanza!F1033 -> 0 | G43: =Balanza!H1100 -> 0 | H43: 0
B44: Ingresos por venta de bienes y prestación de servicios de empresas productivas del estado | C44: =Balanza!G833 -> 0 | D44: =Balanza!G967 -> 0 | E44: 0 | F44: =Balanza!F1034 -> 0 | G44: =Balanza!H1101 -> 0 | H44: 0
B45: Ingresos por venta de bienes y prestación de servicios de entidades paraestatales y fideicomisos no empresariales y no financieros | C45: =Balanza!G834 -> 0 | D45: =Balanza!G968 -> 0 | E45: 0 | F45: =Balanza!F1035 -> 0 | G45: =Balanza!H1102 -> 0 | H45: 0
B46: Ingresos por venta de bienes y prestación de servicios de entidades paraestatales empresariales y no financieros con participación estatal mayoritaria | C46: =Balanza!G835 -> 0 | D46: =Balanza!G969 -> 0 | E46: 0 | F46: =Balanza!F1036 -> 0 | G46: =Balanza!H1103 -> 0 | H46: 0
B47: Ingresos por venta de bienes y prestación de servicios de entidades paraestatales empresariales financieras monetarias con participación estatal mayoritaria | C47: =Balanza!G836 -> 0 | D47: =Balanza!G970 -> 0 | E47: 0 | F47: =Balanza!F1037 -> 0 | G47: =Balanza!H1104 -> 0 | H47: 0
B48: Ingresos por venta de bienes y prestación de servicios de entidades paraestatales empresariales financieras no monetarias con participación estatal mayoritaria | C48: =Balanza!G837 -> 0 | D48: =Balanza!G971 -> 0 | E48: 0 | F48: =Balanza!F1038 -> 0 | G48: =Balanza!H1105 -> 0 | H48: 0
B49: Ingresos por venta de bienes y prestación de servicios de fideicomisos financieros públicos con participación estatal mayoritaria | C49: =Balanza!G838 -> 0 | D49: =Balanza!G972 -> 0 | E49: 0 | F49: =Balanza!F1039 -> 0 | G49: =Balanza!H1106 -> 0 | H49: 0
B50: Ingresos por venta de bienes y prestación de servicios de los poderes legislativo y judicial, y de los órganos autónomos | C50: =Balanza!G839 -> 0 | D50: =Balanza!G973 -> 0 | E50: 0 | F50: =Balanza!F1040 -> 0 | G50: =Balanza!H1107 -> 0 | H50: 0
B51: Otros ingresos | C51: =Balanza!G840 -> 0 | D51: =Balanza!G974 -> 0 | E51: 0 | F51: =Balanza!F1041 -> 0 | G51: =Balanza!H1108 -> 0 | H51: 0
A52: Participaciones, aportaciones, convenios, incentivos derivados de la colaboración fiscal y fondos distintos de aportaciones | C52: =SUM(C53:C57) -> 39534574 | D52: =SUM(D53:D57) -> 0 | E52: 39534574 | F52: =SUM(F53:F57) -> 39705329.43 | G52: 39705329.43 | H52: 170755.43
B53: Participaciones | C53: =Balanza!G842 -> 23528908 | D53: =Balanza!G976 -> 0 | E53: 23528908 | F53: =Balanza!F1043 -> 24420587.93 | G53: =Balanza!H1110 -> 24420587.93 | H53: 891679.93
B54: Aportaciones | C54: =Balanza!G843 -> 13005666 | D54: =Balanza!G977 -> 0 | E54: 13005666 | F54: =Balanza!F1044 -> 12954133.24 | G54: =Balanza!H1111 -> 12954133.24 | H54: -51532.76
B55: Convenios | C55: =SUM(Balanza!G844:G845) -> 3000000 | D55: =SUM(Balanza!G978:G979) -> 0 | E55: 3000000 | F55: =SUM(Balanza!F1045:F1046) -> 1865390 | G55: =SUM(Balanza!H1112:H1113) -> 1865390 | H55: -1134610
B56: Incentivos derivados de la colaboración fiscal | C56: =Balanza!G846 -> 0 | D56: =Balanza!G980 -> 0 | E56: 0 | F56: =Balanza!F1047 -> 465218.26 | G56: =Balanza!H1114 -> 465218.26 | H56: 465218.26
B57: Fondos distintos de aportaciones | C57: =Balanza!G847 -> 0 | D57: =Balanza!G981 -> 0 | E57: 0 | F57: =Balanza!F1048 -> 0 | G57: =Balanza!H1115 -> 0 | H57: 0
A58: Transferencias, asignaciones, subsidios y subvenciones, y pensiones y jubilaciones | C58: =SUM(C59:C65) -> 0 | D58: =SUM(D59:D65) -> 0 | E58: 0 | F58: =SUM(F59:F65) -> 0 | G58: =SUM(G59:G65) -> 0 | H58: 0
B59: Transferencias y asignaciones | C59: =SUM(Balanza!G849:G850) -> 0 | D59: =SUM(Balanza!G983:G984) -> 0 | E59: 0 | F59: =SUM(Balanza!F1050:F1051) -> 0 | G59: =SUM(Balanza!H1117:H1118) -> 0 | H59: 0
B60: Transferencias al resto del sector público (derogado) | C60: =Balanza!G851 -> 0 | D60: =Balanza!G985 -> 0 | E60: 0 | F60: =Balanza!F1052 -> 0 | G60: =Balanza!H1119 -> 0 | H60: 0
B61: Subsidios y subvenciones | C61: =SUM(Balanza!G852:G853) -> 0 | D61: =SUM(Balanza!G986:G987) -> 0 | E61: 0 | F61: =SUM(Balanza!F1053:F1054) -> 0 | G61: =SUM(Balanza!H1120:H1121) -> 0 | H61: 0
B62: Ayudas sociales (derogado) | C62: =Balanza!G854 -> 0 | D62: =Balanza!G988 -> 0 | E62: 0 | F62: =Balanza!F1055 -> 0 | G62: =Balanza!H1122 -> 0 | H62: 0
B63: Pensiones y jubilaciones | C63: =Balanza!G855 -> 0 | D63: =Balanza!G989 -> 0 | E63: 0 | F63: =Balanza!F1056 -> 0 | G63: =Balanza!H1123 -> 0 | H63: 0
B64: Transferencias a fideicomisos, mandatos y análogos (derogado) | C64: =Balanza!G856 -> 0 | D64: =Balanza!G990 -> 0 | E64: 0 | F64: =Balanza!F1057 -> 0 | G64: =Balanza!H1124 -> 0 | H64: 0
B65: Transferencias del fondo mexicano del petróleo para la estabilización y el desarrollo | C65: =Balanza!G857 -> 0 | D65: =Balanza!G991 -> 0 | E65: 0 | F65: =Balanza!F1058 -> 0 | G65: =Balanza!H1125 -> 0 | H65: 0
A66: Ingresos derivados de financiamiento | C66: =SUM(C67:C69) -> 0 | D66: =SUM(D67:D69) -> 0 | E66: 0 | F66: =SUM(F67:F69) -> 0 | G66: 0 | H66: 0
B67: Endeudamiento interno | C67: =Balanza!G859 -> 0 | D67: =Balanza!G993 -> 0 | E67: 0 | F67: =Balanza!F1060 -> 0 | G67: =Balanza!H1127 -> 0 | H67: =G67-C67 -> 0
